Workbook

Sheet AER only (hidden)
B1: Data in these columns used for data validation and database purposes.
B2: Date last modified: | C2: 2017-01-16 | D2: added (Albury and Victora) for AGN
AC4: FOR ELECTRICITY BUSINESSES ONLY
AC5: Feeder Types | AG5: TasNetworks (D) | AH5: MAIFI flag | AI5: Feeder Names
AC6: CBD | AD6: Urban | AE6: Short rural | AF6: long rural | AG6: EXTRA
B7: dms_TradingName_List | C7: dms_TradingNameFull_List | D7: dms_ABN_List | E7: dms_JurisdictionList | F7: dms_Sector_List | G7: dms_Segment_List | H7: dms_FormControl_List | I7: dms_RPT_List | J7: dms_RPTMonth_List | K7: dms_CRCPlength_List | L7: dms_FRCPlength_List | M7: dms_663_List | N7: dms_DeterminationRef_List | O7: dms_Addr1_List | P7: dms_Addr2_List | Q7: dms_Suburb_List | R7: dms_State_List | S7: dms_PostCode_List | T7: dms_PAddr1_List | U7: dms_PAddr2_List | V7: dms_PSuburb_List | W7: dms_PState_List | X7: dms_PPostCode_List | Y7: dms_ContactName1_List | Z7: dms_ContactPh1_List | AA7: dms_ContactEmail_List | AC7: dms_CBD_flag | AD7: dms_Urban_flag | AE7: dms_ShortRural_flag | AF7: dms_LongRural_flag | AG7: dms_FeederType_5_flag | AH7: dms_MAIFI_flag_List | AI7: dms_FeederName_1 | AJ7: dms_FeederName_2 | AK7: dms_FeederName_3 | AL7: dms_FeederName_4 | AM7: dms_FeederName_5
B8: ActewAGL Distribution | C8: ActewAGL Distribution | D8: 76670568688 | E8: ACT | F8: Electricity | G8: Distribution | H8: Revenue cap | I8: Financial | J8: June | K8: 5 | L8: 5 | M8: 5 | N8: 2014-19 Distribution Determination | O8: 40 Bunda Street | Q8: CANBERRA | R8: ACT | S8: 2600 | T8: GPO BOX 366 | V8: CANBERRA | W8: ACT | X8: 2601 | Y8: Robert Walker | Z8: 02 6248 3847 | AA8: robert.walker@actewagle.com.au | AC8: NO | AD8: YES | AE8: YES | AF8: NO | AG8: NO | AI8: CBD | AJ8: Urban | AK8: Short rural | AL8: Long rural | AN8: ActewAGL Distribution
B9: ActewAGL Distribution (Tx Assets) | C9: ActewAGL Distribution (Tx Assets) | D9: 76670568688 | E9: ACT | F9: Electricity | G9: Distribution | H9: Revenue cap | I9: Financial | J9: June | K9: 5 | L9: 5 | M9: 5 | N9: distribution determination | O9: 40 Bunda Street | Q9: CANBERRA | R9: ACT | S9: 2600 | T9: GPO BOX 366 | V9: CANBERRA | W9: ACT | X9: 2601 | Y9: Robert Walker | Z9: 02 6248 3847 | AA9: robert.walker@actewagle.com.au | AI9: CBD | AJ9: Urban | AK9: Short rural | AL9: Long rural | AN9: ActewAGL Distribution (Tx Assets)
B10: ActewAGL Gas | C10: ActewAGL Gas | D10: 76670568688 | E10: ACT | F10: Gas | G10: Distribution | H10: Weighted average price cap | I10: Financial | J10: June | K10: 5 | L10: 5 | M10: x | O10: 40 Bunda Street | Q10: CANBERRA | R10: ACT | S10: 2600 | T10: GPO BOX 366 | V10: CANBERRA | W10: ACT | X10: 2601 | Y10: Philip Deamer | Z10: 02 6248 3438 | AA10: GasAAReview@actewagl.com.au | AN10: ActewAGL Gas
B11: AGN (Albury) | C11: Australian Gas Networks Limited (reporting data for Albury) | D11: 19078551685 | E11: Vic | F11: Gas | G11: Distribution | H11: Weighted average price cap | I11: Calendar | J11: December | K11: 5 | L11: 5 | M11: x | O11: Level 6 | P11: 400 King William Street | Q11: ADELAIDE | R11: SA | S11: 5000 | T11: PO Box 6468 | U11: Halifax Street | V11: ADELAIDE | W11: SA | X11: 5000 | Y11: Craig de Laine | Z11: 08 8418 1129 | AA11: craig.delaine@agn.com.au | AI11: CBD | AJ11: Urban | AK11: Short rural | AL11: Long rural | AN11: AGN (Albury)
B12: AGN (Albury and Victoria) | C12: Australian Gas Networks Limited (reporting data for Albury and Victoria) | D12: 19078551685 | E12: Vic | F12: Gas | G12: Distribution | H12: Weighted average price cap | I12: Calendar | J12: December | K12: 5 | L12: 5 | M12: x | O12: Level 6 | P12: 400 King William Street | Q12: ADELAIDE | R12: SA | S12: 5000 | T12: PO Box 6468 | U12: Halifax Street | V12: ADELAIDE | W12: SA | X12: 5000 | Y12: Craig de Laine | Z12: 08 8418 1129 | AA12: craig.delaine@agn.com.au | AI12: CBD | AJ12: Urban | AK12: Short rural | AL12: Long rural
B13: AGN (SA) | C13: Australian Gas Networks Limited (reporting data for SA) | D13: 19078551685 | E13: SA | F13: Gas | G13: Distribution | H13: Weighted average price cap | I13: Financial | J13: June | K13: 5 | L13: 5 | M13: 5 | N13: distribution determination | O13: Level 6 | P13: 400 King William Street | Q13: ADELAIDE | R13: SA | S13: 5000 | T13: PO Box 6468 | U13: Halifax Street | V13: ADELAIDE | W13: SA | X13: 5000 | Y13: Craig de Laine | Z13: 08 8418 1129 | AA13: craig.delaine@agn.com.au | AN13: AGN (SA)
B14: AGN (Victoria) | C14: Australian Gas Networks Limited (reporting data for Victoria) | D14: 19078551685 | E14: Vic | F14: Gas | G14: Distribution | H14: Weighted average price cap | I14: Calendar | J14: December | K14: 5 | L14: 5 | M14: x | AN14: AGN (Victoria)
B15: Amadeus | C15: APT Pipelines (NT) Pty Ltd | D15: 39009737393 | E15: NT | F15: Gas | G15: Transmission | H15: Weighted average price cap | I15: Financial | J15: June | K15: 5 | L15: 5 | M15: x | N15: n/a | O15: Level 19, HSBC Building | P15: 580 George Street | Q15: SYDNEY | R15: NSW | S15: 2000 | T15: Level 19, HSBC Building | U15: 580 George Street | V15: SYDNEY | W15: NSW | X15: 2000 | Y15: Alexandra Curran | Z15: 02 9275 0020 | AA15: alexandra.curran@apa.com.au | AN15: Amadeus
B16: APA GasNet | C16: APA GasNet Australia (Operations) Pty Ltd | D16: 065083009 | E16: Vic | F16: Gas | G16: Transmission | H16: Weighted average price cap | I16: Calendar | J16: December | K16: 5 | L16: 5 | M16: x | O16: Level 19, HSBC Building | P16: 580 George Street | Q16: SYDNEY | R16: NSW | S16: 2000 | T16: PO Box R41 | V16: ROYAL EXCHANGE | W16: NSW | X16: 1225 | Z16: 02 9693 0000 | AN16: APA GasNet
B17: Ausgrid | C17: Ausgrid | D17: 67505337385 | E17: NSW | F17: Electricity | G17: Distribution | H17: Revenue cap | I17: Financial | J17: June | K17: 5 | L17: 5 | M17: 5 | N17: 2014-19 Distribution Determination | O17: 570 George St | Q17: SYDNEY | R17: NSW | S17: 2000 | Y17: John Thomson | Z17: (02) 9269 2312 | AA17: john.thomson@ausgrid.com.au | AC17: YES | AD17: YES | AE17: YES | AF17: YES | AG17: NO | AI17: CBD | AJ17: Urban | AK17: Short rural | AL17: Long rural | AN17: Ausgrid
B18: Ausgrid (Tx Assets) | C18: Ausgrid (Tx Assets) | D18: 67505337385 | E18: NSW | F18: Electricity | G18: Distribution | H18: Revenue cap | I18: Financial | J18: June | K18: 5 | L18: 5 | M18: 5 | N18: distribution determination | R18: NSW | AI18: CBD | AJ18: Urban | AK18: Short rural | AL18: Long rural | AN18: Ausgrid (Tx Assets)
B19: AusNet (D) | C19: AusNet Services (D) | D19: 91064651118 | E19: Vic | F19: Electricity | G19: Distribution | H19: Revenue cap | I19: Calendar | J19: December | K19: 5 | L19: 5 | M19: 2 | N19: 2016-20 Distribution Determination | O19: Level 32 | P19: 2 Southbank Boulevard | Q19: SOUTHBANK | R19: Vic | S19: 3006 | T19: Locked Bag 14051 | V19: MELBOURNE CITY MAIL CENTRE | W19: VIC | X19: 8001 | Y19: Hannah Williams | Z19: 03 9683 4088 | AA19: hwilliams@powercor.com.au | AD19: YES | AE19: YES | AF19: YES | AG19: NO | AI19: CBD | AJ19: Urban | AK19: Short rural | AL19: Long rural | AN19: AusNet (D)
B20: AusNet (Gas) | C20: AusNet Gas Services | D20: 086015036 | E20: Vic | F20: Gas | G20: Distribution | H20: Weighted average price cap | I20: Calendar | J20: December | K20: 5 | L20: 5 | M20: X | AN20: AusNet (Gas)
B21: AusNet (T) | C21: Ausnet Services (Transmission) Ltd | D21: 48116124362 | E21: Vic | F21: Electricity | G21: Transmission | H21: Revenue cap | I21: Financial | J21: March | K21: 5 | L21: 5 | M21: 2 | N21: transmission determination | O21: Level 32 | P21: 2 Southbank Boulevard | Q21: SOUTHBANK | R21: Vic | S21: 3006 | T21: Locked Bag 14051 | V21: MELBOURNE CITY MAIL CENTRE | W21: Vic | X21: 8001 | Y21: Clare Thompson | Z21: 03 9695 6670 | AA21: clare.e.thompson@ausnetservices.com.au | AI21: CBD | AJ21: Urban | AK21: Short rural | AL21: Long rural | AN21: AusNet (T)
B22: Australian Distribution Co. | C22: Australian Distribution Co. | D22: 11222333444 | E22: - | F22: Electricity | G22: Distribution | H22: Revenue cap | I22: Financial | J22: June | K22: 5 | L22: 5 | M22: 2 | N22: distribution determination | O22: 123 Straight Street | Q22: SYDNEY | R22: NSW | S22: 2000 | T22: PO Box 123 | V22: SYDNEY | W22: NSW | X22: 2000 | Y22: Bob Smith | Z22: 02 1234 5678 | AA22: bob@auselec.net.au | AI22: CBD | AJ22: Urban | AK22: Short rural | AL22: Long rural | AN22: Australian Distribution Co.
B23: Australian Distribution Co. (Vic) | C23: Australian Distribution Co. (Victoria) | D23: 11222333444 | E23: Vic | F23: Electricity | G23: Distribution | H23: Revenue cap | I23: Calendar | J23: December | K23: 5 | L23: 5 | M23: 2 | N23: distribution determination | O23: 123 Straight Street | Q23: MELBOURNE | R23: Vic | S23: 3000 | T23: PO Box 123 | V23: MELBOURNE | W23: VIC | X23: 3000 | Y23: Bob Smith | Z23: 02 1234 5678 | AA23: bob@auselec.net.au | AI23: CBD | AJ23: Urban | AK23: Short rural | AL23: Long rural | AN23: Australian Distribution Co. (Vic)
B24: Australian Transmission Co. | C24: Australian Transmission Co. | D24: 11222333444 | E24: - | F24: Electricity | G24: Transmission | H24: Revenue cap | I24: Financial | J24: June | K24: 5 | L24: 5 | M24: 5 | N24: transmission determination | O24: 123 Straight Street | Q24: SYDNEY | R24: NSW | S24: 2000 | T24: PO Box 123 | V24: SYDNEY | W24: NSW | X24: 2000 | Y24: Bob Smith | Z24: 02 1234 5678 | AA24: bob@auselec.net.au | AI24: CBD | AJ24: Urban | AK24: Short rural | AL24: Long rural | AN24: Australian Transmission Co.
B25: CitiPower | C25: CitiPower | D25: 76064651056 | E25: Vic | F25: Electricity | G25: Distribution | H25: Revenue cap | I25: Calendar | J25: December | K25: 5 | L25: 5 | M25: 2 | N25: 2016-20 Distribution Determination | O25: 40 Market Street | Q25: MELBOURNE | R25: Vic | S25: 3000 | T25: Locked Bag 14090 | V25: MELBOURNE | W25: VIC | X25: 8001 | Y25: Hannah Williams | Z25: 03 9683 4088 | AA25: hwilliams@powercor.com.au | AC25: YES | AD25: YES | AE25: NO | AF25: NO | AG25: NO | AI25: CBD | AJ25: Urban | AK25: Short rural | AL25: Long rural | AN25: CitiPower
B26: Directlink | C26: Directlink | D26: 16779340889 | E26: Qld | F26: Electricity | G26: Transmission | H26: Revenue cap | I26: Financial | J26: June | K26: 9 | L26: 5 | M26: 5 | N26: transmission determination | R26: NSW | AI26: CBD | AJ26: Urban | AK26: Short rural | AL26: Long rural | AN26: Directlink
B27: ElectraNet | C27: ElectraNet | D27: 41094482416 | E27: SA | F27: Electricity | G27: Transmission | H27: Revenue cap | I27: Financial | J27: June | K27: 5 | L27: 5 | M27: 5 | N27: transmission determination | O27: 52-55 East Terrace | P27: Rymill Park | Q27: ADELAIDE | R27: SA | S27: 5000 | T27: PO Box 7096 | U27: Hutt Street Post Office | V27: ADELAIDE | W27: SA | X27: 5000 | Y27: Bill Jackson | Z27: 08 8404 7969 | AA27: jackson.bill@electranet.com.au | AI27: CBD | AJ27: Urban | AK27: Short rural | AL27: Long rural | AN27: ElectraNet
B28: Endeavour Energy | C28: Endeavour Energy | D28: 59253130878 | E28: NSW | F28: Electricity | G28: Distribution | H28: Revenue cap | I28: Financial | J28: June | K28: 5 | L28: 5 | M28: 5 | N28: 2014-19 Distribution Determination | O28: 51 Huntingwood Drive | Q28: HUNTINGWOOD | R28: NSW | S28: 2148 | T28: PO Box 811 | V28: SEVEN HILLS | W28: NSW | X28: 1730 | Y28: Jon Hocking | Z28: 02 9853 4386 / 0407 348 156 | AA28: Jon.Hocking@Endeavourenergy.com.au | AC28: NO | AD28: YES | AE28: YES | AF28: YES | AG28: NO | AI28: CBD | AJ28: Urban | AK28: Short rural | AL28: Long rural | AN28: Endeavour Energy
B29: Energex | C29: Energex | D29: 40078849055 | E29: Qld | F29: Electricity | G29: Distribution | H29: Revenue cap | I29: Financial | J29: June | K29: 5 | L29: 5 | M29: 5 | N29: 2015-20 Distribution Determination | O29: 26 Reddacliff Street | Q29: NEWSTEAD | R29: Qld | S29: 4006 | T29: 26 Reddacliff Street | V29: NEWSTEAD | W29: QLD | X29: 4006 | Y29: Nicola Roscoe | Z29: 07 3664 5891 | AA29: nicolaroscoe@energex.com.au | AC29: YES | AD29: YES | AE29: YES | AF29: NO | AG29: NO | AI29: CBD | AJ29: Urban | AK29: Short rural | AL29: Long rural | AN29: Energex
B30: Ergon Energy | C30: Ergon Energy | D30: 50087646062 | E30: Qld | F30: Electricity | G30: Distribution | H30: Revenue cap | I30: Financial | J30: June | K30: 5 | L30: 5 | M30: 5 | N30: 2015-20 Distribution Determination | O30: 22 Walker Street | Q30: TOWNSVILLE | R30: Qld | S30: 4810 | T30: Po Box 264 | V30: FORTITUDE VALLEY | W30: QLD | X30: 4006 | Y30: Jenny Doyle, Group Manager Regulatory Affairs | Z30: (07) 3851 6416 | AA30: jenny.doyle@ergon.com.au | AC30: NO | AD30: YES | AE30: YES | AF30: YES | AG30: NO | AI30: CBD | AJ30: Urban | AK30: Short rural | AL30: Long rural | AN30: Ergon Energy
B31: Essential Energy | C31: Essential Energy | D31: 37428185226 | E31: NSW | F31: Electricity | G31: Distribution | H31: Revenue cap | I31: Financial | J31: June | K31: 5 | L31: 5 | M31: 5 | N31: 2014-19 Distribution Determination | O31: 8 Buller Street | Q31: PORT MACQUARIE | R31: NSW | S31: 2444 | T31: PO Box 5730 | V31: PORT MACQUARIE | W31: NSW | X31: 2444 | Y31: Catherine Waddell | Z31: 02 6338 3553 | AA31: catherine.waddell@essentialenergy.com.au | AE31: YES | AF31: YES | AG31: NO | AI31: CBD | AJ31: Urban | AK31: Short rural | AL31: Long rural | AN31: Essential Energy
B32: Jemena Electricity | C32: Jemena Electricity | D32: 82064651083 | E32: Vic | F32: Electricity | G32: Distribution | H32: Revenue cap | I32: Calendar | J32: December | K32: 5 | L32: 5 | M32: 2 | N32: 2016-20 Distribution Determination | O32: Level 16 | P32: 567 Collins Street | Q32: MELBOURNE | R32: VIC | S32: 3000 | T32: PO Box 16182 | V32: MELBOURNE | W32: VIC | X32: 8001 | Y32: Robert McMillan | Z32: 03 9173 7000 | AA32: robert.mcmillan@jemena.com.au | AE32: YES | AF32: NO | AG32: NO | AI32: CBD | AJ32: Urban | AK32: Short rural | AL32: Long rural | AN32: Jemena Electricity
B33: JGN | C33: Jemena Gas Networks (NSW) Ltd | D33: 003 004 322 | E33: NSW | F33: Gas | G33: Distribution | H33: Weighted average price cap | I33: Financial | J33: June | K33: 5 | L33: 5 | AN33: JGN
B34: Multinet Gas | C34: Multinet Gas (DB No.1) Pty Ltd (ACN 086 026 986), Multinet Gas (DB No.2) Pty Ltd (ACN 086 230 122) | D34: 086026986 | E34: Vic | F34: Gas | G34: Distribution | H34: Weighted average price cap | I34: Calendar | J34: December | K34: 5 | L34: 5 | M34: x | O34: 6 Nexus Court | Q34: MULGRAVE | R34: Vic | S34: 3149 | Y34: Stephanie McDougall | Z34: 03 8846 9538 | AA34: Stephanie.McDougall@ue.com.au | AN34: Multinet Gas
B35: Murraylink | C35: Murraylink | D35: 79181207909 | E35: SA | F35: Electricity | G35: Transmission | H35: Revenue cap | I35: Financial | J35: June | K35: 5 | L35: 5 | M35: 5 | N35: transmission determination | AI35: CBD | AJ35: Urban | AK35: Short rural | AL35: Long rural | AN35: Murraylink
B36: Power and Water Corporation | C36: Power and Water Corporation | D36: 15 947 352 360 | E36: NT | F36: Electricity | G36: Distribution | H36: Revenue cap | I36: Financial | J36: June | K36: 5 | L36: 5 | AI36: CBD | AJ36: Urban | AK36: Short rural | AL36: Long rural | AN36: PWC
B37: Powercor Australia | C37: Powercor Australia | D37: 89064651109 | E37: Vic | F37: Electricity | G37: Distribution | H37: Revenue cap | I37: Calendar | J37: December | K37: 5 | L37: 5 | M37: 2 | N37: 2016-20 Distribution Determination | O37: 40 Market Street | Q37: MELBOURNE | R37: Vic | S37: 3000 | T37: Locked bag 14090 | V37: MELBOURNE | W37: VIC | X37: 8001 | Y37: Hannah Williams | Z37: 03 9683 4088 | AA37: hwilliams@powercor.com.au | AE37: YES | AF37: YES | AG37: NO | AI37: CBD | AJ37: Urban | AK37: Short rural | AL37: Long rural | AN37: Powercor Australia
B38: Powerlink | C38: Queensland Electricity Transmission Corporation Limited trading as Powerlink Queensland | D38: 82078849233 | E38: Qld | F38: Electricity | G38: Transmission | H38: Revenue cap | I38: Financial | J38: June | K38: 5 | L38: 5 | M38: 5 | N38: transmission determination | O38: 33 Harold St | Q38: VIRGINIA | R38: Qld | S38: 4014 | T38: PO Box 1193 | V38: VIRGINIA | W38: QLD | X38: 4014 | Y38: Jennifer Harris | Z38: 07 3860 2667 | AA38: jharris@powerlink.com.au | AI38: CBD | AJ38: Urban | AK38: Short rural | AL38: Long rural | AN38: Powerlink
B39: Roma to Brisbane Pipeline | C39: APT Petroleum Pipelines Limited t/a Roma to Brisbane Pipeline | D39: 009 737 393 | E39: Qld | F39: Gas | G39: Transmission | H39: Weighted average price cap | I39: Financial | J39: June | K39: 5 | L39: 5 | M39: x | N39: n/a | AI39: CBD | AJ39: Urban | AK39: Short rural | AL39: Long rural | AN39: Roma to Brisbane Pipeline
B40: SA Power Networks | C40: SA Power Networks | D40: 13332330749 | E40: SA | F40: Electricity | G40: Distribution | H40: Revenue cap | I40: Financial | J40: June | K40: 5 | L40: 5 | M40: 5 | N40: 2015-20 Distribution Determination | O40: 1 Anzac Highway | Q40: KESWICK | R40: SA | S40: 5035 | T40: GPO Box 77 | V40: ADELAIDE | W40: SA | X40: 5000 | Y40: Damien O'Connor | Z40: 08 8404 5066 | AA40: damien.oconnor@sapowernetworks.com.au | AE40: YES | AF40: YES | AG40: NO | AI40: CBD | AJ40: Urban | AK40: Short rural | AL40: Long rural | AN40: SA Power Networks
B41: TasNetworks (D) | C41: TasNetworks (D) | D41: 24167357299 | E41: Tas | F41: Electricity | G41: Distribution | H41: Revenue cap | I41: Financial | J41: June | K41: 5 | L41: 5 | M41: 5 | N41: distribution determination | O41: 21 Kirksway Place | Q41: HOBART | R41: Tas | S41: 7000 | T41: GPO Box 191 | V41: HOBART | W41: Tas | X41: 7000 | Y41: Leigh Mayne | Z41: 03 6270 3691 | AA41: rrp2012@auroraenergy.com.au | AE41: YES | AF41: YES | AG41: YES | AI41: Critical Infrastructure | AJ41: High density commercial | AK41: Urban | AL41: High density rural | AM41: Low density rural | AN41: TasNetworks (D)
B42: TasNetworks (T) | C42: TasNetworks (T) | D42: 24167357299 | E42: Tas | F42: Electricity | G42: Transmission | H42: Revenue cap | I42: Financial | J42: June | K42: 5 | L42: 5 | M42: 5 | N42: transmission determination | O42: 1-7 Maria Street | Q42: LENAH VALLEY | R42: Tas | S42: 7008 | T42: PO Box 606 | V42: MOONAH | W42: Tas | X42: 7009 | Y42: Heath Dillon | Z42: 03 6274 3664 | AA42: heath.dillon@transend.com.au | AI42: CBD | AJ42: Urban | AK42: Short rural | AL42: Long rural | AN42: TasNetworks (T)
B43: TransGrid | C43: NSW Electricity Networks Operations Pty Ltd trading as TransGrid | D43: 609169959 | E43: NSW | F43: Electricity | G43: Transmission | H43: Revenue cap | I43: Financial | J43: June | K43: 5 | L43: 4 | M43: 5 | N43: transmission determination | O43: 180 Thomas Street | Q43: SYDNEY | R43: NSW | S43: 2000 | T43: PO Box A1000 | V43: SYDNEY SOUTH | W43: NSW | X43: 1235 | Y43: Garrie Chubb | Z43: 0408 210 221 | AA43: garrie.chubb@transgrid.com.au | AI43: CBD | AJ43: Urban | AK43: Short rural | AL43: Long rural | AN43: TransGrid
B44: United Energy | C44: United Energy | D44: 70064651029 | E44: Vic | F44: Electricity | G44: Distribution | H44: Revenue cap | I44: Calendar | J44: December | K44: 5 | L44: 5 | M44: 2 | N44: 2016-20 Distribution Determination | O44: Level 3 | P44: 6 Nexus Court | Q44: MULGRAVE | R44: Vic | S44: 3149 | T44: PO Box 449 | V44: MOUNT WAVERLEY | W44: VIC | X44: 3170 | Y44: Mathew Abraham | Z44: 03 8846 9758 | AA44: mathew.abraham@ue.com.au | AE44: YES | AF44: NO | AG44: NO | AI44: CBD | AJ44: Urban | AK44: Short rural | AL44: Long rural | AN44: United Energy
B45: Western Power (D) | C45: Western Power (D) | D45: 18540492861 | E45: WA | F45: Electricity | G45: Distribution | H45: Revenue cap | I45: Financial | J45: June | K45: 12 | L45: 4 | M45: x | N45: distribution determination | O45: 363 Wellington Street | Q45: PERTH | R45: WA | S45: 6000 | T45: GPO Box L921 | V45: PERTH | W45: WA | X45: 6842 | Y45: Judy Hunter | Z45: 08 9326 6239 | AA45: judy.hunter@westernpower.com.au | AE45: YES | AF45: YES | AG45: NO | AH45: NO | AI45: CBD | AJ45: Urban | AK45: Short rural | AL45: Long rural | AN45: Western Power (D)
B46: Western Power (T) | C46: Western Power (T) | D46: 18540492861 | E46: WA | F46: Electricity | G46: Transmission | H46: Revenue cap | I46: Financial | J46: June | K46: 12 | L46: 4 | M46: x | N46: transmission determination | O46: 363 Wellington Street | Q46: PERTH | R46: WA | S46: 6000 | T46: GPO Box L921 | V46: PERTH | W46: WA | X46: 6842 | Y46: Judy Hunter | Z46: 08 9326 6239 | AA46: judy.hunter@westernpower.com.au | AE46: YES | AF46: YES | AG46: NO | AI46: CBD | AJ46: Urban | AK46: Short rural | AL46: Long rural | AN46: Western Power (T)
W49: For EB & Reset RINs only | AC49: For AARs only
B50: The Reg Year Ending (dms_RYE) must be set to the last year of the regulatory period. For forecast data is is usually (FRCP_y5) for actual it is a single year (CRY). For historical actual data the RYE will need to be set manually in the business details sheet by setting the dms_Multiyear_flag to 1 and putting the correct value in 'dms_Specified_FinalYear. See cells C67:C68 | G50: =IF(dms_RPT="financial",VALUE(LEFT(CRCP_y1,4)-1)&"-"&TEXT(VALUE(RIGHT(CRCP_y1,2)-1),"00"),VALUE(LEFT(CRCP_y1,4)-1)) -> 2013-14 | N50: Drop down selector box for CA & Reset RINs. | O50: For CA & Reset RINs only | W50: for DNSP only | AC50: For DNSPs only | AI50: Reason for interruption | AJ50: dms_Reason_Interruption_Detailed | AK50: dms_Reason_Interruption
B51: dms_Model_List | C51: DELETE NR 'CRY' IF NOT AN ANNUAL RIN (EB, CA , ARR) | E51: dms_RYE_Formula_Result | N51: dms_0203_ProjectType | O51: dms_020303_01_UOM | P51: dms_020501_01_UOM | Q51: dms_020501_02_UOM | R51: dms_020501_03_UOM | S51: dms_020501_04_UOM | T51: dms_020603_01_UOM | U51: dms_040102_01_UOM | V51: dms_040102_04_UOM | W51: dms_030601_01_UOM | X51: dms_030601_02_UOM | Y51: dms_030701_01_UOM | Z51: dms_030702_01_UOM | AA51: dms_030703_01_UOM | AC51: dms_030605_UOM | AD51: dms_03060703_UOM | AI51: Animal | AJ51: Animal impact | AK51: Animal
B52: ARR | C52: ANNUAL REPORTING STATEMENT | E52: =LEFT(dms_SingleYear_FinalYear_Result,2)&RIGHT(dms_SingleYear_FinalYear_Result,2) ->  | F52: =LEFT(dms_SingleYear_FinalYear_Result,2)&RIGHT(dms_SingleYear_FinalYear_Result,2) | H52: Formula errors are OK | N52: New line on new route - single circuit | O52: Circuit line length in km | P52: 0's | Q52: 0's | R52: 0's | S52: 0's | T52: 0's | U52: 0's | V52: days | W52: minutes/customer | X52: minutes/customer | Y52: Customer / km | Z52: % | AA52: km | AC52: number | AD52: number | AJ52: Animal nesting/burrowing, etc and other | AK52: Asset failure
B53: CA | C53: CATEGORY ANALYSIS | E53: =LEFT(dms_SingleYear_FinalYear_Result,2)&RIGHT(dms_SingleYear_FinalYear_Result,2) ->  | F53: =LEFT(dms_SingleYear_FinalYear_Result,2)&RIGHT(dms_SingleYear_FinalYear_Result,2) | H53: Formula errors are OK | N53: New line on new route - dual circuit | O53: Circuit line length in km | P53: 0's | Q53: 0's | R53: 0's | S53: 0's | T53: 0's | U53: 0's | V53: 0's | W53: minutes/customer | X53: minutes/customer | Y53: MWh/customer | Z53: Number of spans | AC53: number | AD53: number | AJ53: Other | AK53: Other
B54: CPI | C54: CPI | N54: New line on new route - other | O54: Circuit line length in km | P54: MVA added | Q54: MVA added | R54: MVA added | S54: MVA added | T54: 0's | U54: 0's | V54: $0s | W54: interruptions/customer | X54: interruptions/customer | Y54: kVA / customer | Z54: Number of spans | AC54: number | AD54: number | AI54: Asset failure | AJ54: LV | AK54: Overloads
B55: EB | C55: ECONOMIC BENCHMARKING | E55: =LEFT(dms_SingleYear_FinalYear_Result,2)&RIGHT(dms_SingleYear_FinalYear_Result,2) ->  | F55: =LEFT(dms_SingleYear_FinalYear_Result,2)&RIGHT(dms_SingleYear_FinalYear_Result,2) | H55: Formula errors are OK | N55: Line rebuild over existing route - single circuit | O55: Circuit line length in km | P55: 0's | Q55: 0's | R55: 0's | S55: 0's | T55: 0's | U55: $0s | V55: 0's | W55: interruptions/customer | X55: interruptions/customer | Z55: Number of spans | AC55: number | AD55: number | AJ55: Distribution substation | AK55: Planned
B56: PTRM | C56: POST TAX REVENUE MODEL | E56: =LEFT(dms_MultiYear_FinalYear_Result,2)&RIGHT(dms_MultiYear_FinalYear_Result,2) -> 2024 | F56: =LEFT(dms_MultiYear_FinalYear_Result,2)&RIGHT(dms_MultiYear_FinalYear_Result,2) | N56: Line rebuild over existing route - dual circuit | O56: Number | P56: total spend $0s | Q56: total spend $0s | R56: total spend $0s | S56: total spend $0s | T56: (per cent) | Z56: Number of spans | AC56: number | AD56: (per cent) | AJ56: HV | AK56: Network business
B57: Reset | C57: REGULATORY REPORTING STATEMENT | E57: =LEFT(dms_MultiYear_FinalYear_Result,2)&RIGHT(dms_MultiYear_FinalYear_Result,2) -> 2024 | F57: =LEFT(dms_MultiYear_FinalYear_Result,2)&RIGHT(dms_MultiYear_FinalYear_Result,2) | H57: Formula errors are OK | N57: Reconductor - Single circuit | O57: Number | P57: net circuit km added | Q57: net circuit km added | R57: net circuit km added | S57: net circuit km added | Z57: Years | AC57: number | AJ57: Zone substation | AK57: Third party
B58: RFM | C58: ROLL FORWARD MODEL | E58: =LEFT(dms_CRCP_FinalYear_Result,2)&RIGHT(dms_CRCP_FinalYear_Result,2) -> 2019 | F58: =LEFT(dms_CRCP_FinalYear_Result,2)&RIGHT(dms_CRCP_FinalYear_Result,2) | N58: Reconductor - Dual circuit | O58: Number | P58: total spend $0s | Q58: total spend $0s | R58: total spend $0s | S58: total spend $0s | Z58: Years | AC58: number | AJ58: Subtransmission | AK58: Unknown
B59: WACC | C59: WEIGHTED AVERAGE COST OF CAPITAL | E59: =LEFT(dms_MultiYear_FinalYear_Result,2)&RIGHT(dms_MultiYear_FinalYear_Result,2) -> 2024 | F59: =LEFT(dms_MultiYear_FinalYear_Result,2)&RIGHT(dms_MultiYear_FinalYear_Result,2) | N59: Other | P59: net circuit km added | Q59: net circuit km added | R59: net circuit km added | S59: net circuit km added | Z59: Trees | AC59: number | AI59: Other | AJ59: insert description of 'other' | AK59: Vegetation
P60: total spend $0s | Q60: total spend $0s | R60: total spend $0s | S60: total spend $0s | Z60: Trees | AC60: number | AI60: Overloads | AJ60: - | AK60: Weather
B61: dms_DataQuality_List | P61: 0's | R61: $0s | Z61: Defects | AC61: number | AI61: Planned | AJ61: - | AK61: 2 - STPIS Exclusion (3.3)(a)
B62: Actual | P62: 0's | Z62: Defects | AC62: number | AI62: Network business | AJ62: Network error | AK62: 3 - STPIS Exclusion (3.3)(a)
B63: Estimate | P63: 0's | Z63: Spans | AC63: number | AJ63: Switching and protection error | AK63: 4 - STPIS Exclusion (3.3)(a)
B64: Consolidated | P64: $0s | Z64: km | AC64: (per cent) | AI64: Third party | AJ64: Fire | AK64: 5 - STPIS Exclusion (3.3)(a)
B65: Recast | Z65: Spans | AC65: (per cent) | AJ65: Other | AK65: 6 - STPIS Exclusion (3.3)(a)
B66: Public | AJ66: Dig-in | AK66: 7 - STPIS Exclusion (3.3)(a)
AJ67: Unauthorised access
B68: For all files either AER or business needs to be able to specify the type of submission | C68: For PTRM & RFM templates we must provide a choice in case they change their form of control - otherwise it is drawn from the business specific lookup table above. | O68: For PTRM files - this field set the text for the named range "DMS_Xfactor" which in all cases is simply the text "x factors" - this saves putting in each old gas PTRM file | W68: for TNSP only | AJ68: Vehicle impact
B69: dms_SourceList | C69: dms_FormControl_Choices | O69: DMS_Xfactor | W69: dms_030601_01_UOM | Y69: dms_030701_01_UOM | Z69: dms_030702_01_UOM | AI69: Unknown | AJ69: Unknown
B70: After appeal | C70: Revenue cap | O70: x factors | W70: % | Y70: Number of spans | Z70: km | AI70: Vegetation | AJ70: Blow-in/Fall-in - NSP responsibility
B71: Draft decision | C71: Revenue yield | W71: number | Y71: Years | Z71: % | AJ71: Grow-in - NSP responsibility
B72: Final decision | C72: Weighted average price cap | W72: number | Y72: Trees | Z72: km | AJ72: Blow-in/Fall-in - Other responsible party
B73: PTRM update 1 | W73: % | Y73: Defects | Z73: number | AJ73: Grow-in - Other responsible party
B74: PTRM update 2 | W74: number | Y74: Number of spans | AI74: Weather
B75: PTRM update 3 | W75: number | Y75: km | AI75: 2 - STPIS Exclusion (3.3)(a)
B76: PTRM update 4 | W76: % | Y76: km | AI76: 3 - STPIS Exclusion (3.3)(a)
B77: PTRM update 5 | W77: number | Y77: Number of spans | AI77: 4 - STPIS Exclusion (3.3)(a)
B78: PTRM update 6 | W78: number | AI78: 5 - STPIS Exclusion (3.3)(a)
B79: PTRM update 7 | W79: % | AI79: 6 - STPIS Exclusion (3.3)(a)
B80: Regulatory proposal | W80: number | AI80: 7 - STPIS Exclusion (3.3)(a)
B81: Reporting | W81: %
B82: Revised regulatory proposal | W82: number
W83: %
W84: number
B88: These are indeces and lookup values for various dates. All step from the value placed in FRCP_y1 on the business and other details worksheet | L88: These date tables are currently used in the Recast templates to provide column headings and conditional formatting
B89: dms_FRCPlength_Num_List | C89: dms_FinalYear_List | D89: dms_CRCPlength_Num_List | E89: dms_CFinalYear_List | F89: dms_FRCP_years | H89: dms_CRCP_years | J89: dms_CRCP_index | L89: CRY from input cell on business sheet | M89: CRY - financial | N89: dms_FinYears | O89: CRY calendar | P89: dms_CalYears
B90: 1 | C90: dms_FRCP_y1 | D90: 1 | E90: CRCP_y1 | F90: =FRCP_y1 -> 2019-20 | G90: dms_FRCP_y1 | H90: =IF(dms_RPT="financial",VALUE(LEFT(dms_FRCP_y1,4)-1)&"-"&TEXT(VALUE(MID(dms_FRCP_y1,3,2)),"00"),VALUE(LEFT(dms_FRCP_y1,4)-1)) -> 2018-19 | I90: dms_CRCP_yZ | J90: 1 | L90: =CRY ->  | M90: =VALUE(LEFT(CRY,4))&"-"&TEXT(MID(CRY,3,2)+1,"00") ->  | N90: dms_CRYf_y1 | O90: =VALUE(LEFT(CRY,4)+1) ->  | P90: dms_CRYc_y1
B91: 2 | C91: dms_FRCP_y2 | D91: 2 | E91: CRCP_y2 | F91: =IF(dms_RPT="financial",VALUE(LEFT(dms_FRCP_y1,4)+1)&"-"&TEXT(VALUE(RIGHT(dms_FRCP_y1,2)+1),"00"),VALUE(LEFT(dms_FRCP_y1,4)+1)) -> 2020-21 | G91: dms_FRCP_y2 | H91: =IF(dms_RPT="financial",VALUE(LEFT(dms_CRCP_yZ,4)-1)&"-"&TEXT(VALUE(MID(dms_CRCP_yZ,3,2)),"00"),VALUE(LEFT(dms_CRCP_yZ,4)-1)) -> 2017-18 | I91: dms_CRCP_yY | J91: 2 | M91: =VALUE(LEFT(dms_CRYf_y1,4)+1)&"-"&TEXT(MID(dms_CRYf_y1,3,2)+2,"00") ->  | N91: dms_CRYf_y2 | O91: =VALUE(LEFT(dms_CRYc_y1,4)+1) ->  | P91: dms_CRYc_y2
B92: 3 | C92: dms_FRCP_y3 | D92: 3 | E92: CRCP_y3 | F92: =IF(dms_RPT="financial",VALUE(LEFT(dms_FRCP_y2,4)+1)&"-"&TEXT(VALUE(RIGHT(dms_FRCP_y2,2)+1),"00"),VALUE(LEFT(dms_FRCP_y2,4)+1)) -> 2021-22 | G92: dms_FRCP_y3 | H92: =IF(dms_RPT="financial",VALUE(LEFT(dms_CRCP_yY,4)-1)&"-"&TEXT(VALUE(MID(dms_CRCP_yY,3,2)),"00"),VALUE(LEFT(dms_CRCP_yY,4)-1)) -> 2016-17 | I92: dms_CRCP_yX | J92: 3 | M92: =VALUE(LEFT(dms_CRYf_y2,4)+1)&"-"&TEXT(MID(dms_CRYf_y2,3,2)+2,"00") ->  | N92: dms_CRYf_y3 | O92: =VALUE(LEFT(dms_CRYc_y2,4)+1) ->  | P92: dms_CRYc_y3
B93: 4 | C93: dms_FRCP_y4 | D93: 4 | E93: CRCP_y4 | F93: =IF(dms_RPT="financial",VALUE(LEFT(dms_FRCP_y3,4)+1)&"-"&TEXT(VALUE(RIGHT(dms_FRCP_y3,2)+1),"00"),VALUE(LEFT(dms_FRCP_y3,4)+1)) -> 2022-23 | G93: dms_FRCP_y4 | H93: =IF(dms_RPT="financial",VALUE(LEFT(dms_CRCP_yX,4)-1)&"-"&TEXT(VALUE(MID(dms_CRCP_yX,3,2)),"00"),VALUE(LEFT(dms_CRCP_yX,4)-1)) -> 2015-16 | I93: dms_CRCP_yW | J93: 4 | M93: =VALUE(LEFT(dms_CRYf_y3,4)+1)&"-"&TEXT(MID(dms_CRYf_y3,3,2)+2,"00") ->  | N93: dms_CRYf_y4 | O93: =VALUE(LEFT(dms_CRYc_y3,4)+1) ->  | P93: dms_CRYc_y4
B94: 5 | C94: dms_FRCP_y5 | D94: 5 | E94: CRCP_y5 | F94: =IF(dms_RPT="financial",VALUE(LEFT(dms_FRCP_y4,4)+1)&"-"&TEXT(VALUE(RIGHT(dms_FRCP_y4,2)+1),"00"),VALUE(LEFT(dms_FRCP_y4,4)+1)) -> 2023-24 | G94: dms_FRCP_y5 | H94: =IF(dms_RPT="financial",VALUE(LEFT(dms_CRCP_yW,4)-1)&"-"&TEXT(VALUE(MID(dms_CRCP_yW,3,2)),"00"),VALUE(LEFT(dms_CRCP_yW,4)-1)) -> 2014-15 | I94: dms_CRCP_yV | J94: 5 | M94: =VALUE(LEFT(dms_CRYf_y4,4)+1)&"-"&TEXT(MID(dms_CRYf_y4,3,2)+2,"00") ->  | N94: dms_CRYf_y5 | O94: =VALUE(LEFT(dms_CRYc_y4,4)+1) ->  | P94: dms_CRYc_y5
B95: 6 | C95: dms_FRCP_y6 | D95: 6 | E95: CRCP_y6 | F95: =IF(dms_RPT="financial",VALUE(LEFT(dms_FRCP_y5,4)+1)&"-"&TEXT(VALUE(RIGHT(dms_FRCP_y5,2)+1),"00"),VALUE(LEFT(dms_FRCP_y5,4)+1)) -> 2024-25 | G95: dms_FRCP_y6 | H95: =IF(dms_RPT="financial",VALUE(LEFT(dms_CRCP_yV,4)-1)&"-"&TEXT(VALUE(MID(dms_CRCP_yV,3,2)),"00"),VALUE(LEFT(dms_CRCP_yV,4)-1)) -> 2013-14 | I95: dms_CRCP_yU | J95: 6 | M95: =VALUE(LEFT(dms_CRYf_y5,4)+1)&"-"&TEXT(MID(dms_CRYf_y5,3,2)+2,"00") ->  | N95: dms_CRYf_y6 | O95: =VALUE(LEFT(dms_CRYc_y5,4)+1) ->  | P95: dms_CRYc_y6
B96: 7 | C96: dms_FRCP_y7 | D96: 7 | E96: CRCP_y7 | F96: =IF(dms_RPT="financial",VALUE(LEFT(dms_FRCP_y6,4)+1)&"-"&TEXT(VALUE(RIGHT(dms_FRCP_y6,2)+1),"00"),VALUE(LEFT(dms_FRCP_y6,4)+1)) -> 2025-26 | G96: dms_FRCP_y7 | H96: =IF(dms_RPT="financial",VALUE(LEFT(dms_CRCP_yU,4)-1)&"-"&TEXT(VALUE(MID(dms_CRCP_yU,3,2)),"00"),VALUE(LEFT(dms_CRCP_yU,4)-1)) -> 2012-13 | I96: dms_CRCP_yT | J96: 7 | M96: =VALUE(LEFT(dms_CRYf_y6,4)+1)&"-"&TEXT(MID(dms_CRYf_y6,3,2)+2,"00") ->  | N96: dms_CRYf_y7 | O96: =VALUE(LEFT(dms_CRYc_y6,4)+1) ->  | P96: dms_CRYc_y7
B97: 8 | C97: dms_FRCP_y8 | D97: 8 | E97: CRCP_y8 | F97: =IF(dms_RPT="financial",VALUE(LEFT(dms_FRCP_y7,4)+1)&"-"&TEXT(VALUE(RIGHT(dms_FRCP_y7,2)+1),"00"),VALUE(LEFT(dms_FRCP_y7,4)+1)) -> 2026-27 | G97: dms_FRCP_y8 | H97: =IF(dms_RPT="financial",VALUE(LEFT(dms_CRCP_yT,4)-1)&"-"&TEXT(VALUE(MID(dms_CRCP_yT,3,2)),"00"),VALUE(LEFT(dms_CRCP_yT,4)-1)) -> 2011-12 | I97: dms_CRCP_yS | J97: 8 | M97: =VALUE(LEFT(dms_CRYf_y7,4)+1)&"-"&TEXT(MID(dms_CRYf_y7,3,2)+2,"00") ->  | N97: dms_CRYf_y8 | O97: =VALUE(LEFT(dms_CRYc_y7,4)+1) ->  | P97: dms_CRYc_y8
B98: 9 | C98: dms_FRCP_y9 | D98: 9 | E98: CRCP_y9 | F98: =IF(dms_RPT="financial",VALUE(LEFT(dms_FRCP_y8,4)+1)&"-"&TEXT(VALUE(RIGHT(dms_FRCP_y8,2)+1),"00"),VALUE(LEFT(dms_FRCP_y8,4)+1)) -> 2027-28 | G98: dms_FRCP_y9 | H98: =IF(dms_RPT="financial",VALUE(LEFT(dms_CRCP_yS,4)-1)&"-"&TEXT(VALUE(MID(dms_CRCP_yS,3,2)),"00"),VALUE(LEFT(dms_CRCP_yS,4)-1)) -> 2010-11 | I98: dms_CRCP_yR | J98: 9 | M98: =VALUE(LEFT(dms_CRYf_y8,4)+1)&"-"&TEXT(MID(dms_CRYf_y8,3,2)+2,"00") ->  | N98: dms_CRYf_y9 | O98: =VALUE(LEFT(dms_CRYc_y8,4)+1) ->  | P98: dms_CRYc_y9
B99: 10 | C99: dms_FRCP_y10 | D99: 10 | E99: CRCP_y10 | F99: =IF(dms_RPT="financial",VALUE(LEFT(dms_FRCP_y9,4)+1)&"-"&TEXT(VALUE(RIGHT(dms_FRCP_y9,2)+1),"00"),VALUE(LEFT(dms_FRCP_y9,4)+1)) -> 2028-29 | G99: dms_FRCP_y10 | H99: =IF(dms_RPT="financial",VALUE(LEFT(dms_CRCP_yR,4)-1)&"-"&TEXT(VALUE(MID(dms_CRCP_yR,3,2)),"00"),VALUE(LEFT(dms_CRCP_yR,4)-1)) -> 2009-10 | I99: dms_CRCP_yQ | J99: 10 | M99: =VALUE(LEFT(dms_CRYf_y9,4)+1)&"-"&TEXT(MID(dms_CRYf_y9,3,2)+2,"00") ->  | N99: dms_CRYf_y10 | O99: =VALUE(LEFT(dms_CRYc_y9,4)+1) ->  | P99: dms_CRYc_y10
B100: 11 | C100: dms_FRCP_y11 | D100: 11 | E100: CRCP_y11 | F100: =IF(dms_RPT="financial",VALUE(LEFT(dms_FRCP_y10,4)+1)&"-"&TEXT(VALUE(RIGHT(dms_FRCP_y10,2)+1),"00"),VALUE(LEFT(dms_FRCP_y10,4)+1)) -> 2029-30 | G100: dms_FRCP_y11 | H100: =IF(dms_RPT="financial",VALUE(LEFT(dms_CRCP_yQ,4)-1)&"-"&TEXT(VALUE(MID(dms_CRCP_yQ,3,2)),"00"),VALUE(LEFT(dms_CRCP_yQ,4)-1)) -> 2008-09 | I100: dms_CRCP_yP | J100: 11 | M100: =VALUE(LEFT(dms_CRYf_y10,4)+1)&"-"&TEXT(MID(dms_CRYf_y10,3,2)+2,"00") ->  | N100: dms_CRYf_y11 | O100: =VALUE(LEFT(dms_CRYc_y10,4)+1) ->  | P100: dms_CRYc_y11
B101: 12 | C101: dms_FRCP_y12 | D101: 12 | E101: CRCP_y12 | F101: =IF(dms_RPT="financial",VALUE(LEFT(dms_FRCP_y11,4)+1)&"-"&TEXT(VALUE(RIGHT(dms_FRCP_y11,2)+1),"00"),VALUE(LEFT(dms_FRCP_y11,4)+1)) -> 2030-31 | G101: dms_FRCP_y12 | H101: =IF(dms_RPT="financial",VALUE(LEFT(dms_CRCP_yP,4)-1)&"-"&TEXT(VALUE(MID(dms_CRCP_yP,3,2)),"00"),VALUE(LEFT(dms_CRCP_yP,4)-1)) -> 2007-08 | I101: dms_CRCP_yO | J101: 12 | M101: =VALUE(LEFT(dms_CRYf_y11,4)+1)&"-"&TEXT(MID(dms_CRYf_y11,3,2)+2,"00") ->  | N101: dms_CRYf_y12 | O101: =VALUE(LEFT(dms_CRYc_y11,4)+1) ->  | P101: dms_CRYc_y12
B102: 13 | C102: dms_FRCP_y13 | D102: 13 | E102: CRCP_y13 | F102: =IF(dms_RPT="financial",VALUE(LEFT(dms_FRCP_y12,4)+1)&"-"&TEXT(VALUE(RIGHT(dms_FRCP_y12,2)+1),"00"),VALUE(LEFT(dms_FRCP_y12,4)+1)) -> 2031-32 | G102: dms_FRCP_y13 | H102: =IF(dms_RPT="financial",VALUE(LEFT(dms_CRCP_yO,4)-1)&"-"&TEXT(VALUE(MID(dms_CRCP_yO,3,2)),"00"),VALUE(LEFT(dms_CRCP_yO,4)-1)) -> 2006-07 | I102: dms_CRCP_yN | J102: 13 | M102: =VALUE(LEFT(dms_CRYf_y12,4)+1)&"-"&TEXT(MID(dms_CRYf_y12,3,2)+2,"00") ->  | N102: dms_CRYf_y13 | O102: =VALUE(LEFT(dms_CRYc_y12,4)+1) ->  | P102: dms_CRYc_y13
B103: 14 | C103: dms_FRCP_y14 | D103: 14 | E103: CRCP_y14 | F103: =IF(dms_RPT="financial",VALUE(LEFT(dms_FRCP_y13,4)+1)&"-"&TEXT(VALUE(RIGHT(dms_FRCP_y13,2)+1),"00"),VALUE(LEFT(dms_FRCP_y13,4)+1)) -> 2032-33 | G103: dms_FRCP_y14 | H103: =IF(dms_RPT="financial",VALUE(LEFT(dms_CRCP_yN,4)-1)&"-"&TEXT(VALUE(MID(dms_CRCP_yN,3,2)),"00"),VALUE(LEFT(dms_CRCP_yN,4)-1)) -> 2005-06 | I103: dms_CRCP_yM | J103: 14 | M103: =VALUE(LEFT(dms_CRYf_y13,4)+1)&"-"&TEXT(MID(dms_CRYf_y13,3,2)+2,"00") ->  | N103: dms_CRYf_y14 | O103: =VALUE(LEFT(dms_CRYc_y13,4)+1) ->  | P103: dms_CRYc_y14
B104: 15 | C104: dms_FRCP_y15 | D104: 15 | E104: CRCP_y15 | F104: =IF(dms_RPT="financial",VALUE(LEFT(dms_FRCP_y14,4)+1)&"-"&TEXT(VALUE(RIGHT(dms_FRCP_y14,2)+1),"00"),VALUE(LEFT(dms_FRCP_y14,4)+1)) -> 2033-34 | G104: dms_FRCP_y15 | H104: =IF(dms_RPT="financial",VALUE(LEFT(dms_CRCP_yM,4)-1)&"-"&TEXT(VALUE(MID(dms_CRCP_yM,3,2)),"00"),VALUE(LEFT(dms_CRCP_yM,4)-1)) -> 2004-05 | I104: dms_CRCP_yL | J104: 15 | M104: =VALUE(LEFT(dms_CRYf_y14,4)+1)&"-"&TEXT(MID(dms_CRYf_y14,3,2)+2,"00") ->  | N104: dms_CRYf_y15 | O104: =VALUE(LEFT(dms_CRYc_y14,4)+1) ->  | P104: dms_CRYc_y15
M105: =VALUE(LEFT(dms_CRYf_y15,4)+1)&"-"&TEXT(MID(dms_CRYf_y15,3,2)+2,"00") ->  | N105: dms_CRYf_y16 | O105: =VALUE(LEFT(dms_CRYc_y15,4)+1) ->  | P105: dms_CRYc_y16
B106: These are drop down lists for businesses to select the correct FRCP_y1 on the business and other details worksheet. This also populates the column headings in the worksheets | M106: =VALUE(LEFT(dms_CRYf_y16,4)+1)&"-"&TEXT(MID(dms_CRYf_y16,3,2)+2,"00") ->  | N106: dms_CRYf_y17 | O106: =VALUE(LEFT(dms_CRYc_y16,4)+1) ->  | P106: dms_CRYc_y17
B107: dms_RCP_fyear_list | C107: dms_CRY_ListF | D107: dms_CRY_ListC | E107: dms_RCP_cyear_list | F107: dms_FRCP_fyear_list | G107: dms_FRCP_ListF | H107: dms_FRCP_ListC | I107: dms_FRCP_cyear_list | M107: =VALUE(LEFT(dms_CRYf_y17,4)+1)&"-"&TEXT(MID(dms_CRYf_y17,3,2)+2,"00") ->  | N107: dms_CRYf_y18 | O107: =VALUE(LEFT(dms_CRYc_y17,4)+1) ->  | P107: dms_CRYc_y18
B108: dms_fy1 | C108: 2006-07 | D108: 2007 | E108: dms_cy1 | F108: dms_frcp_fy1 | G108: 2016-17 | H108: 2017 | I108: dms_crcp_cy1 | M108: =VALUE(LEFT(dms_CRYf_y18,4)+1)&"-"&TEXT(MID(dms_CRYf_y18,3,2)+2,"00") ->  | N108: dms_CRYf_y19 | O108: =VALUE(LEFT(dms_CRYc_y18,4)+1) ->  | P108: dms_CRYc_y19
B109: dms_fy2 | C109: 2007-08 | D109: 2008 | E109: dms_cy2 | F109: dms_frcp_fy2 | G109: 2017-18 | H109: 2018 | I109: dms_crcp_cy2 | M109: =VALUE(LEFT(dms_CRYf_y19,4)+1)&"-"&TEXT(MID(dms_CRYf_y19,3,2)+2,"00") ->  | N109: dms_CRYf_y20 | O109: =VALUE(LEFT(dms_CRYc_y19,4)+1) ->  | P109: dms_CRYc_y20
B110: dms_fy3 | C110: 2008-09 | D110: 2009 | E110: dms_cy3 | F110: dms_frcp_fy3 | G110: 2018-19 | H110: 2019 | I110: dms_crcp_cy3
B111: dms_fy4 | C111: 2009-10 | D111: 2010 | E111: dms_cy4 | F111: dms_frcp_fy4 | G111: 2019-20 | H111: 2020 | I111: dms_crcp_cy4
B112: dms_fy5 | C112: 2010-11 | D112: 2011 | E112: dms_cy5 | F112: dms_frcp_fy5 | G112: 2020-21 | H112: 2021 | I112: dms_crcp_cy5
B113: dms_fy6 | C113: 2011-12 | D113: 2012 | E113: dms_cy6 | F113: dms_frcp_fy6 | G113: 2021-22 | H113: 2022 | I113: dms_crcp_cy6
B114: dms_fy7 | C114: 2012-13 | D114: 2013 | E114: dms_cy7 | F114: dms_frcp_fy7 | G114: 2022-23 | H114: 2023 | I114: dms_crcp_cy7
B115: dms_fy8 | C115: 2013-14 | D115: 2014 | E115: dms_cy8 | F115: dms_frcp_fy8 | G115: 2023-24 | H115: 2024 | I115: dms_crcp_cy8 | L115: 2009-10 | M115: 2010
B116: dms_fy9 | C116: 2014-15 | D116: 2015 | E116: dms_cy9 | F116: dms_frcp_fy9 | G116: 2024-25 | H116: 2025 | I116: dms_crcp_cy9 | L116: 2010-11 | M116: 2011
B117: dms_fy10 | C117: 2015-16 | D117: 2016 | E117: dms_cy10 | F117: dms_frcp_fy10 | G117: 2025-26 | H117: 2026 | I117: dms_crcp_cy10 | L117: 2011-12 | M117: 2012
B118: dms_fy11 | C118: 2016-17 | D118: 2017 | E118: dms_cy11 | F118: dms_frcp_fy11 | G118: 2026-27 | H118: 2027 | I118: dms_crcp_cy11 | L118: 2012-13 | M118: 2013
B119: dms_fy12 | C119: 2017-18 | D119: 2018 | E119: dms_cy12 | F119: dms_frcp_fy12 | G119: 2027-28 | H119: 2028 | I119: dms_crcp_cy12 | L119: 2013-14 | M119: 2014
B120: dms_fy13 | C120: 2018-19 | D120: 2019 | E120: dms_cy13 | F120: dms_frcp_fy13 | G120: 2028-29 | H120: 2029 | I120: dms_crcp_cy13 | L120: 2014-15 | M120: 2015
B121: dms_fy14 | C121: 2019-20 | D121: 2020 | E121: dms_cy14 | F121: dms_frcp_fy14 | G121: 2029-30 | H121: 2030 | I121: dms_crcp_cy14 | L121: 2015-16 | M121: 2016
B122: dms_fy15 | C122: 2019-20 | D122: 2020 | E122: dms_cy15 | F122: dms_frcp_fy15 | G122: 2030-31 | H122: 2031 | I122: dms_crcp_cy15 | L122: 2016-17 | M122: 2017
B123: dms_fy16 | C123: 2020-21 | D123: 2021 | E123: dms_cy16 | L123: 2017-18 | M123: 2018
B124: dms_fy17 | C124: 2021-22 | D124: 2022 | E124: dms_cy17 | L124: 2018-19 | M124: 2019
B125: dms_fy18 | C125: 2022-23 | D125: 2023 | E125: dms_cy18 | L125: 2019-20 | M125: 2020
B126: dms_fy19 | C126: 2023-24 | D126: 2024 | E126: dms_cy19 | L126: 2020-21 | M126: 2021
B127: dms_fy20 | C127: 2024-25 | D127: 2025 | E127: dms_cy20 | L127: 2021-22 | M127: 2022
L128: 2022-23 | M128: 2023
L129: 2023-24 | M129: 2024
L130: 2024-25 | M130: 2025
L131: 2025-26 | M131: 2026
L132: 2026-27 | M132: 2027
L133: 2027-28 | M133: 2028
L134: 2028-29 | M134: 2029
L135: 2029-30 | M135: 2030
L136: 2030-31 | M136: 2031
L137: 2031-32 | M137: 2032
L138: 2032-33 | M138: 2033
L139: 2033-34 | M139: 2034
L140: 2034-35 | M140: 2035
L141: 2035-36 | M141: 2036

Sheet Business & other details (hidden)
B1: =IF(dms_DataQuality="backcast",INDEX(dms_Worksheet_List,MATCH(dms_Model,dms_Model_List))&" BACKCAST",INDEX(dms_Worksheet_List,MATCH(dms_Model,dms_Model_List))) -> POST TAX REVENUE MODEL
B2: =INDEX(dms_TradingNameFull_List,MATCH(dms_TradingName,dms_TradingName_List)) -> Power and Water Corporation
B3: =IF(SUM(dms_SingleYear_Model)>0,CRY,CONCATENATE(FRCP_y1," to ",dms_MultiYear_FinalYear_Result)) -> 2019-20 to 2023-24
B4: BUSINESS & OTHER DETAILS
B7: Instructions
B8: Complete the following business details regulatory template before entering data or values in any other regulatory template. This regulatory template is linked to other cells within the spreadsheet and automatically generates column headings and conditional formatting to distinguish business specific input and non-input cells.
B10: SUBMISSION PARTICULARS INPUT SHEETS
B12: ENTITY DETAILS
B14: Short name | C14: ='DMS input'!C14:H14 -> Power and Water Corporation | F14: Select business name from drop down list first
B15: ACN / ABN | C15: =INDEX(dms_ABN_List,MATCH(dms_TradingName,dms_TradingName_List)) -> 15 947 352 360
B18: Business address | C18: Address 1 | E18: =INDEX(dms_Addr1_List,MATCH(dms_TradingName,dms_TradingName_List)) -> 0
D19: Address 2 | E19: =IF(ISBLANK(INDEX(dms_Addr2_List,MATCH(dms_TradingName,dms_TradingName_List))),"",INDEX(dms_Addr2_List,MATCH(dms_TradingName,dms_TradingName_List))) -> 
C20: Suburb | E20: =INDEX(dms_Suburb_List,MATCH(dms_TradingName,dms_TradingName_List)) -> 0
D21: State | E21: =INDEX(dms_State_List,MATCH(dms_TradingName,dms_TradingName_List)) -> 0 | F21: p/code | G21: =INDEX(dms_PostCode_List,MATCH(dms_TradingName,dms_TradingName_List)) -> 0
B23: Postal address | C23: Address 1 | E23: =INDEX(dms_PAddr1_List,MATCH(dms_TradingName,dms_TradingName_List)) -> 0
D24: Address 2 | E24: =IF(ISBLANK(INDEX(dms_PAddr2_List,MATCH(dms_TradingName,dms_TradingName_List))),"",INDEX(dms_PAddr2_List,MATCH(dms_TradingName,dms_TradingName_List))) -> 
C25: Suburb | E25: =INDEX(dms_PSuburb_List,MATCH(dms_TradingName,dms_TradingName_List)) -> 0
D26: State | E26: =INDEX(dms_PState_List,MATCH(dms_TradingName,dms_TradingName_List)) -> 0 | F26: p/code | G26: =INDEX(dms_PPostCode_List,MATCH(dms_TradingName,dms_TradingName_List)) -> 0
B29: Contact name/s | C29: =INDEX(dms_ContactName1_List,MATCH(dms_TradingName,dms_TradingName_List)) -> 0
B30: Contact phone/s | C30: =INDEX(dms_ContactPh1_List,MATCH(dms_TradingName,dms_TradingName_List)) -> 0
B31: Contact email address/s | C31: =INDEX(dms_ContactEmail_List,MATCH(dms_TradingName,dms_TradingName_List)) -> 0
B33: REGULATORY CONTROL PERIODS
B35: Forthcoming regulatory control period | C35: 2019-20 | D35: =dms_FRCP_y2 -> 2020-21 | E35: =dms_FRCP_y3 -> 2021-22 | F35: =dms_FRCP_y4 -> 2022-23 | G35: =dms_FRCP_y5 -> 2023-24 | H35: =dms_FRCP_y6 -> 2024-25 | I35: =dms_FRCP_y7 -> 2025-26 | J35: =dms_FRCP_y8 -> 2026-27 | K35: =dms_FRCP_y9 -> 2027-28 | L35: =dms_FRCP_y10 -> 2028-29
B38: Current regulatory control period | C38: =dms_CRCP_FirstYear_Result -> 2014-15 | D38: =IF(dms_RPT="financial",VALUE(LEFT(CRCP_y1,4)+1)&"-"&TEXT(MID(CRCP_y1,3,2)+2,"00"),VALUE(LEFT(CRCP_y1,4)+1)) -> 2015-16 | E38: =IF(dms_RPT="financial",VALUE(LEFT(CRCP_y2,4)+1)&"-"&TEXT(VALUE(MID(CRCP_y2,3,2)+2),"00"),VALUE(LEFT(CRCP_y2,4)+1)) -> 2016-17 | F38: =IF(dms_RPT="financial",VALUE(LEFT(CRCP_y3,4)+1)&"-"&TEXT(VALUE(MID(CRCP_y3,3,2)+2),"00"),VALUE(LEFT(CRCP_y3,4)+1)) -> 2017-18 | G38: =IF(dms_RPT="financial",VALUE(LEFT(CRCP_y4,4)+1)&"-"&TEXT(VALUE(MID(CRCP_y4,3,2)+2),"00"),VALUE(LEFT(CRCP_y4,4)+1)) -> 2018-19 | H38: =IF(dms_RPT="financial",VALUE(LEFT(CRCP_y5,4)+1)&"-"&TEXT(VALUE(MID(CRCP_y5,3,2)+2),"00"),VALUE(LEFT(CRCP_y5,4)+1)) -> 2019-20 | I38: =IF(dms_RPT="financial",VALUE(LEFT(CRCP_y6,4)+1)&"-"&TEXT(VALUE(MID(CRCP_y6,3,2)+2),"00"),VALUE(LEFT(CRCP_y6,4)+1)) -> 2020-21 | J38: =IF(dms_RPT="financial",VALUE(LEFT(CRCP_y7,4)+1)&"-"&TEXT(VALUE(MID(CRCP_y7,3,2)+2),"00"),VALUE(LEFT(CRCP_y7,4)+1)) -> 2021-22 | K38: =IF(dms_RPT="financial",VALUE(LEFT(CRCP_y8,4)+1)&"-"&TEXT(VALUE(MID(CRCP_y8,3,2)+2),"00"),VALUE(LEFT(CRCP_y8,4)+1)) -> 2022-23 | L38: =IF(dms_RPT="financial",VALUE(LEFT(CRCP_y9,4)+1)&"-"&TEXT(VALUE(MID(CRCP_y9,3,2)+2),"00"),VALUE(LEFT(CRCP_y9,4)+1)) -> 2023-24
B41: Previous regulatory control period | C41: =IF(dms_RPT="financial",VALUE(LEFT(PRCP_y2,4)-1)&"-"&TEXT(VALUE(MID(PRCP_y2,3,2)),"00"),VALUE(LEFT(PRCP_y2,4)-1)) -> 2009-10 | D41: =IF(dms_RPT="financial",VALUE(LEFT(PRCP_y3,4)-1)&"-"&TEXT(VALUE(MID(PRCP_y3,3,2)),"00"),VALUE(LEFT(PRCP_y3,4)-1)) -> 2010-11 | E41: =IF(dms_RPT="financial",VALUE(LEFT(PRCP_y4,4)-1)&"-"&TEXT(VALUE(MID(PRCP_y4,3,2)),"00"),VALUE(LEFT(PRCP_y4,4)-1)) -> 2011-12 | F41: =IF(dms_RPT="financial",VALUE(LEFT(PRCP_y5,4)-1)&"-"&TEXT(VALUE(RIGHT(PRCP_y5,2)-1),"00"),VALUE(LEFT(PRCP_y5,4)-1)) -> 2012-13 | G41: =IF(dms_RPT="financial",VALUE(LEFT(CRCP_y1,4)-1)&"-"&TEXT(VALUE(RIGHT(CRCP_y1,2)-1),"00"),VALUE(LEFT(CRCP_y1,4)-1)) -> 2013-14
B44: Commencing regulatory year | C44: 2018-19 | D44: CRY
B46: Last completed regulatory year | C46: 2018-19 | D46: dms_FinalYear
C49: DELETE NR 'CRY' IF NOT AN ANNUAL RIN (EB, CA , ARR)
C50: APPLY NR 'CRY' IF AN ANNUAL RIN (EB, CA , ARR) - including multi year annual RINs eg. Recast CA. EB
B52: Source | C52: Regulatory proposal | E52: Please select the correct submission type from the dropdown list.
B53: Data quality (actual, estimate, public, consolidated) | C53: Consolidated
B54: Amended RIN submission - amendment reason
B55: Submission Date | C55: dd/mm/yyyy | D55: dms_SubmissionDate | E55: Please enter date this file submitted to AER (dd/mm/yyyy)
B56: EBSS - First application of scheme in forthcoming period? | C56: No
B57: Sector | C57: =INDEX(dms_Sector_List,MATCH(dms_TradingName,dms_TradingName_List)) -> Electricity | D57: dms_Sector | E57: =INDEX(dms_Sector_List,MATCH(dms_TradingName,dms_TradingName_List))
B58: Segment | C58: =INDEX(dms_Segment_List,MATCH(dms_TradingName,dms_TradingName_List)) -> Distribution | D58: dms_Segment | E58: =INDEX(dms_Segment_List,MATCH(dms_TradingName,dms_TradingName_List))
B59: Regulatory Year Ending | C59: =IF(dms_MultiYear_Flag=1,LEFT(dms_Specified_FinalYear,2)&RIGHT(dms_Specified_FinalYear,2),INDEX(dms_RYE_Formula_Result,MATCH(dms_Model,dms_Model_List))) -> 2024 | D59: dms_RYE | E59: =IF(dms_MultiYear_Flag=1,LEFT(dms_Specified_FinalYear,2)&RIGHT(dms_Specified_FinalYear,2),INDEX(dms_RYE_Formula_Result,MATCH(dms_Model,dms_Model_List)))
B60: Reporting Period Type | C60: =INDEX(dms_RPT_List,MATCH(dms_TradingName,dms_TradingName_List)) -> Financial | D60: dms_RPT | E60: =INDEX(dms_RPT_List,MATCH(dms_TradingName,dms_TradingName_List))
B61: Model or RIN Type | C61: PTRM | D61: dms_Model | E61: Drop down selection
B62: Security Classification | C62: Public | D62: dms_Classification | E62: Always Public
B63: Template - version no. | C63: 5 | D63: dms_TemplateNumber
B64: Dollar $ real month | C64: =INDEX(dms_RPTMonth_List,MATCH(dms_TradingName,dms_TradingName_List)) -> June | D64: dms_RPTMonth | E64: =INDEX(dms_RPTMonth_List,MATCH(dms_TradingName,dms_TradingName_List))
B65: Dollar $ real (the last month before the FRCP_y1) | C65: =CONCATENATE(dms_RPTMonth)&" "&VALUE((LEFT(dms_CRCP_FinalYear_Result,2)&RIGHT(dms_CRCP_FinalYear_Result,2))) -> June 2019 | D65: dms_DollarReal | E65: =IF(SUM(dms_SingleYear_Model)>0,CONCATENATE(dms_RPTMonth)&" "&VALUE((LEFT(CRY,2))&RIGHT(CRY,2)),CONCATENATE(dms_RPTMonth)&" "&VALUE((LEFT(dms_CRCP_FinalYear_Result,2)&RIGHT(dms_CRCP_FinalYear_Result,2))))
B66: Form of control | C66: =INDEX(dms_FormControl_List,MATCH(dms_TradingName,dms_TradingName_List)) -> Revenue cap | D66: dms_FormControl | E66: =INDEX(dms_FormControl_List,MATCH(dms_TradingName,dms_TradingName_List))
B67: RIN response - version no. | C67: 1 | D67: dms_RINversion
B68: Jurisdiction | C68: =INDEX(dms_JurisdictionList,MATCH(dms_TradingName,dms_TradingName_List)) -> NT | D68: dms_Jurisdiction | E68: =INDEX(dms_JurisdictionList,MATCH(dms_TradingName,dms_TradingName_List))
B69: Backcast Multiyear EB, CA or ARR? | C69: 0 | D69: dms_MultiYear_Flag | E69: 1=y, 0-n
C70: 2013 | D70: dms_Specified_FinalYear | E70: The result here is returned to dms_CRCP_FinalYear_Result if dms_MultiYear_Flag is set to 1
B71: Single Year Model T/F | C71: =IF(dms_Model="EB",1,0) -> 0 | D71: dms_EB
C72: =IF(dms_Model="CA",1,0) -> 0 | D72: dms_CA | E72: =dms_SingleYear_Model
C73: =IF(dms_Model="ARR",1,0) -> 0 | D73: dms_ARR
B74: Single Year Final Year Reference | C74: CRY | D74: dms_SingleYear_FinalYear_Ref | E74: This is the reference for EB, CA & ARR RINs
B75: Single Year Final Year Result | C75: =INDIRECT(dms_SingleYear_FinalYear_Ref) ->  | D75: dms_SingleYear_FinalYear_Result | E75: =INDIRECT(dms_SingleYear_FinalYear_Ref) | I75: Formula errors OK
B76: FRCP length in years | C76: =INDEX(dms_FRCPlength_List,MATCH(dms_TradingName,dms_TradingName_List)) -> 5 | D76: dms_FRCPlength_Num | E76: =INDEX(dms_FRCPlength_List,MATCH(dms_TradingName,dms_TradingName_List))
B77: Multi Year Final Year Reference | C77: =INDEX(dms_FinalYear_List,MATCH(dms_FRCPlength_Num,dms_FRCPlength_Num_List)) -> dms_FRCP_y5 | D77: dms_MultiYear_FinalYear_Ref | E77: =INDEX(dms_FinalYear_List,MATCH(dms_FRCPlength_Num,dms_FRCPlength_Num_List))
B78: Multi Year Final Year Result | C78: =IF(dms_MultiYear_Flag=0,INDIRECT(dms_MultiYear_FinalYear_Ref),dms_Specified_FinalYear) -> 2023-24 | D78: dms_MultiYear_FinalYear_Result | E78: =IF(dms_MultiYear_Flag=0,INDIRECT(dms_MultiYear_FinalYear_Ref),dms_Specified_FinalYear) | I78: Formula errors OK
B79: CRCP length in years | C79: =INDEX(dms_CRCPlength_List,MATCH(dms_TradingName,dms_TradingName_List)) -> 5 | D79: dms_CRCPlength_Num | E79: =INDEX(dms_CRCPlength_List,MATCH(dms_TradingName,dms_TradingName_List))
B80: CRCP Final Year Reference | C80: =INDEX(dms_CFinalYear_List,MATCH(dms_CRCPlength_Num,dms_CRCPlength_Num_List)) -> CRCP_y5 | D80: dms_CRCP_FinalYear_Ref | E80: =INDEX(dms_CFinalYear_List,MATCH(dms_CRCPlength_Num,dms_CRCPlength_Num_List))
B81: CRCP First Year Result | C81: =INDEX(dms_CRCP_years,MATCH(dms_CRCPlength_Num,dms_CRCP_index)) -> 2014-15 | D81: dms_CRCP_FirstYear_Result | E81: =INDEX(dms_CRCP_years,MATCH(dms_CRCPlength_Num,dms_CRCP_index))
B82: CRCP Final Year Result | C82: =IF(dms_MultiYear_Flag=0,(IF(SUM(dms_SingleYear_Model)>0,CRY,dms_CRCP_yZ)),dms_Specified_FinalYear) -> 2018-19 | D82: dms_CRCP_FinalYear_Result | E82: =IF(dms_MultiYear_Flag=0,(IF(SUM(dms_SingleYear_Model)>0,CRY,dms_CRCP_yZ)),dms_Specified_FinalYear)
B83: Table 6.6.3 - Public lighting repair - no. business days | C83: =INDEX(dms_663_List,MATCH(dms_TradingName,dms_TradingName_List)) -> 0 | D83: dms_663
B84: Distribution Determination Reference | C84: =INDEX(dms_DeterminationRef_List,MATCH(dms_TradingName,dms_TradingName_List)) -> 0 | D84: dms_DeterminationRef
B85: Backcast templates only - unit of measure | C85: $0s | D85: dms_Backcast_UOM | E85: If the cover sheet is for Backcast data ensure to apply dms_Backcast_UOM named range to this field. Otherwise, do not apply this named range.
B86: EB/CA Unit of Measure for Monetary Values | C86: $0s | D86: dms_dollar_nom_UOM | E86: If the cover sheet is attached to an EB files make sure this field is set
B88: discard this record? | C88: NO | D88: dms_DISCARD | E88: If record is to be discarded from DB set this flag to YES
B90: USES NAMED RANGES FLAG | C90: yes | D90: dms_Defined_Names_Used

Sheet Intro
G2: Electricity Distribution Network Service Provider
H3: Post-Tax Revenue Model
K4: Version: | L4: 3
K5: Date: | L5: January 2015
B8: Introduction | J8: Electricity Distribution Module
C13: This model illustrates the basic elements of the AER's building block calculation and associated price and revenue constraints for distribution businesses.
C14: The model is intended to produce X factors that are applicable to revenue caps, price caps and revenue yield forms of control.
C15: Building block revenues and cash flows are modelled in nominal terms unless specified otherwise.
C17: INSTRUCTIONS FOR USE
C18: The full PTRM handbook is available on the AER website at http://www.aer.gov.au/node/27616
C20: 1. Prior to the commencement of the regulatory control period
C22: 1a. Fill out input cells on the 'DMS Input' sheet. These input cells are highlighted blue.
C23: This provides information on the service provider submitting the PTRM and the context for the PTRM preparation.
C24: This information also controls the automatic import of the PTRM into the AER's Data Management System (DMS).
C26: 1b. Fill out input cells on the 'PTRM Input' sheet. These input cells are highlighted blue.
C27: This provides the data for the PTRM calculations.
C28: In general, input expenditure data should be valued in real dollar terms of the year indicated, as at the end of that year.
C29: Units and basis for entry are specified where required for each data table.
C30: Review any cautions (which are generated based on data entered) before continuing.
C32: 1c. Determine the expected revenue (smoothed revenue) using the 'X factors' sheet
C33: Clause 6.2.6 requires that the form of control applicable to standard control services be of a CPI–X form.
C34: This sheet provides for the calculation of X factors under three basic forms of control, namely a weighted average price cap, revenue cap and revenue yield.
C35: The X factor values may differ for each year of the regulatory control period but must be set such that the NPV of annual expected revenues (smoothed) is equal to the NPV of the annual revenue requirements (unsmoothed) for that period.
C36: This sheet provides input cells for each X factor and contains macro buttons which should be used to goal seek an X factor value for a specific year to equate the NPVs of smoothed and unsmoothed revenues.
C38: 2. Within the regulatory control period when updating the annual return on debt
C40: 2a. Update input cells on the 'DMS Input' sheet. These input cells are highlighted blue.
C41: Check that the contact details are still current and describe the new amendment.
C43: 2b. Update input cells on the 'PTRM Input' sheet. These input cells are highlighted blue.
C44: In general, the only row that should be changed is the Trailing Average Portfolio Return on Debt (row 222).
C45: The basis for updating the annual return on debt will be in accordance with the relevant regulatory decision prior to the commencement of the period.
C47: 2c. Determine the expected revenue (smoothed revenue) using the 'X factors' sheet
C48: Indicate the year of the annual debt update (cell F21) to ensure the correct content-sensitive cautions are displayed.
C49: Enter new X factors for this year (and potentially later years within the regulatory control period) in order to equate the NPVs of smoothed and unsmoothed revenues.
C50: The macro buttons should be used to goal seek the X factor for these specific years.
C51: Note that X factors for earlier years within the regulatory control period should not be changed.
C54: VERSION RECORD
C56: Version | D56: Date | F56: Description
C57: 1 | D57: June 2008 | F57: Initial model, based on transmission PTRM
C59: 2 | D59: June 2009 | F59: Various non-consequential errors corrected
C61: 3 | D61: January 2015 | F61: Allowed time-varying return on debt, and revenue revisions for annual return on debt update
F62: Explicitly recognised revenue adjustments in building block calculations
F63: Incorporated equity raising cost calculations into automatic smoothing process
F64: Revised and expanded summary tables and reporting
F65: Standardised many elements with transmission PTRM
F66: Enabled automatic import into AER DMS

Sheet DMS input
B2: =C16&" - DMS Input"&" - DNSP PTRM - version "&Intro!$L$4 -> PWC - DMS Input - DNSP PTRM - version 3 | G2: Input cells are in blue
B6: This sheet requests information that allows the AER to automatically import the PTRM into our data management system (DMS).
B7: This sheet's metadata relates to the business and context for the PTRM (rather than the PTRM itself).
B8: Some of this data is automatically populated based on data entered on the PTRM input sheet. Only change blue input cells.
B9: Some rows are hidden. To facilitate the automatic import, please do not delete or add rows on this sheet.
B10: Throughout the rest of the workbook, defined name ranges are used to identify data that is imported into the DMS.
B12: Entity details
B14: Trading name | C14: Power and Water Corporation
B15: ACN / ABN | C15: =INDEX(dms_ABN_List,MATCH(dms_TradingName,dms_TradingName_List)) -> 15 947 352 360
B16: Business short name | C16: PWC
B18: Business address | C18: Address 1 | E18: Level 7, Mitchell Centre
D19: Address 2 | E19: 55 Mitchel Street
C20: Suburb | E20: Darwin
D21: State | E21: NT | F21: Postcode | G21: 0801
B23: Postal address | C23: Address 1 | E23: GPO Box 1921
D24: Address 2
C25: Suburb | E25: Darwin
D26: State | E26: NT | F26: Postcode | G26: 0801
B29: Contact name/s | C29: Jodi Triggs | F29: Keith Hutchinson
B30: Contact phone/s | C30: (08) 8985 8456 | F30: (08) 8985 8452
B31: Contact email address/s | C31: jodi.triggs@powerwater.com.au | F31: keith.hutchinson@powerwater.com.au
B33: Regulatory process details
B46: Source | C46: Draft decision
B53: Amended model submission - reason
B56: Form of control | C56: Revenue cap

Sheet Depn|Calc
A2: Depreciation Calculations
I4: 0 | J4: 1 | K4: 2 | L4: 3 | M4: 4 | N4: 5 | O4: 6 | P4: 7 | Q4: 8 | R4: 9 | S4: 10 | T4: 11 | U4: 12 | V4: 13 | W4: 14 | X4: 15 | Y4: 16 | Z4: 17 | AA4: 18 | AB4: 19 | AC4: 20 | AD4: 21 | AE4: 22 | AF4: 23 | AG4: 24 | AH4: 25 | AI4: 26 | AJ4: 27 | AK4: 28 | AL4: 29 | AM4: 30 | AN4: 31 | AO4: 32 | AP4: 33 | AQ4: 34 | AR4: 35 | AS4: 36 | AT4: 37 | AU4: 38 | AV4: 39 | AW4: 40 | AX4: 41 | AY4: 42 | AZ4: 43 | BA4: 44 | BB4: 45 | BC4: 46 | BD4: 47 | BE4: 48 | BF4: 49 | BG4: 50 | BH4: 51 | BI4: 52 | BJ4: 53 | BK4: 54 | BL4: 55 | BM4: 56 | BN4: 57 | BO4: 58 | BP4: 59 | BQ4: 60 | BR4: 61 | BS4: 62 | BT4: 63 | BU4: 64 | BV4: 65 | BW4: 66
B5: Year | I5: =first_reg_period -> 2014 | J5: =I5+1 -> 2015 | K5: =J5+1 -> 2016 | L5: 2017 | M5: 2018 | N5: 2019 | O5: 2020 | P5: 2021 | Q5: 2022 | R5: 2023 | S5: 2024 | T5: 2025 | U5: 2026 | V5: 2027 | W5: 2028 | X5: 2029 | Y5: 2030 | Z5: 2031 | AA5: 2032 | AB5: 2033 | AC5: 2034 | AD5: 2035 | AE5: 2036 | AF5: 2037 | AG5: 2038 | AH5: 2039 | AI5: 2040 | AJ5: 2041 | AK5: 2042 | AL5: 2043 | AM5: 2044 | AN5: 2045 | AO5: 2046 | AP5: 2047 | AQ5: 2048 | AR5: 2049 | AS5: 2050 | AT5: 2051 | AU5: 2052 | AV5: 2053 | AW5: 2054 | AX5: 2055 | AY5: 2056 | AZ5: 2057 | BA5: 2058 | BB5: 2059 | BC5: 2060 | BD5: 2061 | BE5: 2062 | BF5: 2063 | BG5: 2064 | BH5: 2065 | BI5: 2066 | BJ5: 2067 | BK5: 2068 | BL5: 2069 | BM5: 2070 | BN5: 2071 | BO5: 2072 | BP5: 2073 | BQ5: 2074 | BR5: =BQ5+1 -> 2075 | BS5: =BR5+1 -> 2076 | BT5: =BS5+1 -> 2077
D6: Real Vanilla WACC | E6: $m Real (2014) | J6: ='Depn|Inputs'!J20 -> 0.04569646164 | K6: ='Depn|Inputs'!K20 -> 0.04569646164 | L6: ='Depn|Inputs'!L20 -> 0.04569646164 | M6: ='Depn|Inputs'!M20 -> 0.04569646164 | N6: ='Depn|Inputs'!N20 -> 0.04569646164 | O6: ='Depn|Inputs'!O20 -> 0.02702011685 | P6: ='Depn|Inputs'!P20 -> 0.02702011685 | Q6: ='Depn|Inputs'!Q20 -> 0.02702011685 | R6: ='Depn|Inputs'!R20 -> 0.02702011685 | S6: ='Depn|Inputs'!S20 -> 0.02702011685 | T6: =S6 -> 0.02702011685 | U6: =T6 -> 0.02702011685 | V6: 0.02702011685 | W6: 0.02702011685 | X6: 0.02702011685 | Y6: 0.02702011685 | Z6: 0.02702011685 | AA6: 0.02702011685 | AB6: 0.02702011685 | AC6: 0.02702011685 | AD6: 0.02702011685 | AE6: 0.02702011685 | AF6: 0.02702011685 | AG6: 0.02702011685 | AH6: 0.02702011685 | AI6: 0.02702011685 | AJ6: 0.02702011685 | AK6: =AJ6 -> 0.02702011685 | AL6: 0.02702011685 | AM6: 0.02702011685 | AN6: 0.02702011685 | AO6: 0.02702011685 | AP6: 0.02702011685 | AQ6: 0.02702011685 | AR6: 0.02702011685 | AS6: 0.02702011685 | AT6: 0.02702011685 | AU6: 0.02702011685 | AV6: 0.02702011685 | AW6: 0.02702011685 | AX6: 0.02702011685 | AY6: 0.02702011685 | AZ6: 0.02702011685 | BA6: =AZ6 -> 0.02702011685 | BB6: 0.02702011685 | BC6: 0.02702011685 | BD6: 0.02702011685 | BE6: 0.02702011685 | BF6: 0.02702011685 | BG6: 0.02702011685 | BH6: 0.02702011685 | BI6: 0.02702011685 | BJ6: 0.02702011685 | BK6: 0.02702011685 | BL6: 0.02702011685 | BM6: 0.02702011685 | BN6: 0.02702011685 | BO6: 0.02702011685 | BP6: 0.02702011685 | BQ6: 0.02702011685 | BR6: =BQ6 -> 0.02702011685 | BS6: =BR6 -> 0.02702011685 | BT6: =BS6 -> 0.02702011685
D7: Nominal Vanilla WACC | E7: $m Real (2014) | J7: ='Depn|Inputs'!J21 -> 0.06365689705 | K7: ='Depn|Inputs'!K21 -> 0.06335362516 | L7: ='Depn|Inputs'!L21 -> 0.06113109576 | M7: ='Depn|Inputs'!M21 -> 0.06565975773 | N7: ='Depn|Inputs'!N21 -> 0.07105329014 | O7: ='Depn|Inputs'!O21 -> 0.052181608 | P7: ='Depn|Inputs'!P21 -> 0.052181608 | Q7: ='Depn|Inputs'!Q21 -> 0.052181608 | R7: ='Depn|Inputs'!R21 -> 0.052181608 | S7: ='Depn|Inputs'!S21 -> 0.052181608 | T7: =S7 -> 0.052181608 | U7: =T7 -> 0.052181608 | V7: 0.052181608 | W7: 0.052181608 | X7: 0.052181608 | Y7: 0.052181608 | Z7: 0.052181608 | AA7: 0.052181608 | AB7: 0.052181608 | AC7: 0.052181608 | AD7: 0.052181608 | AE7: 0.052181608 | AF7: 0.052181608 | AG7: 0.052181608 | AH7: 0.052181608 | AI7: 0.052181608 | AJ7: 0.052181608 | AK7: 0.052181608 | AL7: 0.052181608 | AM7: 0.052181608 | AN7: 0.052181608 | AO7: 0.052181608 | AP7: 0.052181608 | AQ7: 0.052181608 | AR7: 0.052181608 | AS7: 0.052181608 | AT7: 0.052181608 | AU7: 0.052181608 | AV7: 0.052181608 | AW7: 0.052181608 | AX7: 0.052181608 | AY7: 0.052181608 | AZ7: 0.052181608 | BA7: 0.052181608 | BB7: 0.052181608 | BC7: 0.052181608 | BD7: 0.052181608 | BE7: 0.052181608 | BF7: 0.052181608 | BG7: 0.052181608 | BH7: 0.052181608 | BI7: 0.052181608 | BJ7: 0.052181608 | BK7: 0.052181608 | BL7: 0.052181608 | BM7: 0.052181608 | BN7: 0.052181608 | BO7: 0.052181608 | BP7: 0.052181608 | BQ7: 0.052181608 | BR7: 0.052181608 | BS7: 0.052181608 | BT7: 0.052181608
D9: Total Depreciation | E9: $m Real (2014) | J9: =SUMIF($D$17:$D$809, $D9, J$17:J$809) -> 49.34599798 | K9: =SUMIF($D$17:$D$809, $D9, K$17:K$809) -> 51.28775753 | L9: 46.86821869 | M9: 47.66785788 | N9: 49.00937348 | O9: 37.68826144 | P9: 37.71870949 | Q9: 37.6884824 | R9: 37.6884824 | S9: 37.21079378 | T9: 37.02509978 | U9: 36.99051568 | V9: 36.81417846 | W9: 36.76707397 | X9: 36.59392495 | Y9: 36.15476669 | Z9: 35.67360067 | AA9: 35.05201346 | AB9: 34.74568056 | AC9: 26.8886754 | AD9: 21.41293068 | AE9: 21.41293068 | AF9: 21.41123141 | AG9: 20.87846426 | AH9: 17.80321705 | AI9: 17.18379658 | AJ9: 17.15956413 | AK9: 17.13997909 | AL9: 17.0920209 | AM9: 16.93500902 | AN9: 14.97826291 | AO9: 11.11473093 | AP9: 5.759098428 | AQ9: 4.585465782 | AR9: 4.585465782 | AS9: 4.585465782 | AT9: 4.585465782 | AU9: 4.585465782 | AV9: 4.585465782 | AW9: 4.585465782 | AX9: 4.585465782 | AY9: 4.603130359 | AZ9: 5.023466013 | BA9: 4.121803919 | BB9: 3.366152228 | BC9: 2.878573419 | BD9: 2.490260308 | BE9: 2.0245801 | BF9: 1.953341197 | BG9: 1.913489736 | BH9: 1.838920165 | BI9: 1.838920165 | BJ9: 1.786875299 | BK9: 1.696903013 | BL9: 1.59515477 | BM9: 1.537649283 | BN9: 1.307306513 | BO9: 0.9475838563 | BP9: 0.644360108 | BQ9: 0.3924717826 | BR9: 0.1463273064 | BS9: 0.002039479996 | BT9: 0
D10: Capex | E10: $m Real (2014) | J10: =SUMIF($C$17:$C$809, $D10, J$17:J$809) -> 77.31797258 | K10: =SUMIF($C$17:$C$809, $D10, K$17:K$809) -> 64.58711719 | L10: 45.16536568 | M10: 38.03356163 | N10: 37.77260285 | O10: 0 | P10: 0 | Q10: 0 | R10: 0 | S10: 0 | T10: 0 | U10: 0 | V10: 0 | W10: 0 | X10: 0 | Y10: 0 | Z10: 0 | AA10: 0 | AB10: 0 | AC10: 0 | AD10: 0 | AE10: 0 | AF10: 0 | AG10: 0 | AH10: 0 | AI10: 0 | AJ10: 0 | AK10: 0 | AL10: 0 | AM10: 0 | AN10: 0 | AO10: 0 | AP10: 0 | AQ10: 0 | AR10: 0 | AS10: 0 | AT10: 0 | AU10: 0 | AV10: 0 | AW10: 0 | AX10: 0 | AY10: 0 | AZ10: 0 | BA10: 0 | BB10: 0 | BC10: 0 | BD10: 0 | BE10: 0 | BF10: 0 | BG10: 0 | BH10: 0 | BI10: 0 | BJ10: 0 | BK10: 0 | BL10: 0 | BM10: 0 | BN10: 0 | BO10: 0 | BP10: 0 | BQ10: 0 | BR10: 0 | BS10: 0 | BT10: 0
D12: Existing Assets Closing RAB | E12: $m Real (2014) | I12: =SUMIF($D$17:$D$809, $D12, I$17:I$809) -> 853.2176379 | J12: =SUMIF($D$17:$D$809, $D12, J$17:J$809) -> 803.8716399 | K12: 754.5256419 | L12: 711.1800379 | M12: 668.2218379 | N12: 643.1075039 | O12: 612.6102876 | P12: 582.0826233 | Q12: 551.585186 | R12: 521.0877487 | S12: 491.0680001 | T12: 461.2339454 | U12: 431.4270558 | V12: 401.6878515 | W12: 372.0021729 | X12: 342.3164943 | Y12: 312.6308156 | Z12: 282.945137 | AA12: 253.2594584 | AB12: 223.6100906 | AC12: 201.7400315 | AD12: 185.345717 | AE12: 168.9514026 | AF12: 152.5570881 | AG12: 136.4989117 | AH12: 123.4184394 | AI12: 110.9118843 | AJ12: 98.40532917 | AK12: 85.89877405 | AL12: 73.39221894 | AM12: 61.0426757 | AN12: 50.64987857 | AO12: 44.12061343 | AP12: 42.94698078 | AQ12: 42.94698078 | AR12: 42.94698078 | AS12: 42.94698078 | AT12: 42.94698078 | AU12: 42.94698078 | AV12: 42.94698078 | AW12: 42.94698078 | AX12: 42.94698078 | AY12: 42.94698078 | AZ12: 42.94698078 | BA12: 42.94698078 | BB12: 42.94698078 | BC12: 42.94698078 | BD12: 42.94698078 | BE12: 42.94698078 | BF12: 42.94698078 | BG12: 42.94698078 | BH12: 42.94698078 | BI12: 42.94698078 | BJ12: 42.94698078 | BK12: 42.94698078 | BL12: 42.94698078 | BM12: 42.94698078 | BN12: 42.94698078 | BO12: 42.94698078 | BP12: 42.94698078 | BQ12: 42.94698078 | BR12: 42.94698078 | BS12: =SUMIF($D$17:$D$809, $D12, BS$17:BS$809) -> 42.94698078 | BT12: 42.94698078
D13: Capex Closing RAB | E13: $m Real (2014) | J13: =SUMIF($D$17:$D$809, $D13, J$17:J$809) -> 77.31797258 | K13: 139.9633302 | L13: 181.6060812 | M13: 214.929985 | N13: 246.6514144 | O13: 239.3661981 | P13: 232.0809819 | Q13: 224.7957656 | R13: 217.5105493 | S13: 210.2253331 | T13: 202.9401168 | U13: 195.6549005 | V13: 188.3720126 | W13: 181.1273447 | X13: 174.109139 | Y13: 167.5310551 | Z13: 161.4341373 | AA13: 155.9588067 | AB13: 150.753498 | AC13: 145.625886 | AD13: 140.4982739 | AE13: 135.3706619 | AF13: 130.2430498 | AG13: 125.116281 | AH13: 120.0870551 | AI13: 115.1033325 | AJ13: 110.1438424 | AK13: 105.2039373 | AL13: 100.3119904 | AM13: 95.42004357 | AN13: 90.52809669 | AO13: 85.63614981 | AP13: 80.74420293 | AQ13: 75.85225606 | AR13: 70.96030918 | AS13: 66.0683623 | AT13: 61.17641542 | AU13: 56.28446854 | AV13: 51.39252166 | AW13: 46.50057479 | AX13: 41.60862791 | AY13: 36.71668103 | AZ13: 31.84524299 | BA13: 27.87427158 | BB13: 24.65544623 | BC13: 21.82966675 | BD13: 19.39220038 | BE13: 17.42041422 | BF13: 15.51986696 | BG13: 13.65917116 | BH13: 11.87304493 | BI13: 10.08691871 | BJ13: 8.300792482 | BK13: 6.571854137 | BL13: 4.944664036 | BM13: 3.41602167 | BN13: 2.123061666 | BO13: 1.175477809 | BP13: 0.5311177013 | BQ13: 0.1386459187 | BR13: -0.00768138766 | BS13: -0.009720867656 | BT13: -0.009720867656
D14: Total Closing RAB | E14: $m Real (2014) | I14: =SUM(I12:I13) -> 853.2176379 | J14: =SUM(J12:J13) -> 881.1896125 | K14: =SUM(K12:K13) -> 894.4889721 | L14: 892.7861191 | M14: 883.1518228 | N14: 889.7589183 | O14: 851.9764857 | P14: 814.1636051 | Q14: 776.3809516 | R14: 738.5982981 | S14: 701.2933331 | T14: 664.1740622 | U14: 627.0819563 | V14: 590.0598642 | W14: 553.1295176 | X14: 516.4256333 | Y14: 480.1618708 | Z14: 444.3792743 | AA14: 409.218265 | AB14: 374.3635887 | AC14: 347.3659175 | AD14: 325.843991 | AE14: 304.3220645 | AF14: 282.800138 | AG14: 261.6151926 | AH14: 243.5054945 | AI14: 226.0152168 | AJ14: 208.5491716 | AK14: 191.1027114 | AL14: 173.7042094 | AM14: 156.4627193 | AN14: 141.1779753 | AO14: 129.7567632 | AP14: 123.6911837 | AQ14: 118.7992368 | AR14: 113.90729 | AS14: 109.0153431 | AT14: 104.1233962 | AU14: 99.23144932 | AV14: 94.33950245 | AW14: 89.44755557 | AX14: 84.55560869 | AY14: 79.66366181 | AZ14: 74.79222377 | BA14: 70.82125237 | BB14: 67.60242701 | BC14: 64.77664753 | BD14: 62.33918116 | BE14: 60.367395 | BF14: 58.46684774 | BG14: 56.60615194 | BH14: 54.82002572 | BI14: 53.03389949 | BJ14: 51.24777326 | BK14: 49.51883492 | BL14: 47.89164482 | BM14: 46.36300245 | BN14: 45.07004245 | BO14: 44.12245859 | BP14: 43.47809848 | BQ14: =SUM(BQ12:BQ13) -> 43.0856267 | BR14: =SUM(BR12:BR13) -> 42.93929939 | BS14: 42.93725991 | BT14: 42.93725991
B17: ='Depn|Inputs'!C48 -> Substations
C18: Remaining Life | I18: =INDEX('Depn|Inputs'!$E$48:$E$62, MATCH(B17, 'Depn|Inputs'!$C$48:$C$62,0)) -> 19.42614556
C19: Standard Life | I19: =IF(INDEX('Depn|Inputs'!$F$48:$F$62,MATCH(B17,'Depn|Inputs'!$C$48:$C$62,0))<0,1,INDEX('Depn|Inputs'!$F$48:$F$62,MATCH(B17,'Depn|Inputs'!$C$48:$C$62,0))) -> 41.97333998
C21: Existing Assets
D22: Depreciation on Existing Opening RAB | E22: $m Real (2014) | J22: 22.10265914 | K22: 22.10265914 | L22: 21.53833703 | M22: 21.53832659 | N22: 21.53832659 | O22: =IF(OR($I18=0,N27=0),0,IF($I25>0,(MIN(($I27-SUM($J22:$N22))/($I18-5), $I27-SUM($I22:N22))),(MAX(($I27-SUM($J22:$N22))/($I18-5), $I27-SUM($I22:N22))))) -> 12.84947018 | P22: =IF(OR($I18=0,O27=0),0,IF($I25>0,(MIN(($I27-SUM($J22:$N22))/($I18-5), $I27-SUM($I22:O22))),(MAX(($I27-SUM($J22:$N22))/($I18-5), $I27-SUM($I22:O22))))) -> 12.84947018 | Q22: =IF(OR($I18=0,P27=0),0,IF($I25>0,(MIN(($I27-SUM($J22:$N22))/($I18-5), $I27-SUM($I22:P22))),(MAX(($I27-SUM($J22:$N22))/($I18-5), $I27-SUM($I22:P22))))) -> 12.84947018 | R22: =IF(OR($I18=0,Q27=0),0,IF($I25>0,(MIN(($I27-SUM($J22:$N22))/($I18-5), $I27-SUM($I22:Q22))),(MAX(($I27-SUM($J22:$N22))/($I18-5), $I27-SUM($I22:Q22))))) -> 12.84947018 | S22: =IF(OR($I18=0,R27=0),0,IF($I25>0,(MIN(($I27-SUM($J22:$N22))/($I18-5), $I27-SUM($I22:R22))),(MAX(($I27-SUM($J22:$N22))/($I18-5), $I27-SUM($I22:R22))))) -> 12.84947018 | T22: =IF(OR($I18=0,S27=0),0,IF($I25>0,(MIN(($I27-SUM($J22:$N22))/($I18-5), $I27-SUM($I22:S22))),(MAX(($I27-SUM($J22:$N22))/($I18-5), $I27-SUM($I22:S22))))) -> 12.84947018 | U22: =IF(OR($I18=0,T27=0),0,IF($I25>0,(MIN(($I27-SUM($J22:$N22))/($I18-5), $I27-SUM($I22:T22))),(MAX(($I27-SUM($J22:$N22))/($I18-5), $I27-SUM($I22:T22))))) -> 12.84947018 | V22: =IF(OR($I18=0,U27=0),0,IF($I25>0,(MIN(($I27-SUM($J22:$N22))/($I18-5), $I27-SUM($I22:U22))),(MAX(($I27-SUM($J22:$N22))/($I18-5), $I27-SUM($I22:U22))))) -> 12.84947018 | W22: =IF(OR($I18=0,V27=0),0,IF($I25>0,(MIN(($I27-SUM($J22:$N22))/($I18-5), $I27-SUM($I22:V22))),(MAX(($I27-SUM($J22:$N22))/($I18-5), $I27-SUM($I22:V22))))) -> 12.84947018 | X22: =IF(OR($I18=0,W27=0),0,IF($I25>0,(MIN(($I27-SUM($J22:$N22))/($I18-5), $I27-SUM($I22:W22))),(MAX(($I27-SUM($J22:$N22))/($I18-5), $I27-SUM($I22:W22))))) -> 12.84947018 | Y22: =IF(OR($I18=0,X27=0),0,IF($I25>0,(MIN(($I27-SUM($J22:$N22))/($I18-5), $I27-SUM($I22:X22))),(MAX(($I27-SUM($J22:$N22))/($I18-5), $I27-SUM($I22:X22))))) -> 12.84947018 | Z22: =IF(OR($I18=0,Y27=0),0,IF($I25>0,(MIN(($I27-SUM($J22:$N22))/($I18-5), $I27-SUM($I22:Y22))),(MAX(($I27-SUM($J22:$N22))/($I18-5), $I27-SUM($I22:Y22))))) -> 12.84947018 | AA22: =IF(OR($I18=0,Z27=0),0,IF($I25>0,(MIN(($I27-SUM($J22:$N22))/($I18-5), $I27-SUM($I22:Z22))),(MAX(($I27-SUM($J22:$N22))/($I18-5), $I27-SUM($I22:Z22))))) -> 12.84947018 | AB22: =IF(OR($I18=0,AA27=0),0,IF($I25>0,(MIN(($I27-SUM($J22:$N22))/($I18-5), $I27-SUM($I22:AA22))),(MAX(($I27-SUM($J22:$N22))/($I18-5), $I27-SUM($I22:AA22))))) -> 12.84947018 | AC22: =IF(OR($I18=0,AB27=0),0,IF($I25>0,(MIN(($I27-SUM($J22:$N22))/($I18-5), $I27-SUM($I22:AB22))),(MAX(($I27-SUM($J22:$N22))/($I18-5), $I27-SUM($I22:AB22))))) -> 5.475744714 | AD22: =IF(OR($I18=0,AC27=0),0,IF($I25>0,(MIN(($I27-SUM($J22:$N22))/($I18-5), $I27-SUM($I22:AC22))),(MAX(($I27-SUM($J22:$N22))/($I18-5), $I27-SUM($I22:AC22))))) -> 0 | AE22: =IF(OR($I18=0,AD27=0),0,IF($I25>0,(MIN(($I27-SUM($J22:$N22))/($I18-5), $I27-SUM($I22:AD22))),(MAX(($I27-SUM($J22:$N22))/($I18-5), $I27-SUM($I22:AD22))))) -> 0 | AF22: =IF(OR($I18=0,AE27=0),0,IF($I25>0,(MIN(($I27-SUM($J22:$N22))/($I18-5), $I27-SUM($I22:AE22))),(MAX(($I27-SUM($J22:$N22))/($I18-5), $I27-SUM($I22:AE22))))) -> 0 | AG22: =IF(OR($I18=0,AF27=0),0,IF($I25>0,(MIN(($I27-SUM($J22:$N22))/($I18-5), $I27-SUM($I22:AF22))),(MAX(($I27-SUM($J22:$N22))/($I18-5), $I27-SUM($I22:AF22))))) -> 0 | AH22: =IF(OR($I18=0,AG27=0),0,IF($I25>0,(MIN(($I27-SUM($J22:$N22))/($I18-5), $I27-SUM($I22:AG22))),(MAX(($I27-SUM($J22:$N22))/($I18-5), $I27-SUM($I22:AG22))))) -> 0 | AI22: =IF(OR($I18=0,AH27=0),0,IF($I25>0,(MIN(($I27-SUM($J22:$N22))/($I18-5), $I27-SUM($I22:AH22))),(MAX(($I27-SUM($J22:$N22))/($I18-5), $I27-SUM($I22:AH22))))) -> 0 | AJ22: =IF(OR($I18=0,AI27=0),0,IF($I25>0,(MIN(($I27-SUM($J22:$N22))/($I18-5), $I27-SUM($I22:AI22))),(MAX(($I27-SUM($J22:$N22))/($I18-5), $I27-SUM($I22:AI22))))) -> 0 | AK22: =IF(OR($I18=0,AJ27=0),0,IF($I25>0,(MIN(($I27-SUM($J22:$N22))/($I18-5), $I27-SUM($I22:AJ22))),(MAX(($I27-SUM($J22:$N22))/($I18-5), $I27-SUM($I22:AJ22))))) -> 0 | AL22: =IF(OR($I18=0,AK27=0),0,IF($I25>0,(MIN(($I27-SUM($J22:$N22))/($I18-5), $I27-SUM($I22:AK22))),(MAX(($I27-SUM($J22:$N22))/($I18-5), $I27-SUM($I22:AK22))))) -> 0 | AM22: =IF(OR($I18=0,AL27=0),0,IF($I25>0,(MIN(($I27-SUM($J22:$N22))/($I18-5), $I27-SUM($I22:AL22))),(MAX(($I27-SUM($J22:$N22))/($I18-5), $I27-SUM($I22:AL22))))) -> 0 | AN22: =IF(OR($I18=0,AM27=0),0,IF($I25>0,(MIN(($I27-SUM($J22:$N22))/($I18-5), $I27-SUM($I22:AM22))),(MAX(($I27-SUM($J22:$N22))/($I18-5), $I27-SUM($I22:AM22))))) -> 0 | AO22: =IF(OR($I18=0,AN27=0),0,IF($I25>0,(MIN(($I27-SUM($J22:$N22))/($I18-5), $I27-SUM($I22:AN22))),(MAX(($I27-SUM($J22:$N22))/($I18-5), $I27-SUM($I22:AN22))))) -> 0 | AP22: =IF(OR($I18=0,AO27=0),0,IF($I25>0,(MIN(($I27-SUM($J22:$N22))/($I18-5), $I27-SUM($I22:AO22))),(MAX(($I27-SUM($J22:$N22))/($I18-5), $I27-SUM($I22:AO22))))) -> 0 | AQ22: =IF(OR($I18=0,AP27=0),0,IF($I25>0,(MIN(($I27-SUM($J22:$N22))/($I18-5), $I27-SUM($I22:AP22))),(MAX(($I27-SUM($J22:$N22))/($I18-5), $I27-SUM($I22:AP22))))) -> 0 | AR22: =IF(OR($I18=0,AQ27=0),0,IF($I25>0,(MIN(($I27-SUM($J22:$N22))/($I18-5), $I27-SUM($I22:AQ22))),(MAX(($I27-SUM($J22:$N22))/($I18-5), $I27-SUM($I22:AQ22))))) -> 0 | AS22: =IF(OR($I18=0,AR27=0),0,IF($I25>0,(MIN(($I27-SUM($J22:$N22))/($I18-5), $I27-SUM($I22:AR22))),(MAX(($I27-SUM($J22:$N22))/($I18-5), $I27-SUM($I22:AR22))))) -> 0 | AT22: =IF(OR($I18=0,AS27=0),0,IF($I25>0,(MIN(($I27-SUM($J22:$N22))/($I18-5), $I27-SUM($I22:AS22))),(MAX(($I27-SUM($J22:$N22))/($I18-5), $I27-SUM($I22:AS22))))) -> 0 | AU22: =IF(OR($I18=0,AT27=0),0,IF($I25>0,(MIN(($I27-SUM($J22:$N22))/($I18-5), $I27-SUM($I22:AT22))),(MAX(($I27-SUM($J22:$N22))/($I18-5), $I27-SUM($I22:AT22))))) -> 0 | AV22: =IF(OR($I18=0,AU27=0),0,IF($I25>0,(MIN(($I27-SUM($J22:$N22))/($I18-5), $I27-SUM($I22:AU22))),(MAX(($I27-SUM($J22:$N22))/($I18-5), $I27-SUM($I22:AU22))))) -> 0 | AW22: =IF(OR($I18=0,AV27=0),0,IF($I25>0,(MIN(($I27-SUM($J22:$N22))/($I18-5), $I27-SUM($I22:AV22))),(MAX(($I27-SUM($J22:$N22))/($I18-5), $I27-SUM($I22:AV22))))) -> 0 | AX22: =IF(OR($I18=0,AW27=0),0,IF($I25>0,(MIN(($I27-SUM($J22:$N22))/($I18-5), $I27-SUM($I22:AW22))),(MAX(($I27-SUM($J22:$N22))/($I18-5), $I27-SUM($I22:AW22))))) -> 0 | AY22: =IF(OR($I18=0,AX27=0),0,IF($I25>0,(MIN(($I27-SUM($J22:$N22))/($I18-5), $I27-SUM($I22:AX22))),(MAX(($I27-SUM($J22:$N22))/($I18-5), $I27-SUM($I22:AX22))))) -> 0 | AZ22: =IF(OR($I18=0,AY27=0),0,IF($I25>0,(MIN(($I27-SUM($J22:$N22))/($I18-5), $I27-SUM($I22:AY22))),(MAX(($I27-SUM($J22:$N22))/($I18-5), $I27-SUM($I22:AY22))))) -> 0 | BA22: =IF(OR($I18=0,AZ27=0),0,IF($I25>0,(MIN(($I27-SUM($J22:$N22))/($I18-5), $I27-SUM($I22:AZ22))),(MAX(($I27-SUM($J22:$N22))/($I18-5), $I27-SUM($I22:AZ22))))) -> 0 | BB22: =IF(OR($I18=0,BA27=0),0,IF($I25>0,(MIN(($I27-SUM($J22:$N22))/($I18-5), $I27-SUM($I22:BA22))),(MAX(($I27-SUM($J22:$N22))/($I18-5), $I27-SUM($I22:BA22))))) -> 0 | BC22: =IF(OR($I18=0,BB27=0),0,IF($I25>0,(MIN(($I27-SUM($J22:$N22))/($I18-5), $I27-SUM($I22:BB22))),(MAX(($I27-SUM($J22:$N22))/($I18-5), $I27-SUM($I22:BB22))))) -> 0 | BD22: =IF(OR($I18=0,BC27=0),0,IF($I25>0,(MIN(($I27-SUM($J22:$N22))/($I18-5), $I27-SUM($I22:BC22))),(MAX(($I27-SUM($J22:$N22))/($I18-5), $I27-SUM($I22:BC22))))) -> 0 | BE22: =IF(OR($I18=0,BD27=0),0,IF($I25>0,(MIN(($I27-SUM($J22:$N22))/($I18-5), $I27-SUM($I22:BD22))),(MAX(($I27-SUM($J22:$N22))/($I18-5), $I27-SUM($I22:BD22))))) -> 0 | BF22: =IF(OR($I18=0,BE27=0),0,IF($I25>0,(MIN(($I27-SUM($J22:$N22))/($I18-5), $I27-SUM($I22:BE22))),(MAX(($I27-SUM($J22:$N22))/($I18-5), $I27-SUM($I22:BE22))))) -> 0 | BG22: =IF(OR($I18=0,BF27=0),0,IF($I25>0,(MIN(($I27-SUM($J22:$N22))/($I18-5), $I27-SUM($I22:BF22))),(MAX(($I27-SUM($J22:$N22))/($I18-5), $I27-SUM($I22:BF22))))) -> 0 | BH22: =IF(OR($I18=0,BG27=0),0,IF($I25>0,(MIN(($I27-SUM($J22:$N22))/($I18-5), $I27-SUM($I22:BG22))),(MAX(($I27-SUM($J22:$N22))/($I18-5), $I27-SUM($I22:BG22))))) -> 0 | BI22: =IF(OR($I18=0,BH27=0),0,IF($I25>0,(MIN(($I27-SUM($J22:$N22))/($I18-5), $I27-SUM($I22:BH22))),(MAX(($I27-SUM($J22:$N22))/($I18-5), $I27-SUM($I22:BH22))))) -> 0 | BJ22: =IF(OR($I18=0,BI27=0),0,IF($I25>0,(MIN(($I27-SUM($J22:$N22))/($I18-5), $I27-SUM($I22:BI22))),(MAX(($I27-SUM($J22:$N22))/($I18-5), $I27-SUM($I22:BI22))))) -> 0 | BK22: =IF(OR($I18=0,BJ27=0),0,IF($I25>0,(MIN(($I27-SUM($J22:$N22))/($I18-5), $I27-SUM($I22:BJ22))),(MAX(($I27-SUM($J22:$N22))/($I18-5), $I27-SUM($I22:BJ22))))) -> 0 | BL22: =IF(OR($I18=0,BK27=0),0,IF($I25>0,(MIN(($I27-SUM($J22:$N22))/($I18-5), $I27-SUM($I22:BK22))),(MAX(($I27-SUM($J22:$N22))/($I18-5), $I27-SUM($I22:BK22))))) -> 0 | BM22: =IF(OR($I18=0,BL27=0),0,IF($I25>0,(MIN(($I27-SUM($J22:$N22))/($I18-5), $I27-SUM($I22:BL22))),(MAX(($I27-SUM($J22:$N22))/($I18-5), $I27-SUM($I22:BL22))))) -> 0 | BN22: =IF(OR($I18=0,BM27=0),0,IF($I25>0,(MIN(($I27-SUM($J22:$N22))/($I18-5), $I27-SUM($I22:BM22))),(MAX(($I27-SUM($J22:$N22))/($I18-5), $I27-SUM($I22:BM22))))) -> 0 | BO22: =IF(OR($I18=0,BN27=0),0,IF($I25>0,(MIN(($I27-SUM($J22:$N22))/($I18-5), $I27-SUM($I22:BN22))),(MAX(($I27-SUM($J22:$N22))/($I18-5), $I27-SUM($I22:BN22))))) -> 0 | BP22: =IF(OR($I18=0,BO27=0),0,IF($I25>0,(MIN(($I27-SUM($J22:$N22))/($I18-5), $I27-SUM($I22:BO22))),(MAX(($I27-SUM($J22:$N22))/($I18-5), $I27-SUM($I22:BO22))))) -> 0 | BQ22: =IF(OR($I18=0,BP27=0),0,IF($I25>0,(MIN(($I27-SUM($J22:$N22))/($I18-5), $I27-SUM($I22:BP22))),(MAX(($I27-SUM($J22:$N22))/($I18-5), $I27-SUM($I22:BP22))))) -> 0 | BR22: =IF(OR($I18=0,BQ27=0),0,IF($I25>0,(MIN(($I27-SUM($J22:$N22))/($I18-5), $I27-SUM($I22:BQ22))),(MAX(($I27-SUM($J22:$N22))/($I18-5), $I27-SUM($I22:BQ22))))) -> 0 | BS22: =IF(OR($I18=0,BR27=0),0,IF($I25>0,(MIN(($I27-SUM($J22:$N22))/($I18-5), $I27-SUM($I22:BR22))),(MAX(($I27-SUM($J22:$N22))/($I18-5), $I27-SUM($I22:BR22))))) -> 0 | BT22: =IF(OR($I18=0,BS27=0),0,IF($I25>0,(MIN(($I27-SUM($J22:$N22))/($I18-5), $I27-SUM($I22:BS22))),(MAX(($I27-SUM($J22:$N22))/($I18-5), $I27-SUM($I22:BS22))))) -> 0
D23: Depreciation on RAB adjustments | E23: $m Real (2014) | O23: =IF(OR($I18=0,N27=0),0,IF($N26>0,(MIN($N26/IF($I18<=5,1,($I18-5)),$N26-SUM($N23:N23))), (MAX($N26/IF($I18<=5,1,($I18-5)),$N26-SUM($N23:N23))))) -> 0 | P23: =IF(OR($I18=0,O27=0),0,IF($N26>0,(MIN($N26/IF($I18<=5,1,($I18-5)),$N26-SUM($N23:O23))), (MAX($N26/IF($I18<=5,1,($I18-5)),$N26-SUM($N23:O23))))) -> 0 | Q23: =IF(OR($I18=0,P27=0),0,IF($N26>0,(MIN($N26/IF($I18<=5,1,($I18-5)),$N26-SUM($N23:P23))), (MAX($N26/IF($I18<=5,1,($I18-5)),$N26-SUM($N23:P23))))) -> 0 | R23: =IF(OR($I18=0,Q27=0),0,IF($N26>0,(MIN($N26/IF($I18<=5,1,($I18-5)),$N26-SUM($N23:Q23))), (MAX($N26/IF($I18<=5,1,($I18-5)),$N26-SUM($N23:Q23))))) -> 0 | S23: =IF(OR($I18=0,R27=0),0,IF($N26>0,(MIN($N26/IF($I18<=5,1,($I18-5)),$N26-SUM($N23:R23))), (MAX($N26/IF($I18<=5,1,($I18-5)),$N26-SUM($N23:R23))))) -> 0 | T23: =IF(OR($I18=0,S27=0),0,IF($N26>0,(MIN($N26/IF($I18<=5,1,($I18-5)),$N26-SUM($N23:S23))), (MAX($N26/IF($I18<=5,1,($I18-5)),$N26-SUM($N23:S23))))) -> 0 | U23: =IF(OR($I18=0,T27=0),0,IF($N26>0,(MIN($N26/IF($I18<=5,1,($I18-5)),$N26-SUM($N23:T23))), (MAX($N26/IF($I18<=5,1,($I18-5)),$N26-SUM($N23:T23))))) -> 0 | V23: =IF(OR($I18=0,U27=0),0,IF($N26>0,(MIN($N26/IF($I18<=5,1,($I18-5)),$N26-SUM($N23:U23))), (MAX($N26/IF($I18<=5,1,($I18-5)),$N26-SUM($N23:U23))))) -> 0 | W23: =IF(OR($I18=0,V27=0),0,IF($N26>0,(MIN($N26/IF($I18<=5,1,($I18-5)),$N26-SUM($N23:V23))), (MAX($N26/IF($I18<=5,1,($I18-5)),$N26-SUM($N23:V23))))) -> 0 | X23: =IF(OR($I18=0,W27=0),0,IF($N26>0,(MIN($N26/IF($I18<=5,1,($I18-5)),$N26-SUM($N23:W23))), (MAX($N26/IF($I18<=5,1,($I18-5)),$N26-SUM($N23:W23))))) -> 0 | Y23: =IF(OR($I18=0,X27=0),0,IF($N26>0,(MIN($N26/IF($I18<=5,1,($I18-5)),$N26-SUM($N23:X23))), (MAX($N26/IF($I18<=5,1,($I18-5)),$N26-SUM($N23:X23))))) -> 0 | Z23: =IF(OR($I18=0,Y27=0),0,IF($N26>0,(MIN($N26/IF($I18<=5,1,($I18-5)),$N26-SUM($N23:Y23))), (MAX($N26/IF($I18<=5,1,($I18-5)),$N26-SUM($N23:Y23))))) -> 0 | AA23: =IF(OR($I18=0,Z27=0),0,IF($N26>0,(MIN($N26/IF($I18<=5,1,($I18-5)),$N26-SUM($N23:Z23))), (MAX($N26/IF($I18<=5,1,($I18-5)),$N26-SUM($N23:Z23))))) -> 0 | AB23: =IF(OR($I18=0,AA27=0),0,IF($N26>0,(MIN($N26/IF($I18<=5,1,($I18-5)),$N26-SUM($N23:AA23))), (MAX($N26/IF($I18<=5,1,($I18-5)),$N26-SUM($N23:AA23))))) -> 0 | AC23: =IF(OR($I18=0,AB27=0),0,IF($N26>0,(MIN($N26/IF($I18<=5,1,($I18-5)),$N26-SUM($N23:AB23))), (MAX($N26/IF($I18<=5,1,($I18-5)),$N26-SUM($N23:AB23))))) -> 0 | AD23: =IF(OR($I18=0,AC27=0),0,IF($N26>0,(MIN($N26/IF($I18<=5,1,($I18-5)),$N26-SUM($N23:AC23))), (MAX($N26/IF($I18<=5,1,($I18-5)),$N26-SUM($N23:AC23))))) -> 0 | AE23: =IF(OR($I18=0,AD27=0),0,IF($N26>0,(MIN($N26/IF($I18<=5,1,($I18-5)),$N26-SUM($N23:AD23))), (MAX($N26/IF($I18<=5,1,($I18-5)),$N26-SUM($N23:AD23))))) -> 0 | AF23: =IF(OR($I18=0,AE27=0),0,IF($N26>0,(MIN($N26/IF($I18<=5,1,($I18-5)),$N26-SUM($N23:AE23))), (MAX($N26/IF($I18<=5,1,($I18-5)),$N26-SUM($N23:AE23))))) -> 0 | AG23: =IF(OR($I18=0,AF27=0),0,IF($N26>0,(MIN($N26/IF($I18<=5,1,($I18-5)),$N26-SUM($N23:AF23))), (MAX($N26/IF($I18<=5,1,($I18-5)),$N26-SUM($N23:AF23))))) -> 0 | AH23: =IF(OR($I18=0,AG27=0),0,IF($N26>0,(MIN($N26/IF($I18<=5,1,($I18-5)),$N26-SUM($N23:AG23))), (MAX($N26/IF($I18<=5,1,($I18-5)),$N26-SUM($N23:AG23))))) -> 0 | AI23: =IF(OR($I18=0,AH27=0),0,IF($N26>0,(MIN($N26/IF($I18<=5,1,($I18-5)),$N26-SUM($N23:AH23))), (MAX($N26/IF($I18<=5,1,($I18-5)),$N26-SUM($N23:AH23))))) -> 0 | AJ23: =IF(OR($I18=0,AI27=0),0,IF($N26>0,(MIN($N26/IF($I18<=5,1,($I18-5)),$N26-SUM($N23:AI23))), (MAX($N26/IF($I18<=5,1,($I18-5)),$N26-SUM($N23:AI23))))) -> 0 | AK23: =IF(OR($I18=0,AJ27=0),0,IF($N26>0,(MIN($N26/IF($I18<=5,1,($I18-5)),$N26-SUM($N23:AJ23))), (MAX($N26/IF($I18<=5,1,($I18-5)),$N26-SUM($N23:AJ23))))) -> 0 | AL23: =IF(OR($I18=0,AK27=0),0,IF($N26>0,(MIN($N26/IF($I18<=5,1,($I18-5)),$N26-SUM($N23:AK23))), (MAX($N26/IF($I18<=5,1,($I18-5)),$N26-SUM($N23:AK23))))) -> 0 | AM23: =IF(OR($I18=0,AL27=0),0,IF($N26>0,(MIN($N26/IF($I18<=5,1,($I18-5)),$N26-SUM($N23:AL23))), (MAX($N26/IF($I18<=5,1,($I18-5)),$N26-SUM($N23:AL23))))) -> 0 | AN23: =IF(OR($I18=0,AM27=0),0,IF($N26>0,(MIN($N26/IF($I18<=5,1,($I18-5)),$N26-SUM($N23:AM23))), (MAX($N26/IF($I18<=5,1,($I18-5)),$N26-SUM($N23:AM23))))) -> 0 | AO23: =IF(OR($I18=0,AN27=0),0,IF($N26>0,(MIN($N26/IF($I18<=5,1,($I18-5)),$N26-SUM($N23:AN23))), (MAX($N26/IF($I18<=5,1,($I18-5)),$N26-SUM($N23:AN23))))) -> 0 | AP23: =IF(OR($I18=0,AO27=0),0,IF($N26>0,(MIN($N26/IF($I18<=5,1,($I18-5)),$N26-SUM($N23:AO23))), (MAX($N26/IF($I18<=5,1,($I18-5)),$N26-SUM($N23:AO23))))) -> 0 | AQ23: =IF(OR($I18=0,AP27=0),0,IF($N26>0,(MIN($N26/IF($I18<=5,1,($I18-5)),$N26-SUM($N23:AP23))), (MAX($N26/IF($I18<=5,1,($I18-5)),$N26-SUM($N23:AP23))))) -> 0 | AR23: =IF(OR($I18=0,AQ27=0),0,IF($N26>0,(MIN($N26/IF($I18<=5,1,($I18-5)),$N26-SUM($N23:AQ23))), (MAX($N26/IF($I18<=5,1,($I18-5)),$N26-SUM($N23:AQ23))))) -> 0 | AS23: =IF(OR($I18=0,AR27=0),0,IF($N26>0,(MIN($N26/IF($I18<=5,1,($I18-5)),$N26-SUM($N23:AR23))), (MAX($N26/IF($I18<=5,1,($I18-5)),$N26-SUM($N23:AR23))))) -> 0 | AT23: =IF(OR($I18=0,AS27=0),0,IF($N26>0,(MIN($N26/IF($I18<=5,1,($I18-5)),$N26-SUM($N23:AS23))), (MAX($N26/IF($I18<=5,1,($I18-5)),$N26-SUM($N23:AS23))))) -> 0 | AU23: =IF(OR($I18=0,AT27=0),0,IF($N26>0,(MIN($N26/IF($I18<=5,1,($I18-5)),$N26-SUM($N23:AT23))), (MAX($N26/IF($I18<=5,1,($I18-5)),$N26-SUM($N23:AT23))))) -> 0 | AV23: =IF(OR($I18=0,AU27=0),0,IF($N26>0,(MIN($N26/IF($I18<=5,1,($I18-5)),$N26-SUM($N23:AU23))), (MAX($N26/IF($I18<=5,1,($I18-5)),$N26-SUM($N23:AU23))))) -> 0 | AW23: =IF(OR($I18=0,AV27=0),0,IF($N26>0,(MIN($N26/IF($I18<=5,1,($I18-5)),$N26-SUM($N23:AV23))), (MAX($N26/IF($I18<=5,1,($I18-5)),$N26-SUM($N23:AV23))))) -> 0 | AX23: =IF(OR($I18=0,AW27=0),0,IF($N26>0,(MIN($N26/IF($I18<=5,1,($I18-5)),$N26-SUM($N23:AW23))), (MAX($N26/IF($I18<=5,1,($I18-5)),$N26-SUM($N23:AW23))))) -> 0 | AY23: =IF(OR($I18=0,AX27=0),0,IF($N26>0,(MIN($N26/IF($I18<=5,1,($I18-5)),$N26-SUM($N23:AX23))), (MAX($N26/IF($I18<=5,1,($I18-5)),$N26-SUM($N23:AX23))))) -> 0 | AZ23: =IF(OR($I18=0,AY27=0),0,IF($N26>0,(MIN($N26/IF($I18<=5,1,($I18-5)),$N26-SUM($N23:AY23))), (MAX($N26/IF($I18<=5,1,($I18-5)),$N26-SUM($N23:AY23))))) -> 0 | BA23: =IF(OR($I18=0,AZ27=0),0,IF($N26>0,(MIN($N26/IF($I18<=5,1,($I18-5)),$N26-SUM($N23:AZ23))), (MAX($N26/IF($I18<=5,1,($I18-5)),$N26-SUM($N23:AZ23))))) -> 0 | BB23: =IF(OR($I18=0,BA27=0),0,IF($N26>0,(MIN($N26/IF($I18<=5,1,($I18-5)),$N26-SUM($N23:BA23))), (MAX($N26/IF($I18<=5,1,($I18-5)),$N26-SUM($N23:BA23))))) -> 0 | BC23: =IF(OR($I18=0,BB27=0),0,IF($N26>0,(MIN($N26/IF($I18<=5,1,($I18-5)),$N26-SUM($N23:BB23))), (MAX($N26/IF($I18<=5,1,($I18-5)),$N26-SUM($N23:BB23))))) -> 0 | BD23: =IF(OR($I18=0,BC27=0),0,IF($N26>0,(MIN($N26/IF($I18<=5,1,($I18-5)),$N26-SUM($N23:BC23))), (MAX($N26/IF($I18<=5,1,($I18-5)),$N26-SUM($N23:BC23))))) -> 0 | BE23: =IF(OR($I18=0,BD27=0),0,IF($N26>0,(MIN($N26/IF($I18<=5,1,($I18-5)),$N26-SUM($N23:BD23))), (MAX($N26/IF($I18<=5,1,($I18-5)),$N26-SUM($N23:BD23))))) -> 0 | BF23: =IF(OR($I18=0,BE27=0),0,IF($N26>0,(MIN($N26/IF($I18<=5,1,($I18-5)),$N26-SUM($N23:BE23))), (MAX($N26/IF($I18<=5,1,($I18-5)),$N26-SUM($N23:BE23))))) -> 0 | BG23: =IF(OR($I18=0,BF27=0),0,IF($N26>0,(MIN($N26/IF($I18<=5,1,($I18-5)),$N26-SUM($N23:BF23))), (MAX($N26/IF($I18<=5,1,($I18-5)),$N26-SUM($N23:BF23))))) -> 0 | BH23: =IF(OR($I18=0,BG27=0),0,IF($N26>0,(MIN($N26/IF($I18<=5,1,($I18-5)),$N26-SUM($N23:BG23))), (MAX($N26/IF($I18<=5,1,($I18-5)),$N26-SUM($N23:BG23))))) -> 0 | BI23: =IF(OR($I18=0,BH27=0),0,IF($N26>0,(MIN($N26/IF($I18<=5,1,($I18-5)),$N26-SUM($N23:BH23))), (MAX($N26/IF($I18<=5,1,($I18-5)),$N26-SUM($N23:BH23))))) -> 0 | BJ23: =IF(OR($I18=0,BI27=0),0,IF($N26>0,(MIN($N26/IF($I18<=5,1,($I18-5)),$N26-SUM($N23:BI23))), (MAX($N26/IF($I18<=5,1,($I18-5)),$N26-SUM($N23:BI23))))) -> 0 | BK23: =IF(OR($I18=0,BJ27=0),0,IF($N26>0,(MIN($N26/IF($I18<=5,1,($I18-5)),$N26-SUM($N23:BJ23))), (MAX($N26/IF($I18<=5,1,($I18-5)),$N26-SUM($N23:BJ23))))) -> 0 | BL23: =IF(OR($I18=0,BK27=0),0,IF($N26>0,(MIN($N26/IF($I18<=5,1,($I18-5)),$N26-SUM($N23:BK23))), (MAX($N26/IF($I18<=5,1,($I18-5)),$N26-SUM($N23:BK23))))) -> 0 | BM23: =IF(OR($I18=0,BL27=0),0,IF($N26>0,(MIN($N26/IF($I18<=5,1,($I18-5)),$N26-SUM($N23:BL23))), (MAX($N26/IF($I18<=5,1,($I18-5)),$N26-SUM($N23:BL23))))) -> 0 | BN23: =IF(OR($I18=0,BM27=0),0,IF($N26>0,(MIN($N26/IF($I18<=5,1,($I18-5)),$N26-SUM($N23:BM23))), (MAX($N26/IF($I18<=5,1,($I18-5)),$N26-SUM($N23:BM23))))) -> 0 | BO23: =IF(OR($I18=0,BN27=0),0,IF($N26>0,(MIN($N26/IF($I18<=5,1,($I18-5)),$N26-SUM($N23:BN23))), (MAX($N26/IF($I18<=5,1,($I18-5)),$N26-SUM($N23:BN23))))) -> 0 | BP23: =IF(OR($I18=0,BO27=0),0,IF($N26>0,(MIN($N26/IF($I18<=5,1,($I18-5)),$N26-SUM($N23:BO23))), (MAX($N26/IF($I18<=5,1,($I18-5)),$N26-SUM($N23:BO23))))) -> 0 | BQ23: =IF(OR($I18=0,BP27=0),0,IF($N26>0,(MIN($N26/IF($I18<=5,1,($I18-5)),$N26-SUM($N23:BP23))), (MAX($N26/IF($I18<=5,1,($I18-5)),$N26-SUM($N23:BP23))))) -> 0 | BR23: =IF(OR($I18=0,BQ27=0),0,IF($N26>0,(MIN($N26/IF($I18<=5,1,($I18-5)),$N26-SUM($N23:BQ23))), (MAX($N26/IF($I18<=5,1,($I18-5)),$N26-SUM($N23:BQ23))))) -> 0 | BS23: =IF(OR($I18=0,BR27=0),0,IF($N26>0,(MIN($N26/IF($I18<=5,1,($I18-5)),$N26-SUM($N23:BR23))), (MAX($N26/IF($I18<=5,1,($I18-5)),$N26-SUM($N23:BR23))))) -> 0 | BT23: =IF(OR($I18=0,BS27=0),0,IF($N26>0,(MIN($N26/IF($I18<=5,1,($I18-5)),$N26-SUM($N23:BS23))), (MAX($N26/IF($I18<=5,1,($I18-5)),$N26-SUM($N23:BS23))))) -> 0
D24: Total Depreciation on Existing Assets | E24: $m Real (2014) | J24: =SUM(J22:J23) -> 22.10265914 | K24: =SUM(K22:K23) -> 22.10265914 | L24: 21.53833703 | M24: 21.53832659 | N24: 21.53832659 | O24: =SUM(O22:O23) -> 12.84947018 | P24: =SUM(P22:P23) -> 12.84947018 | Q24: 12.84947018 | R24: 12.84947018 | S24: 12.84947018 | T24: 12.84947018 | U24: 12.84947018 | V24: 12.84947018 | W24: 12.84947018 | X24: 12.84947018 | Y24: 12.84947018 | Z24: 12.84947018 | AA24: 12.84947018 | AB24: 12.84947018 | AC24: 5.475744714 | AD24: 0 | AE24: 0 | AF24: 0 | AG24: 0 | AH24: 0 | AI24: 0 | AJ24: 0 | AK24: 0 | AL24: 0 | AM24: 0 | AN24: 0 | AO24: 0 | AP24: 0 | AQ24: 0 | AR24: 0 | AS24: 0 | AT24: 0 | AU24: 0 | AV24: 0 | AW24: 0 | AX24: 0 | AY24: 0 | AZ24: 0 | BA24: 0 | BB24: 0 | BC24: 0 | BD24: 0 | BE24: 0 | BF24: 0 | BG24: 0 | BH24: 0 | BI24: 0 | BJ24: 0 | BK24: 0 | BL24: 0 | BM24: 0 | BN24: 0 | BO24: 0 | BP24: 0 | BQ24: =SUM(BQ22:BQ23) -> 0 | BR24: =SUM(BR22:BR23) -> 0 | BS24: 0 | BT24: 0
D25: 2014 Closing RAB | I25: =IF(I$5=first_reg_period, INDEX('Depn|Inputs'!$I$48:$I$62,MATCH(B17,'Depn|Inputs'!$C$48:$C$62,0)),0) -> 294.1886357 | J25: =IF(J$5=first_reg_period, INDEX('Depn|Inputs'!$I$48:$I$62,MATCH(C17,'Depn|Inputs'!$C$48:$C$62,0)),0) -> 0 | K25: =IF(K$5=first_reg_period, INDEX('Depn|Inputs'!$I$48:$I$62,MATCH(D17,'Depn|Inputs'!$C$48:$C$62,0)),0) -> 0 | L25: =IF(L$5=first_reg_period, INDEX('Depn|Inputs'!$I$48:$I$62,MATCH(E17,'Depn|Inputs'!$C$48:$C$62,0)),0) -> 0 | M25: =IF(M$5=first_reg_period, INDEX('Depn|Inputs'!$I$48:$I$62,MATCH(F17,'Depn|Inputs'!$C$48:$C$62,0)),0) -> 0 | N25: =IF(N$5=first_reg_period, INDEX('Depn|Inputs'!$I$48:$I$62,MATCH(G17,'Depn|Inputs'!$C$48:$C$62,0)),0) -> 0 | O25: =IF(O$5=first_reg_period, INDEX('Depn|Inputs'!$I$48:$I$62,MATCH(H17,'Depn|Inputs'!$C$48:$C$62,0)),0) -> 0 | P25: =IF(P$5=first_reg_period, INDEX('Depn|Inputs'!$I$48:$I$62,MATCH(I17,'Depn|Inputs'!$C$48:$C$62,0)),0) -> 0 | Q25: =IF(Q$5=first_reg_period, INDEX('Depn|Inputs'!$I$48:$I$62,MATCH(J17,'Depn|Inputs'!$C$48:$C$62,0)),0) -> 0 | R25: =IF(R$5=first_reg_period, INDEX('Depn|Inputs'!$I$48:$I$62,MATCH(K17,'Depn|Inputs'!$C$48:$C$62,0)),0) -> 0 | S25: =IF(S$5=first_reg_period, INDEX('Depn|Inputs'!$I$48:$I$62,MATCH(L17,'Depn|Inputs'!$C$48:$C$62,0)),0) -> 0 | T25: =IF(T$5=first_reg_period, INDEX('Depn|Inputs'!$I$48:$I$62,MATCH(M17,'Depn|Inputs'!$C$48:$C$62,0)),0) -> 0 | U25: =IF(U$5=first_reg_period, INDEX('Depn|Inputs'!$I$48:$I$62,MATCH(N17,'Depn|Inputs'!$C$48:$C$62,0)),0) -> 0 | V25: =IF(V$5=first_reg_period, INDEX('Depn|Inputs'!$I$48:$I$62,MATCH(O17,'Depn|Inputs'!$C$48:$C$62,0)),0) -> 0 | W25: =IF(W$5=first_reg_period, INDEX('Depn|Inputs'!$I$48:$I$62,MATCH(P17,'Depn|Inputs'!$C$48:$C$62,0)),0) -> 0 | X25: =IF(X$5=first_reg_period, INDEX('Depn|Inputs'!$I$48:$I$62,MATCH(Q17,'Depn|Inputs'!$C$48:$C$62,0)),0) -> 0 | Y25: =IF(Y$5=first_reg_period, INDEX('Depn|Inputs'!$I$48:$I$62,MATCH(R17,'Depn|Inputs'!$C$48:$C$62,0)),0) -> 0 | Z25: =IF(Z$5=first_reg_period, INDEX('Depn|Inputs'!$I$48:$I$62,MATCH(S17,'Depn|Inputs'!$C$48:$C$62,0)),0) -> 0 | AA25: =IF(AA$5=first_reg_period, INDEX('Depn|Inputs'!$I$48:$I$62,MATCH(T17,'Depn|Inputs'!$C$48:$C$62,0)),0) -> 0 | AB25: =IF(AB$5=first_reg_period, INDEX('Depn|Inputs'!$I$48:$I$62,MATCH(U17,'Depn|Inputs'!$C$48:$C$62,0)),0) -> 0 | AC25: =IF(AC$5=first_reg_period, INDEX('Depn|Inputs'!$I$48:$I$62,MATCH(V17,'Depn|Inputs'!$C$48:$C$62,0)),0) -> 0 | AD25: =IF(AD$5=first_reg_period, INDEX('Depn|Inputs'!$I$48:$I$62,MATCH(W17,'Depn|Inputs'!$C$48:$C$62,0)),0) -> 0 | AE25: =IF(AE$5=first_reg_period, INDEX('Depn|Inputs'!$I$48:$I$62,MATCH(X17,'Depn|Inputs'!$C$48:$C$62,0)),0) -> 0 | AF25: =IF(AF$5=first_reg_period, INDEX('Depn|Inputs'!$I$48:$I$62,MATCH(Y17,'Depn|Inputs'!$C$48:$C$62,0)),0) -> 0 | AG25: =IF(AG$5=first_reg_period, INDEX('Depn|Inputs'!$I$48:$I$62,MATCH(Z17,'Depn|Inputs'!$C$48:$C$62,0)),0) -> 0 | AH25: =IF(AH$5=first_reg_period, INDEX('Depn|Inputs'!$I$48:$I$62,MATCH(AA17,'Depn|Inputs'!$C$48:$C$62,0)),0) -> 0 | AI25: =IF(AI$5=first_reg_period, INDEX('Depn|Inputs'!$I$48:$I$62,MATCH(AB17,'Depn|Inputs'!$C$48:$C$62,0)),0) -> 0 | AJ25: =IF(AJ$5=first_reg_period, INDEX('Depn|Inputs'!$I$48:$I$62,MATCH(AC17,'Depn|Inputs'!$C$48:$C$62,0)),0) -> 0 | AK25: =IF(AK$5=first_reg_period, INDEX('Depn|Inputs'!$I$48:$I$62,MATCH(AD17,'Depn|Inputs'!$C$48:$C$62,0)),0) -> 0 | AL25: =IF(AL$5=first_reg_period, INDEX('Depn|Inputs'!$I$48:$I$62,MATCH(AE17,'Depn|Inputs'!$C$48:$C$62,0)),0) -> 0 | AM25: =IF(AM$5=first_reg_period, INDEX('Depn|Inputs'!$I$48:$I$62,MATCH(AF17,'Depn|Inputs'!$C$48:$C$62,0)),0) -> 0 | AN25: =IF(AN$5=first_reg_period, INDEX('Depn|Inputs'!$I$48:$I$62,MATCH(AG17,'Depn|Inputs'!$C$48:$C$62,0)),0) -> 0 | AO25: =IF(AO$5=first_reg_period, INDEX('Depn|Inputs'!$I$48:$I$62,MATCH(AH17,'Depn|Inputs'!$C$48:$C$62,0)),0) -> 0 | AP25: =IF(AP$5=first_reg_period, INDEX('Depn|Inputs'!$I$48:$I$62,MATCH(AI17,'Depn|Inputs'!$C$48:$C$62,0)),0) -> 0 | AQ25: =IF(AQ$5=first_reg_period, INDEX('Depn|Inputs'!$I$48:$I$62,MATCH(AJ17,'Depn|Inputs'!$C$48:$C$62,0)),0) -> 0 | AR25: =IF(AR$5=first_reg_period, INDEX('Depn|Inputs'!$I$48:$I$62,MATCH(AK17,'Depn|Inputs'!$C$48:$C$62,0)),0) -> 0 | AS25: =IF(AS$5=first_reg_period, INDEX('Depn|Inputs'!$I$48:$I$62,MATCH(AL17,'Depn|Inputs'!$C$48:$C$62,0)),0) -> 0 | AT25: =IF(AT$5=first_reg_period, INDEX('Depn|Inputs'!$I$48:$I$62,MATCH(AM17,'Depn|Inputs'!$C$48:$C$62,0)),0) -> 0 | AU25: =IF(AU$5=first_reg_period, INDEX('Depn|Inputs'!$I$48:$I$62,MATCH(AN17,'Depn|Inputs'!$C$48:$C$62,0)),0) -> 0 | AV25: =IF(AV$5=first_reg_period, INDEX('Depn|Inputs'!$I$48:$I$62,MATCH(AO17,'Depn|Inputs'!$C$48:$C$62,0)),0) -> 0 | AW25: =IF(AW$5=first_reg_period, INDEX('Depn|Inputs'!$I$48:$I$62,MATCH(AP17,'Depn|Inputs'!$C$48:$C$62,0)),0) -> 0 | AX25: =IF(AX$5=first_reg_period, INDEX('Depn|Inputs'!$I$48:$I$62,MATCH(AQ17,'Depn|Inputs'!$C$48:$C$62,0)),0) -> 0 | AY25: =IF(AY$5=first_reg_period, INDEX('Depn|Inputs'!$I$48:$I$62,MATCH(AR17,'Depn|Inputs'!$C$48:$C$62,0)),0) -> 0 | AZ25: =IF(AZ$5=first_reg_period, INDEX('Depn|Inputs'!$I$48:$I$62,MATCH(AS17,'Depn|Inputs'!$C$48:$C$62,0)),0) -> 0 | BA25: =IF(BA$5=first_reg_period, INDEX('Depn|Inputs'!$I$48:$I$62,MATCH(AT17,'Depn|Inputs'!$C$48:$C$62,0)),0) -> 0 | BB25: =IF(BB$5=first_reg_period, INDEX('Depn|Inputs'!$I$48:$I$62,MATCH(AU17,'Depn|Inputs'!$C$48:$C$62,0)),0) -> 0 | BC25: =IF(BC$5=first_reg_period, INDEX('Depn|Inputs'!$I$48:$I$62,MATCH(AV17,'Depn|Inputs'!$C$48:$C$62,0)),0) -> 0 | BD25: =IF(BD$5=first_reg_period, INDEX('Depn|Inputs'!$I$48:$I$62,MATCH(AW17,'Depn|Inputs'!$C$48:$C$62,0)),0) -> 0 | BE25: =IF(BE$5=first_reg_period, INDEX('Depn|Inputs'!$I$48:$I$62,MATCH(AX17,'Depn|Inputs'!$C$48:$C$62,0)),0) -> 0 | BF25: =IF(BF$5=first_reg_period, INDEX('Depn|Inputs'!$I$48:$I$62,MATCH(AY17,'Depn|Inputs'!$C$48:$C$62,0)),0) -> 0 | BG25: =IF(BG$5=first_reg_period, INDEX('Depn|Inputs'!$I$48:$I$62,MATCH(AZ17,'Depn|Inputs'!$C$48:$C$62,0)),0) -> 0 | BH25: =IF(BH$5=first_reg_period, INDEX('Depn|Inputs'!$I$48:$I$62,MATCH(BA17,'Depn|Inputs'!$C$48:$C$62,0)),0) -> 0 | BI25: =IF(BI$5=first_reg_period, INDEX('Depn|Inputs'!$I$48:$I$62,MATCH(BB17,'Depn|Inputs'!$C$48:$C$62,0)),0) -> 0 | BJ25: =IF(BJ$5=first_reg_period, INDEX('Depn|Inputs'!$I$48:$I$62,MATCH(BC17,'Depn|Inputs'!$C$48:$C$62,0)),0) -> 0 | BK25: =IF(BK$5=first_reg_period, INDEX('Depn|Inputs'!$I$48:$I$62,MATCH(BD17,'Depn|Inputs'!$C$48:$C$62,0)),0) -> 0 | BL25: =IF(BL$5=first_reg_period, INDEX('Depn|Inputs'!$I$48:$I$62,MATCH(BE17,'Depn|Inputs'!$C$48:$C$62,0)),0) -> 0 | BM25: =IF(BM$5=first_reg_period, INDEX('Depn|Inputs'!$I$48:$I$62,MATCH(BF17,'Depn|Inputs'!$C$48:$C$62,0)),0) -> 0 | BN25: =IF(BN$5=first_reg_period, INDEX('Depn|Inputs'!$I$48:$I$62,MATCH(BG17,'Depn|Inputs'!$C$48:$C$62,0)),0) -> 0 | BO25: =IF(BO$5=first_reg_period, INDEX('Depn|Inputs'!$I$48:$I$62,MATCH(BH17,'Depn|Inputs'!$C$48:$C$62,0)),0) -> 0 | BP25: =IF(BP$5=first_reg_period, INDEX('Depn|Inputs'!$I$48:$I$62,MATCH(BI17,'Depn|Inputs'!$C$48:$C$62,0)),0) -> 0 | BQ25: =IF(BQ$5=first_reg_period, INDEX('Depn|Inputs'!$I$48:$I$62,MATCH(BJ17,'Depn|Inputs'!$C$48:$C$62,0)),0) -> 0 | BR25: =IF(BR$5=first_reg_period, INDEX('Depn|Inputs'!$I$48:$I$62,MATCH(BK17,'Depn|Inputs'!$C$48:$C$62,0)),0) -> 0 | BS25: =IF(BS$5=first_reg_period, INDEX('Depn|Inputs'!$I$48:$I$62,MATCH(BL17,'Depn|Inputs'!$C$48:$C$62,0)),0) -> 0 | BT25: =IF(BT$5=first_reg_period, INDEX('Depn|Inputs'!$I$48:$I$62,MATCH(BM17,'Depn|Inputs'!$C$48:$C$62,0)),0) -> 0
D26: RAB adjustments $m Real (2014) | J26: =IF(J$5=second_reg_period, INDEX('Depn|Inputs'!$N$208:$N$222,MATCH($B17,'Depn|Inputs'!$C$208:$C$222,0)),0)/conv_2019_2014 -> 0 | K26: =IF(K$5=second_reg_period, INDEX('Depn|Inputs'!$N$208:$N$222,MATCH($B17,'Depn|Inputs'!$C$208:$C$222,0)),0)/conv_2019_2014 -> 0 | L26: =IF(L$5=second_reg_period, INDEX('Depn|Inputs'!$N$208:$N$222,MATCH($B17,'Depn|Inputs'!$C$208:$C$222,0)),0)/conv_2019_2014 -> 0 | M26: =IF(M$5=second_reg_period, INDEX('Depn|Inputs'!$N$208:$N$222,MATCH($B17,'Depn|Inputs'!$C$208:$C$222,0)),0)/conv_2019_2014 -> 0 | N26: =IF(N$5=second_reg_period, INDEX('Depn|Inputs'!$N$208:$N$222,MATCH($B17,'Depn|Inputs'!$C$208:$C$222,0)),0)/conv_2019_2014 -> 0 | O26: =IF(O$5=second_reg_period, INDEX('Depn|Inputs'!$N$208:$N$222,MATCH($B17,'Depn|Inputs'!$C$208:$C$222,0)),0)/conv_2019_2014 -> 0 | P26: =IF(P$5=second_reg_period, INDEX('Depn|Inputs'!$N$208:$N$222,MATCH($B17,'Depn|Inputs'!$C$208:$C$222,0)),0)/conv_2019_2014 -> 0 | Q26: =IF(Q$5=second_reg_period, INDEX('Depn|Inputs'!$N$208:$N$222,MATCH($B17,'Depn|Inputs'!$C$208:$C$222,0)),0)/conv_2019_2014 -> 0 | R26: =IF(R$5=second_reg_period, INDEX('Depn|Inputs'!$N$208:$N$222,MATCH($B17,'Depn|Inputs'!$C$208:$C$222,0)),0)/conv_2019_2014 -> 0 | S26: =IF(S$5=second_reg_period, INDEX('Depn|Inputs'!$N$208:$N$222,MATCH($B17,'Depn|Inputs'!$C$208:$C$222,0)),0)/conv_2019_2014 -> 0 | T26: =IF(T$5=second_reg_period, INDEX('Depn|Inputs'!$N$208:$N$222,MATCH($B17,'Depn|Inputs'!$C$208:$C$222,0)),0)/conv_2019_2014 -> 0 | U26: =IF(U$5=second_reg_period, INDEX('Depn|Inputs'!$N$208:$N$222,MATCH($B17,'Depn|Inputs'!$C$208:$C$222,0)),0)/conv_2019_2014 -> 0 | V26: =IF(V$5=second_reg_period, INDEX('Depn|Inputs'!$N$208:$N$222,MATCH($B17,'Depn|Inputs'!$C$208:$C$222,0)),0)/conv_2019_2014 -> 0 | W26: =IF(W$5=second_reg_period, INDEX('Depn|Inputs'!$N$208:$N$222,MATCH($B17,'Depn|Inputs'!$C$208:$C$222,0)),0)/conv_2019_2014 -> 0 | X26: =IF(X$5=second_reg_period, INDEX('Depn|Inputs'!$N$208:$N$222,MATCH($B17,'Depn|Inputs'!$C$208:$C$222,0)),0)/conv_2019_2014 -> 0 | Y26: =IF(Y$5=second_reg_period, INDEX('Depn|Inputs'!$N$208:$N$222,MATCH($B17,'Depn|Inputs'!$C$208:$C$222,0)),0)/conv_2019_2014 -> 0 | Z26: =IF(Z$5=second_reg_period, INDEX('Depn|Inputs'!$N$208:$N$222,MATCH($B17,'Depn|Inputs'!$C$208:$C$222,0)),0)/conv_2019_2014 -> 0 | AA26: =IF(AA$5=second_reg_period, INDEX('Depn|Inputs'!$N$208:$N$222,MATCH($B17,'Depn|Inputs'!$C$208:$C$222,0)),0)/conv_2019_2014 -> 0 | AB26: =IF(AB$5=second_reg_period, INDEX('Depn|Inputs'!$N$208:$N$222,MATCH($B17,'Depn|Inputs'!$C$208:$C$222,0)),0)/conv_2019_2014 -> 0 | AC26: =IF(AC$5=second_reg_period, INDEX('Depn|Inputs'!$N$208:$N$222,MATCH($B17,'Depn|Inputs'!$C$208:$C$222,0)),0)/conv_2019_2014 -> 0 | AD26: =IF(AD$5=second_reg_period, INDEX('Depn|Inputs'!$N$208:$N$222,MATCH($B17,'Depn|Inputs'!$C$208:$C$222,0)),0)/conv_2019_2014 -> 0 | AE26: =IF(AE$5=second_reg_period, INDEX('Depn|Inputs'!$N$208:$N$222,MATCH($B17,'Depn|Inputs'!$C$208:$C$222,0)),0)/conv_2019_2014 -> 0 | AF26: =IF(AF$5=second_reg_period, INDEX('Depn|Inputs'!$N$208:$N$222,MATCH($B17,'Depn|Inputs'!$C$208:$C$222,0)),0)/conv_2019_2014 -> 0 | AG26: =IF(AG$5=second_reg_period, INDEX('Depn|Inputs'!$N$208:$N$222,MATCH($B17,'Depn|Inputs'!$C$208:$C$222,0)),0)/conv_2019_2014 -> 0 | AH26: =IF(AH$5=second_reg_period, INDEX('Depn|Inputs'!$N$208:$N$222,MATCH($B17,'Depn|Inputs'!$C$208:$C$222,0)),0)/conv_2019_2014 -> 0 | AI26: =IF(AI$5=second_reg_period, INDEX('Depn|Inputs'!$N$208:$N$222,MATCH($B17,'Depn|Inputs'!$C$208:$C$222,0)),0)/conv_2019_2014 -> 0 | AJ26: =IF(AJ$5=second_reg_period, INDEX('Depn|Inputs'!$N$208:$N$222,MATCH($B17,'Depn|Inputs'!$C$208:$C$222,0)),0)/conv_2019_2014 -> 0 | AK26: =IF(AK$5=second_reg_period, INDEX('Depn|Inputs'!$N$208:$N$222,MATCH($B17,'Depn|Inputs'!$C$208:$C$222,0)),0)/conv_2019_2014 -> 0 | AL26: =IF(AL$5=second_reg_period, INDEX('Depn|Inputs'!$N$208:$N$222,MATCH($B17,'Depn|Inputs'!$C$208:$C$222,0)),0)/conv_2019_2014 -> 0 | AM26: =IF(AM$5=second_reg_period, INDEX('Depn|Inputs'!$N$208:$N$222,MATCH($B17,'Depn|Inputs'!$C$208:$C$222,0)),0)/conv_2019_2014 -> 0 | AN26: =IF(AN$5=second_reg_period, INDEX('Depn|Inputs'!$N$208:$N$222,MATCH($B17,'Depn|Inputs'!$C$208:$C$222,0)),0)/conv_2019_2014 -> 0 | AO26: =IF(AO$5=second_reg_period, INDEX('Depn|Inputs'!$N$208:$N$222,MATCH($B17,'Depn|Inputs'!$C$208:$C$222,0)),0)/conv_2019_2014 -> 0 | AP26: =IF(AP$5=second_reg_period, INDEX('Depn|Inputs'!$N$208:$N$222,MATCH($B17,'Depn|Inputs'!$C$208:$C$222,0)),0)/conv_2019_2014 -> 0 | AQ26: =IF(AQ$5=second_reg_period, INDEX('Depn|Inputs'!$N$208:$N$222,MATCH($B17,'Depn|Inputs'!$C$208:$C$222,0)),0)/conv_2019_2014 -> 0 | AR26: =IF(AR$5=second_reg_period, INDEX('Depn|Inputs'!$N$208:$N$222,MATCH($B17,'Depn|Inputs'!$C$208:$C$222,0)),0)/conv_2019_2014 -> 0 | AS26: =IF(AS$5=second_reg_period, INDEX('Depn|Inputs'!$N$208:$N$222,MATCH($B17,'Depn|Inputs'!$C$208:$C$222,0)),0)/conv_2019_2014 -> 0 | AT26: =IF(AT$5=second_reg_period, INDEX('Depn|Inputs'!$N$208:$N$222,MATCH($B17,'Depn|Inputs'!$C$208:$C$222,0)),0)/conv_2019_2014 -> 0 | AU26: =IF(AU$5=second_reg_period, INDEX('Depn|Inputs'!$N$208:$N$222,MATCH($B17,'Depn|Inputs'!$C$208:$C$222,0)),0)/conv_2019_2014 -> 0 | AV26: =IF(AV$5=second_reg_period, INDEX('Depn|Inputs'!$N$208:$N$222,MATCH($B17,'Depn|Inputs'!$C$208:$C$222,0)),0)/conv_2019_2014 -> 0 | AW26: =IF(AW$5=second_reg_period, INDEX('Depn|Inputs'!$N$208:$N$222,MATCH($B17,'Depn|Inputs'!$C$208:$C$222,0)),0)/conv_2019_2014 -> 0 | AX26: =IF(AX$5=second_reg_period, INDEX('Depn|Inputs'!$N$208:$N$222,MATCH($B17,'Depn|Inputs'!$C$208:$C$222,0)),0)/conv_2019_2014 -> 0 | AY26: =IF(AY$5=second_reg_period, INDEX('Depn|Inputs'!$N$208:$N$222,MATCH($B17,'Depn|Inputs'!$C$208:$C$222,0)),0)/conv_2019_2014 -> 0 | AZ26: =IF(AZ$5=second_reg_period, INDEX('Depn|Inputs'!$N$208:$N$222,MATCH($B17,'Depn|Inputs'!$C$208:$C$222,0)),0)/conv_2019_2014 -> 0 | BA26: =IF(BA$5=second_reg_period, INDEX('Depn|Inputs'!$N$208:$N$222,MATCH($B17,'Depn|Inputs'!$C$208:$C$222,0)),0)/conv_2019_2014 -> 0 | BB26: =IF(BB$5=second_reg_period, INDEX('Depn|Inputs'!$N$208:$N$222,MATCH($B17,'Depn|Inputs'!$C$208:$C$222,0)),0)/conv_2019_2014 -> 0 | BC26: =IF(BC$5=second_reg_period, INDEX('Depn|Inputs'!$N$208:$N$222,MATCH($B17,'Depn|Inputs'!$C$208:$C$222,0)),0)/conv_2019_2014 -> 0 | BD26: =IF(BD$5=second_reg_period, INDEX('Depn|Inputs'!$N$208:$N$222,MATCH($B17,'Depn|Inputs'!$C$208:$C$222,0)),0)/conv_2019_2014 -> 0 | BE26: =IF(BE$5=second_reg_period, INDEX('Depn|Inputs'!$N$208:$N$222,MATCH($B17,'Depn|Inputs'!$C$208:$C$222,0)),0)/conv_2019_2014 -> 0 | BF26: =IF(BF$5=second_reg_period, INDEX('Depn|Inputs'!$N$208:$N$222,MATCH($B17,'Depn|Inputs'!$C$208:$C$222,0)),0)/conv_2019_2014 -> 0 | BG26: =IF(BG$5=second_reg_period, INDEX('Depn|Inputs'!$N$208:$N$222,MATCH($B17,'Depn|Inputs'!$C$208:$C$222,0)),0)/conv_2019_2014 -> 0 | BH26: =IF(BH$5=second_reg_period, INDEX('Depn|Inputs'!$N$208:$N$222,MATCH($B17,'Depn|Inputs'!$C$208:$C$222,0)),0)/conv_2019_2014 -> 0 | BI26: =IF(BI$5=second_reg_period, INDEX('Depn|Inputs'!$N$208:$N$222,MATCH($B17,'Depn|Inputs'!$C$208:$C$222,0)),0)/conv_2019_2014 -> 0 | BJ26: =IF(BJ$5=second_reg_period, INDEX('Depn|Inputs'!$N$208:$N$222,MATCH($B17,'Depn|Inputs'!$C$208:$C$222,0)),0)/conv_2019_2014 -> 0 | BK26: =IF(BK$5=second_reg_period, INDEX('Depn|Inputs'!$N$208:$N$222,MATCH($B17,'Depn|Inputs'!$C$208:$C$222,0)),0)/conv_2019_2014 -> 0 | BL26: =IF(BL$5=second_reg_period, INDEX('Depn|Inputs'!$N$208:$N$222,MATCH($B17,'Depn|Inputs'!$C$208:$C$222,0)),0)/conv_2019_2014 -> 0 | BM26: =IF(BM$5=second_reg_period, INDEX('Depn|Inputs'!$N$208:$N$222,MATCH($B17,'Depn|Inputs'!$C$208:$C$222,0)),0)/conv_2019_2014 -> 0 | BN26: =IF(BN$5=second_reg_period, INDEX('Depn|Inputs'!$N$208:$N$222,MATCH($B17,'Depn|Inputs'!$C$208:$C$222,0)),0)/conv_2019_2014 -> 0 | BO26: =IF(BO$5=second_reg_period, INDEX('Depn|Inputs'!$N$208:$N$222,MATCH($B17,'Depn|Inputs'!$C$208:$C$222,0)),0)/conv_2019_2014 -> 0 | BP26: =IF(BP$5=second_reg_period, INDEX('Depn|Inputs'!$N$208:$N$222,MATCH($B17,'Depn|Inputs'!$C$208:$C$222,0)),0)/conv_2019_2014 -> 0 | BQ26: =IF(BQ$5=second_reg_period, INDEX('Depn|Inputs'!$N$208:$N$222,MATCH($B17,'Depn|Inputs'!$C$208:$C$222,0)),0)/conv_2019_2014 -> 0 | BR26: =IF(BR$5=second_reg_period, INDEX('Depn|Inputs'!$N$208:$N$222,MATCH($B17,'Depn|Inputs'!$C$208:$C$222,0)),0)/conv_2019_2014 -> 0 | BS26: =IF(BS$5=second_reg_period, INDEX('Depn|Inputs'!$N$208:$N$222,MATCH($B17,'Depn|Inputs'!$C$208:$C$222,0)),0)/conv_2019_2014 -> 0 | BT26: =IF(BT$5=second_reg_period, INDEX('Depn|Inputs'!$N$208:$N$222,MATCH($B17,'Depn|Inputs'!$C$208:$C$222,0)),0)/conv_2019_2014 -> 0
D27: Existing Assets Closing RAB | E27: $m Real (2014) | I27: =H27-I24+I25+I26 -> 294.1886357 | J27: =I27-J24+J25+J26 -> 272.0859766 | K27: =J27-K24+K25+K26 -> 249.9833174 | L27: =K27-L24+L25+L26 -> 228.4449804 | M27: =L27-M24+M25+M26 -> 206.9066538 | N27: =M27-N24+N25+N26 -> 185.3683272 | O27: =N27-O24+O25+O26 -> 172.518857 | P27: =O27-P24+P25+P26 -> 159.6693868 | Q27: =P27-Q24+Q25+Q26 -> 146.8199167 | R27: =Q27-R24+R25+R26 -> 133.9704465 | S27: =R27-S24+S25+S26 -> 121.1209763 | T27: =S27-T24+T25+T26 -> 108.2715061 | U27: =T27-U24+U25+U26 -> 95.42203596 | V27: =U27-V24+V25+V26 -> 82.57256578 | W27: =V27-W24+W25+W26 -> 69.7230956 | X27: =W27-X24+X25+X26 -> 56.87362542 | Y27: =X27-Y24+Y25+Y26 -> 44.02415525 | Z27: =Y27-Z24+Z25+Z26 -> 31.17468507 | AA27: =Z27-AA24+AA25+AA26 -> 18.32521489 | AB27: =AA27-AB24+AB25+AB26 -> 5.475744714 | AC27: =AB27-AC24+AC25+AC26 -> 1.403321903e-13 | AD27: =AC27-AD24+AD25+AD26 -> 1.403321903e-13 | AE27: =AD27-AE24+AE25+AE26 -> 1.403321903e-13 | AF27: =AE27-AF24+AF25+AF26 -> 1.403321903e-13 | AG27: =AF27-AG24+AG25+AG26 -> 1.403321903e-13 | AH27: =AG27-AH24+AH25+AH26 -> 1.403321903e-13 | AI27: =AH27-AI24+AI25+AI26 -> 1.403321903e-13 | AJ27: =AI27-AJ24+AJ25+AJ26 -> 1.403321903e-13 | AK27: =AJ27-AK24+AK25+AK26 -> 1.403321903e-13 | AL27: =AK27-AL24+AL25+AL26 -> 1.403321903e-13 | AM27: =AL27-AM24+AM25+AM26 -> 1.403321903e-13 | AN27: =AM27-AN24+AN25+AN26 -> 1.403321903e-13 | AO27: =AN27-AO24+AO25+AO26 -> 1.403321903e-13 | AP27: =AO27-AP24+AP25+AP26 -> 1.403321903e-13 | AQ27: =AP27-AQ24+AQ25+AQ26 -> 1.403321903e-13 | AR27: =AQ27-AR24+AR25+AR26 -> 1.403321903e-13 | AS27: =AR27-AS24+AS25+AS26 -> 1.403321903e-13 | AT27: =AS27-AT24+AT25+AT26 -> 1.403321903e-13 | AU27: =AT27-AU24+AU25+AU26 -> 1.403321903e-13 | AV27: =AU27-AV24+AV25+AV26 -> 1.403321903e-13 | AW27: =AV27-AW24+AW25+AW26 -> 1.403321903e-13 | AX27: =AW27-AX24+AX25+AX26 -> 1.403321903e-13 | AY27: =AX27-AY24+AY25+AY26 -> 1.403321903e-13 | AZ27: =AY27-AZ24+AZ25+AZ26 -> 1.403321903e-13 | BA27: =AZ27-BA24+BA25+BA26 -> 1.403321903e-13 | BB27: =BA27-BB24+BB25+BB26 -> 1.403321903e-13 | BC27: =BB27-BC24+BC25+BC26 -> 1.403321903e-13 | BD27: =BC27-BD24+BD25+BD26 -> 1.403321903e-13 | BE27: =BD27-BE24+BE25+BE26 -> 1.403321903e-13 | BF27: =BE27-BF24+BF25+BF26 -> 1.403321903e-13 | BG27: =BF27-BG24+BG25+BG26 -> 1.403321903e-13 | BH27: =BG27-BH24+BH25+BH26 -> 1.403321903e-13 | BI27: =BH27-BI24+BI25+BI26 -> 1.403321903e-13 | BJ27: =BI27-BJ24+BJ25+BJ26 -> 1.403321903e-13 | BK27: =BJ27-BK24+BK25+BK26 -> 1.403321903e-13 | BL27: =BK27-BL24+BL25+BL26 -> 1.403321903e-13 | BM27: =BL27-BM24+BM25+BM26 -> 1.403321903e-13 | BN27: =BM27-BN24+BN25+BN26 -> 1.403321903e-13 | BO27: =BN27-BO24+BO25+BO26 -> 1.403321903e-13 | BP27: =BO27-BP24+BP25+BP26 -> 1.403321903e-13 | BQ27: 1.403321903e-13 | BR27: =BQ27-BR24+BR25+BR26 -> 1.403321903e-13 | BS27: =BR27-BS24+BS25+BS26 -> 1.403321903e-13 | BT27: =BS27-BT24+BT25+BT26 -> 1.403321903e-13
D29: 2014 adj capex | N29: =IF('Depn|Inputs'!$G$11="Actual",INDEX('Depn|Inputs'!$N$188:$N$202,MATCH($B17,'Depn|Inputs'!$C$188:$C$202,0))/conv_2019_2014,0) -> -24.49804657 | O29: =N29=SUM(O33:BQ33) -> TRUE
C31: Capex | E31: $m Real (2014) | J31: =IF('Depn|Inputs'!$G$11="Actual",INDEX('Depn|Inputs'!J$48:J$62,MATCH($B17,'Depn|Inputs'!$C$48:$C$62,0))*(1+IF(J$5<=second_reg_period, J$7, J$6))^0.5,INDEX('Depn|Inputs'!J$88:J$102,MATCH($B17,'Depn|Inputs'!$C$88:$C$102,0))) -> 32.28896043 | K31: =IF('Depn|Inputs'!$G$11="Actual",INDEX('Depn|Inputs'!K$48:K$62,MATCH($B17,'Depn|Inputs'!$C$48:$C$62,0))*(1+IF(K$5<=second_reg_period, K$7, K$6))^0.5,INDEX('Depn|Inputs'!K$88:K$102,MATCH($B17,'Depn|Inputs'!$C$88:$C$102,0))) -> 27.21216438 | L31: =IF('Depn|Inputs'!$G$11="Actual",INDEX('Depn|Inputs'!L$48:L$62,MATCH($B17,'Depn|Inputs'!$C$48:$C$62,0))*(1+IF(L$5<=second_reg_period, L$7, L$6))^0.5,INDEX('Depn|Inputs'!L$88:L$102,MATCH($B17,'Depn|Inputs'!$C$88:$C$102,0))) -> 13.52170036 | M31: =IF('Depn|Inputs'!$G$11="Actual",INDEX('Depn|Inputs'!M$48:M$62,MATCH($B17,'Depn|Inputs'!$C$48:$C$62,0))*(1+IF(M$5<=second_reg_period, M$7, M$6))^0.5,INDEX('Depn|Inputs'!M$88:M$102,MATCH($B17,'Depn|Inputs'!$C$88:$C$102,0))) -> 7.531645122 | N31: =IF('Depn|Inputs'!$G$11="Actual",INDEX('Depn|Inputs'!N$48:N$62,MATCH($B17,'Depn|Inputs'!$C$48:$C$62,0))*(1+IF(N$5<=second_reg_period, N$7, N$6))^0.5,INDEX('Depn|Inputs'!N$88:N$102,MATCH($B17,'Depn|Inputs'!$C$88:$C$102,0))) -> 12.36343373 | O31: =INDEX('Depn|Inputs'!O$48:O$62,MATCH($B17,'Depn|Inputs'!$C$48:$C$62,0))*(1+IF(O$5<=second_reg_period, O$7, O$6))^0.5 -> 0 | P31: =INDEX('Depn|Inputs'!P$48:P$62,MATCH($B17,'Depn|Inputs'!$C$48:$C$62,0))*(1+IF(P$5<=second_reg_period, P$7, P$6))^0.5 -> 0 | Q31: =INDEX('Depn|Inputs'!Q$48:Q$62,MATCH($B17,'Depn|Inputs'!$C$48:$C$62,0))*(1+IF(Q$5<=second_reg_period, Q$7, Q$6))^0.5 -> 0 | R31: =INDEX('Depn|Inputs'!R$48:R$62,MATCH($B17,'Depn|Inputs'!$C$48:$C$62,0))*(1+IF(R$5<=second_reg_period, R$7, R$6))^0.5 -> 0 | S31: =INDEX('Depn|Inputs'!S$48:S$62,MATCH($B17,'Depn|Inputs'!$C$48:$C$62,0))*(1+IF(S$5<=second_reg_period, S$7, S$6))^0.5 -> 0 | T31: =INDEX('Depn|Inputs'!T$48:T$62,MATCH($B17,'Depn|Inputs'!$C$48:$C$62,0))*(1+IF(T$5<=second_reg_period, T$7, T$6))^0.5 -> 0 | U31: =INDEX('Depn|Inputs'!U$48:U$62,MATCH($B17,'Depn|Inputs'!$C$48:$C$62,0))*(1+IF(U$5<=second_reg_period, U$7, U$6))^0.5 -> 0 | V31: =INDEX('Depn|Inputs'!V$48:V$62,MATCH($B17,'Depn|Inputs'!$C$48:$C$62,0))*(1+IF(V$5<=second_reg_period, V$7, V$6))^0.5 -> 0 | W31: =INDEX('Depn|Inputs'!W$48:W$62,MATCH($B17,'Depn|Inputs'!$C$48:$C$62,0))*(1+IF(W$5<=second_reg_period, W$7, W$6))^0.5 -> 0 | X31: =INDEX('Depn|Inputs'!X$48:X$62,MATCH($B17,'Depn|Inputs'!$C$48:$C$62,0))*(1+IF(X$5<=second_reg_period, X$7, X$6))^0.5 -> 0 | Y31: =INDEX('Depn|Inputs'!Y$48:Y$62,MATCH($B17,'Depn|Inputs'!$C$48:$C$62,0))*(1+IF(Y$5<=second_reg_period, Y$7, Y$6))^0.5 -> 0 | Z31: =INDEX('Depn|Inputs'!Z$48:Z$62,MATCH($B17,'Depn|Inputs'!$C$48:$C$62,0))*(1+IF(Z$5<=second_reg_period, Z$7, Z$6))^0.5 -> 0 | AA31: =INDEX('Depn|Inputs'!AA$48:AA$62,MATCH($B17,'Depn|Inputs'!$C$48:$C$62,0))*(1+IF(AA$5<=second_reg_period, AA$7, AA$6))^0.5 -> 0 | AB31: =INDEX('Depn|Inputs'!AB$48:AB$62,MATCH($B17,'Depn|Inputs'!$C$48:$C$62,0))*(1+IF(AB$5<=second_reg_period, AB$7, AB$6))^0.5 -> 0 | AC31: =INDEX('Depn|Inputs'!AC$48:AC$62,MATCH($B17,'Depn|Inputs'!$C$48:$C$62,0))*(1+IF(AC$5<=second_reg_period, AC$7, AC$6))^0.5 -> 0 | AD31: =INDEX('Depn|Inputs'!AD$48:AD$62,MATCH($B17,'Depn|Inputs'!$C$48:$C$62,0))*(1+IF(AD$5<=second_reg_period, AD$7, AD$6))^0.5 -> 0 | AE31: =INDEX('Depn|Inputs'!AE$48:AE$62,MATCH($B17,'Depn|Inputs'!$C$48:$C$62,0))*(1+IF(AE$5<=second_reg_period, AE$7, AE$6))^0.5 -> 0 | AF31: =INDEX('Depn|Inputs'!AF$48:AF$62,MATCH($B17,'Depn|Inputs'!$C$48:$C$62,0))*(1+IF(AF$5<=second_reg_period, AF$7, AF$6))^0.5 -> 0 | AG31: =INDEX('Depn|Inputs'!AG$48:AG$62,MATCH($B17,'Depn|Inputs'!$C$48:$C$62,0))*(1+IF(AG$5<=second_reg_period, AG$7, AG$6))^0.5 -> 0 | AH31: =INDEX('Depn|Inputs'!AH$48:AH$62,MATCH($B17,'Depn|Inputs'!$C$48:$C$62,0))*(1+IF(AH$5<=second_reg_period, AH$7, AH$6))^0.5 -> 0 | AI31: =INDEX('Depn|Inputs'!AI$48:AI$62,MATCH($B17,'Depn|Inputs'!$C$48:$C$62,0))*(1+IF(AI$5<=second_reg_period, AI$7, AI$6))^0.5 -> 0 | AJ31: =INDEX('Depn|Inputs'!AJ$48:AJ$62,MATCH($B17,'Depn|Inputs'!$C$48:$C$62,0))*(1+IF(AJ$5<=second_reg_period, AJ$7, AJ$6))^0.5 -> 0 | AK31: =INDEX('Depn|Inputs'!AK$48:AK$62,MATCH($B17,'Depn|Inputs'!$C$48:$C$62,0))*(1+IF(AK$5<=second_reg_period, AK$7, AK$6))^0.5 -> 0 | AL31: =INDEX('Depn|Inputs'!AL$48:AL$62,MATCH($B17,'Depn|Inputs'!$C$48:$C$62,0))*(1+IF(AL$5<=second_reg_period, AL$7, AL$6))^0.5 -> 0 | AM31: =INDEX('Depn|Inputs'!AM$48:AM$62,MATCH($B17,'Depn|Inputs'!$C$48:$C$62,0))*(1+IF(AM$5<=second_reg_period, AM$7, AM$6))^0.5 -> 0 | AN31: =INDEX('Depn|Inputs'!AN$48:AN$62,MATCH($B17,'Depn|Inputs'!$C$48:$C$62,0))*(1+IF(AN$5<=second_reg_period, AN$7, AN$6))^0.5 -> 0 | AO31: =INDEX('Depn|Inputs'!AO$48:AO$62,MATCH($B17,'Depn|Inputs'!$C$48:$C$62,0))*(1+IF(AO$5<=second_reg_period, AO$7, AO$6))^0.5 -> 0 | AP31: =INDEX('Depn|Inputs'!AP$48:AP$62,MATCH($B17,'Depn|Inputs'!$C$48:$C$62,0))*(1+IF(AP$5<=second_reg_period, AP$7, AP$6))^0.5 -> 0 | AQ31: =INDEX('Depn|Inputs'!AQ$48:AQ$62,MATCH($B17,'Depn|Inputs'!$C$48:$C$62,0))*(1+IF(AQ$5<=second_reg_period, AQ$7, AQ$6))^0.5 -> 0 | AR31: =INDEX('Depn|Inputs'!AR$48:AR$62,MATCH($B17,'Depn|Inputs'!$C$48:$C$62,0))*(1+IF(AR$5<=second_reg_period, AR$7, AR$6))^0.5 -> 0 | AS31: =INDEX('Depn|Inputs'!AS$48:AS$62,MATCH($B17,'Depn|Inputs'!$C$48:$C$62,0))*(1+IF(AS$5<=second_reg_period, AS$7, AS$6))^0.5 -> 0 | AT31: =INDEX('Depn|Inputs'!AT$48:AT$62,MATCH($B17,'Depn|Inputs'!$C$48:$C$62,0))*(1+IF(AT$5<=second_reg_period, AT$7, AT$6))^0.5 -> 0 | AU31: =INDEX('Depn|Inputs'!AU$48:AU$62,MATCH($B17,'Depn|Inputs'!$C$48:$C$62,0))*(1+IF(AU$5<=second_reg_period, AU$7, AU$6))^0.5 -> 0 | AV31: =INDEX('Depn|Inputs'!AV$48:AV$62,MATCH($B17,'Depn|Inputs'!$C$48:$C$62,0))*(1+IF(AV$5<=second_reg_period, AV$7, AV$6))^0.5 -> 0 | AW31: =INDEX('Depn|Inputs'!AW$48:AW$62,MATCH($B17,'Depn|Inputs'!$C$48:$C$62,0))*(1+IF(AW$5<=second_reg_period, AW$7, AW$6))^0.5 -> 0 | AX31: =INDEX('Depn|Inputs'!AX$48:AX$62,MATCH($B17,'Depn|Inputs'!$C$48:$C$62,0))*(1+IF(AX$5<=second_reg_period, AX$7, AX$6))^0.5 -> 0 | AY31: =INDEX('Depn|Inputs'!AY$48:AY$62,MATCH($B17,'Depn|Inputs'!$C$48:$C$62,0))*(1+IF(AY$5<=second_reg_period, AY$7, AY$6))^0.5 -> 0 | AZ31: =INDEX('Depn|Inputs'!AZ$48:AZ$62,MATCH($B17,'Depn|Inputs'!$C$48:$C$62,0))*(1+IF(AZ$5<=second_reg_period, AZ$7, AZ$6))^0.5 -> 0 | BA31: =INDEX('Depn|Inputs'!BA$48:BA$62,MATCH($B17,'Depn|Inputs'!$C$48:$C$62,0))*(1+IF(BA$5<=second_reg_period, BA$7, BA$6))^0.5 -> 0 | BB31: =INDEX('Depn|Inputs'!BB$48:BB$62,MATCH($B17,'Depn|Inputs'!$C$48:$C$62,0))*(1+IF(BB$5<=second_reg_period, BB$7, BB$6))^0.5 -> 0 | BC31: =INDEX('Depn|Inputs'!BC$48:BC$62,MATCH($B17,'Depn|Inputs'!$C$48:$C$62,0))*(1+IF(BC$5<=second_reg_period, BC$7, BC$6))^0.5 -> 0 | BD31: =INDEX('Depn|Inputs'!BD$48:BD$62,MATCH($B17,'Depn|Inputs'!$C$48:$C$62,0))*(1+IF(BD$5<=second_reg_period, BD$7, BD$6))^0.5 -> 0 | BE31: =INDEX('Depn|Inputs'!BE$48:BE$62,MATCH($B17,'Depn|Inputs'!$C$48:$C$62,0))*(1+IF(BE$5<=second_reg_period, BE$7, BE$6))^0.5 -> 0 | BF31: =INDEX('Depn|Inputs'!BF$48:BF$62,MATCH($B17,'Depn|Inputs'!$C$48:$C$62,0))*(1+IF(BF$5<=second_reg_period, BF$7, BF$6))^0.5 -> 0 | BG31: =INDEX('Depn|Inputs'!BG$48:BG$62,MATCH($B17,'Depn|Inputs'!$C$48:$C$62,0))*(1+IF(BG$5<=second_reg_period, BG$7, BG$6))^0.5 -> 0 | BH31: =INDEX('Depn|Inputs'!BH$48:BH$62,MATCH($B17,'Depn|Inputs'!$C$48:$C$62,0))*(1+IF(BH$5<=second_reg_period, BH$7, BH$6))^0.5 -> 0 | BI31: =INDEX('Depn|Inputs'!BI$48:BI$62,MATCH($B17,'Depn|Inputs'!$C$48:$C$62,0))*(1+IF(BI$5<=second_reg_period, BI$7, BI$6))^0.5 -> 0 | BJ31: =INDEX('Depn|Inputs'!BJ$48:BJ$62,MATCH($B17,'Depn|Inputs'!$C$48:$C$62,0))*(1+IF(BJ$5<=second_reg_period, BJ$7, BJ$6))^0.5 -> 0 | BK31: =INDEX('Depn|Inputs'!BK$48:BK$62,MATCH($B17,'Depn|Inputs'!$C$48:$C$62,0))*(1+IF(BK$5<=second_reg_period, BK$7, BK$6))^0.5 -> 0 | BL31: =INDEX('Depn|Inputs'!BL$48:BL$62,MATCH($B17,'Depn|Inputs'!$C$48:$C$62,0))*(1+IF(BL$5<=second_reg_period, BL$7, BL$6))^0.5 -> 0 | BM31: =INDEX('Depn|Inputs'!BM$48:BM$62,MATCH($B17,'Depn|Inputs'!$C$48:$C$62,0))*(1+IF(BM$5<=second_reg_period, BM$7, BM$6))^0.5 -> 0 | BN31: =INDEX('Depn|Inputs'!BN$48:BN$62,MATCH($B17,'Depn|Inputs'!$C$48:$C$62,0))*(1+IF(BN$5<=second_reg_period, BN$7, BN$6))^0.5 -> 0 | BO31: =INDEX('Depn|Inputs'!BO$48:BO$62,MATCH($B17,'Depn|Inputs'!$C$48:$C$62,0))*(1+IF(BO$5<=second_reg_period, BO$7, BO$6))^0.5 -> 0 | BP31: =INDEX('Depn|Inputs'!BP$48:BP$62,MATCH($B17,'Depn|Inputs'!$C$48:$C$62,0))*(1+IF(BP$5<=second_reg_period, BP$7, BP$6))^0.5 -> 0 | BQ31: =INDEX('Depn|Inputs'!BQ$48:BQ$62,MATCH($B17,'Depn|Inputs'!$C$48:$C$62,0))*(1+IF(BQ$5<=second_reg_period, BQ$7, BQ$6))^0.5 -> 0 | BR31: =INDEX('Depn|Inputs'!BR$48:BR$62,MATCH($B17,'Depn|Inputs'!$C$48:$C$62,0))*(1+IF(BR$5<=second_reg_period, BR$7, BR$6))^0.5 -> 0 | BS31: =INDEX('Depn|Inputs'!BS$48:BS$62,MATCH($B17,'Depn|Inputs'!$C$48:$C$62,0))*(1+IF(BS$5<=second_reg_period, BS$7, BS$6))^0.5 -> 0 | BT31: =INDEX('Depn|Inputs'!BT$48:BT$62,MATCH($B17,'Depn|Inputs'!$C$48:$C$62,0))*(1+IF(BT$5<=second_reg_period, BT$7, BT$6))^0.5 -> 0
D32: Capex Depreciation
D33: 2014 adj capex - depreciation | E33: $m Real (2014) | O33: =IF($I19="n/a",0,IF(O$5-$N$5>$I19-5,$N29-SUM($J33:N33),$N29/($I19-5))) -> -0.6625867878 | P33: =IF($I19="n/a",0,IF(P$5-$N$5>$I19-5,$N29-SUM($J33:O33),$N29/($I19-5))) -> -0.6625867878 | Q33: =IF($I19="n/a",0,IF(Q$5-$N$5>$I19-5,$N29-SUM($J33:P33),$N29/($I19-5))) -> -0.6625867878 | R33: =IF($I19="n/a",0,IF(R$5-$N$5>$I19-5,$N29-SUM($J33:Q33),$N29/($I19-5))) -> -0.6625867878 | S33: =IF($I19="n/a",0,IF(S$5-$N$5>$I19-5,$N29-SUM($J33:R33),$N29/($I19-5))) -> -0.6625867878 | T33: =IF($I19="n/a",0,IF(T$5-$N$5>$I19-5,$N29-SUM($J33:S33),$N29/($I19-5))) -> -0.6625867878 | U33: =IF($I19="n/a",0,IF(U$5-$N$5>$I19-5,$N29-SUM($J33:T33),$N29/($I19-5))) -> -0.6625867878 | V33: =IF($I19="n/a",0,IF(V$5-$N$5>$I19-5,$N29-SUM($J33:U33),$N29/($I19-5))) -> -0.6625867878 | W33: =IF($I19="n/a",0,IF(W$5-$N$5>$I19-5,$N29-SUM($J33:V33),$N29/($I19-5))) -> -0.6625867878 | X33: =IF($I19="n/a",0,IF(X$5-$N$5>$I19-5,$N29-SUM($J33:W33),$N29/($I19-5))) -> -0.6625867878 | Y33: =IF($I19="n/a",0,IF(Y$5-$N$5>$I19-5,$N29-SUM($J33:X33),$N29/($I19-5))) -> -0.6625867878 | Z33: =IF($I19="n/a",0,IF(Z$5-$N$5>$I19-5,$N29-SUM($J33:Y33),$N29/($I19-5))) -> -0.6625867878 | AA33: =IF($I19="n/a",0,IF(AA$5-$N$5>$I19-5,$N29-SUM($J33:Z33),$N29/($I19-5))) -> -0.6625867878 | AB33: =IF($I19="n/a",0,IF(AB$5-$N$5>$I19-5,$N29-SUM($J33:AA33),$N29/($I19-5))) -> -0.6625867878 | AC33: =IF($I19="n/a",0,IF(AC$5-$N$5>$I19-5,$N29-SUM($J33:AB33),$N29/($I19-5))) -> -0.6625867878 | AD33: =IF($I19="n/a",0,IF(AD$5-$N$5>$I19-5,$N29-SUM($J33:AC33),$N29/($I19-5))) -> -0.6625867878 | AE33: =IF($I19="n/a",0,IF(AE$5-$N$5>$I19-5,$N29-SUM($J33:AD33),$N29/($I19-5))) -> -0.6625867878 | AF33: =IF($I19="n/a",0,IF(AF$5-$N$5>$I19-5,$N29-SUM($J33:AE33),$N29/($I19-5))) -> -0.6625867878 | AG33: =IF($I19="n/a",0,IF(AG$5-$N$5>$I19-5,$N29-SUM($J33:AF33),$N29/($I19-5))) -> -0.6625867878 | AH33: =IF($I19="n/a",0,IF(AH$5-$N$5>$I19-5,$N29-SUM($J33:AG33),$N29/($I19-5))) -> -0.6625867878 | AI33: =IF($I19="n/a",0,IF(AI$5-$N$5>$I19-5,$N29-SUM($J33:AH33),$N29/($I19-5))) -> -0.6625867878 | AJ33: =IF($I19="n/a",0,IF(AJ$5-$N$5>$I19-5,$N29-SUM($J33:AI33),$N29/($I19-5))) -> -0.6625867878 | AK33: =IF($I19="n/a",0,IF(AK$5-$N$5>$I19-5,$N29-SUM($J33:AJ33),$N29/($I19-5))) -> -0.6625867878 | AL33: =IF($I19="n/a",0,IF(AL$5-$N$5>$I19-5,$N29-SUM($J33:AK33),$N29/($I19-5))) -> -0.6625867878 | AM33: =IF($I19="n/a",0,IF(AM$5-$N$5>$I19-5,$N29-SUM($J33:AL33),$N29/($I19-5))) -> -0.6625867878 | AN33: =IF($I19="n/a",0,IF(AN$5-$N$5>$I19-5,$N29-SUM($J33:AM33),$N29/($I19-5))) -> -0.6625867878 | AO33: =IF($I19="n/a",0,IF(AO$5-$N$5>$I19-5,$N29-SUM($J33:AN33),$N29/($I19-5))) -> -0.6625867878 | AP33: =IF($I19="n/a",0,IF(AP$5-$N$5>$I19-5,$N29-SUM($J33:AO33),$N29/($I19-5))) -> -0.6625867878 | AQ33: =IF($I19="n/a",0,IF(AQ$5-$N$5>$I19-5,$N29-SUM($J33:AP33),$N29/($I19-5))) -> -0.6625867878 | AR33: =IF($I19="n/a",0,IF(AR$5-$N$5>$I19-5,$N29-SUM($J33:AQ33),$N29/($I19-5))) -> -0.6625867878 | AS33: =IF($I19="n/a",0,IF(AS$5-$N$5>$I19-5,$N29-SUM($J33:AR33),$N29/($I19-5))) -> -0.6625867878 | AT33: =IF($I19="n/a",0,IF(AT$5-$N$5>$I19-5,$N29-SUM($J33:AS33),$N29/($I19-5))) -> -0.6625867878 | AU33: =IF($I19="n/a",0,IF(AU$5-$N$5>$I19-5,$N29-SUM($J33:AT33),$N29/($I19-5))) -> -0.6625867878 | AV33: =IF($I19="n/a",0,IF(AV$5-$N$5>$I19-5,$N29-SUM($J33:AU33),$N29/($I19-5))) -> -0.6625867878 | AW33: =IF($I19="n/a",0,IF(AW$5-$N$5>$I19-5,$N29-SUM($J33:AV33),$N29/($I19-5))) -> -0.6625867878 | AX33: =IF($I19="n/a",0,IF(AX$5-$N$5>$I19-5,$N29-SUM($J33:AW33),$N29/($I19-5))) -> -0.6625867878 | AY33: =IF($I19="n/a",0,IF(AY$5-$N$5>$I19-5,$N29-SUM($J33:AX33),$N29/($I19-5))) -> -0.6449222112 | AZ33: =IF($I19="n/a",0,IF(AZ$5-$N$5>$I19-5,$N29-SUM($J33:AY33),$N29/($I19-5))) -> 0 | BA33: =IF($I19="n/a",0,IF(BA$5-$N$5>$I19-5,$N29-SUM($J33:AZ33),$N29/($I19-5))) -> 0 | BB33: =IF($I19="n/a",0,IF(BB$5-$N$5>$I19-5,$N29-SUM($J33:BA33),$N29/($I19-5))) -> 0 | BC33: =IF($I19="n/a",0,IF(BC$5-$N$5>$I19-5,$N29-SUM($J33:BB33),$N29/($I19-5))) -> 0 | BD33: =IF($I19="n/a",0,IF(BD$5-$N$5>$I19-5,$N29-SUM($J33:BC33),$N29/($I19-5))) -> 0 | BE33: =IF($I19="n/a",0,IF(BE$5-$N$5>$I19-5,$N29-SUM($J33:BD33),$N29/($I19-5))) -> 0 | BF33: =IF($I19="n/a",0,IF(BF$5-$N$5>$I19-5,$N29-SUM($J33:BE33),$N29/($I19-5))) -> 0 | BG33: =IF($I19="n/a",0,IF(BG$5-$N$5>$I19-5,$N29-SUM($J33:BF33),$N29/($I19-5))) -> 0 | BH33: =IF($I19="n/a",0,IF(BH$5-$N$5>$I19-5,$N29-SUM($J33:BG33),$N29/($I19-5))) -> 0 | BI33: =IF($I19="n/a",0,IF(BI$5-$N$5>$I19-5,$N29-SUM($J33:BH33),$N29/($I19-5))) -> 0 | BJ33: =IF($I19="n/a",0,IF(BJ$5-$N$5>$I19-5,$N29-SUM($J33:BI33),$N29/($I19-5))) -> 0 | BK33: =IF($I19="n/a",0,IF(BK$5-$N$5>$I19-5,$N29-SUM($J33:BJ33),$N29/($I19-5))) -> 0 | BL33: =IF($I19="n/a",0,IF(BL$5-$N$5>$I19-5,$N29-SUM($J33:BK33),$N29/($I19-5))) -> 0 | BM33: =IF($I19="n/a",0,IF(BM$5-$N$5>$I19-5,$N29-SUM($J33:BL33),$N29/($I19-5))) -> 0 | BN33: =IF($I19="n/a",0,IF(BN$5-$N$5>$I19-5,$N29-SUM($J33:BM33),$N29/($I19-5))) -> 0 | BO33: =IF($I19="n/a",0,IF(BO$5-$N$5>$I19-5,$N29-SUM($J33:BN33),$N29/($I19-5))) -> 0 | BP33: =IF($I19="n/a",0,IF(BP$5-$N$5>$I19-5,$N29-SUM($J33:BO33),$N29/($I19-5))) -> 0 | BQ33: =IF($I19="n/a",0,IF(BQ$5-$N$5>$I19-5,$N29-SUM($J33:BP33),$N29/($I19-5))) -> 0 | BR33: =IF($I19="n/a",0,IF(BR$5-$N$5>$I19-5,$N29-SUM($J33:BQ33),$N29/($I19-5))) -> 0 | BS33: =IF($I19="n/a",0,IF(BS$5-$N$5>$I19-5,$N29-SUM($J33:BR33),$N29/($I19-5))) -> 0 | BT33: =IF($I19="n/a",0,IF(BT$5-$N$5>$I19-5,$N29-SUM($J33:BS33),$N29/($I19-5))) -> 0
B34: 0 | D34: 2015 | E34: $m Real (2014) | J34: =IF(J$5<=$D34,0,IF(SUM($D34,OFFSET($I19,-$B34,0))>J$5,OFFSET(J31,-$B34,-I$4+$B34)/OFFSET($I19,-$B34,0),OFFSET(J31,-$B34,-I$4+$B34)-SUM($I34:I34))) -> 0 | K34: =IF(K$5<=$D34,0,IF(SUM($D34,OFFSET($I19,-$B34,0))>K$5,OFFSET(K31,-$B34,-J$4+$B34)/OFFSET($I19,-$B34,0),OFFSET(K31,-$B34,-J$4+$B34)-SUM($I34:J34))) -> 0.7692730778 | L34: =IF(L$5<=$D34,0,IF(SUM($D34,OFFSET($I19,-$B34,0))>L$5,OFFSET(L31,-$B34,-K$4+$B34)/OFFSET($I19,-$B34,0),OFFSET(L31,-$B34,-K$4+$B34)-SUM($I34:K34))) -> 0.7692730778 | M34: =IF(M$5<=$D34,0,IF(SUM($D34,OFFSET($I19,-$B34,0))>M$5,OFFSET(M31,-$B34,-L$4+$B34)/OFFSET($I19,-$B34,0),OFFSET(M31,-$B34,-L$4+$B34)-SUM($I34:L34))) -> 0.7692730778 | N34: =IF(N$5<=$D34,0,IF(SUM($D34,OFFSET($I19,-$B34,0))>N$5,OFFSET(N31,-$B34,-M$4+$B34)/OFFSET($I19,-$B34,0),OFFSET(N31,-$B34,-M$4+$B34)-SUM($I34:M34))) -> 0.7692730778 | O34: =IF(O$5<=$D34,0,IF(SUM($D34,OFFSET($I19,-$B34,0))>O$5,OFFSET(O31,-$B34,-N$4+$B34)/OFFSET($I19,-$B34,0),OFFSET(O31,-$B34,-N$4+$B34)-SUM($I34:N34))) -> 0.7692730778 | P34: =IF(P$5<=$D34,0,IF(SUM($D34,OFFSET($I19,-$B34,0))>P$5,OFFSET(P31,-$B34,-O$4+$B34)/OFFSET($I19,-$B34,0),OFFSET(P31,-$B34,-O$4+$B34)-SUM($I34:O34))) -> 0.7692730778 | Q34: =IF(Q$5<=$D34,0,IF(SUM($D34,OFFSET($I19,-$B34,0))>Q$5,OFFSET(Q31,-$B34,-P$4+$B34)/OFFSET($I19,-$B34,0),OFFSET(Q31,-$B34,-P$4+$B34)-SUM($I34:P34))) -> 0.7692730778 | R34: =IF(R$5<=$D34,0,IF(SUM($D34,OFFSET($I19,-$B34,0))>R$5,OFFSET(R31,-$B34,-Q$4+$B34)/OFFSET($I19,-$B34,0),OFFSET(R31,-$B34,-Q$4+$B34)-SUM($I34:Q34))) -> 0.7692730778 | S34: =IF(S$5<=$D34,0,IF(SUM($D34,OFFSET($I19,-$B34,0))>S$5,OFFSET(S31,-$B34,-R$4+$B34)/OFFSET($I19,-$B34,0),OFFSET(S31,-$B34,-R$4+$B34)-SUM($I34:R34))) -> 0.7692730778 | T34: =IF(T$5<=$D34,0,IF(SUM($D34,OFFSET($I19,-$B34,0))>T$5,OFFSET(T31,-$B34,-S$4+$B34)/OFFSET($I19,-$B34,0),OFFSET(T31,-$B34,-S$4+$B34)-SUM($I34:S34))) -> 0.7692730778 | U34: =IF(U$5<=$D34,0,IF(SUM($D34,OFFSET($I19,-$B34,0))>U$5,OFFSET(U31,-$B34,-T$4+$B34)/OFFSET($I19,-$B34,0),OFFSET(U31,-$B34,-T$4+$B34)-SUM($I34:T34))) -> 0.7692730778 | V34: =IF(V$5<=$D34,0,IF(SUM($D34,OFFSET($I19,-$B34,0))>V$5,OFFSET(V31,-$B34,-U$4+$B34)/OFFSET($I19,-$B34,0),OFFSET(V31,-$B34,-U$4+$B34)-SUM($I34:U34))) -> 0.7692730778 | W34: =IF(W$5<=$D34,0,IF(SUM($D34,OFFSET($I19,-$B34,0))>W$5,OFFSET(W31,-$B34,-V$4+$B34)/OFFSET($I19,-$B34,0),OFFSET(W31,-$B34,-V$4+$B34)-SUM($I34:V34))) -> 0.7692730778 | X34: =IF(X$5<=$D34,0,IF(SUM($D34,OFFSET($I19,-$B34,0))>X$5,OFFSET(X31,-$B34,-W$4+$B34)/OFFSET($I19,-$B34,0),OFFSET(X31,-$B34,-W$4+$B34)-SUM($I34:W34))) -> 0.7692730778 | Y34: =IF(Y$5<=$D34,0,IF(SUM($D34,OFFSET($I19,-$B34,0))>Y$5,OFFSET(Y31,-$B34,-X$4+$B34)/OFFSET($I19,-$B34,0),OFFSET(Y31,-$B34,-X$4+$B34)-SUM($I34:X34))) -> 0.7692730778 | Z34: =IF(Z$5<=$D34,0,IF(SUM($D34,OFFSET($I19,-$B34,0))>Z$5,OFFSET(Z31,-$B34,-Y$4+$B34)/OFFSET($I19,-$B34,0),OFFSET(Z31,-$B34,-Y$4+$B34)-SUM($I34:Y34))) -> 0.7692730778 | AA34: =IF(AA$5<=$D34,0,IF(SUM($D34,OFFSET($I19,-$B34,0))>AA$5,OFFSET(AA31,-$B34,-Z$4+$B34)/OFFSET($I19,-$B34,0),OFFSET(AA31,-$B34,-Z$4+$B34)-SUM($I34:Z34))) -> 0.7692730778 | AB34: =IF(AB$5<=$D34,0,IF(SUM($D34,OFFSET($I19,-$B34,0))>AB$5,OFFSET(AB31,-$B34,-AA$4+$B34)/OFFSET($I19,-$B34,0),OFFSET(AB31,-$B34,-AA$4+$B34)-SUM($I34:AA34))) -> 0.7692730778 | AC34: =IF(AC$5<=$D34,0,IF(SUM($D34,OFFSET($I19,-$B34,0))>AC$5,OFFSET(AC31,-$B34,-AB$4+$B34)/OFFSET($I19,-$B34,0),OFFSET(AC31,-$B34,-AB$4+$B34)-SUM($I34:AB34))) -> 0.7692730778 | AD34: =IF(AD$5<=$D34,0,IF(SUM($D34,OFFSET($I19,-$B34,0))>AD$5,OFFSET(AD31,-$B34,-AC$4+$B34)/OFFSET($I19,-$B34,0),OFFSET(AD31,-$B34,-AC$4+$B34)-SUM($I34:AC34))) -> 0.7692730778 | AE34: =IF(AE$5<=$D34,0,IF(SUM($D34,OFFSET($I19,-$B34,0))>AE$5,OFFSET(AE31,-$B34,-AD$4+$B34)/OFFSET($I19,-$B34,0),OFFSET(AE31,-$B34,-AD$4+$B34)-SUM($I34:AD34))) -> 0.7692730778 | AF34: =IF(AF$5<=$D34,0,IF(SUM($D34,OFFSET($I19,-$B34,0))>AF$5,OFFSET(AF31,-$B34,-AE$4+$B34)/OFFSET($I19,-$B34,0),OFFSET(AF31,-$B34,-AE$4+$B34)-SUM($I34:AE34))) -> 0.7692730778 | AG34: =IF(AG$5<=$D34,0,IF(SUM($D34,OFFSET($I19,-$B34,0))>AG$5,OFFSET(AG31,-$B34,-AF$4+$B34)/OFFSET($I19,-$B34,0),OFFSET(AG31,-$B34,-AF$4+$B34)-SUM($I34:AF34))) -> 0.7692730778 | AH34: =IF(AH$5<=$D34,0,IF(SUM($D34,OFFSET($I19,-$B34,0))>AH$5,OFFSET(AH31,-$B34,-AG$4+$B34)/OFFSET($I19,-$B34,0),OFFSET(AH31,-$B34,-AG$4+$B34)-SUM($I34:AG34))) -> 0.7692730778 | AI34: =IF(AI$5<=$D34,0,IF(SUM($D34,OFFSET($I19,-$B34,0))>AI$5,OFFSET(AI31,-$B34,-AH$4+$B34)/OFFSET($I19,-$B34,0),OFFSET(AI31,-$B34,-AH$4+$B34)-SUM($I34:AH34))) -> 0.7692730778 | AJ34: =IF(AJ$5<=$D34,0,IF(SUM($D34,OFFSET($I19,-$B34,0))>AJ$5,OFFSET(AJ31,-$B34,-AI$4+$B34)/OFFSET($I19,-$B34,0),OFFSET(AJ31,-$B34,-AI$4+$B34)-SUM($I34:AI34))) -> 0.7692730778 | AK34: =IF(AK$5<=$D34,0,IF(SUM($D34,OFFSET($I19,-$B34,0))>AK$5,OFFSET(AK31,-$B34,-AJ$4+$B34)/OFFSET($I19,-$B34,0),OFFSET(AK31,-$B34,-AJ$4+$B34)-SUM($I34:AJ34))) -> 0.7692730778 | AL34: =IF(AL$5<=$D34,0,IF(SUM($D34,OFFSET($I19,-$B34,0))>AL$5,OFFSET(AL31,-$B34,-AK$4+$B34)/OFFSET($I19,-$B34,0),OFFSET(AL31,-$B34,-AK$4+$B34)-SUM($I34:AK34))) -> 0.7692730778 | AM34: =IF(AM$5<=$D34,0,IF(SUM($D34,OFFSET($I19,-$B34,0))>AM$5,OFFSET(AM31,-$B34,-AL$4+$B34)/OFFSET($I19,-$B34,0),OFFSET(AM31,-$B34,-AL$4+$B34)-SUM($I34:AL34))) -> 0.7692730778 | AN34: =IF(AN$5<=$D34,0,IF(SUM($D34,OFFSET($I19,-$B34,0))>AN$5,OFFSET(AN31,-$B34,-AM$4+$B34)/OFFSET($I19,-$B34,0),OFFSET(AN31,-$B34,-AM$4+$B34)-SUM($I34:AM34))) -> 0.7692730778 | AO34: =IF(AO$5<=$D34,0,IF(SUM($D34,OFFSET($I19,-$B34,0))>AO$5,OFFSET(AO31,-$B34,-AN$4+$B34)/OFFSET($I19,-$B34,0),OFFSET(AO31,-$B34,-AN$4+$B34)-SUM($I34:AN34))) -> 0.7692730778 | AP34: =IF(AP$5<=$D34,0,IF(SUM($D34,OFFSET($I19,-$B34,0))>AP$5,OFFSET(AP31,-$B34,-AO$4+$B34)/OFFSET($I19,-$B34,0),OFFSET(AP31,-$B34,-AO$4+$B34)-SUM($I34:AO34))) -> 0.7692730778 | AQ34: =IF(AQ$5<=$D34,0,IF(SUM($D34,OFFSET($I19,-$B34,0))>AQ$5,OFFSET(AQ31,-$B34,-AP$4+$B34)/OFFSET($I19,-$B34,0),OFFSET(AQ31,-$B34,-AP$4+$B34)-SUM($I34:AP34))) -> 0.7692730778 | AR34: =IF(AR$5<=$D34,0,IF(SUM($D34,OFFSET($I19,-$B34,0))>AR$5,OFFSET(AR31,-$B34,-AQ$4+$B34)/OFFSET($I19,-$B34,0),OFFSET(AR31,-$B34,-AQ$4+$B34)-SUM($I34:AQ34))) -> 0.7692730778 | AS34: =IF(AS$5<=$D34,0,IF(SUM($D34,OFFSET($I19,-$B34,0))>AS$5,OFFSET(AS31,-$B34,-AR$4+$B34)/OFFSET($I19,-$B34,0),OFFSET(AS31,-$B34,-AR$4+$B34)-SUM($I34:AR34))) -> 0.7692730778 | AT34: =IF(AT$5<=$D34,0,IF(SUM($D34,OFFSET($I19,-$B34,0))>AT$5,OFFSET(AT31,-$B34,-AS$4+$B34)/OFFSET($I19,-$B34,0),OFFSET(AT31,-$B34,-AS$4+$B34)-SUM($I34:AS34))) -> 0.7692730778 | AU34: =IF(AU$5<=$D34,0,IF(SUM($D34,OFFSET($I19,-$B34,0))>AU$5,OFFSET(AU31,-$B34,-AT$4+$B34)/OFFSET($I19,-$B34,0),OFFSET(AU31,-$B34,-AT$4+$B34)-SUM($I34:AT34))) -> 0.7692730778 | AV34: =IF(AV$5<=$D34,0,IF(SUM($D34,OFFSET($I19,-$B34,0))>AV$5,OFFSET(AV31,-$B34,-AU$4+$B34)/OFFSET($I19,-$B34,0),OFFSET(AV31,-$B34,-AU$4+$B34)-SUM($I34:AU34))) -> 0.7692730778 | AW34: =IF(AW$5<=$D34,0,IF(SUM($D34,OFFSET($I19,-$B34,0))>AW$5,OFFSET(AW31,-$B34,-AV$4+$B34)/OFFSET($I19,-$B34,0),OFFSET(AW31,-$B34,-AV$4+$B34)-SUM($I34:AV34))) -> 0.7692730778 | AX34: =IF(AX$5<=$D34,0,IF(SUM($D34,OFFSET($I19,-$B34,0))>AX$5,OFFSET(AX31,-$B34,-AW$4+$B34)/OFFSET($I19,-$B34,0),OFFSET(AX31,-$B34,-AW$4+$B34)-SUM($I34:AW34))) -> 0.7692730778 | AY34: =IF(AY$5<=$D34,0,IF(SUM($D34,OFFSET($I19,-$B34,0))>AY$5,OFFSET(AY31,-$B34,-AX$4+$B34)/OFFSET($I19,-$B34,0),OFFSET(AY31,-$B34,-AX$4+$B34)-SUM($I34:AX34))) -> 0.7692730778 | AZ34: =IF(AZ$5<=$D34,0,IF(SUM($D34,OFFSET($I19,-$B34,0))>AZ$5,OFFSET(AZ31,-$B34,-AY$4+$B34)/OFFSET($I19,-$B34,0),OFFSET(AZ31,-$B34,-AY$4+$B34)-SUM($I34:AY34))) -> 0.7487642427 | BA34: =IF(BA$5<=$D34,0,IF(SUM($D34,OFFSET($I19,-$B34,0))>BA$5,OFFSET(BA31,-$B34,-AZ$4+$B34)/OFFSET($I19,-$B34,0),OFFSET(BA31,-$B34,-AZ$4+$B34)-SUM($I34:AZ34))) -> 0 | BB34: =IF(BB$5<=$D34,0,IF(SUM($D34,OFFSET($I19,-$B34,0))>BB$5,OFFSET(BB31,-$B34,-BA$4+$B34)/OFFSET($I19,-$B34,0),OFFSET(BB31,-$B34,-BA$4+$B34)-SUM($I34:BA34))) -> 0 | BC34: =IF(BC$5<=$D34,0,IF(SUM($D34,OFFSET($I19,-$B34,0))>BC$5,OFFSET(BC31,-$B34,-BB$4+$B34)/OFFSET($I19,-$B34,0),OFFSET(BC31,-$B34,-BB$4+$B34)-SUM($I34:BB34))) -> 0 | BD34: =IF(BD$5<=$D34,0,IF(SUM($D34,OFFSET($I19,-$B34,0))>BD$5,OFFSET(BD31,-$B34,-BC$4+$B34)/OFFSET($I19,-$B34,0),OFFSET(BD31,-$B34,-BC$4+$B34)-SUM($I34:BC34))) -> 0 | BE34: =IF(BE$5<=$D34,0,IF(SUM($D34,OFFSET($I19,-$B34,0))>BE$5,OFFSET(BE31,-$B34,-BD$4+$B34)/OFFSET($I19,-$B34,0),OFFSET(BE31,-$B34,-BD$4+$B34)-SUM($I34:BD34))) -> 0 | BF34: =IF(BF$5<=$D34,0,IF(SUM($D34,OFFSET($I19,-$B34,0))>BF$5,OFFSET(BF31,-$B34,-BE$4+$B34)/OFFSET($I19,-$B34,0),OFFSET(BF31,-$B34,-BE$4+$B34)-SUM($I34:BE34))) -> 0 | BG34: =IF(BG$5<=$D34,0,IF(SUM($D34,OFFSET($I19,-$B34,0))>BG$5,OFFSET(BG31,-$B34,-BF$4+$B34)/OFFSET($I19,-$B34,0),OFFSET(BG31,-$B34,-BF$4+$B34)-SUM($I34:BF34))) -> 0 | BH34: =IF(BH$5<=$D34,0,IF(SUM($D34,OFFSET($I19,-$B34,0))>BH$5,OFFSET(BH31,-$B34,-BG$4+$B34)/OFFSET($I19,-$B34,0),OFFSET(BH31,-$B34,-BG$4+$B34)-SUM($I34:BG34))) -> 0 | BI34: =IF(BI$5<=$D34,0,IF(SUM($D34,OFFSET($I19,-$B34,0))>BI$5,OFFSET(BI31,-$B34,-BH$4+$B34)/OFFSET($I19,-$B34,0),OFFSET(BI31,-$B34,-BH$4+$B34)-SUM($I34:BH34))) -> 0 | BJ34: =IF(BJ$5<=$D34,0,IF(SUM($D34,OFFSET($I19,-$B34,0))>BJ$5,OFFSET(BJ31,-$B34,-BI$4+$B34)/OFFSET($I19,-$B34,0),OFFSET(BJ31,-$B34,-BI$4+$B34)-SUM($I34:BI34))) -> 0 | BK34: =IF(BK$5<=$D34,0,IF(SUM($D34,OFFSET($I19,-$B34,0))>BK$5,OFFSET(BK31,-$B34,-BJ$4+$B34)/OFFSET($I19,-$B34,0),OFFSET(BK31,-$B34,-BJ$4+$B34)-SUM($I34:BJ34))) -> 0 | BL34: =IF(BL$5<=$D34,0,IF(SUM($D34,OFFSET($I19,-$B34,0))>BL$5,OFFSET(BL31,-$B34,-BK$4+$B34)/OFFSET($I19,-$B34,0),OFFSET(BL31,-$B34,-BK$4+$B34)-SUM($I34:BK34))) -> 0 | BM34: =IF(BM$5<=$D34,0,IF(SUM($D34,OFFSET($I19,-$B34,0))>BM$5,OFFSET(BM31,-$B34,-BL$4+$B34)/OFFSET($I19,-$B34,0),OFFSET(BM31,-$B34,-BL$4+$B34)-SUM($I34:BL34))) -> 0 | BN34: =IF(BN$5<=$D34,0,IF(SUM($D34,OFFSET($I19,-$B34,0))>BN$5,OFFSET(BN31,-$B34,-BM$4+$B34)/OFFSET($I19,-$B34,0),OFFSET(BN31,-$B34,-BM$4+$B34)-SUM($I34:BM34))) -> 0 | BO34: =IF(BO$5<=$D34,0,IF(SUM($D34,OFFSET($I19,-$B34,0))>BO$5,OFFSET(BO31,-$B34,-BN$4+$B34)/OFFSET($I19,-$B34,0),OFFSET(BO31,-$B34,-BN$4+$B34)-SUM($I34:BN34))) -> 0 | BP34: =IF(BP$5<=$D34,0,IF(SUM($D34,OFFSET($I19,-$B34,0))>BP$5,OFFSET(BP31,-$B34,-BO$4+$B34)/OFFSET($I19,-$B34,0),OFFSET(BP31,-$B34,-BO$4+$B34)-SUM($I34:BO34))) -> 0 | BQ34: =IF(BQ$5<=$D34,0,IF(SUM($D34,OFFSET($I19,-$B34,0))>BQ$5,OFFSET(BQ31,-$B34,-BP$4+$B34)/OFFSET($I19,-$B34,0),OFFSET(BQ31,-$B34,-BP$4+$B34)-SUM($I34:BP34))) -> 0 | BR34: =IF(BR$5<=$D34,0,IF(SUM($D34,OFFSET($I19,-$B34,0))>BR$5,OFFSET(BR31,-$B34,-BQ$4+$B34)/OFFSET($I19,-$B34,0),OFFSET(BR31,-$B34,-BQ$4+$B34)-SUM($I34:BQ34))) -> 0 | BS34: =IF(BS$5<=$D34,0,IF(SUM($D34,OFFSET($I19,-$B34,0))>BS$5,OFFSET(BS31,-$B34,-BR$4+$B34)/OFFSET($I19,-$B34,0),OFFSET(BS31,-$B34,-BR$4+$B34)-SUM($I34:BR34))) -> 0 | BT34: =IF(BT$5<=$D34,0,IF(SUM($D34,OFFSET($I19,-$B34,0))>BT$5,OFFSET(BT31,-$B34,-BS$4+$B34)/OFFSET($I19,-$B34,0),OFFSET(BT31,-$B34,-BS$4+$B34)-SUM($I34:BS34))) -> 0
B35: 1 | D35: =D34+1 -> 2016 | E35: $m Real (2014) | J35: =IF(J$5<=$D35,0,IF(SUM($D35,OFFSET($I20,-$B35,0))>J$5,OFFSET(J32,-$B35,-I$4+$B35)/OFFSET($I20,-$B35,0),OFFSET(J32,-$B35,-I$4+$B35)-SUM($I35:I35))) -> 0 | K35: =IF(K$5<=$D35,0,IF(SUM($D35,OFFSET($I20,-$B35,0))>K$5,OFFSET(K32,-$B35,-J$4+$B35)/OFFSET($I20,-$B35,0),OFFSET(K32,-$B35,-J$4+$B35)-SUM($I35:J35))) -> 0 | L35: =IF(L$5<=$D35,0,IF(SUM($D35,OFFSET($I20,-$B35,0))>L$5,OFFSET(L32,-$B35,-K$4+$B35)/OFFSET($I20,-$B35,0),OFFSET(L32,-$B35,-K$4+$B35)-SUM($I35:K35))) -> 0.6483202049 | M35: =IF(M$5<=$D35,0,IF(SUM($D35,OFFSET($I20,-$B35,0))>M$5,OFFSET(M32,-$B35,-L$4+$B35)/OFFSET($I20,-$B35,0),OFFSET(M32,-$B35,-L$4+$B35)-SUM($I35:L35))) -> 0.6483202049 | N35: =IF(N$5<=$D35,0,IF(SUM($D35,OFFSET($I20,-$B35,0))>N$5,OFFSET(N32,-$B35,-M$4+$B35)/OFFSET($I20,-$B35,0),OFFSET(N32,-$B35,-M$4+$B35)-SUM($I35:M35))) -> 0.6483202049 | O35: =IF(O$5<=$D35,0,IF(SUM($D35,OFFSET($I20,-$B35,0))>O$5,OFFSET(O32,-$B35,-N$4+$B35)/OFFSET($I20,-$B35,0),OFFSET(O32,-$B35,-N$4+$B35)-SUM($I35:N35))) -> 0.6483202049 | P35: =IF(P$5<=$D35,0,IF(SUM($D35,OFFSET($I20,-$B35,0))>P$5,OFFSET(P32,-$B35,-O$4+$B35)/OFFSET($I20,-$B35,0),OFFSET(P32,-$B35,-O$4+$B35)-SUM($I35:O35))) -> 0.6483202049 | Q35: =IF(Q$5<=$D35,0,IF(SUM($D35,OFFSET($I20,-$B35,0))>Q$5,OFFSET(Q32,-$B35,-P$4+$B35)/OFFSET($I20,-$B35,0),OFFSET(Q32,-$B35,-P$4+$B35)-SUM($I35:P35))) -> 0.6483202049 | R35: =IF(R$5<=$D35,0,IF(SUM($D35,OFFSET($I20,-$B35,0))>R$5,OFFSET(R32,-$B35,-Q$4+$B35)/OFFSET($I20,-$B35,0),OFFSET(R32,-$B35,-Q$4+$B35)-SUM($I35:Q35))) -> 0.6483202049 | S35: =IF(S$5<=$D35,0,IF(SUM($D35,OFFSET($I20,-$B35,0))>S$5,OFFSET(S32,-$B35,-R$4+$B35)/OFFSET($I20,-$B35,0),OFFSET(S32,-$B35,-R$4+$B35)-SUM($I35:R35))) -> 0.6483202049 | T35: =IF(T$5<=$D35,0,IF(SUM($D35,OFFSET($I20,-$B35,0))>T$5,OFFSET(T32,-$B35,-S$4+$B35)/OFFSET($I20,-$B35,0),OFFSET(T32,-$B35,-S$4+$B35)-SUM($I35:S35))) -> 0.6483202049 | U35: =IF(U$5<=$D35,0,IF(SUM($D35,OFFSET($I20,-$B35,0))>U$5,OFFSET(U32,-$B35,-T$4+$B35)/OFFSET($I20,-$B35,0),OFFSET(U32,-$B35,-T$4+$B35)-SUM($I35:T35))) -> 0.6483202049 | V35: =IF(V$5<=$D35,0,IF(SUM($D35,OFFSET($I20,-$B35,0))>V$5,OFFSET(V32,-$B35,-U$4+$B35)/OFFSET($I20,-$B35,0),OFFSET(V32,-$B35,-U$4+$B35)-SUM($I35:U35))) -> 0.6483202049 | W35: =IF(W$5<=$D35,0,IF(SUM($D35,OFFSET($I20,-$B35,0))>W$5,OFFSET(W32,-$B35,-V$4+$B35)/OFFSET($I20,-$B35,0),OFFSET(W32,-$B35,-V$4+$B35)-SUM($I35:V35))) -> 0.6483202049 | X35: =IF(X$5<=$D35,0,IF(SUM($D35,OFFSET($I20,-$B35,0))>X$5,OFFSET(X32,-$B35,-W$4+$B35)/OFFSET($I20,-$B35,0),OFFSET(X32,-$B35,-W$4+$B35)-SUM($I35:W35))) -> 0.6483202049 | Y35: =IF(Y$5<=$D35,0,IF(SUM($D35,OFFSET($I20,-$B35,0))>Y$5,OFFSET(Y32,-$B35,-X$4+$B35)/OFFSET($I20,-$B35,0),OFFSET(Y32,-$B35,-X$4+$B35)-SUM($I35:X35))) -> 0.6483202049 | Z35: =IF(Z$5<=$D35,0,IF(SUM($D35,OFFSET($I20,-$B35,0))>Z$5,OFFSET(Z32,-$B35,-Y$4+$B35)/OFFSET($I20,-$B35,0),OFFSET(Z32,-$B35,-Y$4+$B35)-SUM($I35:Y35))) -> 0.6483202049 | AA35: =IF(AA$5<=$D35,0,IF(SUM($D35,OFFSET($I20,-$B35,0))>AA$5,OFFSET(AA32,-$B35,-Z$4+$B35)/OFFSET($I20,-$B35,0),OFFSET(AA32,-$B35,-Z$4+$B35)-SUM($I35:Z35))) -> 0.6483202049 | AB35: =IF(AB$5<=$D35,0,IF(SUM($D35,OFFSET($I20,-$B35,0))>AB$5,OFFSET(AB32,-$B35,-AA$4+$B35)/OFFSET($I20,-$B35,0),OFFSET(AB32,-$B35,-AA$4+$B35)-SUM($I35:AA35))) -> 0.6483202049 | AC35: =IF(AC$5<=$D35,0,IF(SUM($D35,OFFSET($I20,-$B35,0))>AC$5,OFFSET(AC32,-$B35,-AB$4+$B35)/OFFSET($I20,-$B35,0),OFFSET(AC32,-$B35,-AB$4+$B35)-SUM($I35:AB35))) -> 0.6483202049 | AD35: =IF(AD$5<=$D35,0,IF(SUM($D35,OFFSET($I20,-$B35,0))>AD$5,OFFSET(AD32,-$B35,-AC$4+$B35)/OFFSET($I20,-$B35,0),OFFSET(AD32,-$B35,-AC$4+$B35)-SUM($I35:AC35))) -> 0.6483202049 | AE35: =IF(AE$5<=$D35,0,IF(SUM($D35,OFFSET($I20,-$B35,0))>AE$5,OFFSET(AE32,-$B35,-AD$4+$B35)/OFFSET($I20,-$B35,0),OFFSET(AE32,-$B35,-AD$4+$B35)-SUM($I35:AD35))) -> 0.6483202049 | AF35: =IF(AF$5<=$D35,0,IF(SUM($D35,OFFSET($I20,-$B35,0))>AF$5,OFFSET(AF32,-$B35,-AE$4+$B35)/OFFSET($I20,-$B35,0),OFFSET(AF32,-$B35,-AE$4+$B35)-SUM($I35:AE35))) -> 0.6483202049 | AG35: =IF(AG$5<=$D35,0,IF(SUM($D35,OFFSET($I20,-$B35,0))>AG$5,OFFSET(AG32,-$B35,-AF$4+$B35)/OFFSET($I20,-$B35,0),OFFSET(AG32,-$B35,-AF$4+$B35)-SUM($I35:AF35))) -> 0.6483202049 | AH35: =IF(AH$5<=$D35,0,IF(SUM($D35,OFFSET($I20,-$B35,0))>AH$5,OFFSET(AH32,-$B35,-AG$4+$B35)/OFFSET($I20,-$B35,0),OFFSET(AH32,-$B35,-AG$4+$B35)-SUM($I35:AG35))) -> 0.6483202049 | AI35: =IF(AI$5<=$D35,0,IF(SUM($D35,OFFSET($I20,-$B35,0))>AI$5,OFFSET(AI32,-$B35,-AH$4+$B35)/OFFSET($I20,-$B35,0),OFFSET(AI32,-$B35,-AH$4+$B35)-SUM($I35:AH35))) -> 0.6483202049 | AJ35: =IF(AJ$5<=$D35,0,IF(SUM($D35,OFFSET($I20,-$B35,0))>AJ$5,OFFSET(AJ32,-$B35,-AI$4+$B35)/OFFSET($I20,-$B35,0),OFFSET(AJ32,-$B35,-AI$4+$B35)-SUM($I35:AI35))) -> 0.6483202049 | AK35: =IF(AK$5<=$D35,0,IF(SUM($D35,OFFSET($I20,-$B35,0))>AK$5,OFFSET(AK32,-$B35,-AJ$4+$B35)/OFFSET($I20,-$B35,0),OFFSET(AK32,-$B35,-AJ$4+$B35)-SUM($I35:AJ35))) -> 0.6483202049 | AL35: =IF(AL$5<=$D35,0,IF(SUM($D35,OFFSET($I20,-$B35,0))>AL$5,OFFSET(AL32,-$B35,-AK$4+$B35)/OFFSET($I20,-$B35,0),OFFSET(AL32,-$B35,-AK$4+$B35)-SUM($I35:AK35))) -> 0.6483202049 | AM35: =IF(AM$5<=$D35,0,IF(SUM($D35,OFFSET($I20,-$B35,0))>AM$5,OFFSET(AM32,-$B35,-AL$4+$B35)/OFFSET($I20,-$B35,0),OFFSET(AM32,-$B35,-AL$4+$B35)-SUM($I35:AL35))) -> 0.6483202049 | AN35: =IF(AN$5<=$D35,0,IF(SUM($D35,OFFSET($I20,-$B35,0))>AN$5,OFFSET(AN32,-$B35,-AM$4+$B35)/OFFSET($I20,-$B35,0),OFFSET(AN32,-$B35,-AM$4+$B35)-SUM($I35:AM35))) -> 0.6483202049 | AO35: =IF(AO$5<=$D35,0,IF(SUM($D35,OFFSET($I20,-$B35,0))>AO$5,OFFSET(AO32,-$B35,-AN$4+$B35)/OFFSET($I20,-$B35,0),OFFSET(AO32,-$B35,-AN$4+$B35)-SUM($I35:AN35))) -> 0.6483202049 | AP35: =IF(AP$5<=$D35,0,IF(SUM($D35,OFFSET($I20,-$B35,0))>AP$5,OFFSET(AP32,-$B35,-AO$4+$B35)/OFFSET($I20,-$B35,0),OFFSET(AP32,-$B35,-AO$4+$B35)-SUM($I35:AO35))) -> 0.6483202049 | AQ35: =IF(AQ$5<=$D35,0,IF(SUM($D35,OFFSET($I20,-$B35,0))>AQ$5,OFFSET(AQ32,-$B35,-AP$4+$B35)/OFFSET($I20,-$B35,0),OFFSET(AQ32,-$B35,-AP$4+$B35)-SUM($I35:AP35))) -> 0.6483202049 | AR35: =IF(AR$5<=$D35,0,IF(SUM($D35,OFFSET($I20,-$B35,0))>AR$5,OFFSET(AR32,-$B35,-AQ$4+$B35)/OFFSET($I20,-$B35,0),OFFSET(AR32,-$B35,-AQ$4+$B35)-SUM($I35:AQ35))) -> 0.6483202049 | AS35: =IF(AS$5<=$D35,0,IF(SUM($D35,OFFSET($I20,-$B35,0))>AS$5,OFFSET(AS32,-$B35,-AR$4+$B35)/OFFSET($I20,-$B35,0),OFFSET(AS32,-$B35,-AR$4+$B35)-SUM($I35:AR35))) -> 0.6483202049 | AT35: =IF(AT$5<=$D35,0,IF(SUM($D35,OFFSET($I20,-$B35,0))>AT$5,OFFSET(AT32,-$B35,-AS$4+$B35)/OFFSET($I20,-$B35,0),OFFSET(AT32,-$B35,-AS$4+$B35)-SUM($I35:AS35))) -> 0.6483202049 | AU35: =IF(AU$5<=$D35,0,IF(SUM($D35,OFFSET($I20,-$B35,0))>AU$5,OFFSET(AU32,-$B35,-AT$4+$B35)/OFFSET($I20,-$B35,0),OFFSET(AU32,-$B35,-AT$4+$B35)-SUM($I35:AT35))) -> 0.6483202049 | AV35: =IF(AV$5<=$D35,0,IF(SUM($D35,OFFSET($I20,-$B35,0))>AV$5,OFFSET(AV32,-$B35,-AU$4+$B35)/OFFSET($I20,-$B35,0),OFFSET(AV32,-$B35,-AU$4+$B35)-SUM($I35:AU35))) -> 0.6483202049 | AW35: =IF(AW$5<=$D35,0,IF(SUM($D35,OFFSET($I20,-$B35,0))>AW$5,OFFSET(AW32,-$B35,-AV$4+$B35)/OFFSET($I20,-$B35,0),OFFSET(AW32,-$B35,-AV$4+$B35)-SUM($I35:AV35))) -> 0.6483202049 | AX35: =IF(AX$5<=$D35,0,IF(SUM($D35,OFFSET($I20,-$B35,0))>AX$5,OFFSET(AX32,-$B35,-AW$4+$B35)/OFFSET($I20,-$B35,0),OFFSET(AX32,-$B35,-AW$4+$B35)-SUM($I35:AW35))) -> 0.6483202049 | AY35: =IF(AY$5<=$D35,0,IF(SUM($D35,OFFSET($I20,-$B35,0))>AY$5,OFFSET(AY32,-$B35,-AX$4+$B35)/OFFSET($I20,-$B35,0),OFFSET(AY32,-$B35,-AX$4+$B35)-SUM($I35:AX35))) -> 0.6483202049 | AZ35: =IF(AZ$5<=$D35,0,IF(SUM($D35,OFFSET($I20,-$B35,0))>AZ$5,OFFSET(AZ32,-$B35,-AY$4+$B35)/OFFSET($I20,-$B35,0),OFFSET(AZ32,-$B35,-AY$4+$B35)-SUM($I35:AY35))) -> 0.6483202049 | BA35: =IF(BA$5<=$D35,0,IF(SUM($D35,OFFSET($I20,-$B35,0))>BA$5,OFFSET(BA32,-$B35,-AZ$4+$B35)/OFFSET($I20,-$B35,0),OFFSET(BA32,-$B35,-AZ$4+$B35)-SUM($I35:AZ35))) -> 0.6310359756 | BB35: =IF(BB$5<=$D35,0,IF(SUM($D35,OFFSET($I20,-$B35,0))>BB$5,OFFSET(BB32,-$B35,-BA$4+$B35)/OFFSET($I20,-$B35,0),OFFSET(BB32,-$B35,-BA$4+$B35)-SUM($I35:BA35))) -> 0 | BC35: =IF(BC$5<=$D35,0,IF(SUM($D35,OFFSET($I20,-$B35,0))>BC$5,OFFSET(BC32,-$B35,-BB$4+$B35)/OFFSET($I20,-$B35,0),OFFSET(BC32,-$B35,-BB$4+$B35)-SUM($I35:BB35))) -> 0 | BD35: =IF(BD$5<=$D35,0,IF(SUM($D35,OFFSET($I20,-$B35,0))>BD$5,OFFSET(BD32,-$B35,-BC$4+$B35)/OFFSET($I20,-$B35,0),OFFSET(BD32,-$B35,-BC$4+$B35)-SUM($I35:BC35))) -> 0 | BE35: =IF(BE$5<=$D35,0,IF(SUM($D35,OFFSET($I20,-$B35,0))>BE$5,OFFSET(BE32,-$B35,-BD$4+$B35)/OFFSET($I20,-$B35,0),OFFSET(BE32,-$B35,-BD$4+$B35)-SUM($I35:BD35))) -> 0 | BF35: =IF(BF$5<=$D35,0,IF(SUM($D35,OFFSET($I20,-$B35,0))>BF$5,OFFSET(BF32,-$B35,-BE$4+$B35)/OFFSET($I20,-$B35,0),OFFSET(BF32,-$B35,-BE$4+$B35)-SUM($I35:BE35))) -> 0 | BG35: =IF(BG$5<=$D35,0,IF(SUM($D35,OFFSET($I20,-$B35,0))>BG$5,OFFSET(BG32,-$B35,-BF$4+$B35)/OFFSET($I20,-$B35,0),OFFSET(BG32,-$B35,-BF$4+$B35)-SUM($I35:BF35))) -> 0 | BH35: =IF(BH$5<=$D35,0,IF(SUM($D35,OFFSET($I20,-$B35,0))>BH$5,OFFSET(BH32,-$B35,-BG$4+$B35)/OFFSET($I20,-$B35,0),OFFSET(BH32,-$B35,-BG$4+$B35)-SUM($I35:BG35))) -> 0 | BI35: =IF(BI$5<=$D35,0,IF(SUM($D35,OFFSET($I20,-$B35,0))>BI$5,OFFSET(BI32,-$B35,-BH$4+$B35)/OFFSET($I20,-$B35,0),OFFSET(BI32,-$B35,-BH$4+$B35)-SUM($I35:BH35))) -> 0 | BJ35: =IF(BJ$5<=$D35,0,IF(SUM($D35,OFFSET($I20,-$B35,0))>BJ$5,OFFSET(BJ32,-$B35,-BI$4+$B35)/OFFSET($I20,-$B35,0),OFFSET(BJ32,-$B35,-BI$4+$B35)-SUM($I35:BI35))) -> 0 | BK35: =IF(BK$5<=$D35,0,IF(SUM($D35,OFFSET($I20,-$B35,0))>BK$5,OFFSET(BK32,-$B35,-BJ$4+$B35)/OFFSET($I20,-$B35,0),OFFSET(BK32,-$B35,-BJ$4+$B35)-SUM($I35:BJ35))) -> 0 | BL35: =IF(BL$5<=$D35,0,IF(SUM($D35,OFFSET($I20,-$B35,0))>BL$5,OFFSET(BL32,-$B35,-BK$4+$B35)/OFFSET($I20,-$B35,0),OFFSET(BL32,-$B35,-BK$4+$B35)-SUM($I35:BK35))) -> 0 | BM35: =IF(BM$5<=$D35,0,IF(SUM($D35,OFFSET($I20,-$B35,0))>BM$5,OFFSET(BM32,-$B35,-BL$4+$B35)/OFFSET($I20,-$B35,0),OFFSET(BM32,-$B35,-BL$4+$B35)-SUM($I35:BL35))) -> 0 | BN35: =IF(BN$5<=$D35,0,IF(SUM($D35,OFFSET($I20,-$B35,0))>BN$5,OFFSET(BN32,-$B35,-BM$4+$B35)/OFFSET($I20,-$B35,0),OFFSET(BN32,-$B35,-BM$4+$B35)-SUM($I35:BM35))) -> 0 | BO35: =IF(BO$5<=$D35,0,IF(SUM($D35,OFFSET($I20,-$B35,0))>BO$5,OFFSET(BO32,-$B35,-BN$4+$B35)/OFFSET($I20,-$B35,0),OFFSET(BO32,-$B35,-BN$4+$B35)-SUM($I35:BN35))) -> 0 | BP35: =IF(BP$5<=$D35,0,IF(SUM($D35,OFFSET($I20,-$B35,0))>BP$5,OFFSET(BP32,-$B35,-BO$4+$B35)/OFFSET($I20,-$B35,0),OFFSET(BP32,-$B35,-BO$4+$B35)-SUM($I35:BO35))) -> 0 | BQ35: =IF(BQ$5<=$D35,0,IF(SUM($D35,OFFSET($I20,-$B35,0))>BQ$5,OFFSET(BQ32,-$B35,-BP$4+$B35)/OFFSET($I20,-$B35,0),OFFSET(BQ32,-$B35,-BP$4+$B35)-SUM($I35:BP35))) -> 0 | BR35: =IF(BR$5<=$D35,0,IF(SUM($D35,OFFSET($I20,-$B35,0))>BR$5,OFFSET(BR32,-$B35,-BQ$4+$B35)/OFFSET($I20,-$B35,0),OFFSET(BR32,-$B35,-BQ$4+$B35)-SUM($I35:BQ35))) -> 0 | BS35: =IF(BS$5<=$D35,0,IF(SUM($D35,OFFSET($I20,-$B35,0))>BS$5,OFFSET(BS32,-$B35,-BR$4+$B35)/OFFSET($I20,-$B35,0),OFFSET(BS32,-$B35,-BR$4+$B35)-SUM($I35:BR35))) -> 0 | BT35: =IF(BT$5<=$D35,0,IF(SUM($D35,OFFSET($I20,-$B35,0))>BT$5,OFFSET(BT32,-$B35,-BS$4+$B35)/OFFSET($I20,-$B35,0),OFFSET(BT32,-$B35,-BS$4+$B35)-SUM($I35:BS35))) -> 0
B36: 2 | D36: =D35+1 -> 2017 | E36: $m Real (2014) | J36: =IF(J$5<=$D36,0,IF(SUM($D36,OFFSET($I21,-$B36,0))>J$5,OFFSET(J33,-$B36,-I$4+$B36)/OFFSET($I21,-$B36,0),OFFSET(J33,-$B36,-I$4+$B36)-SUM($I36:I36))) -> 0 | K36: =IF(K$5<=$D36,0,IF(SUM($D36,OFFSET($I21,-$B36,0))>K$5,OFFSET(K33,-$B36,-J$4+$B36)/OFFSET($I21,-$B36,0),OFFSET(K33,-$B36,-J$4+$B36)-SUM($I36:J36))) -> 0 | L36: =IF(L$5<=$D36,0,IF(SUM($D36,OFFSET($I21,-$B36,0))>L$5,OFFSET(L33,-$B36,-K$4+$B36)/OFFSET($I21,-$B36,0),OFFSET(L33,-$B36,-K$4+$B36)-SUM($I36:K36))) -> 0 | M36: =IF(M$5<=$D36,0,IF(SUM($D36,OFFSET($I21,-$B36,0))>M$5,OFFSET(M33,-$B36,-L$4+$B36)/OFFSET($I21,-$B36,0),OFFSET(M33,-$B36,-L$4+$B36)-SUM($I36:L36))) -> 0.3221497353 | N36: =IF(N$5<=$D36,0,IF(SUM($D36,OFFSET($I21,-$B36,0))>N$5,OFFSET(N33,-$B36,-M$4+$B36)/OFFSET($I21,-$B36,0),OFFSET(N33,-$B36,-M$4+$B36)-SUM($I36:M36))) -> 0.3221497353 | O36: =IF(O$5<=$D36,0,IF(SUM($D36,OFFSET($I21,-$B36,0))>O$5,OFFSET(O33,-$B36,-N$4+$B36)/OFFSET($I21,-$B36,0),OFFSET(O33,-$B36,-N$4+$B36)-SUM($I36:N36))) -> 0.3221497353 | P36: =IF(P$5<=$D36,0,IF(SUM($D36,OFFSET($I21,-$B36,0))>P$5,OFFSET(P33,-$B36,-O$4+$B36)/OFFSET($I21,-$B36,0),OFFSET(P33,-$B36,-O$4+$B36)-SUM($I36:O36))) -> 0.3221497353 | Q36: =IF(Q$5<=$D36,0,IF(SUM($D36,OFFSET($I21,-$B36,0))>Q$5,OFFSET(Q33,-$B36,-P$4+$B36)/OFFSET($I21,-$B36,0),OFFSET(Q33,-$B36,-P$4+$B36)-SUM($I36:P36))) -> 0.3221497353 | R36: =IF(R$5<=$D36,0,IF(SUM($D36,OFFSET($I21,-$B36,0))>R$5,OFFSET(R33,-$B36,-Q$4+$B36)/OFFSET($I21,-$B36,0),OFFSET(R33,-$B36,-Q$4+$B36)-SUM($I36:Q36))) -> 0.3221497353 | S36: =IF(S$5<=$D36,0,IF(SUM($D36,OFFSET($I21,-$B36,0))>S$5,OFFSET(S33,-$B36,-R$4+$B36)/OFFSET($I21,-$B36,0),OFFSET(S33,-$B36,-R$4+$B36)-SUM($I36:R36))) -> 0.3221497353 | T36: =IF(T$5<=$D36,0,IF(SUM($D36,OFFSET($I21,-$B36,0))>T$5,OFFSET(T33,-$B36,-S$4+$B36)/OFFSET($I21,-$B36,0),OFFSET(T33,-$B36,-S$4+$B36)-SUM($I36:S36))) -> 0.3221497353 | U36: =IF(U$5<=$D36,0,IF(SUM($D36,OFFSET($I21,-$B36,0))>U$5,OFFSET(U33,-$B36,-T$4+$B36)/OFFSET($I21,-$B36,0),OFFSET(U33,-$B36,-T$4+$B36)-SUM($I36:T36))) -> 0.3221497353 | V36: =IF(V$5<=$D36,0,IF(SUM($D36,OFFSET($I21,-$B36,0))>V$5,OFFSET(V33,-$B36,-U$4+$B36)/OFFSET($I21,-$B36,0),OFFSET(V33,-$B36,-U$4+$B36)-SUM($I36:U36))) -> 0.3221497353 | W36: =IF(W$5<=$D36,0,IF(SUM($D36,OFFSET($I21,-$B36,0))>W$5,OFFSET(W33,-$B36,-V$4+$B36)/OFFSET($I21,-$B36,0),OFFSET(W33,-$B36,-V$4+$B36)-SUM($I36:V36))) -> 0.3221497353 | X36: =IF(X$5<=$D36,0,IF(SUM($D36,OFFSET($I21,-$B36,0))>X$5,OFFSET(X33,-$B36,-W$4+$B36)/OFFSET($I21,-$B36,0),OFFSET(X33,-$B36,-W$4+$B36)-SUM($I36:W36))) -> 0.3221497353 | Y36: =IF(Y$5<=$D36,0,IF(SUM($D36,OFFSET($I21,-$B36,0))>Y$5,OFFSET(Y33,-$B36,-X$4+$B36)/OFFSET($I21,-$B36,0),OFFSET(Y33,-$B36,-X$4+$B36)-SUM($I36:X36))) -> 0.3221497353 | Z36: =IF(Z$5<=$D36,0,IF(SUM($D36,OFFSET($I21,-$B36,0))>Z$5,OFFSET(Z33,-$B36,-Y$4+$B36)/OFFSET($I21,-$B36,0),OFFSET(Z33,-$B36,-Y$4+$B36)-SUM($I36:Y36))) -> 0.3221497353 | AA36: =IF(AA$5<=$D36,0,IF(SUM($D36,OFFSET($I21,-$B36,0))>AA$5,OFFSET(AA33,-$B36,-Z$4+$B36)/OFFSET($I21,-$B36,0),OFFSET(AA33,-$B36,-Z$4+$B36)-SUM($I36:Z36))) -> 0.3221497353 | AB36: =IF(AB$5<=$D36,0,IF(SUM($D36,OFFSET($I21,-$B36,0))>AB$5,OFFSET(AB33,-$B36,-AA$4+$B36)/OFFSET($I21,-$B36,0),OFFSET(AB33,-$B36,-AA$4+$B36)-SUM($I36:AA36))) -> 0.3221497353 | AC36: =IF(AC$5<=$D36,0,IF(SUM($D36,OFFSET($I21,-$B36,0))>AC$5,OFFSET(AC33,-$B36,-AB$4+$B36)/OFFSET($I21,-$B36,0),OFFSET(AC33,-$B36,-AB$4+$B36)-SUM($I36:AB36))) -> 0.3221497353 | AD36: =IF(AD$5<=$D36,0,IF(SUM($D36,OFFSET($I21,-$B36,0))>AD$5,OFFSET(AD33,-$B36,-AC$4+$B36)/OFFSET($I21,-$B36,0),OFFSET(AD33,-$B36,-AC$4+$B36)-SUM($I36:AC36))) -> 0.3221497353 | AE36: =IF(AE$5<=$D36,0,IF(SUM($D36,OFFSET($I21,-$B36,0))>AE$5,OFFSET(AE33,-$B36,-AD$4+$B36)/OFFSET($I21,-$B36,0),OFFSET(AE33,-$B36,-AD$4+$B36)-SUM($I36:AD36))) -> 0.3221497353 | AF36: =IF(AF$5<=$D36,0,IF(SUM($D36,OFFSET($I21,-$B36,0))>AF$5,OFFSET(AF33,-$B36,-AE$4+$B36)/OFFSET($I21,-$B36,0),OFFSET(AF33,-$B36,-AE$4+$B36)-SUM($I36:AE36))) -> 0.3221497353 | AG36: =IF(AG$5<=$D36,0,IF(SUM($D36,OFFSET($I21,-$B36,0))>AG$5,OFFSET(AG33,-$B36,-AF$4+$B36)/OFFSET($I21,-$B36,0),OFFSET(AG33,-$B36,-AF$4+$B36)-SUM($I36:AF36))) -> 0.3221497353 | AH36: =IF(AH$5<=$D36,0,IF(SUM($D36,OFFSET($I21,-$B36,0))>AH$5,OFFSET(AH33,-$B36,-AG$4+$B36)/OFFSET($I21,-$B36,0),OFFSET(AH33,-$B36,-AG$4+$B36)-SUM($I36:AG36))) -> 0.3221497353 | AI36: =IF(AI$5<=$D36,0,IF(SUM($D36,OFFSET($I21,-$B36,0))>AI$5,OFFSET(AI33,-$B36,-AH$4+$B36)/OFFSET($I21,-$B36,0),OFFSET(AI33,-$B36,-AH$4+$B36)-SUM($I36:AH36))) -> 0.3221497353 | AJ36: =IF(AJ$5<=$D36,0,IF(SUM($D36,OFFSET($I21,-$B36,0))>AJ$5,OFFSET(AJ33,-$B36,-AI$4+$B36)/OFFSET($I21,-$B36,0),OFFSET(AJ33,-$B36,-AI$4+$B36)-SUM($I36:AI36))) -> 0.3221497353 | AK36: =IF(AK$5<=$D36,0,IF(SUM($D36,OFFSET($I21,-$B36,0))>AK$5,OFFSET(AK33,-$B36,-AJ$4+$B36)/OFFSET($I21,-$B36,0),OFFSET(AK33,-$B36,-AJ$4+$B36)-SUM($I36:AJ36))) -> 0.3221497353 | AL36: =IF(AL$5<=$D36,0,IF(SUM($D36,OFFSET($I21,-$B36,0))>AL$5,OFFSET(AL33,-$B36,-AK$4+$B36)/OFFSET($I21,-$B36,0),OFFSET(AL33,-$B36,-AK$4+$B36)-SUM($I36:AK36))) -> 0.3221497353 | AM36: =IF(AM$5<=$D36,0,IF(SUM($D36,OFFSET($I21,-$B36,0))>AM$5,OFFSET(AM33,-$B36,-AL$4+$B36)/OFFSET($I21,-$B36,0),OFFSET(AM33,-$B36,-AL$4+$B36)-SUM($I36:AL36))) -> 0.3221497353 | AN36: =IF(AN$5<=$D36,0,IF(SUM($D36,OFFSET($I21,-$B36,0))>AN$5,OFFSET(AN33,-$B36,-AM$4+$B36)/OFFSET($I21,-$B36,0),OFFSET(AN33,-$B36,-AM$4+$B36)-SUM($I36:AM36))) -> 0.3221497353 | AO36: =IF(AO$5<=$D36,0,IF(SUM($D36,OFFSET($I21,-$B36,0))>AO$5,OFFSET(AO33,-$B36,-AN$4+$B36)/OFFSET($I21,-$B36,0),OFFSET(AO33,-$B36,-AN$4+$B36)-SUM($I36:AN36))) -> 0.3221497353 | AP36: =IF(AP$5<=$D36,0,IF(SUM($D36,OFFSET($I21,-$B36,0))>AP$5,OFFSET(AP33,-$B36,-AO$4+$B36)/OFFSET($I21,-$B36,0),OFFSET(AP33,-$B36,-AO$4+$B36)-SUM($I36:AO36))) -> 0.3221497353 | AQ36: =IF(AQ$5<=$D36,0,IF(SUM($D36,OFFSET($I21,-$B36,0))>AQ$5,OFFSET(AQ33,-$B36,-AP$4+$B36)/OFFSET($I21,-$B36,0),OFFSET(AQ33,-$B36,-AP$4+$B36)-SUM($I36:AP36))) -> 0.3221497353 | AR36: =IF(AR$5<=$D36,0,IF(SUM($D36,OFFSET($I21,-$B36,0))>AR$5,OFFSET(AR33,-$B36,-AQ$4+$B36)/OFFSET($I21,-$B36,0),OFFSET(AR33,-$B36,-AQ$4+$B36)-SUM($I36:AQ36))) -> 0.3221497353 | AS36: =IF(AS$5<=$D36,0,IF(SUM($D36,OFFSET($I21,-$B36,0))>AS$5,OFFSET(AS33,-$B36,-AR$4+$B36)/OFFSET($I21,-$B36,0),OFFSET(AS33,-$B36,-AR$4+$B36)-SUM($I36:AR36))) -> 0.3221497353 | AT36: =IF(AT$5<=$D36,0,IF(SUM($D36,OFFSET($I21,-$B36,0))>AT$5,OFFSET(AT33,-$B36,-AS$4+$B36)/OFFSET($I21,-$B36,0),OFFSET(AT33,-$B36,-AS$4+$B36)-SUM($I36:AS36))) -> 0.3221497353 | AU36: =IF(AU$5<=$D36,0,IF(SUM($D36,OFFSET($I21,-$B36,0))>AU$5,OFFSET(AU33,-$B36,-AT$4+$B36)/OFFSET($I21,-$B36,0),OFFSET(AU33,-$B36,-AT$4+$B36)-SUM($I36:AT36))) -> 0.3221497353 | AV36: =IF(AV$5<=$D36,0,IF(SUM($D36,OFFSET($I21,-$B36,0))>AV$5,OFFSET(AV33,-$B36,-AU$4+$B36)/OFFSET($I21,-$B36,0),OFFSET(AV33,-$B36,-AU$4+$B36)-SUM($I36:AU36))) -> 0.3221497353 | AW36: =IF(AW$5<=$D36,0,IF(SUM($D36,OFFSET($I21,-$B36,0))>AW$5,OFFSET(AW33,-$B36,-AV$4+$B36)/OFFSET($I21,-$B36,0),OFFSET(AW33,-$B36,-AV$4+$B36)-SUM($I36:AV36))) -> 0.3221497353 | AX36: =IF(AX$5<=$D36,0,IF(SUM($D36,OFFSET($I21,-$B36,0))>AX$5,OFFSET(AX33,-$B36,-AW$4+$B36)/OFFSET($I21,-$B36,0),OFFSET(AX33,-$B36,-AW$4+$B36)-SUM($I36:AW36))) -> 0.3221497353 | AY36: =IF(AY$5<=$D36,0,IF(SUM($D36,OFFSET($I21,-$B36,0))>AY$5,OFFSET(AY33,-$B36,-AX$4+$B36)/OFFSET($I21,-$B36,0),OFFSET(AY33,-$B36,-AX$4+$B36)-SUM($I36:AX36))) -> 0.3221497353 | AZ36: =IF(AZ$5<=$D36,0,IF(SUM($D36,OFFSET($I21,-$B36,0))>AZ$5,OFFSET(AZ33,-$B36,-AY$4+$B36)/OFFSET($I21,-$B36,0),OFFSET(AZ33,-$B36,-AY$4+$B36)-SUM($I36:AY36))) -> 0.3221497353 | BA36: =IF(BA$5<=$D36,0,IF(SUM($D36,OFFSET($I21,-$B36,0))>BA$5,OFFSET(BA33,-$B36,-AZ$4+$B36)/OFFSET($I21,-$B36,0),OFFSET(BA33,-$B36,-AZ$4+$B36)-SUM($I36:AZ36))) -> 0.3221497353 | BB36: =IF(BB$5<=$D36,0,IF(SUM($D36,OFFSET($I21,-$B36,0))>BB$5,OFFSET(BB33,-$B36,-BA$4+$B36)/OFFSET($I21,-$B36,0),OFFSET(BB33,-$B36,-BA$4+$B36)-SUM($I36:BA36))) -> 0.3135612171 | BC36: =IF(BC$5<=$D36,0,IF(SUM($D36,OFFSET($I21,-$B36,0))>BC$5,OFFSET(BC33,-$B36,-BB$4+$B36)/OFFSET($I21,-$B36,0),OFFSET(BC33,-$B36,-BB$4+$B36)-SUM($I36:BB36))) -> 0 | BD36: =IF(BD$5<=$D36,0,IF(SUM($D36,OFFSET($I21,-$B36,0))>BD$5,OFFSET(BD33,-$B36,-BC$4+$B36)/OFFSET($I21,-$B36,0),OFFSET(BD33,-$B36,-BC$4+$B36)-SUM($I36:BC36))) -> 0 | BE36: =IF(BE$5<=$D36,0,IF(SUM($D36,OFFSET($I21,-$B36,0))>BE$5,OFFSET(BE33,-$B36,-BD$4+$B36)/OFFSET($I21,-$B36,0),OFFSET(BE33,-$B36,-BD$4+$B36)-SUM($I36:BD36))) -> 0 | BF36: =IF(BF$5<=$D36,0,IF(SUM($D36,OFFSET($I21,-$B36,0))>BF$5,OFFSET(BF33,-$B36,-BE$4+$B36)/OFFSET($I21,-$B36,0),OFFSET(BF33,-$B36,-BE$4+$B36)-SUM($I36:BE36))) -> 0 | BG36: =IF(BG$5<=$D36,0,IF(SUM($D36,OFFSET($I21,-$B36,0))>BG$5,OFFSET(BG33,-$B36,-BF$4+$B36)/OFFSET($I21,-$B36,0),OFFSET(BG33,-$B36,-BF$4+$B36)-SUM($I36:BF36))) -> 0 | BH36: =IF(BH$5<=$D36,0,IF(SUM($D36,OFFSET($I21,-$B36,0))>BH$5,OFFSET(BH33,-$B36,-BG$4+$B36)/OFFSET($I21,-$B36,0),OFFSET(BH33,-$B36,-BG$4+$B36)-SUM($I36:BG36))) -> 0 | BI36: =IF(BI$5<=$D36,0,IF(SUM($D36,OFFSET($I21,-$B36,0))>BI$5,OFFSET(BI33,-$B36,-BH$4+$B36)/OFFSET($I21,-$B36,0),OFFSET(BI33,-$B36,-BH$4+$B36)-SUM($I36:BH36))) -> 0 | BJ36: =IF(BJ$5<=$D36,0,IF(SUM($D36,OFFSET($I21,-$B36,0))>BJ$5,OFFSET(BJ33,-$B36,-BI$4+$B36)/OFFSET($I21,-$B36,0),OFFSET(BJ33,-$B36,-BI$4+$B36)-SUM($I36:BI36))) -> 0 | BK36: =IF(BK$5<=$D36,0,IF(SUM($D36,OFFSET($I21,-$B36,0))>BK$5,OFFSET(BK33,-$B36,-BJ$4+$B36)/OFFSET($I21,-$B36,0),OFFSET(BK33,-$B36,-BJ$4+$B36)-SUM($I36:BJ36))) -> 0 | BL36: =IF(BL$5<=$D36,0,IF(SUM($D36,OFFSET($I21,-$B36,0))>BL$5,OFFSET(BL33,-$B36,-BK$4+$B36)/OFFSET($I21,-$B36,0),OFFSET(BL33,-$B36,-BK$4+$B36)-SUM($I36:BK36))) -> 0 | BM36: =IF(BM$5<=$D36,0,IF(SUM($D36,OFFSET($I21,-$B36,0))>BM$5,OFFSET(BM33,-$B36,-BL$4+$B36)/OFFSET($I21,-$B36,0),OFFSET(BM33,-$B36,-BL$4+$B36)-SUM($I36:BL36))) -> 0 | BN36: =IF(BN$5<=$D36,0,IF(SUM($D36,OFFSET($I21,-$B36,0))>BN$5,OFFSET(BN33,-$B36,-BM$4+$B36)/OFFSET($I21,-$B36,0),OFFSET(BN33,-$B36,-BM$4+$B36)-SUM($I36:BM36))) -> 0 | BO36: =IF(BO$5<=$D36,0,IF(SUM($D36,OFFSET($I21,-$B36,0))>BO$5,OFFSET(BO33,-$B36,-BN$4+$B36)/OFFSET($I21,-$B36,0),OFFSET(BO33,-$B36,-BN$4+$B36)-SUM($I36:BN36))) -> 0 | BP36: =IF(BP$5<=$D36,0,IF(SUM($D36,OFFSET($I21,-$B36,0))>BP$5,OFFSET(BP33,-$B36,-BO$4+$B36)/OFFSET($I21,-$B36,0),OFFSET(BP33,-$B36,-BO$4+$B36)-SUM($I36:BO36))) -> 0 | BQ36: =IF(BQ$5<=$D36,0,IF(SUM($D36,OFFSET($I21,-$B36,0))>BQ$5,OFFSET(BQ33,-$B36,-BP$4+$B36)/OFFSET($I21,-$B36,0),OFFSET(BQ33,-$B36,-BP$4+$B36)-SUM($I36:BP36))) -> 0 | BR36: =IF(BR$5<=$D36,0,IF(SUM($D36,OFFSET($I21,-$B36,0))>BR$5,OFFSET(BR33,-$B36,-BQ$4+$B36)/OFFSET($I21,-$B36,0),OFFSET(BR33,-$B36,-BQ$4+$B36)-SUM($I36:BQ36))) -> 0 | BS36: =IF(BS$5<=$D36,0,IF(SUM($D36,OFFSET($I21,-$B36,0))>BS$5,OFFSET(BS33,-$B36,-BR$4+$B36)/OFFSET($I21,-$B36,0),OFFSET(BS33,-$B36,-BR$4+$B36)-SUM($I36:BR36))) -> 0 | BT36: =IF(BT$5<=$D36,0,IF(SUM($D36,OFFSET($I21,-$B36,0))>BT$5,OFFSET(BT33,-$B36,-BS$4+$B36)/OFFSET($I21,-$B36,0),OFFSET(BT33,-$B36,-BS$4+$B36)-SUM($I36:BS36))) -> 0
B37: 3 | D37: 2018 | E37: $m Real (2014) | J37: =IF(J$5<=$D37,0,IF(SUM($D37,OFFSET($I22,-$B37,0))>J$5,OFFSET(J34,-$B37,-I$4+$B37)/OFFSET($I22,-$B37,0),OFFSET(J34,-$B37,-I$4+$B37)-SUM($I37:I37))) -> 0 | K37: =IF(K$5<=$D37,0,IF(SUM($D37,OFFSET($I22,-$B37,0))>K$5,OFFSET(K34,-$B37,-J$4+$B37)/OFFSET($I22,-$B37,0),OFFSET(K34,-$B37,-J$4+$B37)-SUM($I37:J37))) -> 0 | L37: =IF(L$5<=$D37,0,IF(SUM($D37,OFFSET($I22,-$B37,0))>L$5,OFFSET(L34,-$B37,-K$4+$B37)/OFFSET($I22,-$B37,0),OFFSET(L34,-$B37,-K$4+$B37)-SUM($I37:K37))) -> 0 | M37: =IF(M$5<=$D37,0,IF(SUM($D37,OFFSET($I22,-$B37,0))>M$5,OFFSET(M34,-$B37,-L$4+$B37)/OFFSET($I22,-$B37,0),OFFSET(M34,-$B37,-L$4+$B37)-SUM($I37:L37))) -> 0 | N37: =IF(N$5<=$D37,0,IF(SUM($D37,OFFSET($I22,-$B37,0))>N$5,OFFSET(N34,-$B37,-M$4+$B37)/OFFSET($I22,-$B37,0),OFFSET(N34,-$B37,-M$4+$B37)-SUM($I37:M37))) -> 0.1794387849 | O37: =IF(O$5<=$D37,0,IF(SUM($D37,OFFSET($I22,-$B37,0))>O$5,OFFSET(O34,-$B37,-N$4+$B37)/OFFSET($I22,-$B37,0),OFFSET(O34,-$B37,-N$4+$B37)-SUM($I37:N37))) -> 0.1794387849 | P37: =IF(P$5<=$D37,0,IF(SUM($D37,OFFSET($I22,-$B37,0))>P$5,OFFSET(P34,-$B37,-O$4+$B37)/OFFSET($I22,-$B37,0),OFFSET(P34,-$B37,-O$4+$B37)-SUM($I37:O37))) -> 0.1794387849 | Q37: =IF(Q$5<=$D37,0,IF(SUM($D37,OFFSET($I22,-$B37,0))>Q$5,OFFSET(Q34,-$B37,-P$4+$B37)/OFFSET($I22,-$B37,0),OFFSET(Q34,-$B37,-P$4+$B37)-SUM($I37:P37))) -> 0.1794387849 | R37: =IF(R$5<=$D37,0,IF(SUM($D37,OFFSET($I22,-$B37,0))>R$5,OFFSET(R34,-$B37,-Q$4+$B37)/OFFSET($I22,-$B37,0),OFFSET(R34,-$B37,-Q$4+$B37)-SUM($I37:Q37))) -> 0.1794387849 | S37: =IF(S$5<=$D37,0,IF(SUM($D37,OFFSET($I22,-$B37,0))>S$5,OFFSET(S34,-$B37,-R$4+$B37)/OFFSET($I22,-$B37,0),OFFSET(S34,-$B37,-R$4+$B37)-SUM($I37:R37))) -> 0.1794387849 | T37: =IF(T$5<=$D37,0,IF(SUM($D37,OFFSET($I22,-$B37,0))>T$5,OFFSET(T34,-$B37,-S$4+$B37)/OFFSET($I22,-$B37,0),OFFSET(T34,-$B37,-S$4+$B37)-SUM($I37:S37))) -> 0.1794387849 | U37: =IF(U$5<=$D37,0,IF(SUM($D37,OFFSET($I22,-$B37,0))>U$5,OFFSET(U34,-$B37,-T$4+$B37)/OFFSET($I22,-$B37,0),OFFSET(U34,-$B37,-T$4+$B37)-SUM($I37:T37))) -> 0.1794387849 | V37: =IF(V$5<=$D37,0,IF(SUM($D37,OFFSET($I22,-$B37,0))>V$5,OFFSET(V34,-$B37,-U$4+$B37)/OFFSET($I22,-$B37,0),OFFSET(V34,-$B37,-U$4+$B37)-SUM($I37:U37))) -> 0.1794387849 | W37: =IF(W$5<=$D37,0,IF(SUM($D37,OFFSET($I22,-$B37,0))>W$5,OFFSET(W34,-$B37,-V$4+$B37)/OFFSET($I22,-$B37,0),OFFSET(W34,-$B37,-V$4+$B37)-SUM($I37:V37))) -> 0.1794387849 | X37: =IF(X$5<=$D37,0,IF(SUM($D37,OFFSET($I22,-$B37,0))>X$5,OFFSET(X34,-$B37,-W$4+$B37)/OFFSET($I22,-$B37,0),OFFSET(X34,-$B37,-W$4+$B37)-SUM($I37:W37))) -> 0.1794387849 | Y37: =IF(Y$5<=$D37,0,IF(SUM($D37,OFFSET($I22,-$B37,0))>Y$5,OFFSET(Y34,-$B37,-X$4+$B37)/OFFSET($I22,-$B37,0),OFFSET(Y34,-$B37,-X$4+$B37)-SUM($I37:X37))) -> 0.1794387849 | Z37: =IF(Z$5<=$D37,0,IF(SUM($D37,OFFSET($I22,-$B37,0))>Z$5,OFFSET(Z34,-$B37,-Y$4+$B37)/OFFSET($I22,-$B37,0),OFFSET(Z34,-$B37,-Y$4+$B37)-SUM($I37:Y37))) -> 0.1794387849 | AA37: =IF(AA$5<=$D37,0,IF(SUM($D37,OFFSET($I22,-$B37,0))>AA$5,OFFSET(AA34,-$B37,-Z$4+$B37)/OFFSET($I22,-$B37,0),OFFSET(AA34,-$B37,-Z$4+$B37)-SUM($I37:Z37))) -> 0.1794387849 | AB37: =IF(AB$5<=$D37,0,IF(SUM($D37,OFFSET($I22,-$B37,0))>AB$5,OFFSET(AB34,-$B37,-AA$4+$B37)/OFFSET($I22,-$B37,0),OFFSET(AB34,-$B37,-AA$4+$B37)-SUM($I37:AA37))) -> 0.1794387849 | AC37: =IF(AC$5<=$D37,0,IF(SUM($D37,OFFSET($I22,-$B37,0))>AC$5,OFFSET(AC34,-$B37,-AB$4+$B37)/OFFSET($I22,-$B37,0),OFFSET(AC34,-$B37,-AB$4+$B37)-SUM($I37:AB37))) -> 0.1794387849 | AD37: =IF(AD$5<=$D37,0,IF(SUM($D37,OFFSET($I22,-$B37,0))>AD$5,OFFSET(AD34,-$B37,-AC$4+$B37)/OFFSET($I22,-$B37,0),OFFSET(AD34,-$B37,-AC$4+$B37)-SUM($I37:AC37))) -> 0.1794387849 | AE37: =IF(AE$5<=$D37,0,IF(SUM($D37,OFFSET($I22,-$B37,0))>AE$5,OFFSET(AE34,-$B37,-AD$4+$B37)/OFFSET($I22,-$B37,0),OFFSET(AE34,-$B37,-AD$4+$B37)-SUM($I37:AD37))) -> 0.1794387849 | AF37: =IF(AF$5<=$D37,0,IF(SUM($D37,OFFSET($I22,-$B37,0))>AF$5,OFFSET(AF34,-$B37,-AE$4+$B37)/OFFSET($I22,-$B37,0),OFFSET(AF34,-$B37,-AE$4+$B37)-SUM($I37:AE37))) -> 0.1794387849 | AG37: =IF(AG$5<=$D37,0,IF(SUM($D37,OFFSET($I22,-$B37,0))>AG$5,OFFSET(AG34,-$B37,-AF$4+$B37)/OFFSET($I22,-$B37,0),OFFSET(AG34,-$B37,-AF$4+$B37)-SUM($I37:AF37))) -> 0.1794387849 | AH37: =IF(AH$5<=$D37,0,IF(SUM($D37,OFFSET($I22,-$B37,0))>AH$5,OFFSET(AH34,-$B37,-AG$4+$B37)/OFFSET($I22,-$B37,0),OFFSET(AH34,-$B37,-AG$4+$B37)-SUM($I37:AG37))) -> 0.1794387849 | AI37: =IF(AI$5<=$D37,0,IF(SUM($D37,OFFSET($I22,-$B37,0))>AI$5,OFFSET(AI34,-$B37,-AH$4+$B37)/OFFSET($I22,-$B37,0),OFFSET(AI34,-$B37,-AH$4+$B37)-SUM($I37:AH37))) -> 0.1794387849 | AJ37: =IF(AJ$5<=$D37,0,IF(SUM($D37,OFFSET($I22,-$B37,0))>AJ$5,OFFSET(AJ34,-$B37,-AI$4+$B37)/OFFSET($I22,-$B37,0),OFFSET(AJ34,-$B37,-AI$4+$B37)-SUM($I37:AI37))) -> 0.1794387849 | AK37: =IF(AK$5<=$D37,0,IF(SUM($D37,OFFSET($I22,-$B37,0))>AK$5,OFFSET(AK34,-$B37,-AJ$4+$B37)/OFFSET($I22,-$B37,0),OFFSET(AK34,-$B37,-AJ$4+$B37)-SUM($I37:AJ37))) -> 0.1794387849 | AL37: =IF(AL$5<=$D37,0,IF(SUM($D37,OFFSET($I22,-$B37,0))>AL$5,OFFSET(AL34,-$B37,-AK$4+$B37)/OFFSET($I22,-$B37,0),OFFSET(AL34,-$B37,-AK$4+$B37)-SUM($I37:AK37))) -> 0.1794387849 | AM37: =IF(AM$5<=$D37,0,IF(SUM($D37,OFFSET($I22,-$B37,0))>AM$5,OFFSET(AM34,-$B37,-AL$4+$B37)/OFFSET($I22,-$B37,0),OFFSET(AM34,-$B37,-AL$4+$B37)-SUM($I37:AL37))) -> 0.1794387849 | AN37: =IF(AN$5<=$D37,0,IF(SUM($D37,OFFSET($I22,-$B37,0))>AN$5,OFFSET(AN34,-$B37,-AM$4+$B37)/OFFSET($I22,-$B37,0),OFFSET(AN34,-$B37,-AM$4+$B37)-SUM($I37:AM37))) -> 0.1794387849 | AO37: =IF(AO$5<=$D37,0,IF(SUM($D37,OFFSET($I22,-$B37,0))>AO$5,OFFSET(AO34,-$B37,-AN$4+$B37)/OFFSET($I22,-$B37,0),OFFSET(AO34,-$B37,-AN$4+$B37)-SUM($I37:AN37))) -> 0.1794387849 | AP37: =IF(AP$5<=$D37,0,IF(SUM($D37,OFFSET($I22,-$B37,0))>AP$5,OFFSET(AP34,-$B37,-AO$4+$B37)/OFFSET($I22,-$B37,0),OFFSET(AP34,-$B37,-AO$4+$B37)-SUM($I37:AO37))) -> 0.1794387849 | AQ37: =IF(AQ$5<=$D37,0,IF(SUM($D37,OFFSET($I22,-$B37,0))>AQ$5,OFFSET(AQ34,-$B37,-AP$4+$B37)/OFFSET($I22,-$B37,0),OFFSET(AQ34,-$B37,-AP$4+$B37)-SUM($I37:AP37))) -> 0.1794387849 | AR37: =IF(AR$5<=$D37,0,IF(SUM($D37,OFFSET($I22,-$B37,0))>AR$5,OFFSET(AR34,-$B37,-AQ$4+$B37)/OFFSET($I22,-$B37,0),OFFSET(AR34,-$B37,-AQ$4+$B37)-SUM($I37:AQ37))) -> 0.1794387849 | AS37: =IF(AS$5<=$D37,0,IF(SUM($D37,OFFSET($I22,-$B37,0))>AS$5,OFFSET(AS34,-$B37,-AR$4+$B37)/OFFSET($I22,-$B37,0),OFFSET(AS34,-$B37,-AR$4+$B37)-SUM($I37:AR37))) -> 0.1794387849 | AT37: =IF(AT$5<=$D37,0,IF(SUM($D37,OFFSET($I22,-$B37,0))>AT$5,OFFSET(AT34,-$B37,-AS$4+$B37)/OFFSET($I22,-$B37,0),OFFSET(AT34,-$B37,-AS$4+$B37)-SUM($I37:AS37))) -> 0.1794387849 | AU37: =IF(AU$5<=$D37,0,IF(SUM($D37,OFFSET($I22,-$B37,0))>AU$5,OFFSET(AU34,-$B37,-AT$4+$B37)/OFFSET($I22,-$B37,0),OFFSET(AU34,-$B37,-AT$4+$B37)-SUM($I37:AT37))) -> 0.1794387849 | AV37: =IF(AV$5<=$D37,0,IF(SUM($D37,OFFSET($I22,-$B37,0))>AV$5,OFFSET(AV34,-$B37,-AU$4+$B37)/OFFSET($I22,-$B37,0),OFFSET(AV34,-$B37,-AU$4+$B37)-SUM($I37:AU37))) -> 0.1794387849 | AW37: =IF(AW$5<=$D37,0,IF(SUM($D37,OFFSET($I22,-$B37,0))>AW$5,OFFSET(AW34,-$B37,-AV$4+$B37)/OFFSET($I22,-$B37,0),OFFSET(AW34,-$B37,-AV$4+$B37)-SUM($I37:AV37))) -> 0.1794387849 | AX37: =IF(AX$5<=$D37,0,IF(SUM($D37,OFFSET($I22,-$B37,0))>AX$5,OFFSET(AX34,-$B37,-AW$4+$B37)/OFFSET($I22,-$B37,0),OFFSET(AX34,-$B37,-AW$4+$B37)-SUM($I37:AW37))) -> 0.1794387849 | AY37: =IF(AY$5<=$D37,0,IF(SUM($D37,OFFSET($I22,-$B37,0))>AY$5,OFFSET(AY34,-$B37,-AX$4+$B37)/OFFSET($I22,-$B37,0),OFFSET(AY34,-$B37,-AX$4+$B37)-SUM($I37:AX37))) -> 0.1794387849 | AZ37: =IF(AZ$5<=$D37,0,IF(SUM($D37,OFFSET($I22,-$B37,0))>AZ$5,OFFSET(AZ34,-$B37,-AY$4+$B37)/OFFSET($I22,-$B37,0),OFFSET(AZ34,-$B37,-AY$4+$B37)-SUM($I37:AY37))) -> 0.1794387849 | BA37: =IF(BA$5<=$D37,0,IF(SUM($D37,OFFSET($I22,-$B37,0))>BA$5,OFFSET(BA34,-$B37,-AZ$4+$B37)/OFFSET($I22,-$B37,0),OFFSET(BA34,-$B37,-AZ$4+$B37)-SUM($I37:AZ37))) -> 0.1794387849 | BB37: =IF(BB$5<=$D37,0,IF(SUM($D37,OFFSET($I22,-$B37,0))>BB$5,OFFSET(BB34,-$B37,-BA$4+$B37)/OFFSET($I22,-$B37,0),OFFSET(BB34,-$B37,-BA$4+$B37)-SUM($I37:BA37))) -> 0.1794387849 | BC37: =IF(BC$5<=$D37,0,IF(SUM($D37,OFFSET($I22,-$B37,0))>BC$5,OFFSET(BC34,-$B37,-BB$4+$B37)/OFFSET($I22,-$B37,0),OFFSET(BC34,-$B37,-BB$4+$B37)-SUM($I37:BB37))) -> 0.1746549434 | BD37: =IF(BD$5<=$D37,0,IF(SUM($D37,OFFSET($I22,-$B37,0))>BD$5,OFFSET(BD34,-$B37,-BC$4+$B37)/OFFSET($I22,-$B37,0),OFFSET(BD34,-$B37,-BC$4+$B37)-SUM($I37:BC37))) -> 0 | BE37: =IF(BE$5<=$D37,0,IF(SUM($D37,OFFSET($I22,-$B37,0))>BE$5,OFFSET(BE34,-$B37,-BD$4+$B37)/OFFSET($I22,-$B37,0),OFFSET(BE34,-$B37,-BD$4+$B37)-SUM($I37:BD37))) -> 0 | BF37: =IF(BF$5<=$D37,0,IF(SUM($D37,OFFSET($I22,-$B37,0))>BF$5,OFFSET(BF34,-$B37,-BE$4+$B37)/OFFSET($I22,-$B37,0),OFFSET(BF34,-$B37,-BE$4+$B37)-SUM($I37:BE37))) -> 0 | BG37: =IF(BG$5<=$D37,0,IF(SUM($D37,OFFSET($I22,-$B37,0))>BG$5,OFFSET(BG34,-$B37,-BF$4+$B37)/OFFSET($I22,-$B37,0),OFFSET(BG34,-$B37,-BF$4+$B37)-SUM($I37:BF37))) -> 0 | BH37: =IF(BH$5<=$D37,0,IF(SUM($D37,OFFSET($I22,-$B37,0))>BH$5,OFFSET(BH34,-$B37,-BG$4+$B37)/OFFSET($I22,-$B37,0),OFFSET(BH34,-$B37,-BG$4+$B37)-SUM($I37:BG37))) -> 0 | BI37: =IF(BI$5<=$D37,0,IF(SUM($D37,OFFSET($I22,-$B37,0))>BI$5,OFFSET(BI34,-$B37,-BH$4+$B37)/OFFSET($I22,-$B37,0),OFFSET(BI34,-$B37,-BH$4+$B37)-SUM($I37:BH37))) -> 0 | BJ37: =IF(BJ$5<=$D37,0,IF(SUM($D37,OFFSET($I22,-$B37,0))>BJ$5,OFFSET(BJ34,-$B37,-BI$4+$B37)/OFFSET($I22,-$B37,0),OFFSET(BJ34,-$B37,-BI$4+$B37)-SUM($I37:BI37))) -> 0 | BK37: =IF(BK$5<=$D37,0,IF(SUM($D37,OFFSET($I22,-$B37,0))>BK$5,OFFSET(BK34,-$B37,-BJ$4+$B37)/OFFSET($I22,-$B37,0),OFFSET(BK34,-$B37,-BJ$4+$B37)-SUM($I37:BJ37))) -> 0 | BL37: =IF(BL$5<=$D37,0,IF(SUM($D37,OFFSET($I22,-$B37,0))>BL$5,OFFSET(BL34,-$B37,-BK$4+$B37)/OFFSET($I22,-$B37,0),OFFSET(BL34,-$B37,-BK$4+$B37)-SUM($I37:BK37))) -> 0 | BM37: =IF(BM$5<=$D37,0,IF(SUM($D37,OFFSET($I22,-$B37,0))>BM$5,OFFSET(BM34,-$B37,-BL$4+$B37)/OFFSET($I22,-$B37,0),OFFSET(BM34,-$B37,-BL$4+$B37)-SUM($I37:BL37))) -> 0 | BN37: =IF(BN$5<=$D37,0,IF(SUM($D37,OFFSET($I22,-$B37,0))>BN$5,OFFSET(BN34,-$B37,-BM$4+$B37)/OFFSET($I22,-$B37,0),OFFSET(BN34,-$B37,-BM$4+$B37)-SUM($I37:BM37))) -> 0 | BO37: =IF(BO$5<=$D37,0,IF(SUM($D37,OFFSET($I22,-$B37,0))>BO$5,OFFSET(BO34,-$B37,-BN$4+$B37)/OFFSET($I22,-$B37,0),OFFSET(BO34,-$B37,-BN$4+$B37)-SUM($I37:BN37))) -> 0 | BP37: =IF(BP$5<=$D37,0,IF(SUM($D37,OFFSET($I22,-$B37,0))>BP$5,OFFSET(BP34,-$B37,-BO$4+$B37)/OFFSET($I22,-$B37,0),OFFSET(BP34,-$B37,-BO$4+$B37)-SUM($I37:BO37))) -> 0 | BQ37: =IF(BQ$5<=$D37,0,IF(SUM($D37,OFFSET($I22,-$B37,0))>BQ$5,OFFSET(BQ34,-$B37,-BP$4+$B37)/OFFSET($I22,-$B37,0),OFFSET(BQ34,-$B37,-BP$4+$B37)-SUM($I37:BP37))) -> 0 | BR37: =IF(BR$5<=$D37,0,IF(SUM($D37,OFFSET($I22,-$B37,0))>BR$5,OFFSET(BR34,-$B37,-BQ$4+$B37)/OFFSET($I22,-$B37,0),OFFSET(BR34,-$B37,-BQ$4+$B37)-SUM($I37:BQ37))) -> 0 | BS37: =IF(BS$5<=$D37,0,IF(SUM($D37,OFFSET($I22,-$B37,0))>BS$5,OFFSET(BS34,-$B37,-BR$4+$B37)/OFFSET($I22,-$B37,0),OFFSET(BS34,-$B37,-BR$4+$B37)-SUM($I37:BR37))) -> 0 | BT37: =IF(BT$5<=$D37,0,IF(SUM($D37,OFFSET($I22,-$B37,0))>BT$5,OFFSET(BT34,-$B37,-BS$4+$B37)/OFFSET($I22,-$B37,0),OFFSET(BT34,-$B37,-BS$4+$B37)-SUM($I37:BS37))) -> 0
B38: 4 | D38: 2019 | E38: $m Real (2014) | J38: =IF(J$5<=$D38,0,IF(SUM($D38,OFFSET($I23,-$B38,0))>J$5,OFFSET(J35,-$B38,-I$4+$B38)/OFFSET($I23,-$B38,0),OFFSET(J35,-$B38,-I$4+$B38)-SUM($I38:I38))) -> 0 | K38: =IF(K$5<=$D38,0,IF(SUM($D38,OFFSET($I23,-$B38,0))>K$5,OFFSET(K35,-$B38,-J$4+$B38)/OFFSET($I23,-$B38,0),OFFSET(K35,-$B38,-J$4+$B38)-SUM($I38:J38))) -> 0 | L38: =IF(L$5<=$D38,0,IF(SUM($D38,OFFSET($I23,-$B38,0))>L$5,OFFSET(L35,-$B38,-K$4+$B38)/OFFSET($I23,-$B38,0),OFFSET(L35,-$B38,-K$4+$B38)-SUM($I38:K38))) -> 0 | M38: =IF(M$5<=$D38,0,IF(SUM($D38,OFFSET($I23,-$B38,0))>M$5,OFFSET(M35,-$B38,-L$4+$B38)/OFFSET($I23,-$B38,0),OFFSET(M35,-$B38,-L$4+$B38)-SUM($I38:L38))) -> 0 | N38: =IF(N$5<=$D38,0,IF(SUM($D38,OFFSET($I23,-$B38,0))>N$5,OFFSET(N35,-$B38,-M$4+$B38)/OFFSET($I23,-$B38,0),OFFSET(N35,-$B38,-M$4+$B38)-SUM($I38:M38))) -> 0 | O38: =IF(O$5<=$D38,0,IF(SUM($D38,OFFSET($I23,-$B38,0))>O$5,OFFSET(O35,-$B38,-N$4+$B38)/OFFSET($I23,-$B38,0),OFFSET(O35,-$B38,-N$4+$B38)-SUM($I38:N38))) -> 0.2945544417 | P38: =IF(P$5<=$D38,0,IF(SUM($D38,OFFSET($I23,-$B38,0))>P$5,OFFSET(P35,-$B38,-O$4+$B38)/OFFSET($I23,-$B38,0),OFFSET(P35,-$B38,-O$4+$B38)-SUM($I38:O38))) -> 0.2945544417 | Q38: =IF(Q$5<=$D38,0,IF(SUM($D38,OFFSET($I23,-$B38,0))>Q$5,OFFSET(Q35,-$B38,-P$4+$B38)/OFFSET($I23,-$B38,0),OFFSET(Q35,-$B38,-P$4+$B38)-SUM($I38:P38))) -> 0.2945544417 | R38: =IF(R$5<=$D38,0,IF(SUM($D38,OFFSET($I23,-$B38,0))>R$5,OFFSET(R35,-$B38,-Q$4+$B38)/OFFSET($I23,-$B38,0),OFFSET(R35,-$B38,-Q$4+$B38)-SUM($I38:Q38))) -> 0.2945544417 | S38: =IF(S$5<=$D38,0,IF(SUM($D38,OFFSET($I23,-$B38,0))>S$5,OFFSET(S35,-$B38,-R$4+$B38)/OFFSET($I23,-$B38,0),OFFSET(S35,-$B38,-R$4+$B38)-SUM($I38:R38))) -> 0.2945544417 | T38: =IF(T$5<=$D38,0,IF(SUM($D38,OFFSET($I23,-$B38,0))>T$5,OFFSET(T35,-$B38,-S$4+$B38)/OFFSET($I23,-$B38,0),OFFSET(T35,-$B38,-S$4+$B38)-SUM($I38:S38))) -> 0.2945544417 | U38: =IF(U$5<=$D38,0,IF(SUM($D38,OFFSET($I23,-$B38,0))>U$5,OFFSET(U35,-$B38,-T$4+$B38)/OFFSET($I23,-$B38,0),OFFSET(U35,-$B38,-T$4+$B38)-SUM($I38:T38))) -> 0.2945544417 | V38: =IF(V$5<=$D38,0,IF(SUM($D38,OFFSET($I23,-$B38,0))>V$5,OFFSET(V35,-$B38,-U$4+$B38)/OFFSET($I23,-$B38,0),OFFSET(V35,-$B38,-U$4+$B38)-SUM($I38:U38))) -> 0.2945544417 | W38: =IF(W$5<=$D38,0,IF(SUM($D38,OFFSET($I23,-$B38,0))>W$5,OFFSET(W35,-$B38,-V$4+$B38)/OFFSET($I23,-$B38,0),OFFSET(W35,-$B38,-V$4+$B38)-SUM($I38:V38))) -> 0.2945544417 | X38: =IF(X$5<=$D38,0,IF(SUM($D38,OFFSET($I23,-$B38,0))>X$5,OFFSET(X35,-$B38,-W$4+$B38)/OFFSET($I23,-$B38,0),OFFSET(X35,-$B38,-W$4+$B38)-SUM($I38:W38))) -> 0.2945544417 | Y38: =IF(Y$5<=$D38,0,IF(SUM($D38,OFFSET($I23,-$B38,0))>Y$5,OFFSET(Y35,-$B38,-X$4+$B38)/OFFSET($I23,-$B38,0),OFFSET(Y35,-$B38,-X$4+$B38)-SUM($I38:X38))) -> 0.2945544417 | Z38: =IF(Z$5<=$D38,0,IF(SUM($D38,OFFSET($I23,-$B38,0))>Z$5,OFFSET(Z35,-$B38,-Y$4+$B38)/OFFSET($I23,-$B38,0),OFFSET(Z35,-$B38,-Y$4+$B38)-SUM($I38:Y38))) -> 0.2945544417 | AA38: =IF(AA$5<=$D38,0,IF(SUM($D38,OFFSET($I23,-$B38,0))>AA$5,OFFSET(AA35,-$B38,-Z$4+$B38)/OFFSET($I23,-$B38,0),OFFSET(AA35,-$B38,-Z$4+$B38)-SUM($I38:Z38))) -> 0.2945544417 | AB38: =IF(AB$5<=$D38,0,IF(SUM($D38,OFFSET($I23,-$B38,0))>AB$5,OFFSET(AB35,-$B38,-AA$4+$B38)/OFFSET($I23,-$B38,0),OFFSET(AB35,-$B38,-AA$4+$B38)-SUM($I38:AA38))) -> 0.2945544417 | AC38: =IF(AC$5<=$D38,0,IF(SUM($D38,OFFSET($I23,-$B38,0))>AC$5,OFFSET(AC35,-$B38,-AB$4+$B38)/OFFSET($I23,-$B38,0),OFFSET(AC35,-$B38,-AB$4+$B38)-SUM($I38:AB38))) -> 0.2945544417 | AD38: =IF(AD$5<=$D38,0,IF(SUM($D38,OFFSET($I23,-$B38,0))>AD$5,OFFSET(AD35,-$B38,-AC$4+$B38)/OFFSET($I23,-$B38,0),OFFSET(AD35,-$B38,-AC$4+$B38)-SUM($I38:AC38))) -> 0.2945544417 | AE38: =IF(AE$5<=$D38,0,IF(SUM($D38,OFFSET($I23,-$B38,0))>AE$5,OFFSET(AE35,-$B38,-AD$4+$B38)/OFFSET($I23,-$B38,0),OFFSET(AE35,-$B38,-AD$4+$B38)-SUM($I38:AD38))) -> 0.2945544417 | AF38: =IF(AF$5<=$D38,0,IF(SUM($D38,OFFSET($I23,-$B38,0))>AF$5,OFFSET(AF35,-$B38,-AE$4+$B38)/OFFSET($I23,-$B38,0),OFFSET(AF35,-$B38,-AE$4+$B38)-SUM($I38:AE38))) -> 0.2945544417 | AG38: =IF(AG$5<=$D38,0,IF(SUM($D38,OFFSET($I23,-$B38,0))>AG$5,OFFSET(AG35,-$B38,-AF$4+$B38)/OFFSET($I23,-$B38,0),OFFSET(AG35,-$B38,-AF$4+$B38)-SUM($I38:AF38))) -> 0.2945544417 | AH38: =IF(AH$5<=$D38,0,IF(SUM($D38,OFFSET($I23,-$B38,0))>AH$5,OFFSET(AH35,-$B38,-AG$4+$B38)/OFFSET($I23,-$B38,0),OFFSET(AH35,-$B38,-AG$4+$B38)-SUM($I38:AG38))) -> 0.2945544417 | AI38: =IF(AI$5<=$D38,0,IF(SUM($D38,OFFSET($I23,-$B38,0))>AI$5,OFFSET(AI35,-$B38,-AH$4+$B38)/OFFSET($I23,-$B38,0),OFFSET(AI35,-$B38,-AH$4+$B38)-SUM($I38:AH38))) -> 0.2945544417 | AJ38: =IF(AJ$5<=$D38,0,IF(SUM($D38,OFFSET($I23,-$B38,0))>AJ$5,OFFSET(AJ35,-$B38,-AI$4+$B38)/OFFSET($I23,-$B38,0),OFFSET(AJ35,-$B38,-AI$4+$B38)-SUM($I38:AI38))) -> 0.2945544417 | AK38: =IF(AK$5<=$D38,0,IF(SUM($D38,OFFSET($I23,-$B38,0))>AK$5,OFFSET(AK35,-$B38,-AJ$4+$B38)/OFFSET($I23,-$B38,0),OFFSET(AK35,-$B38,-AJ$4+$B38)-SUM($I38:AJ38))) -> 0.2945544417 | AL38: =IF(AL$5<=$D38,0,IF(SUM($D38,OFFSET($I23,-$B38,0))>AL$5,OFFSET(AL35,-$B38,-AK$4+$B38)/OFFSET($I23,-$B38,0),OFFSET(AL35,-$B38,-AK$4+$B38)-SUM($I38:AK38))) -> 0.2945544417 | AM38: =IF(AM$5<=$D38,0,IF(SUM($D38,OFFSET($I23,-$B38,0))>AM$5,OFFSET(AM35,-$B38,-AL$4+$B38)/OFFSET($I23,-$B38,0),OFFSET(AM35,-$B38,-AL$4+$B38)-SUM($I38:AL38))) -> 0.2945544417 | AN38: =IF(AN$5<=$D38,0,IF(SUM($D38,OFFSET($I23,-$B38,0))>AN$5,OFFSET(AN35,-$B38,-AM$4+$B38)/OFFSET($I23,-$B38,0),OFFSET(AN35,-$B38,-AM$4+$B38)-SUM($I38:AM38))) -> 0.2945544417 | AO38: =IF(AO$5<=$D38,0,IF(SUM($D38,OFFSET($I23,-$B38,0))>AO$5,OFFSET(AO35,-$B38,-AN$4+$B38)/OFFSET($I23,-$B38,0),OFFSET(AO35,-$B38,-AN$4+$B38)-SUM($I38:AN38))) -> 0.2945544417 | AP38: =IF(AP$5<=$D38,0,IF(SUM($D38,OFFSET($I23,-$B38,0))>AP$5,OFFSET(AP35,-$B38,-AO$4+$B38)/OFFSET($I23,-$B38,0),OFFSET(AP35,-$B38,-AO$4+$B38)-SUM($I38:AO38))) -> 0.2945544417 | AQ38: =IF(AQ$5<=$D38,0,IF(SUM($D38,OFFSET($I23,-$B38,0))>AQ$5,OFFSET(AQ35,-$B38,-AP$4+$B38)/OFFSET($I23,-$B38,0),OFFSET(AQ35,-$B38,-AP$4+$B38)-SUM($I38:AP38))) -> 0.2945544417 | AR38: =IF(AR$5<=$D38,0,IF(SUM($D38,OFFSET($I23,-$B38,0))>AR$5,OFFSET(AR35,-$B38,-AQ$4+$B38)/OFFSET($I23,-$B38,0),OFFSET(AR35,-$B38,-AQ$4+$B38)-SUM($I38:AQ38))) -> 0.2945544417 | AS38: =IF(AS$5<=$D38,0,IF(SUM($D38,OFFSET($I23,-$B38,0))>AS$5,OFFSET(AS35,-$B38,-AR$4+$B38)/OFFSET($I23,-$B38,0),OFFSET(AS35,-$B38,-AR$4+$B38)-SUM($I38:AR38))) -> 0.2945544417 | AT38: =IF(AT$5<=$D38,0,IF(SUM($D38,OFFSET($I23,-$B38,0))>AT$5,OFFSET(AT35,-$B38,-AS$4+$B38)/OFFSET($I23,-$B38,0),OFFSET(AT35,-$B38,-AS$4+$B38)-SUM($I38:AS38))) -> 0.2945544417 | AU38: =IF(AU$5<=$D38,0,IF(SUM($D38,OFFSET($I23,-$B38,0))>AU$5,OFFSET(AU35,-$B38,-AT$4+$B38)/OFFSET($I23,-$B38,0),OFFSET(AU35,-$B38,-AT$4+$B38)-SUM($I38:AT38))) -> 0.2945544417 | AV38: =IF(AV$5<=$D38,0,IF(SUM($D38,OFFSET($I23,-$B38,0))>AV$5,OFFSET(AV35,-$B38,-AU$4+$B38)/OFFSET($I23,-$B38,0),OFFSET(AV35,-$B38,-AU$4+$B38)-SUM($I38:AU38))) -> 0.2945544417 | AW38: =IF(AW$5<=$D38,0,IF(SUM($D38,OFFSET($I23,-$B38,0))>AW$5,OFFSET(AW35,-$B38,-AV$4+$B38)/OFFSET($I23,-$B38,0),OFFSET(AW35,-$B38,-AV$4+$B38)-SUM($I38:AV38))) -> 0.2945544417 | AX38: =IF(AX$5<=$D38,0,IF(SUM($D38,OFFSET($I23,-$B38,0))>AX$5,OFFSET(AX35,-$B38,-AW$4+$B38)/OFFSET($I23,-$B38,0),OFFSET(AX35,-$B38,-AW$4+$B38)-SUM($I38:AW38))) -> 0.2945544417 | AY38: =IF(AY$5<=$D38,0,IF(SUM($D38,OFFSET($I23,-$B38,0))>AY$5,OFFSET(AY35,-$B38,-AX$4+$B38)/OFFSET($I23,-$B38,0),OFFSET(AY35,-$B38,-AX$4+$B38)-SUM($I38:AX38))) -> 0.2945544417 | AZ38: =IF(AZ$5<=$D38,0,IF(SUM($D38,OFFSET($I23,-$B38,0))>AZ$5,OFFSET(AZ35,-$B38,-AY$4+$B38)/OFFSET($I23,-$B38,0),OFFSET(AZ35,-$B38,-AY$4+$B38)-SUM($I38:AY38))) -> 0.2945544417 | BA38: =IF(BA$5<=$D38,0,IF(SUM($D38,OFFSET($I23,-$B38,0))>BA$5,OFFSET(BA35,-$B38,-AZ$4+$B38)/OFFSET($I23,-$B38,0),OFFSET(BA35,-$B38,-AZ$4+$B38)-SUM($I38:AZ38))) -> 0.2945544417 | BB38: =IF(BB$5<=$D38,0,IF(SUM($D38,OFFSET($I23,-$B38,0))>BB$5,OFFSET(BB35,-$B38,-BA$4+$B38)/OFFSET($I23,-$B38,0),OFFSET(BB35,-$B38,-BA$4+$B38)-SUM($I38:BA38))) -> 0.2945544417 | BC38: =IF(BC$5<=$D38,0,IF(SUM($D38,OFFSET($I23,-$B38,0))>BC$5,OFFSET(BC35,-$B38,-BB$4+$B38)/OFFSET($I23,-$B38,0),OFFSET(BC35,-$B38,-BB$4+$B38)-SUM($I38:BB38))) -> 0.2945544417 | BD38: =IF(BD$5<=$D38,0,IF(SUM($D38,OFFSET($I23,-$B38,0))>BD$5,OFFSET(BD35,-$B38,-BC$4+$B38)/OFFSET($I23,-$B38,0),OFFSET(BD35,-$B38,-BC$4+$B38)-SUM($I38:BC38))) -> 0.2867016146 | BE38: =IF(BE$5<=$D38,0,IF(SUM($D38,OFFSET($I23,-$B38,0))>BE$5,OFFSET(BE35,-$B38,-BD$4+$B38)/OFFSET($I23,-$B38,0),OFFSET(BE35,-$B38,-BD$4+$B38)-SUM($I38:BD38))) -> 0 | BF38: =IF(BF$5<=$D38,0,IF(SUM($D38,OFFSET($I23,-$B38,0))>BF$5,OFFSET(BF35,-$B38,-BE$4+$B38)/OFFSET($I23,-$B38,0),OFFSET(BF35,-$B38,-BE$4+$B38)-SUM($I38:BE38))) -> 0 | BG38: =IF(BG$5<=$D38,0,IF(SUM($D38,OFFSET($I23,-$B38,0))>BG$5,OFFSET(BG35,-$B38,-BF$4+$B38)/OFFSET($I23,-$B38,0),OFFSET(BG35,-$B38,-BF$4+$B38)-SUM($I38:BF38))) -> 0 | BH38: =IF(BH$5<=$D38,0,IF(SUM($D38,OFFSET($I23,-$B38,0))>BH$5,OFFSET(BH35,-$B38,-BG$4+$B38)/OFFSET($I23,-$B38,0),OFFSET(BH35,-$B38,-BG$4+$B38)-SUM($I38:BG38))) -> 0 | BI38: =IF(BI$5<=$D38,0,IF(SUM($D38,OFFSET($I23,-$B38,0))>BI$5,OFFSET(BI35,-$B38,-BH$4+$B38)/OFFSET($I23,-$B38,0),OFFSET(BI35,-$B38,-BH$4+$B38)-SUM($I38:BH38))) -> 0 | BJ38: =IF(BJ$5<=$D38,0,IF(SUM($D38,OFFSET($I23,-$B38,0))>BJ$5,OFFSET(BJ35,-$B38,-BI$4+$B38)/OFFSET($I23,-$B38,0),OFFSET(BJ35,-$B38,-BI$4+$B38)-SUM($I38:BI38))) -> 0 | BK38: =IF(BK$5<=$D38,0,IF(SUM($D38,OFFSET($I23,-$B38,0))>BK$5,OFFSET(BK35,-$B38,-BJ$4+$B38)/OFFSET($I23,-$B38,0),OFFSET(BK35,-$B38,-BJ$4+$B38)-SUM($I38:BJ38))) -> 0 | BL38: =IF(BL$5<=$D38,0,IF(SUM($D38,OFFSET($I23,-$B38,0))>BL$5,OFFSET(BL35,-$B38,-BK$4+$B38)/OFFSET($I23,-$B38,0),OFFSET(BL35,-$B38,-BK$4+$B38)-SUM($I38:BK38))) -> 0 | BM38: =IF(BM$5<=$D38,0,IF(SUM($D38,OFFSET($I23,-$B38,0))>BM$5,OFFSET(BM35,-$B38,-BL$4+$B38)/OFFSET($I23,-$B38,0),OFFSET(BM35,-$B38,-BL$4+$B38)-SUM($I38:BL38))) -> 0 | BN38: =IF(BN$5<=$D38,0,IF(SUM($D38,OFFSET($I23,-$B38,0))>BN$5,OFFSET(BN35,-$B38,-BM$4+$B38)/OFFSET($I23,-$B38,0),OFFSET(BN35,-$B38,-BM$4+$B38)-SUM($I38:BM38))) -> 0 | BO38: =IF(BO$5<=$D38,0,IF(SUM($D38,OFFSET($I23,-$B38,0))>BO$5,OFFSET(BO35,-$B38,-BN$4+$B38)/OFFSET($I23,-$B38,0),OFFSET(BO35,-$B38,-BN$4+$B38)-SUM($I38:BN38))) -> 0 | BP38: =IF(BP$5<=$D38,0,IF(SUM($D38,OFFSET($I23,-$B38,0))>BP$5,OFFSET(BP35,-$B38,-BO$4+$B38)/OFFSET($I23,-$B38,0),OFFSET(BP35,-$B38,-BO$4+$B38)-SUM($I38:BO38))) -> 0 | BQ38: =IF(BQ$5<=$D38,0,IF(SUM($D38,OFFSET($I23,-$B38,0))>BQ$5,OFFSET(BQ35,-$B38,-BP$4+$B38)/OFFSET($I23,-$B38,0),OFFSET(BQ35,-$B38,-BP$4+$B38)-SUM($I38:BP38))) -> 0 | BR38: =IF(BR$5<=$D38,0,IF(SUM($D38,OFFSET($I23,-$B38,0))>BR$5,OFFSET(BR35,-$B38,-BQ$4+$B38)/OFFSET($I23,-$B38,0),OFFSET(BR35,-$B38,-BQ$4+$B38)-SUM($I38:BQ38))) -> 0 | BS38: =IF(BS$5<=$D38,0,IF(SUM($D38,OFFSET($I23,-$B38,0))>BS$5,OFFSET(BS35,-$B38,-BR$4+$B38)/OFFSET($I23,-$B38,0),OFFSET(BS35,-$B38,-BR$4+$B38)-SUM($I38:BR38))) -> 0 | BT38: =IF(BT$5<=$D38,0,IF(SUM($D38,OFFSET($I23,-$B38,0))>BT$5,OFFSET(BT35,-$B38,-BS$4+$B38)/OFFSET($I23,-$B38,0),OFFSET(BT35,-$B38,-BS$4+$B38)-SUM($I38:BS38))) -> 0
B39: 5 | D39: 2020 | E39: $m Real (2014) | J39: =IF(J$5<=$D39,0,IF(SUM($D39,OFFSET($I24,-$B39,0))>J$5,OFFSET(J36,-$B39,-I$4+$B39)/OFFSET($I24,-$B39,0),OFFSET(J36,-$B39,-I$4+$B39)-SUM($I39:I39))) -> 0 | K39: =IF(K$5<=$D39,0,IF(SUM($D39,OFFSET($I24,-$B39,0))>K$5,OFFSET(K36,-$B39,-J$4+$B39)/OFFSET($I24,-$B39,0),OFFSET(K36,-$B39,-J$4+$B39)-SUM($I39:J39))) -> 0 | L39: =IF(L$5<=$D39,0,IF(SUM($D39,OFFSET($I24,-$B39,0))>L$5,OFFSET(L36,-$B39,-K$4+$B39)/OFFSET($I24,-$B39,0),OFFSET(L36,-$B39,-K$4+$B39)-SUM($I39:K39))) -> 0 | M39: =IF(M$5<=$D39,0,IF(SUM($D39,OFFSET($I24,-$B39,0))>M$5,OFFSET(M36,-$B39,-L$4+$B39)/OFFSET($I24,-$B39,0),OFFSET(M36,-$B39,-L$4+$B39)-SUM($I39:L39))) -> 0 | N39: =IF(N$5<=$D39,0,IF(SUM($D39,OFFSET($I24,-$B39,0))>N$5,OFFSET(N36,-$B39,-M$4+$B39)/OFFSET($I24,-$B39,0),OFFSET(N36,-$B39,-M$4+$B39)-SUM($I39:M39))) -> 0 | O39: =IF(O$5<=$D39,0,IF(SUM($D39,OFFSET($I24,-$B39,0))>O$5,OFFSET(O36,-$B39,-N$4+$B39)/OFFSET($I24,-$B39,0),OFFSET(O36,-$B39,-N$4+$B39)-SUM($I39:N39))) -> 0 | P39: =IF(P$5<=$D39,0,IF(SUM($D39,OFFSET($I24,-$B39,0))>P$5,OFFSET(P36,-$B39,-O$4+$B39)/OFFSET($I24,-$B39,0),OFFSET(P36,-$B39,-O$4+$B39)-SUM($I39:O39))) -> 0 | Q39: =IF(Q$5<=$D39,0,IF(SUM($D39,OFFSET($I24,-$B39,0))>Q$5,OFFSET(Q36,-$B39,-P$4+$B39)/OFFSET($I24,-$B39,0),OFFSET(Q36,-$B39,-P$4+$B39)-SUM($I39:P39))) -> 0 | R39: =IF(R$5<=$D39,0,IF(SUM($D39,OFFSET($I24,-$B39,0))>R$5,OFFSET(R36,-$B39,-Q$4+$B39)/OFFSET($I24,-$B39,0),OFFSET(R36,-$B39,-Q$4+$B39)-SUM($I39:Q39))) -> 0 | S39: =IF(S$5<=$D39,0,IF(SUM($D39,OFFSET($I24,-$B39,0))>S$5,OFFSET(S36,-$B39,-R$4+$B39)/OFFSET($I24,-$B39,0),OFFSET(S36,-$B39,-R$4+$B39)-SUM($I39:R39))) -> 0 | T39: =IF(T$5<=$D39,0,IF(SUM($D39,OFFSET($I24,-$B39,0))>T$5,OFFSET(T36,-$B39,-S$4+$B39)/OFFSET($I24,-$B39,0),OFFSET(T36,-$B39,-S$4+$B39)-SUM($I39:S39))) -> 0 | U39: =IF(U$5<=$D39,0,IF(SUM($D39,OFFSET($I24,-$B39,0))>U$5,OFFSET(U36,-$B39,-T$4+$B39)/OFFSET($I24,-$B39,0),OFFSET(U36,-$B39,-T$4+$B39)-SUM($I39:T39))) -> 0 | V39: =IF(V$5<=$D39,0,IF(SUM($D39,OFFSET($I24,-$B39,0))>V$5,OFFSET(V36,-$B39,-U$4+$B39)/OFFSET($I24,-$B39,0),OFFSET(V36,-$B39,-U$4+$B39)-SUM($I39:U39))) -> 0 | W39: =IF(W$5<=$D39,0,IF(SUM($D39,OFFSET($I24,-$B39,0))>W$5,OFFSET(W36,-$B39,-V$4+$B39)/OFFSET($I24,-$B39,0),OFFSET(W36,-$B39,-V$4+$B39)-SUM($I39:V39))) -> 0 | X39: =IF(X$5<=$D39,0,IF(SUM($D39,OFFSET($I24,-$B39,0))>X$5,OFFSET(X36,-$B39,-W$4+$B39)/OFFSET($I24,-$B39,0),OFFSET(X36,-$B39,-W$4+$B39)-SUM($I39:W39))) -> 0 | Y39: =IF(Y$5<=$D39,0,IF(SUM($D39,OFFSET($I24,-$B39,0))>Y$5,OFFSET(Y36,-$B39,-X$4+$B39)/OFFSET($I24,-$B39,0),OFFSET(Y36,-$B39,-X$4+$B39)-SUM($I39:X39))) -> 0 | Z39: =IF(Z$5<=$D39,0,IF(SUM($D39,OFFSET($I24,-$B39,0))>Z$5,OFFSET(Z36,-$B39,-Y$4+$B39)/OFFSET($I24,-$B39,0),OFFSET(Z36,-$B39,-Y$4+$B39)-SUM($I39:Y39))) -> 0 | AA39: =IF(AA$5<=$D39,0,IF(SUM($D39,OFFSET($I24,-$B39,0))>AA$5,OFFSET(AA36,-$B39,-Z$4+$B39)/OFFSET($I24,-$B39,0),OFFSET(AA36,-$B39,-Z$4+$B39)-SUM($I39:Z39))) -> 0 | AB39: =IF(AB$5<=$D39,0,IF(SUM($D39,OFFSET($I24,-$B39,0))>AB$5,OFFSET(AB36,-$B39,-AA$4+$B39)/OFFSET($I24,-$B39,0),OFFSET(AB36,-$B39,-AA$4+$B39)-SUM($I39:AA39))) -> 0 | AC39: =IF(AC$5<=$D39,0,IF(SUM($D39,OFFSET($I24,-$B39,0))>AC$5,OFFSET(AC36,-$B39,-AB$4+$B39)/OFFSET($I24,-$B39,0),OFFSET(AC36,-$B39,-AB$4+$B39)-SUM($I39:AB39))) -> 0 | AD39: =IF(AD$5<=$D39,0,IF(SUM($D39,OFFSET($I24,-$B39,0))>AD$5,OFFSET(AD36,-$B39,-AC$4+$B39)/OFFSET($I24,-$B39,0),OFFSET(AD36,-$B39,-AC$4+$B39)-SUM($I39:AC39))) -> 0 | AE39: =IF(AE$5<=$D39,0,IF(SUM($D39,OFFSET($I24,-$B39,0))>AE$5,OFFSET(AE36,-$B39,-AD$4+$B39)/OFFSET($I24,-$B39,0),OFFSET(AE36,-$B39,-AD$4+$B39)-SUM($I39:AD39))) -> 0 | AF39: =IF(AF$5<=$D39,0,IF(SUM($D39,OFFSET($I24,-$B39,0))>AF$5,OFFSET(AF36,-$B39,-AE$4+$B39)/OFFSET($I24,-$B39,0),OFFSET(AF36,-$B39,-AE$4+$B39)-SUM($I39:AE39))) -> 0 | AG39: =IF(AG$5<=$D39,0,IF(SUM($D39,OFFSET($I24,-$B39,0))>AG$5,OFFSET(AG36,-$B39,-AF$4+$B39)/OFFSET($I24,-$B39,0),OFFSET(AG36,-$B39,-AF$4+$B39)-SUM($I39:AF39))) -> 0 | AH39: =IF(AH$5<=$D39,0,IF(SUM($D39,OFFSET($I24,-$B39,0))>AH$5,OFFSET(AH36,-$B39,-AG$4+$B39)/OFFSET($I24,-$B39,0),OFFSET(AH36,-$B39,-AG$4+$B39)-SUM($I39:AG39))) -> 0 | AI39: =IF(AI$5<=$D39,0,IF(SUM($D39,OFFSET($I24,-$B39,0))>AI$5,OFFSET(AI36,-$B39,-AH$4+$B39)/OFFSET($I24,-$B39,0),OFFSET(AI36,-$B39,-AH$4+$B39)-SUM($I39:AH39))) -> 0 | AJ39: =IF(AJ$5<=$D39,0,IF(SUM($D39,OFFSET($I24,-$B39,0))>AJ$5,OFFSET(AJ36,-$B39,-AI$4+$B39)/OFFSET($I24,-$B39,0),OFFSET(AJ36,-$B39,-AI$4+$B39)-SUM($I39:AI39))) -> 0 | AK39: =IF(AK$5<=$D39,0,IF(SUM($D39,OFFSET($I24,-$B39,0))>AK$5,OFFSET(AK36,-$B39,-AJ$4+$B39)/OFFSET($I24,-$B39,0),OFFSET(AK36,-$B39,-AJ$4+$B39)-SUM($I39:AJ39))) -> 0 | AL39: =IF(AL$5<=$D39,0,IF(SUM($D39,OFFSET($I24,-$B39,0))>AL$5,OFFSET(AL36,-$B39,-AK$4+$B39)/OFFSET($I24,-$B39,0),OFFSET(AL36,-$B39,-AK$4+$B39)-SUM($I39:AK39))) -> 0 | AM39: =IF(AM$5<=$D39,0,IF(SUM($D39,OFFSET($I24,-$B39,0))>AM$5,OFFSET(AM36,-$B39,-AL$4+$B39)/OFFSET($I24,-$B39,0),OFFSET(AM36,-$B39,-AL$4+$B39)-SUM($I39:AL39))) -> 0 | AN39: =IF(AN$5<=$D39,0,IF(SUM($D39,OFFSET($I24,-$B39,0))>AN$5,OFFSET(AN36,-$B39,-AM$4+$B39)/OFFSET($I24,-$B39,0),OFFSET(AN36,-$B39,-AM$4+$B39)-SUM($I39:AM39))) -> 0 | AO39: =IF(AO$5<=$D39,0,IF(SUM($D39,OFFSET($I24,-$B39,0))>AO$5,OFFSET(AO36,-$B39,-AN$4+$B39)/OFFSET($I24,-$B39,0),OFFSET(AO36,-$B39,-AN$4+$B39)-SUM($I39:AN39))) -> 0 | AP39: =IF(AP$5<=$D39,0,IF(SUM($D39,OFFSET($I24,-$B39,0))>AP$5,OFFSET(AP36,-$B39,-AO$4+$B39)/OFFSET($I24,-$B39,0),OFFSET(AP36,-$B39,-AO$4+$B39)-SUM($I39:AO39))) -> 0 | AQ39: =IF(AQ$5<=$D39,0,IF(SUM($D39,OFFSET($I24,-$B39,0))>AQ$5,OFFSET(AQ36,-$B39,-AP$4+$B39)/OFFSET($I24,-$B39,0),OFFSET(AQ36,-$B39,-AP$4+$B39)-SUM($I39:AP39))) -> 0 | AR39: =IF(AR$5<=$D39,0,IF(SUM($D39,OFFSET($I24,-$B39,0))>AR$5,OFFSET(AR36,-$B39,-AQ$4+$B39)/OFFSET($I24,-$B39,0),OFFSET(AR36,-$B39,-AQ$4+$B39)-SUM($I39:AQ39))) -> 0 | AS39: =IF(AS$5<=$D39,0,IF(SUM($D39,OFFSET($I24,-$B39,0))>AS$5,OFFSET(AS36,-$B39,-AR$4+$B39)/OFFSET($I24,-$B39,0),OFFSET(AS36,-$B39,-AR$4+$B39)-SUM($I39:AR39))) -> 0 | AT39: =IF(AT$5<=$D39,0,IF(SUM($D39,OFFSET($I24,-$B39,0))>AT$5,OFFSET(AT36,-$B39,-AS$4+$B39)/OFFSET($I24,-$B39,0),OFFSET(AT36,-$B39,-AS$4+$B39)-SUM($I39:AS39))) -> 0 | AU39: =IF(AU$5<=$D39,0,IF(SUM($D39,OFFSET($I24,-$B39,0))>AU$5,OFFSET(AU36,-$B39,-AT$4+$B39)/OFFSET($I24,-$B39,0),OFFSET(AU36,-$B39,-AT$4+$B39)-SUM($I39:AT39))) -> 0 | AV39: =IF(AV$5<=$D39,0,IF(SUM($D39,OFFSET($I24,-$B39,0))>AV$5,OFFSET(AV36,-$B39,-AU$4+$B39)/OFFSET($I24,-$B39,0),OFFSET(AV36,-$B39,-AU$4+$B39)-SUM($I39:AU39))) -> 0 | AW39: =IF(AW$5<=$D39,0,IF(SUM($D39,OFFSET($I24,-$B39,0))>AW$5,OFFSET(AW36,-$B39,-AV$4+$B39)/OFFSET($I24,-$B39,0),OFFSET(AW36,-$B39,-AV$4+$B39)-SUM($I39:AV39))) -> 0 | AX39: =IF(AX$5<=$D39,0,IF(SUM($D39,OFFSET($I24,-$B39,0))>AX$5,OFFSET(AX36,-$B39,-AW$4+$B39)/OFFSET($I24,-$B39,0),OFFSET(AX36,-$B39,-AW$4+$B39)-SUM($I39:AW39))) -> 0 | AY39: =IF(AY$5<=$D39,0,IF(SUM($D39,OFFSET($I24,-$B39,0))>AY$5,OFFSET(AY36,-$B39,-AX$4+$B39)/OFFSET($I24,-$B39,0),OFFSET(AY36,-$B39,-AX$4+$B39)-SUM($I39:AX39))) -> 0 | AZ39: =IF(AZ$5<=$D39,0,IF(SUM($D39,OFFSET($I24,-$B39,0))>AZ$5,OFFSET(AZ36,-$B39,-AY$4+$B39)/OFFSET($I24,-$B39,0),OFFSET(AZ36,-$B39,-AY$4+$B39)-SUM($I39:AY39))) -> 0 | BA39: =IF(BA$5<=$D39,0,IF(SUM($D39,OFFSET($I24,-$B39,0))>BA$5,OFFSET(BA36,-$B39,-AZ$4+$B39)/OFFSET($I24,-$B39,0),OFFSET(BA36,-$B39,-AZ$4+$B39)-SUM($I39:AZ39))) -> 0 | BB39: =IF(BB$5<=$D39,0,IF(SUM($D39,OFFSET($I24,-$B39,0))>BB$5,OFFSET(BB36,-$B39,-BA$4+$B39)/OFFSET($I24,-$B39,0),OFFSET(BB36,-$B39,-BA$4+$B39)-SUM($I39:BA39))) -> 0 | BC39: =IF(BC$5<=$D39,0,IF(SUM($D39,OFFSET($I24,-$B39,0))>BC$5,OFFSET(BC36,-$B39,-BB$4+$B39)/OFFSET($I24,-$B39,0),OFFSET(BC36,-$B39,-BB$4+$B39)-SUM($I39:BB39))) -> 0 | BD39: =IF(BD$5<=$D39,0,IF(SUM($D39,OFFSET($I24,-$B39,0))>BD$5,OFFSET(BD36,-$B39,-BC$4+$B39)/OFFSET($I24,-$B39,0),OFFSET(BD36,-$B39,-BC$4+$B39)-SUM($I39:BC39))) -> 0 | BE39: =IF(BE$5<=$D39,0,IF(SUM($D39,OFFSET($I24,-$B39,0))>BE$5,OFFSET(BE36,-$B39,-BD$4+$B39)/OFFSET($I24,-$B39,0),OFFSET(BE36,-$B39,-BD$4+$B39)-SUM($I39:BD39))) -> 0 | BF39: =IF(BF$5<=$D39,0,IF(SUM($D39,OFFSET($I24,-$B39,0))>BF$5,OFFSET(BF36,-$B39,-BE$4+$B39)/OFFSET($I24,-$B39,0),OFFSET(BF36,-$B39,-BE$4+$B39)-SUM($I39:BE39))) -> 0 | BG39: =IF(BG$5<=$D39,0,IF(SUM($D39,OFFSET($I24,-$B39,0))>BG$5,OFFSET(BG36,-$B39,-BF$4+$B39)/OFFSET($I24,-$B39,0),OFFSET(BG36,-$B39,-BF$4+$B39)-SUM($I39:BF39))) -> 0 | BH39: =IF(BH$5<=$D39,0,IF(SUM($D39,OFFSET($I24,-$B39,0))>BH$5,OFFSET(BH36,-$B39,-BG$4+$B39)/OFFSET($I24,-$B39,0),OFFSET(BH36,-$B39,-BG$4+$B39)-SUM($I39:BG39))) -> 0 | BI39: =IF(BI$5<=$D39,0,IF(SUM($D39,OFFSET($I24,-$B39,0))>BI$5,OFFSET(BI36,-$B39,-BH$4+$B39)/OFFSET($I24,-$B39,0),OFFSET(BI36,-$B39,-BH$4+$B39)-SUM($I39:BH39))) -> 0 | BJ39: =IF(BJ$5<=$D39,0,IF(SUM($D39,OFFSET($I24,-$B39,0))>BJ$5,OFFSET(BJ36,-$B39,-BI$4+$B39)/OFFSET($I24,-$B39,0),OFFSET(BJ36,-$B39,-BI$4+$B39)-SUM($I39:BI39))) -> 0 | BK39: =IF(BK$5<=$D39,0,IF(SUM($D39,OFFSET($I24,-$B39,0))>BK$5,OFFSET(BK36,-$B39,-BJ$4+$B39)/OFFSET($I24,-$B39,0),OFFSET(BK36,-$B39,-BJ$4+$B39)-SUM($I39:BJ39))) -> 0 | BL39: =IF(BL$5<=$D39,0,IF(SUM($D39,OFFSET($I24,-$B39,0))>BL$5,OFFSET(BL36,-$B39,-BK$4+$B39)/OFFSET($I24,-$B39,0),OFFSET(BL36,-$B39,-BK$4+$B39)-SUM($I39:BK39))) -> 0 | BM39: =IF(BM$5<=$D39,0,IF(SUM($D39,OFFSET($I24,-$B39,0))>BM$5,OFFSET(BM36,-$B39,-BL$4+$B39)/OFFSET($I24,-$B39,0),OFFSET(BM36,-$B39,-BL$4+$B39)-SUM($I39:BL39))) -> 0 | BN39: =IF(BN$5<=$D39,0,IF(SUM($D39,OFFSET($I24,-$B39,0))>BN$5,OFFSET(BN36,-$B39,-BM$4+$B39)/OFFSET($I24,-$B39,0),OFFSET(BN36,-$B39,-BM$4+$B39)-SUM($I39:BM39))) -> 0 | BO39: =IF(BO$5<=$D39,0,IF(SUM($D39,OFFSET($I24,-$B39,0))>BO$5,OFFSET(BO36,-$B39,-BN$4+$B39)/OFFSET($I24,-$B39,0),OFFSET(BO36,-$B39,-BN$4+$B39)-SUM($I39:BN39))) -> 0 | BP39: =IF(BP$5<=$D39,0,IF(SUM($D39,OFFSET($I24,-$B39,0))>BP$5,OFFSET(BP36,-$B39,-BO$4+$B39)/OFFSET($I24,-$B39,0),OFFSET(BP36,-$B39,-BO$4+$B39)-SUM($I39:BO39))) -> 0 | BQ39: =IF(BQ$5<=$D39,0,IF(SUM($D39,OFFSET($I24,-$B39,0))>BQ$5,OFFSET(BQ36,-$B39,-BP$4+$B39)/OFFSET($I24,-$B39,0),OFFSET(BQ36,-$B39,-BP$4+$B39)-SUM($I39:BP39))) -> 0 | BR39: =IF(BR$5<=$D39,0,IF(SUM($D39,OFFSET($I24,-$B39,0))>BR$5,OFFSET(BR36,-$B39,-BQ$4+$B39)/OFFSET($I24,-$B39,0),OFFSET(BR36,-$B39,-BQ$4+$B39)-SUM($I39:BQ39))) -> 0 | BS39: =IF(BS$5<=$D39,0,IF(SUM($D39,OFFSET($I24,-$B39,0))>BS$5,OFFSET(BS36,-$B39,-BR$4+$B39)/OFFSET($I24,-$B39,0),OFFSET(BS36,-$B39,-BR$4+$B39)-SUM($I39:BR39))) -> 0 | BT39: =IF(BT$5<=$D39,0,IF(SUM($D39,OFFSET($I24,-$B39,0))>BT$5,OFFSET(BT36,-$B39,-BS$4+$B39)/OFFSET($I24,-$B39,0),OFFSET(BT36,-$B39,-BS$4+$B39)-SUM($I39:BS39))) -> 0
B40: 6 | D40: 2021 | E40: $m Real (2014) | J40: =IF(J$5<=$D40,0,IF(SUM($D40,OFFSET($I25,-$B40,0))>J$5,OFFSET(J37,-$B40,-I$4+$B40)/OFFSET($I25,-$B40,0),OFFSET(J37,-$B40,-I$4+$B40)-SUM($I40:I40))) -> 0 | K40: =IF(K$5<=$D40,0,IF(SUM($D40,OFFSET($I25,-$B40,0))>K$5,OFFSET(K37,-$B40,-J$4+$B40)/OFFSET($I25,-$B40,0),OFFSET(K37,-$B40,-J$4+$B40)-SUM($I40:J40))) -> 0 | L40: =IF(L$5<=$D40,0,IF(SUM($D40,OFFSET($I25,-$B40,0))>L$5,OFFSET(L37,-$B40,-K$4+$B40)/OFFSET($I25,-$B40,0),OFFSET(L37,-$B40,-K$4+$B40)-SUM($I40:K40))) -> 0 | M40: =IF(M$5<=$D40,0,IF(SUM($D40,OFFSET($I25,-$B40,0))>M$5,OFFSET(M37,-$B40,-L$4+$B40)/OFFSET($I25,-$B40,0),OFFSET(M37,-$B40,-L$4+$B40)-SUM($I40:L40))) -> 0 | N40: =IF(N$5<=$D40,0,IF(SUM($D40,OFFSET($I25,-$B40,0))>N$5,OFFSET(N37,-$B40,-M$4+$B40)/OFFSET($I25,-$B40,0),OFFSET(N37,-$B40,-M$4+$B40)-SUM($I40:M40))) -> 0 | O40: =IF(O$5<=$D40,0,IF(SUM($D40,OFFSET($I25,-$B40,0))>O$5,OFFSET(O37,-$B40,-N$4+$B40)/OFFSET($I25,-$B40,0),OFFSET(O37,-$B40,-N$4+$B40)-SUM($I40:N40))) -> 0 | P40: =IF(P$5<=$D40,0,IF(SUM($D40,OFFSET($I25,-$B40,0))>P$5,OFFSET(P37,-$B40,-O$4+$B40)/OFFSET($I25,-$B40,0),OFFSET(P37,-$B40,-O$4+$B40)-SUM($I40:O40))) -> 0 | Q40: =IF(Q$5<=$D40,0,IF(SUM($D40,OFFSET($I25,-$B40,0))>Q$5,OFFSET(Q37,-$B40,-P$4+$B40)/OFFSET($I25,-$B40,0),OFFSET(Q37,-$B40,-P$4+$B40)-SUM($I40:P40))) -> 0 | R40: =IF(R$5<=$D40,0,IF(SUM($D40,OFFSET($I25,-$B40,0))>R$5,OFFSET(R37,-$B40,-Q$4+$B40)/OFFSET($I25,-$B40,0),OFFSET(R37,-$B40,-Q$4+$B40)-SUM($I40:Q40))) -> 0 | S40: =IF(S$5<=$D40,0,IF(SUM($D40,OFFSET($I25,-$B40,0))>S$5,OFFSET(S37,-$B40,-R$4+$B40)/OFFSET($I25,-$B40,0),OFFSET(S37,-$B40,-R$4+$B40)-SUM($I40:R40))) -> 0 | T40: =IF(T$5<=$D40,0,IF(SUM($D40,OFFSET($I25,-$B40,0))>T$5,OFFSET(T37,-$B40,-S$4+$B40)/OFFSET($I25,-$B40,0),OFFSET(T37,-$B40,-S$4+$B40)-SUM($I40:S40))) -> 0 | U40: =IF(U$5<=$D40,0,IF(SUM($D40,OFFSET($I25,-$B40,0))>U$5,OFFSET(U37,-$B40,-T$4+$B40)/OFFSET($I25,-$B40,0),OFFSET(U37,-$B40,-T$4+$B40)-SUM($I40:T40))) -> 0 | V40: =IF(V$5<=$D40,0,IF(SUM($D40,OFFSET($I25,-$B40,0))>V$5,OFFSET(V37,-$B40,-U$4+$B40)/OFFSET($I25,-$B40,0),OFFSET(V37,-$B40,-U$4+$B40)-SUM($I40:U40))) -> 0 | W40: =IF(W$5<=$D40,0,IF(SUM($D40,OFFSET($I25,-$B40,0))>W$5,OFFSET(W37,-$B40,-V$4+$B40)/OFFSET($I25,-$B40,0),OFFSET(W37,-$B40,-V$4+$B40)-SUM($I40:V40))) -> 0 | X40: =IF(X$5<=$D40,0,IF(SUM($D40,OFFSET($I25,-$B40,0))>X$5,OFFSET(X37,-$B40,-W$4+$B40)/OFFSET($I25,-$B40,0),OFFSET(X37,-$B40,-W$4+$B40)-SUM($I40:W40))) -> 0 | Y40: =IF(Y$5<=$D40,0,IF(SUM($D40,OFFSET($I25,-$B40,0))>Y$5,OFFSET(Y37,-$B40,-X$4+$B40)/OFFSET($I25,-$B40,0),OFFSET(Y37,-$B40,-X$4+$B40)-SUM($I40:X40))) -> 0 | Z40: =IF(Z$5<=$D40,0,IF(SUM($D40,OFFSET($I25,-$B40,0))>Z$5,OFFSET(Z37,-$B40,-Y$4+$B40)/OFFSET($I25,-$B40,0),OFFSET(Z37,-$B40,-Y$4+$B40)-SUM($I40:Y40))) -> 0 | AA40: =IF(AA$5<=$D40,0,IF(SUM($D40,OFFSET($I25,-$B40,0))>AA$5,OFFSET(AA37,-$B40,-Z$4+$B40)/OFFSET($I25,-$B40,0),OFFSET(AA37,-$B40,-Z$4+$B40)-SUM($I40:Z40))) -> 0 | AB40: =IF(AB$5<=$D40,0,IF(SUM($D40,OFFSET($I25,-$B40,0))>AB$5,OFFSET(AB37,-$B40,-AA$4+$B40)/OFFSET($I25,-$B40,0),OFFSET(AB37,-$B40,-AA$4+$B40)-SUM($I40:AA40))) -> 0 | AC40: =IF(AC$5<=$D40,0,IF(SUM($D40,OFFSET($I25,-$B40,0))>AC$5,OFFSET(AC37,-$B40,-AB$4+$B40)/OFFSET($I25,-$B40,0),OFFSET(AC37,-$B40,-AB$4+$B40)-SUM($I40:AB40))) -> 0 | AD40: =IF(AD$5<=$D40,0,IF(SUM($D40,OFFSET($I25,-$B40,0))>AD$5,OFFSET(AD37,-$B40,-AC$4+$B40)/OFFSET($I25,-$B40,0),OFFSET(AD37,-$B40,-AC$4+$B40)-SUM($I40:AC40))) -> 0 | AE40: =IF(AE$5<=$D40,0,IF(SUM($D40,OFFSET($I25,-$B40,0))>AE$5,OFFSET(AE37,-$B40,-AD$4+$B40)/OFFSET($I25,-$B40,0),OFFSET(AE37,-$B40,-AD$4+$B40)-SUM($I40:AD40))) -> 0 | AF40: =IF(AF$5<=$D40,0,IF(SUM($D40,OFFSET($I25,-$B40,0))>AF$5,OFFSET(AF37,-$B40,-AE$4+$B40)/OFFSET($I25,-$B40,0),OFFSET(AF37,-$B40,-AE$4+$B40)-SUM($I40:AE40))) -> 0 | AG40: =IF(AG$5<=$D40,0,IF(SUM($D40,OFFSET($I25,-$B40,0))>AG$5,OFFSET(AG37,-$B40,-AF$4+$B40)/OFFSET($I25,-$B40,0),OFFSET(AG37,-$B40,-AF$4+$B40)-SUM($I40:AF40))) -> 0 | AH40: =IF(AH$5<=$D40,0,IF(SUM($D40,OFFSET($I25,-$B40,0))>AH$5,OFFSET(AH37,-$B40,-AG$4+$B40)/OFFSET($I25,-$B40,0),OFFSET(AH37,-$B40,-AG$4+$B40)-SUM($I40:AG40))) -> 0 | AI40: =IF(AI$5<=$D40,0,IF(SUM($D40,OFFSET($I25,-$B40,0))>AI$5,OFFSET(AI37,-$B40,-AH$4+$B40)/OFFSET($I25,-$B40,0),OFFSET(AI37,-$B40,-AH$4+$B40)-SUM($I40:AH40))) -> 0 | AJ40: =IF(AJ$5<=$D40,0,IF(SUM($D40,OFFSET($I25,-$B40,0))>AJ$5,OFFSET(AJ37,-$B40,-AI$4+$B40)/OFFSET($I25,-$B40,0),OFFSET(AJ37,-$B40,-AI$4+$B40)-SUM($I40:AI40))) -> 0 | AK40: =IF(AK$5<=$D40,0,IF(SUM($D40,OFFSET($I25,-$B40,0))>AK$5,OFFSET(AK37,-$B40,-AJ$4+$B40)/OFFSET($I25,-$B40,0),OFFSET(AK37,-$B40,-AJ$4+$B40)-SUM($I40:AJ40))) -> 0 | AL40: =IF(AL$5<=$D40,0,IF(SUM($D40,OFFSET($I25,-$B40,0))>AL$5,OFFSET(AL37,-$B40,-AK$4+$B40)/OFFSET($I25,-$B40,0),OFFSET(AL37,-$B40,-AK$4+$B40)-SUM($I40:AK40))) -> 0 | AM40: =IF(AM$5<=$D40,0,IF(SUM($D40,OFFSET($I25,-$B40,0))>AM$5,OFFSET(AM37,-$B40,-AL$4+$B40)/OFFSET($I25,-$B40,0),OFFSET(AM37,-$B40,-AL$4+$B40)-SUM($I40:AL40))) -> 0 | AN40: =IF(AN$5<=$D40,0,IF(SUM($D40,OFFSET($I25,-$B40,0))>AN$5,OFFSET(AN37,-$B40,-AM$4+$B40)/OFFSET($I25,-$B40,0),OFFSET(AN37,-$B40,-AM$4+$B40)-SUM($I40:AM40))) -> 0 | AO40: =IF(AO$5<=$D40,0,IF(SUM($D40,OFFSET($I25,-$B40,0))>AO$5,OFFSET(AO37,-$B40,-AN$4+$B40)/OFFSET($I25,-$B40,0),OFFSET(AO37,-$B40,-AN$4+$B40)-SUM($I40:AN40))) -> 0 | AP40: =IF(AP$5<=$D40,0,IF(SUM($D40,OFFSET($I25,-$B40,0))>AP$5,OFFSET(AP37,-$B40,-AO$4+$B40)/OFFSET($I25,-$B40,0),OFFSET(AP37,-$B40,-AO$4+$B40)-SUM($I40:AO40))) -> 0 | AQ40: =IF(AQ$5<=$D40,0,IF(SUM($D40,OFFSET($I25,-$B40,0))>AQ$5,OFFSET(AQ37,-$B40,-AP$4+$B40)/OFFSET($I25,-$B40,0),OFFSET(AQ37,-$B40,-AP$4+$B40)-SUM($I40:AP40))) -> 0 | AR40: =IF(AR$5<=$D40,0,IF(SUM($D40,OFFSET($I25,-$B40,0))>AR$5,OFFSET(AR37,-$B40,-AQ$4+$B40)/OFFSET($I25,-$B40,0),OFFSET(AR37,-$B40,-AQ$4+$B40)-SUM($I40:AQ40))) -> 0 | AS40: =IF(AS$5<=$D40,0,IF(SUM($D40,OFFSET($I25,-$B40,0))>AS$5,OFFSET(AS37,-$B40,-AR$4+$B40)/OFFSET($I25,-$B40,0),OFFSET(AS37,-$B40,-AR$4+$B40)-SUM($I40:AR40))) -> 0 | AT40: =IF(AT$5<=$D40,0,IF(SUM($D40,OFFSET($I25,-$B40,0))>AT$5,OFFSET(AT37,-$B40,-AS$4+$B40)/OFFSET($I25,-$B40,0),OFFSET(AT37,-$B40,-AS$4+$B40)-SUM($I40:AS40))) -> 0 | AU40: =IF(AU$5<=$D40,0,IF(SUM($D40,OFFSET($I25,-$B40,0))>AU$5,OFFSET(AU37,-$B40,-AT$4+$B40)/OFFSET($I25,-$B40,0),OFFSET(AU37,-$B40,-AT$4+$B40)-SUM($I40:AT40))) -> 0 | AV40: =IF(AV$5<=$D40,0,IF(SUM($D40,OFFSET($I25,-$B40,0))>AV$5,OFFSET(AV37,-$B40,-AU$4+$B40)/OFFSET($I25,-$B40,0),OFFSET(AV37,-$B40,-AU$4+$B40)-SUM($I40:AU40))) -> 0 | AW40: =IF(AW$5<=$D40,0,IF(SUM($D40,OFFSET($I25,-$B40,0))>AW$5,OFFSET(AW37,-$B40,-AV$4+$B40)/OFFSET($I25,-$B40,0),OFFSET(AW37,-$B40,-AV$4+$B40)-SUM($I40:AV40))) -> 0 | AX40: =IF(AX$5<=$D40,0,IF(SUM($D40,OFFSET($I25,-$B40,0))>AX$5,OFFSET(AX37,-$B40,-AW$4+$B40)/OFFSET($I25,-$B40,0),OFFSET(AX37,-$B40,-AW$4+$B40)-SUM($I40:AW40))) -> 0 | AY40: =IF(AY$5<=$D40,0,IF(SUM($D40,OFFSET($I25,-$B40,0))>AY$5,OFFSET(AY37,-$B40,-AX$4+$B40)/OFFSET($I25,-$B40,0),OFFSET(AY37,-$B40,-AX$4+$B40)-SUM($I40:AX40))) -> 0 | AZ40: =IF(AZ$5<=$D40,0,IF(SUM($D40,OFFSET($I25,-$B40,0))>AZ$5,OFFSET(AZ37,-$B40,-AY$4+$B40)/OFFSET($I25,-$B40,0),OFFSET(AZ37,-$B40,-AY$4+$B40)-SUM($I40:AY40))) -> 0 | BA40: =IF(BA$5<=$D40,0,IF(SUM($D40,OFFSET($I25,-$B40,0))>BA$5,OFFSET(BA37,-$B40,-AZ$4+$B40)/OFFSET($I25,-$B40,0),OFFSET(BA37,-$B40,-AZ$4+$B40)-SUM($I40:AZ40))) -> 0 | BB40: =IF(BB$5<=$D40,0,IF(SUM($D40,OFFSET($I25,-$B40,0))>BB$5,OFFSET(BB37,-$B40,-BA$4+$B40)/OFFSET($I25,-$B40,0),OFFSET(BB37,-$B40,-BA$4+$B40)-SUM($I40:BA40))) -> 0 | BC40: =IF(BC$5<=$D40,0,IF(SUM($D40,OFFSET($I25,-$B40,0))>BC$5,OFFSET(BC37,-$B40,-BB$4+$B40)/OFFSET($I25,-$B40,0),OFFSET(BC37,-$B40,-BB$4+$B40)-SUM($I40:BB40))) -> 0 | BD40: =IF(BD$5<=$D40,0,IF(SUM($D40,OFFSET($I25,-$B40,0))>BD$5,OFFSET(BD37,-$B40,-BC$4+$B40)/OFFSET($I25,-$B40,0),OFFSET(BD37,-$B40,-BC$4+$B40)-SUM($I40:BC40))) -> 0 | BE40: =IF(BE$5<=$D40,0,IF(SUM($D40,OFFSET($I25,-$B40,0))>BE$5,OFFSET(BE37,-$B40,-BD$4+$B40)/OFFSET($I25,-$B40,0),OFFSET(BE37,-$B40,-BD$4+$B40)-SUM($I40:BD40))) -> 0 | BF40: =IF(BF$5<=$D40,0,IF(SUM($D40,OFFSET($I25,-$B40,0))>BF$5,OFFSET(BF37,-$B40,-BE$4+$B40)/OFFSET($I25,-$B40,0),OFFSET(BF37,-$B40,-BE$4+$B40)-SUM($I40:BE40))) -> 0 | BG40: =IF(BG$5<=$D40,0,IF(SUM($D40,OFFSET($I25,-$B40,0))>BG$5,OFFSET(BG37,-$B40,-BF$4+$B40)/OFFSET($I25,-$B40,0),OFFSET(BG37,-$B40,-BF$4+$B40)-SUM($I40:BF40))) -> 0 | BH40: =IF(BH$5<=$D40,0,IF(SUM($D40,OFFSET($I25,-$B40,0))>BH$5,OFFSET(BH37,-$B40,-BG$4+$B40)/OFFSET($I25,-$B40,0),OFFSET(BH37,-$B40,-BG$4+$B40)-SUM($I40:BG40))) -> 0 | BI40: =IF(BI$5<=$D40,0,IF(SUM($D40,OFFSET($I25,-$B40,0))>BI$5,OFFSET(BI37,-$B40,-BH$4+$B40)/OFFSET($I25,-$B40,0),OFFSET(BI37,-$B40,-BH$4+$B40)-SUM($I40:BH40))) -> 0 | BJ40: =IF(BJ$5<=$D40,0,IF(SUM($D40,OFFSET($I25,-$B40,0))>BJ$5,OFFSET(BJ37,-$B40,-BI$4+$B40)/OFFSET($I25,-$B40,0),OFFSET(BJ37,-$B40,-BI$4+$B40)-SUM($I40:BI40))) -> 0 | BK40: =IF(BK$5<=$D40,0,IF(SUM($D40,OFFSET($I25,-$B40,0))>BK$5,OFFSET(BK37,-$B40,-BJ$4+$B40)/OFFSET($I25,-$B40,0),OFFSET(BK37,-$B40,-BJ$4+$B40)-SUM($I40:BJ40))) -> 0 | BL40: =IF(BL$5<=$D40,0,IF(SUM($D40,OFFSET($I25,-$B40,0))>BL$5,OFFSET(BL37,-$B40,-BK$4+$B40)/OFFSET($I25,-$B40,0),OFFSET(BL37,-$B40,-BK$4+$B40)-SUM($I40:BK40))) -> 0 | BM40: =IF(BM$5<=$D40,0,IF(SUM($D40,OFFSET($I25,-$B40,0))>BM$5,OFFSET(BM37,-$B40,-BL$4+$B40)/OFFSET($I25,-$B40,0),OFFSET(BM37,-$B40,-BL$4+$B40)-SUM($I40:BL40))) -> 0 | BN40: =IF(BN$5<=$D40,0,IF(SUM($D40,OFFSET($I25,-$B40,0))>BN$5,OFFSET(BN37,-$B40,-BM$4+$B40)/OFFSET($I25,-$B40,0),OFFSET(BN37,-$B40,-BM$4+$B40)-SUM($I40:BM40))) -> 0 | BO40: =IF(BO$5<=$D40,0,IF(SUM($D40,OFFSET($I25,-$B40,0))>BO$5,OFFSET(BO37,-$B40,-BN$4+$B40)/OFFSET($I25,-$B40,0),OFFSET(BO37,-$B40,-BN$4+$B40)-SUM($I40:BN40))) -> 0 | BP40: =IF(BP$5<=$D40,0,IF(SUM($D40,OFFSET($I25,-$B40,0))>BP$5,OFFSET(BP37,-$B40,-BO$4+$B40)/OFFSET($I25,-$B40,0),OFFSET(BP37,-$B40,-BO$4+$B40)-SUM($I40:BO40))) -> 0 | BQ40: =IF(BQ$5<=$D40,0,IF(SUM($D40,OFFSET($I25,-$B40,0))>BQ$5,OFFSET(BQ37,-$B40,-BP$4+$B40)/OFFSET($I25,-$B40,0),OFFSET(BQ37,-$B40,-BP$4+$B40)-SUM($I40:BP40))) -> 0 | BR40: =IF(BR$5<=$D40,0,IF(SUM($D40,OFFSET($I25,-$B40,0))>BR$5,OFFSET(BR37,-$B40,-BQ$4+$B40)/OFFSET($I25,-$B40,0),OFFSET(BR37,-$B40,-BQ$4+$B40)-SUM($I40:BQ40))) -> 0 | BS40: =IF(BS$5<=$D40,0,IF(SUM($D40,OFFSET($I25,-$B40,0))>BS$5,OFFSET(BS37,-$B40,-BR$4+$B40)/OFFSET($I25,-$B40,0),OFFSET(BS37,-$B40,-BR$4+$B40)-SUM($I40:BR40))) -> 0 | BT40: =IF(BT$5<=$D40,0,IF(SUM($D40,OFFSET($I25,-$B40,0))>BT$5,OFFSET(BT37,-$B40,-BS$4+$B40)/OFFSET($I25,-$B40,0),OFFSET(BT37,-$B40,-BS$4+$B40)-SUM($I40:BS40))) -> 0
B41: 7 | D41: 2022 | E41: $m Real (2014) | J41: =IF(J$5<=$D41,0,IF(SUM($D41,OFFSET($I26,-$B41,0))>J$5,OFFSET(J38,-$B41,-I$4+$B41)/OFFSET($I26,-$B41,0),OFFSET(J38,-$B41,-I$4+$B41)-SUM($I41:I41))) -> 0 | K41: =IF(K$5<=$D41,0,IF(SUM($D41,OFFSET($I26,-$B41,0))>K$5,OFFSET(K38,-$B41,-J$4+$B41)/OFFSET($I26,-$B41,0),OFFSET(K38,-$B41,-J$4+$B41)-SUM($I41:J41))) -> 0 | L41: =IF(L$5<=$D41,0,IF(SUM($D41,OFFSET($I26,-$B41,0))>L$5,OFFSET(L38,-$B41,-K$4+$B41)/OFFSET($I26,-$B41,0),OFFSET(L38,-$B41,-K$4+$B41)-SUM($I41:K41))) -> 0 | M41: =IF(M$5<=$D41,0,IF(SUM($D41,OFFSET($I26,-$B41,0))>M$5,OFFSET(M38,-$B41,-L$4+$B41)/OFFSET($I26,-$B41,0),OFFSET(M38,-$B41,-L$4+$B41)-SUM($I41:L41))) -> 0 | N41: =IF(N$5<=$D41,0,IF(SUM($D41,OFFSET($I26,-$B41,0))>N$5,OFFSET(N38,-$B41,-M$4+$B41)/OFFSET($I26,-$B41,0),OFFSET(N38,-$B41,-M$4+$B41)-SUM($I41:M41))) -> 0 | O41: =IF(O$5<=$D41,0,IF(SUM($D41,OFFSET($I26,-$B41,0))>O$5,OFFSET(O38,-$B41,-N$4+$B41)/OFFSET($I26,-$B41,0),OFFSET(O38,-$B41,-N$4+$B41)-SUM($I41:N41))) -> 0 | P41: =IF(P$5<=$D41,0,IF(SUM($D41,OFFSET($I26,-$B41,0))>P$5,OFFSET(P38,-$B41,-O$4+$B41)/OFFSET($I26,-$B41,0),OFFSET(P38,-$B41,-O$4+$B41)-SUM($I41:O41))) -> 0 | Q41: =IF(Q$5<=$D41,0,IF(SUM($D41,OFFSET($I26,-$B41,0))>Q$5,OFFSET(Q38,-$B41,-P$4+$B41)/OFFSET($I26,-$B41,0),OFFSET(Q38,-$B41,-P$4+$B41)-SUM($I41:P41))) -> 0 | R41: =IF(R$5<=$D41,0,IF(SUM($D41,OFFSET($I26,-$B41,0))>R$5,OFFSET(R38,-$B41,-Q$4+$B41)/OFFSET($I26,-$B41,0),OFFSET(R38,-$B41,-Q$4+$B41)-SUM($I41:Q41))) -> 0 | S41: =IF(S$5<=$D41,0,IF(SUM($D41,OFFSET($I26,-$B41,0))>S$5,OFFSET(S38,-$B41,-R$4+$B41)/OFFSET($I26,-$B41,0),OFFSET(S38,-$B41,-R$4+$B41)-SUM($I41:R41))) -> 0 | T41: =IF(T$5<=$D41,0,IF(SUM($D41,OFFSET($I26,-$B41,0))>T$5,OFFSET(T38,-$B41,-S$4+$B41)/OFFSET($I26,-$B41,0),OFFSET(T38,-$B41,-S$4+$B41)-SUM($I41:S41))) -> 0 | U41: =IF(U$5<=$D41,0,IF(SUM($D41,OFFSET($I26,-$B41,0))>U$5,OFFSET(U38,-$B41,-T$4+$B41)/OFFSET($I26,-$B41,0),OFFSET(U38,-$B41,-T$4+$B41)-SUM($I41:T41))) -> 0 | V41: =IF(V$5<=$D41,0,IF(SUM($D41,OFFSET($I26,-$B41,0))>V$5,OFFSET(V38,-$B41,-U$4+$B41)/OFFSET($I26,-$B41,0),OFFSET(V38,-$B41,-U$4+$B41)-SUM($I41:U41))) -> 0 | W41: =IF(W$5<=$D41,0,IF(SUM($D41,OFFSET($I26,-$B41,0))>W$5,OFFSET(W38,-$B41,-V$4+$B41)/OFFSET($I26,-$B41,0),OFFSET(W38,-$B41,-V$4+$B41)-SUM($I41:V41))) -> 0 | X41: =IF(X$5<=$D41,0,IF(SUM($D41,OFFSET($I26,-$B41,0))>X$5,OFFSET(X38,-$B41,-W$4+$B41)/OFFSET($I26,-$B41,0),OFFSET(X38,-$B41,-W$4+$B41)-SUM($I41:W41))) -> 0 | Y41: =IF(Y$5<=$D41,0,IF(SUM($D41,OFFSET($I26,-$B41,0))>Y$5,OFFSET(Y38,-$B41,-X$4+$B41)/OFFSET($I26,-$B41,0),OFFSET(Y38,-$B41,-X$4+$B41)-SUM($I41:X41))) -> 0 | Z41: =IF(Z$5<=$D41,0,IF(SUM($D41,OFFSET($I26,-$B41,0))>Z$5,OFFSET(Z38,-$B41,-Y$4+$B41)/OFFSET($I26,-$B41,0),OFFSET(Z38,-$B41,-Y$4+$B41)-SUM($I41:Y41))) -> 0 | AA41: =IF(AA$5<=$D41,0,IF(SUM($D41,OFFSET($I26,-$B41,0))>AA$5,OFFSET(AA38,-$B41,-Z$4+$B41)/OFFSET($I26,-$B41,0),OFFSET(AA38,-$B41,-Z$4+$B41)-SUM($I41:Z41))) -> 0 | AB41: =IF(AB$5<=$D41,0,IF(SUM($D41,OFFSET($I26,-$B41,0))>AB$5,OFFSET(AB38,-$B41,-AA$4+$B41)/OFFSET($I26,-$B41,0),OFFSET(AB38,-$B41,-AA$4+$B41)-SUM($I41:AA41))) -> 0 | AC41: =IF(AC$5<=$D41,0,IF(SUM($D41,OFFSET($I26,-$B41,0))>AC$5,OFFSET(AC38,-$B41,-AB$4+$B41)/OFFSET($I26,-$B41,0),OFFSET(AC38,-$B41,-AB$4+$B41)-SUM($I41:AB41))) -> 0 | AD41: =IF(AD$5<=$D41,0,IF(SUM($D41,OFFSET($I26,-$B41,0))>AD$5,OFFSET(AD38,-$B41,-AC$4+$B41)/OFFSET($I26,-$B41,0),OFFSET(AD38,-$B41,-AC$4+$B41)-SUM($I41:AC41))) -> 0 | AE41: =IF(AE$5<=$D41,0,IF(SUM($D41,OFFSET($I26,-$B41,0))>AE$5,OFFSET(AE38,-$B41,-AD$4+$B41)/OFFSET($I26,-$B41,0),OFFSET(AE38,-$B41,-AD$4+$B41)-SUM($I41:AD41))) -> 0 | AF41: =IF(AF$5<=$D41,0,IF(SUM($D41,OFFSET($I26,-$B41,0))>AF$5,OFFSET(AF38,-$B41,-AE$4+$B41)/OFFSET($I26,-$B41,0),OFFSET(AF38,-$B41,-AE$4+$B41)-SUM($I41:AE41))) -> 0 | AG41: =IF(AG$5<=$D41,0,IF(SUM($D41,OFFSET($I26,-$B41,0))>AG$5,OFFSET(AG38,-$B41,-AF$4+$B41)/OFFSET($I26,-$B41,0),OFFSET(AG38,-$B41,-AF$4+$B41)-SUM($I41:AF41))) -> 0 | AH41: =IF(AH$5<=$D41,0,IF(SUM($D41,OFFSET($I26,-$B41,0))>AH$5,OFFSET(AH38,-$B41,-AG$4+$B41)/OFFSET($I26,-$B41,0),OFFSET(AH38,-$B41,-AG$4+$B41)-SUM($I41:AG41))) -> 0 | AI41: =IF(AI$5<=$D41,0,IF(SUM($D41,OFFSET($I26,-$B41,0))>AI$5,OFFSET(AI38,-$B41,-AH$4+$B41)/OFFSET($I26,-$B41,0),OFFSET(AI38,-$B41,-AH$4+$B41)-SUM($I41:AH41))) -> 0 | AJ41: =IF(AJ$5<=$D41,0,IF(SUM($D41,OFFSET($I26,-$B41,0))>AJ$5,OFFSET(AJ38,-$B41,-AI$4+$B41)/OFFSET($I26,-$B41,0),OFFSET(AJ38,-$B41,-AI$4+$B41)-SUM($I41:AI41))) -> 0 | AK41: =IF(AK$5<=$D41,0,IF(SUM($D41,OFFSET($I26,-$B41,0))>AK$5,OFFSET(AK38,-$B41,-AJ$4+$B41)/OFFSET($I26,-$B41,0),OFFSET(AK38,-$B41,-AJ$4+$B41)-SUM($I41:AJ41))) -> 0 | AL41: =IF(AL$5<=$D41,0,IF(SUM($D41,OFFSET($I26,-$B41,0))>AL$5,OFFSET(AL38,-$B41,-AK$4+$B41)/OFFSET($I26,-$B41,0),OFFSET(AL38,-$B41,-AK$4+$B41)-SUM($I41:AK41))) -> 0 | AM41: =IF(AM$5<=$D41,0,IF(SUM($D41,OFFSET($I26,-$B41,0))>AM$5,OFFSET(AM38,-$B41,-AL$4+$B41)/OFFSET($I26,-$B41,0),OFFSET(AM38,-$B41,-AL$4+$B41)-SUM($I41:AL41))) -> 0 | AN41: =IF(AN$5<=$D41,0,IF(SUM($D41,OFFSET($I26,-$B41,0))>AN$5,OFFSET(AN38,-$B41,-AM$4+$B41)/OFFSET($I26,-$B41,0),OFFSET(AN38,-$B41,-AM$4+$B41)-SUM($I41:AM41))) -> 0 | AO41: =IF(AO$5<=$D41,0,IF(SUM($D41,OFFSET($I26,-$B41,0))>AO$5,OFFSET(AO38,-$B41,-AN$4+$B41)/OFFSET($I26,-$B41,0),OFFSET(AO38,-$B41,-AN$4+$B41)-SUM($I41:AN41))) -> 0 | AP41: =IF(AP$5<=$D41,0,IF(SUM($D41,OFFSET($I26,-$B41,0))>AP$5,OFFSET(AP38,-$B41,-AO$4+$B41)/OFFSET($I26,-$B41,0),OFFSET(AP38,-$B41,-AO$4+$B41)-SUM($I41:AO41))) -> 0 | AQ41: =IF(AQ$5<=$D41,0,IF(SUM($D41,OFFSET($I26,-$B41,0))>AQ$5,OFFSET(AQ38,-$B41,-AP$4+$B41)/OFFSET($I26,-$B41,0),OFFSET(AQ38,-$B41,-AP$4+$B41)-SUM($I41:AP41))) -> 0 | AR41: =IF(AR$5<=$D41,0,IF(SUM($D41,OFFSET($I26,-$B41,0))>AR$5,OFFSET(AR38,-$B41,-AQ$4+$B41)/OFFSET($I26,-$B41,0),OFFSET(AR38,-$B41,-AQ$4+$B41)-SUM($I41:AQ41))) -> 0 | AS41: =IF(AS$5<=$D41,0,IF(SUM($D41,OFFSET($I26,-$B41,0))>AS$5,OFFSET(AS38,-$B41,-AR$4+$B41)/OFFSET($I26,-$B41,0),OFFSET(AS38,-$B41,-AR$4+$B41)-SUM($I41:AR41))) -> 0 | AT41: =IF(AT$5<=$D41,0,IF(SUM($D41,OFFSET($I26,-$B41,0))>AT$5,OFFSET(AT38,-$B41,-AS$4+$B41)/OFFSET($I26,-$B41,0),OFFSET(AT38,-$B41,-AS$4+$B41)-SUM($I41:AS41))) -> 0 | AU41: =IF(AU$5<=$D41,0,IF(SUM($D41,OFFSET($I26,-$B41,0))>AU$5,OFFSET(AU38,-$B41,-AT$4+$B41)/OFFSET($I26,-$B41,0),OFFSET(AU38,-$B41,-AT$4+$B41)-SUM($I41:AT41))) -> 0 | AV41: =IF(AV$5<=$D41,0,IF(SUM($D41,OFFSET($I26,-$B41,0))>AV$5,OFFSET(AV38,-$B41,-AU$4+$B41)/OFFSET($I26,-$B41,0),OFFSET(AV38,-$B41,-AU$4+$B41)-SUM($I41:AU41))) -> 0 | AW41: =IF(AW$5<=$D41,0,IF(SUM($D41,OFFSET($I26,-$B41,0))>AW$5,OFFSET(AW38,-$B41,-AV$4+$B41)/OFFSET($I26,-$B41,0),OFFSET(AW38,-$B41,-AV$4+$B41)-SUM($I41:AV41))) -> 0 | AX41: =IF(AX$5<=$D41,0,IF(SUM($D41,OFFSET($I26,-$B41,0))>AX$5,OFFSET(AX38,-$B41,-AW$4+$B41)/OFFSET($I26,-$B41,0),OFFSET(AX38,-$B41,-AW$4+$B41)-SUM($I41:AW41))) -> 0 | AY41: =IF(AY$5<=$D41,0,IF(SUM($D41,OFFSET($I26,-$B41,0))>AY$5,OFFSET(AY38,-$B41,-AX$4+$B41)/OFFSET($I26,-$B41,0),OFFSET(AY38,-$B41,-AX$4+$B41)-SUM($I41:AX41))) -> 0 | AZ41: =IF(AZ$5<=$D41,0,IF(SUM($D41,OFFSET($I26,-$B41,0))>AZ$5,OFFSET(AZ38,-$B41,-AY$4+$B41)/OFFSET($I26,-$B41,0),OFFSET(AZ38,-$B41,-AY$4+$B41)-SUM($I41:AY41))) -> 0 | BA41: =IF(BA$5<=$D41,0,IF(SUM($D41,OFFSET($I26,-$B41,0))>BA$5,OFFSET(BA38,-$B41,-AZ$4+$B41)/OFFSET($I26,-$B41,0),OFFSET(BA38,-$B41,-AZ$4+$B41)-SUM($I41:AZ41))) -> 0 | BB41: =IF(BB$5<=$D41,0,IF(SUM($D41,OFFSET($I26,-$B41,0))>BB$5,OFFSET(BB38,-$B41,-BA$4+$B41)/OFFSET($I26,-$B41,0),OFFSET(BB38,-$B41,-BA$4+$B41)-SUM($I41:BA41))) -> 0 | BC41: =IF(BC$5<=$D41,0,IF(SUM($D41,OFFSET($I26,-$B41,0))>BC$5,OFFSET(BC38,-$B41,-BB$4+$B41)/OFFSET($I26,-$B41,0),OFFSET(BC38,-$B41,-BB$4+$B41)-SUM($I41:BB41))) -> 0 | BD41: =IF(BD$5<=$D41,0,IF(SUM($D41,OFFSET($I26,-$B41,0))>BD$5,OFFSET(BD38,-$B41,-BC$4+$B41)/OFFSET($I26,-$B41,0),OFFSET(BD38,-$B41,-BC$4+$B41)-SUM($I41:BC41))) -> 0 | BE41: =IF(BE$5<=$D41,0,IF(SUM($D41,OFFSET($I26,-$B41,0))>BE$5,OFFSET(BE38,-$B41,-BD$4+$B41)/OFFSET($I26,-$B41,0),OFFSET(BE38,-$B41,-BD$4+$B41)-SUM($I41:BD41))) -> 0 | BF41: =IF(BF$5<=$D41,0,IF(SUM($D41,OFFSET($I26,-$B41,0))>BF$5,OFFSET(BF38,-$B41,-BE$4+$B41)/OFFSET($I26,-$B41,0),OFFSET(BF38,-$B41,-BE$4+$B41)-SUM($I41:BE41))) -> 0 | BG41: =IF(BG$5<=$D41,0,IF(SUM($D41,OFFSET($I26,-$B41,0))>BG$5,OFFSET(BG38,-$B41,-BF$4+$B41)/OFFSET($I26,-$B41,0),OFFSET(BG38,-$B41,-BF$4+$B41)-SUM($I41:BF41))) -> 0 | BH41: =IF(BH$5<=$D41,0,IF(SUM($D41,OFFSET($I26,-$B41,0))>BH$5,OFFSET(BH38,-$B41,-BG$4+$B41)/OFFSET($I26,-$B41,0),OFFSET(BH38,-$B41,-BG$4+$B41)-SUM($I41:BG41))) -> 0 | BI41: =IF(BI$5<=$D41,0,IF(SUM($D41,OFFSET($I26,-$B41,0))>BI$5,OFFSET(BI38,-$B41,-BH$4+$B41)/OFFSET($I26,-$B41,0),OFFSET(BI38,-$B41,-BH$4+$B41)-SUM($I41:BH41))) -> 0 | BJ41: =IF(BJ$5<=$D41,0,IF(SUM($D41,OFFSET($I26,-$B41,0))>BJ$5,OFFSET(BJ38,-$B41,-BI$4+$B41)/OFFSET($I26,-$B41,0),OFFSET(BJ38,-$B41,-BI$4+$B41)-SUM($I41:BI41))) -> 0 | BK41: =IF(BK$5<=$D41,0,IF(SUM($D41,OFFSET($I26,-$B41,0))>BK$5,OFFSET(BK38,-$B41,-BJ$4+$B41)/OFFSET($I26,-$B41,0),OFFSET(BK38,-$B41,-BJ$4+$B41)-SUM($I41:BJ41))) -> 0 | BL41: =IF(BL$5<=$D41,0,IF(SUM($D41,OFFSET($I26,-$B41,0))>BL$5,OFFSET(BL38,-$B41,-BK$4+$B41)/OFFSET($I26,-$B41,0),OFFSET(BL38,-$B41,-BK$4+$B41)-SUM($I41:BK41))) -> 0 | BM41: =IF(BM$5<=$D41,0,IF(SUM($D41,OFFSET($I26,-$B41,0))>BM$5,OFFSET(BM38,-$B41,-BL$4+$B41)/OFFSET($I26,-$B41,0),OFFSET(BM38,-$B41,-BL$4+$B41)-SUM($I41:BL41))) -> 0 | BN41: =IF(BN$5<=$D41,0,IF(SUM($D41,OFFSET($I26,-$B41,0))>BN$5,OFFSET(BN38,-$B41,-BM$4+$B41)/OFFSET($I26,-$B41,0),OFFSET(BN38,-$B41,-BM$4+$B41)-SUM($I41:BM41))) -> 0 | BO41: =IF(BO$5<=$D41,0,IF(SUM($D41,OFFSET($I26,-$B41,0))>BO$5,OFFSET(BO38,-$B41,-BN$4+$B41)/OFFSET($I26,-$B41,0),OFFSET(BO38,-$B41,-BN$4+$B41)-SUM($I41:BN41))) -> 0 | BP41: =IF(BP$5<=$D41,0,IF(SUM($D41,OFFSET($I26,-$B41,0))>BP$5,OFFSET(BP38,-$B41,-BO$4+$B41)/OFFSET($I26,-$B41,0),OFFSET(BP38,-$B41,-BO$4+$B41)-SUM($I41:BO41))) -> 0 | BQ41: =IF(BQ$5<=$D41,0,IF(SUM($D41,OFFSET($I26,-$B41,0))>BQ$5,OFFSET(BQ38,-$B41,-BP$4+$B41)/OFFSET($I26,-$B41,0),OFFSET(BQ38,-$B41,-BP$4+$B41)-SUM($I41:BP41))) -> 0 | BR41: =IF(BR$5<=$D41,0,IF(SUM($D41,OFFSET($I26,-$B41,0))>BR$5,OFFSET(BR38,-$B41,-BQ$4+$B41)/OFFSET($I26,-$B41,0),OFFSET(BR38,-$B41,-BQ$4+$B41)-SUM($I41:BQ41))) -> 0 | BS41: =IF(BS$5<=$D41,0,IF(SUM($D41,OFFSET($I26,-$B41,0))>BS$5,OFFSET(BS38,-$B41,-BR$4+$B41)/OFFSET($I26,-$B41,0),OFFSET(BS38,-$B41,-BR$4+$B41)-SUM($I41:BR41))) -> 0 | BT41: =IF(BT$5<=$D41,0,IF(SUM($D41,OFFSET($I26,-$B41,0))>BT$5,OFFSET(BT38,-$B41,-BS$4+$B41)/OFFSET($I26,-$B41,0),OFFSET(BT38,-$B41,-BS$4+$B41)-SUM($I41:BS41))) -> 0
B42: 8 | D42: 2023 | E42: $m Real (2014) | J42: =IF(J$5<=$D42,0,IF(SUM($D42,OFFSET($I27,-$B42,0))>J$5,OFFSET(J39,-$B42,-I$4+$B42)/OFFSET($I27,-$B42,0),OFFSET(J39,-$B42,-I$4+$B42)-SUM($I42:I42))) -> 0 | K42: =IF(K$5<=$D42,0,IF(SUM($D42,OFFSET($I27,-$B42,0))>K$5,OFFSET(K39,-$B42,-J$4+$B42)/OFFSET($I27,-$B42,0),OFFSET(K39,-$B42,-J$4+$B42)-SUM($I42:J42))) -> 0 | L42: =IF(L$5<=$D42,0,IF(SUM($D42,OFFSET($I27,-$B42,0))>L$5,OFFSET(L39,-$B42,-K$4+$B42)/OFFSET($I27,-$B42,0),OFFSET(L39,-$B42,-K$4+$B42)-SUM($I42:K42))) -> 0 | M42: =IF(M$5<=$D42,0,IF(SUM($D42,OFFSET($I27,-$B42,0))>M$5,OFFSET(M39,-$B42,-L$4+$B42)/OFFSET($I27,-$B42,0),OFFSET(M39,-$B42,-L$4+$B42)-SUM($I42:L42))) -> 0 | N42: =IF(N$5<=$D42,0,IF(SUM($D42,OFFSET($I27,-$B42,0))>N$5,OFFSET(N39,-$B42,-M$4+$B42)/OFFSET($I27,-$B42,0),OFFSET(N39,-$B42,-M$4+$B42)-SUM($I42:M42))) -> 0 | O42: =IF(O$5<=$D42,0,IF(SUM($D42,OFFSET($I27,-$B42,0))>O$5,OFFSET(O39,-$B42,-N$4+$B42)/OFFSET($I27,-$B42,0),OFFSET(O39,-$B42,-N$4+$B42)-SUM($I42:N42))) -> 0 | P42: =IF(P$5<=$D42,0,IF(SUM($D42,OFFSET($I27,-$B42,0))>P$5,OFFSET(P39,-$B42,-O$4+$B42)/OFFSET($I27,-$B42,0),OFFSET(P39,-$B42,-O$4+$B42)-SUM($I42:O42))) -> 0 | Q42: =IF(Q$5<=$D42,0,IF(SUM($D42,OFFSET($I27,-$B42,0))>Q$5,OFFSET(Q39,-$B42,-P$4+$B42)/OFFSET($I27,-$B42,0),OFFSET(Q39,-$B42,-P$4+$B42)-SUM($I42:P42))) -> 0 | R42: =IF(R$5<=$D42,0,IF(SUM($D42,OFFSET($I27,-$B42,0))>R$5,OFFSET(R39,-$B42,-Q$4+$B42)/OFFSET($I27,-$B42,0),OFFSET(R39,-$B42,-Q$4+$B42)-SUM($I42:Q42))) -> 0 | S42: =IF(S$5<=$D42,0,IF(SUM($D42,OFFSET($I27,-$B42,0))>S$5,OFFSET(S39,-$B42,-R$4+$B42)/OFFSET($I27,-$B42,0),OFFSET(S39,-$B42,-R$4+$B42)-SUM($I42:R42))) -> 0 | T42: =IF(T$5<=$D42,0,IF(SUM($D42,OFFSET($I27,-$B42,0))>T$5,OFFSET(T39,-$B42,-S$4+$B42)/OFFSET($I27,-$B42,0),OFFSET(T39,-$B42,-S$4+$B42)-SUM($I42:S42))) -> 0 | U42: =IF(U$5<=$D42,0,IF(SUM($D42,OFFSET($I27,-$B42,0))>U$5,OFFSET(U39,-$B42,-T$4+$B42)/OFFSET($I27,-$B42,0),OFFSET(U39,-$B42,-T$4+$B42)-SUM($I42:T42))) -> 0 | V42: =IF(V$5<=$D42,0,IF(SUM($D42,OFFSET($I27,-$B42,0))>V$5,OFFSET(V39,-$B42,-U$4+$B42)/OFFSET($I27,-$B42,0),OFFSET(V39,-$B42,-U$4+$B42)-SUM($I42:U42))) -> 0 | W42: =IF(W$5<=$D42,0,IF(SUM($D42,OFFSET($I27,-$B42,0))>W$5,OFFSET(W39,-$B42,-V$4+$B42)/OFFSET($I27,-$B42,0),OFFSET(W39,-$B42,-V$4+$B42)-SUM($I42:V42))) -> 0 | X42: =IF(X$5<=$D42,0,IF(SUM($D42,OFFSET($I27,-$B42,0))>X$5,OFFSET(X39,-$B42,-W$4+$B42)/OFFSET($I27,-$B42,0),OFFSET(X39,-$B42,-W$4+$B42)-SUM($I42:W42))) -> 0 | Y42: =IF(Y$5<=$D42,0,IF(SUM($D42,OFFSET($I27,-$B42,0))>Y$5,OFFSET(Y39,-$B42,-X$4+$B42)/OFFSET($I27,-$B42,0),OFFSET(Y39,-$B42,-X$4+$B42)-SUM($I42:X42))) -> 0 | Z42: =IF(Z$5<=$D42,0,IF(SUM($D42,OFFSET($I27,-$B42,0))>Z$5,OFFSET(Z39,-$B42,-Y$4+$B42)/OFFSET($I27,-$B42,0),OFFSET(Z39,-$B42,-Y$4+$B42)-SUM($I42:Y42))) -> 0 | AA42: =IF(AA$5<=$D42,0,IF(SUM($D42,OFFSET($I27,-$B42,0))>AA$5,OFFSET(AA39,-$B42,-Z$4+$B42)/OFFSET($I27,-$B42,0),OFFSET(AA39,-$B42,-Z$4+$B42)-SUM($I42:Z42))) -> 0 | AB42: =IF(AB$5<=$D42,0,IF(SUM($D42,OFFSET($I27,-$B42,0))>AB$5,OFFSET(AB39,-$B42,-AA$4+$B42)/OFFSET($I27,-$B42,0),OFFSET(AB39,-$B42,-AA$4+$B42)-SUM($I42:AA42))) -> 0 | AC42: =IF(AC$5<=$D42,0,IF(SUM($D42,OFFSET($I27,-$B42,0))>AC$5,OFFSET(AC39,-$B42,-AB$4+$B42)/OFFSET($I27,-$B42,0),OFFSET(AC39,-$B42,-AB$4+$B42)-SUM($I42:AB42))) -> 0 | AD42: =IF(AD$5<=$D42,0,IF(SUM($D42,OFFSET($I27,-$B42,0))>AD$5,OFFSET(AD39,-$B42,-AC$4+$B42)/OFFSET($I27,-$B42,0),OFFSET(AD39,-$B42,-AC$4+$B42)-SUM($I42:AC42))) -> 0 | AE42: =IF(AE$5<=$D42,0,IF(SUM($D42,OFFSET($I27,-$B42,0))>AE$5,OFFSET(AE39,-$B42,-AD$4+$B42)/OFFSET($I27,-$B42,0),OFFSET(AE39,-$B42,-AD$4+$B42)-SUM($I42:AD42))) -> 0 | AF42: =IF(AF$5<=$D42,0,IF(SUM($D42,OFFSET($I27,-$B42,0))>AF$5,OFFSET(AF39,-$B42,-AE$4+$B42)/OFFSET($I27,-$B42,0),OFFSET(AF39,-$B42,-AE$4+$B42)-SUM($I42:AE42))) -> 0 | AG42: =IF(AG$5<=$D42,0,IF(SUM($D42,OFFSET($I27,-$B42,0))>AG$5,OFFSET(AG39,-$B42,-AF$4+$B42)/OFFSET($I27,-$B42,0),OFFSET(AG39,-$B42,-AF$4+$B42)-SUM($I42:AF42))) -> 0 | AH42: =IF(AH$5<=$D42,0,IF(SUM($D42,OFFSET($I27,-$B42,0))>AH$5,OFFSET(AH39,-$B42,-AG$4+$B42)/OFFSET($I27,-$B42,0),OFFSET(AH39,-$B42,-AG$4+$B42)-SUM($I42:AG42))) -> 0 | AI42: =IF(AI$5<=$D42,0,IF(SUM($D42,OFFSET($I27,-$B42,0))>AI$5,OFFSET(AI39,-$B42,-AH$4+$B42)/OFFSET($I27,-$B42,0),OFFSET(AI39,-$B42,-AH$4+$B42)-SUM($I42:AH42))) -> 0 | AJ42: =IF(AJ$5<=$D42,0,IF(SUM($D42,OFFSET($I27,-$B42,0))>AJ$5,OFFSET(AJ39,-$B42,-AI$4+$B42)/OFFSET($I27,-$B42,0),OFFSET(AJ39,-$B42,-AI$4+$B42)-SUM($I42:AI42))) -> 0 | AK42: =IF(AK$5<=$D42,0,IF(SUM($D42,OFFSET($I27,-$B42,0))>AK$5,OFFSET(AK39,-$B42,-AJ$4+$B42)/OFFSET($I27,-$B42,0),OFFSET(AK39,-$B42,-AJ$4+$B42)-SUM($I42:AJ42))) -> 0 | AL42: =IF(AL$5<=$D42,0,IF(SUM($D42,OFFSET($I27,-$B42,0))>AL$5,OFFSET(AL39,-$B42,-AK$4+$B42)/OFFSET($I27,-$B42,0),OFFSET(AL39,-$B42,-AK$4+$B42)-SUM($I42:AK42))) -> 0 | AM42: =IF(AM$5<=$D42,0,IF(SUM($D42,OFFSET($I27,-$B42,0))>AM$5,OFFSET(AM39,-$B42,-AL$4+$B42)/OFFSET($I27,-$B42,0),OFFSET(AM39,-$B42,-AL$4+$B42)-SUM($I42:AL42))) -> 0 | AN42: =IF(AN$5<=$D42,0,IF(SUM($D42,OFFSET($I27,-$B42,0))>AN$5,OFFSET(AN39,-$B42,-AM$4+$B42)/OFFSET($I27,-$B42,0),OFFSET(AN39,-$B42,-AM$4+$B42)-SUM($I42:AM42))) -> 0 | AO42: =IF(AO$5<=$D42,0,IF(SUM($D42,OFFSET($I27,-$B42,0))>AO$5,OFFSET(AO39,-$B42,-AN$4+$B42)/OFFSET($I27,-$B42,0),OFFSET(AO39,-$B42,-AN$4+$B42)-SUM($I42:AN42))) -> 0 | AP42: =IF(AP$5<=$D42,0,IF(SUM($D42,OFFSET($I27,-$B42,0))>AP$5,OFFSET(AP39,-$B42,-AO$4+$B42)/OFFSET($I27,-$B42,0),OFFSET(AP39,-$B42,-AO$4+$B42)-SUM($I42:AO42))) -> 0 | AQ42: =IF(AQ$5<=$D42,0,IF(SUM($D42,OFFSET($I27,-$B42,0))>AQ$5,OFFSET(AQ39,-$B42,-AP$4+$B42)/OFFSET($I27,-$B42,0),OFFSET(AQ39,-$B42,-AP$4+$B42)-SUM($I42:AP42))) -> 0 | AR42: =IF(AR$5<=$D42,0,IF(SUM($D42,OFFSET($I27,-$B42,0))>AR$5,OFFSET(AR39,-$B42,-AQ$4+$B42)/OFFSET($I27,-$B42,0),OFFSET(AR39,-$B42,-AQ$4+$B42)-SUM($I42:AQ42))) -> 0 | AS42: =IF(AS$5<=$D42,0,IF(SUM($D42,OFFSET($I27,-$B42,0))>AS$5,OFFSET(AS39,-$B42,-AR$4+$B42)/OFFSET($I27,-$B42,0),OFFSET(AS39,-$B42,-AR$4+$B42)-SUM($I42:AR42))) -> 0 | AT42: =IF(AT$5<=$D42,0,IF(SUM($D42,OFFSET($I27,-$B42,0))>AT$5,OFFSET(AT39,-$B42,-AS$4+$B42)/OFFSET($I27,-$B42,0),OFFSET(AT39,-$B42,-AS$4+$B42)-SUM($I42:AS42))) -> 0 | AU42: =IF(AU$5<=$D42,0,IF(SUM($D42,OFFSET($I27,-$B42,0))>AU$5,OFFSET(AU39,-$B42,-AT$4+$B42)/OFFSET($I27,-$B42,0),OFFSET(AU39,-$B42,-AT$4+$B42)-SUM($I42:AT42))) -> 0 | AV42: =IF(AV$5<=$D42,0,IF(SUM($D42,OFFSET($I27,-$B42,0))>AV$5,OFFSET(AV39,-$B42,-AU$4+$B42)/OFFSET($I27,-$B42,0),OFFSET(AV39,-$B42,-AU$4+$B42)-SUM($I42:AU42))) -> 0 | AW42: =IF(AW$5<=$D42,0,IF(SUM($D42,OFFSET($I27,-$B42,0))>AW$5,OFFSET(AW39,-$B42,-AV$4+$B42)/OFFSET($I27,-$B42,0),OFFSET(AW39,-$B42,-AV$4+$B42)-SUM($I42:AV42))) -> 0 | AX42: =IF(AX$5<=$D42,0,IF(SUM($D42,OFFSET($I27,-$B42,0))>AX$5,OFFSET(AX39,-$B42,-AW$4+$B42)/OFFSET($I27,-$B42,0),OFFSET(AX39,-$B42,-AW$4+$B42)-SUM($I42:AW42))) -> 0 | AY42: =IF(AY$5<=$D42,0,IF(SUM($D42,OFFSET($I27,-$B42,0))>AY$5,OFFSET(AY39,-$B42,-AX$4+$B42)/OFFSET($I27,-$B42,0),OFFSET(AY39,-$B42,-AX$4+$B42)-SUM($I42:AX42))) -> 0 | AZ42: =IF(AZ$5<=$D42,0,IF(SUM($D42,OFFSET($I27,-$B42,0))>AZ$5,OFFSET(AZ39,-$B42,-AY$4+$B42)/OFFSET($I27,-$B42,0),OFFSET(AZ39,-$B42,-AY$4+$B42)-SUM($I42:AY42))) -> 0 | BA42: =IF(BA$5<=$D42,0,IF(SUM($D42,OFFSET($I27,-$B42,0))>BA$5,OFFSET(BA39,-$B42,-AZ$4+$B42)/OFFSET($I27,-$B42,0),OFFSET(BA39,-$B42,-AZ$4+$B42)-SUM($I42:AZ42))) -> 0 | BB42: =IF(BB$5<=$D42,0,IF(SUM($D42,OFFSET($I27,-$B42,0))>BB$5,OFFSET(BB39,-$B42,-BA$4+$B42)/OFFSET($I27,-$B42,0),OFFSET(BB39,-$B42,-BA$4+$B42)-SUM($I42:BA42))) -> 0 | BC42: =IF(BC$5<=$D42,0,IF(SUM($D42,OFFSET($I27,-$B42,0))>BC$5,OFFSET(BC39,-$B42,-BB$4+$B42)/OFFSET($I27,-$B42,0),OFFSET(BC39,-$B42,-BB$4+$B42)-SUM($I42:BB42))) -> 0 | BD42: =IF(BD$5<=$D42,0,IF(SUM($D42,OFFSET($I27,-$B42,0))>BD$5,OFFSET(BD39,-$B42,-BC$4+$B42)/OFFSET($I27,-$B42,0),OFFSET(BD39,-$B42,-BC$4+$B42)-SUM($I42:BC42))) -> 0 | BE42: =IF(BE$5<=$D42,0,IF(SUM($D42,OFFSET($I27,-$B42,0))>BE$5,OFFSET(BE39,-$B42,-BD$4+$B42)/OFFSET($I27,-$B42,0),OFFSET(BE39,-$B42,-BD$4+$B42)-SUM($I42:BD42))) -> 0 | BF42: =IF(BF$5<=$D42,0,IF(SUM($D42,OFFSET($I27,-$B42,0))>BF$5,OFFSET(BF39,-$B42,-BE$4+$B42)/OFFSET($I27,-$B42,0),OFFSET(BF39,-$B42,-BE$4+$B42)-SUM($I42:BE42))) -> 0 | BG42: =IF(BG$5<=$D42,0,IF(SUM($D42,OFFSET($I27,-$B42,0))>BG$5,OFFSET(BG39,-$B42,-BF$4+$B42)/OFFSET($I27,-$B42,0),OFFSET(BG39,-$B42,-BF$4+$B42)-SUM($I42:BF42))) -> 0 | BH42: =IF(BH$5<=$D42,0,IF(SUM($D42,OFFSET($I27,-$B42,0))>BH$5,OFFSET(BH39,-$B42,-BG$4+$B42)/OFFSET($I27,-$B42,0),OFFSET(BH39,-$B42,-BG$4+$B42)-SUM($I42:BG42))) -> 0 | BI42: =IF(BI$5<=$D42,0,IF(SUM($D42,OFFSET($I27,-$B42,0))>BI$5,OFFSET(BI39,-$B42,-BH$4+$B42)/OFFSET($I27,-$B42,0),OFFSET(BI39,-$B42,-BH$4+$B42)-SUM($I42:BH42))) -> 0 | BJ42: =IF(BJ$5<=$D42,0,IF(SUM($D42,OFFSET($I27,-$B42,0))>BJ$5,OFFSET(BJ39,-$B42,-BI$4+$B42)/OFFSET($I27,-$B42,0),OFFSET(BJ39,-$B42,-BI$4+$B42)-SUM($I42:BI42))) -> 0 | BK42: =IF(BK$5<=$D42,0,IF(SUM($D42,OFFSET($I27,-$B42,0))>BK$5,OFFSET(BK39,-$B42,-BJ$4+$B42)/OFFSET($I27,-$B42,0),OFFSET(BK39,-$B42,-BJ$4+$B42)-SUM($I42:BJ42))) -> 0 | BL42: =IF(BL$5<=$D42,0,IF(SUM($D42,OFFSET($I27,-$B42,0))>BL$5,OFFSET(BL39,-$B42,-BK$4+$B42)/OFFSET($I27,-$B42,0),OFFSET(BL39,-$B42,-BK$4+$B42)-SUM($I42:BK42))) -> 0 | BM42: =IF(BM$5<=$D42,0,IF(SUM($D42,OFFSET($I27,-$B42,0))>BM$5,OFFSET(BM39,-$B42,-BL$4+$B42)/OFFSET($I27,-$B42,0),OFFSET(BM39,-$B42,-BL$4+$B42)-SUM($I42:BL42))) -> 0 | BN42: =IF(BN$5<=$D42,0,IF(SUM($D42,OFFSET($I27,-$B42,0))>BN$5,OFFSET(BN39,-$B42,-BM$4+$B42)/OFFSET($I27,-$B42,0),OFFSET(BN39,-$B42,-BM$4+$B42)-SUM($I42:BM42))) -> 0 | BO42: =IF(BO$5<=$D42,0,IF(SUM($D42,OFFSET($I27,-$B42,0))>BO$5,OFFSET(BO39,-$B42,-BN$4+$B42)/OFFSET($I27,-$B42,0),OFFSET(BO39,-$B42,-BN$4+$B42)-SUM($I42:BN42))) -> 0 | BP42: =IF(BP$5<=$D42,0,IF(SUM($D42,OFFSET($I27,-$B42,0))>BP$5,OFFSET(BP39,-$B42,-BO$4+$B42)/OFFSET($I27,-$B42,0),OFFSET(BP39,-$B42,-BO$4+$B42)-SUM($I42:BO42))) -> 0 | BQ42: =IF(BQ$5<=$D42,0,IF(SUM($D42,OFFSET($I27,-$B42,0))>BQ$5,OFFSET(BQ39,-$B42,-BP$4+$B42)/OFFSET($I27,-$B42,0),OFFSET(BQ39,-$B42,-BP$4+$B42)-SUM($I42:BP42))) -> 0 | BR42: =IF(BR$5<=$D42,0,IF(SUM($D42,OFFSET($I27,-$B42,0))>BR$5,OFFSET(BR39,-$B42,-BQ$4+$B42)/OFFSET($I27,-$B42,0),OFFSET(BR39,-$B42,-BQ$4+$B42)-SUM($I42:BQ42))) -> 0 | BS42: =IF(BS$5<=$D42,0,IF(SUM($D42,OFFSET($I27,-$B42,0))>BS$5,OFFSET(BS39,-$B42,-BR$4+$B42)/OFFSET($I27,-$B42,0),OFFSET(BS39,-$B42,-BR$4+$B42)-SUM($I42:BR42))) -> 0 | BT42: =IF(BT$5<=$D42,0,IF(SUM($D42,OFFSET($I27,-$B42,0))>BT$5,OFFSET(BT39,-$B42,-BS$4+$B42)/OFFSET($I27,-$B42,0),OFFSET(BT39,-$B42,-BS$4+$B42)-SUM($I42:BS42))) -> 0
B43: 9 | D43: 2024 | E43: $m Real (2014) | J43: =IF(J$5<=$D43,0,IF(SUM($D43,OFFSET($I28,-$B43,0))>J$5,OFFSET(J40,-$B43,-I$4+$B43)/OFFSET($I28,-$B43,0),OFFSET(J40,-$B43,-I$4+$B43)-SUM($I43:I43))) -> 0 | K43: =IF(K$5<=$D43,0,IF(SUM($D43,OFFSET($I28,-$B43,0))>K$5,OFFSET(K40,-$B43,-J$4+$B43)/OFFSET($I28,-$B43,0),OFFSET(K40,-$B43,-J$4+$B43)-SUM($I43:J43))) -> 0 | L43: =IF(L$5<=$D43,0,IF(SUM($D43,OFFSET($I28,-$B43,0))>L$5,OFFSET(L40,-$B43,-K$4+$B43)/OFFSET($I28,-$B43,0),OFFSET(L40,-$B43,-K$4+$B43)-SUM($I43:K43))) -> 0 | M43: =IF(M$5<=$D43,0,IF(SUM($D43,OFFSET($I28,-$B43,0))>M$5,OFFSET(M40,-$B43,-L$4+$B43)/OFFSET($I28,-$B43,0),OFFSET(M40,-$B43,-L$4+$B43)-SUM($I43:L43))) -> 0 | N43: =IF(N$5<=$D43,0,IF(SUM($D43,OFFSET($I28,-$B43,0))>N$5,OFFSET(N40,-$B43,-M$4+$B43)/OFFSET($I28,-$B43,0),OFFSET(N40,-$B43,-M$4+$B43)-SUM($I43:M43))) -> 0 | O43: =IF(O$5<=$D43,0,IF(SUM($D43,OFFSET($I28,-$B43,0))>O$5,OFFSET(O40,-$B43,-N$4+$B43)/OFFSET($I28,-$B43,0),OFFSET(O40,-$B43,-N$4+$B43)-SUM($I43:N43))) -> 0 | P43: =IF(P$5<=$D43,0,IF(SUM($D43,OFFSET($I28,-$B43,0))>P$5,OFFSET(P40,-$B43,-O$4+$B43)/OFFSET($I28,-$B43,0),OFFSET(P40,-$B43,-O$4+$B43)-SUM($I43:O43))) -> 0 | Q43: =IF(Q$5<=$D43,0,IF(SUM($D43,OFFSET($I28,-$B43,0))>Q$5,OFFSET(Q40,-$B43,-P$4+$B43)/OFFSET($I28,-$B43,0),OFFSET(Q40,-$B43,-P$4+$B43)-SUM($I43:P43))) -> 0 | R43: =IF(R$5<=$D43,0,IF(SUM($D43,OFFSET($I28,-$B43,0))>R$5,OFFSET(R40,-$B43,-Q$4+$B43)/OFFSET($I28,-$B43,0),OFFSET(R40,-$B43,-Q$4+$B43)-SUM($I43:Q43))) -> 0 | S43: =IF(S$5<=$D43,0,IF(SUM($D43,OFFSET($I28,-$B43,0))>S$5,OFFSET(S40,-$B43,-R$4+$B43)/OFFSET($I28,-$B43,0),OFFSET(S40,-$B43,-R$4+$B43)-SUM($I43:R43))) -> 0 | T43: =IF(T$5<=$D43,0,IF(SUM($D43,OFFSET($I28,-$B43,0))>T$5,OFFSET(T40,-$B43,-S$4+$B43)/OFFSET($I28,-$B43,0),OFFSET(T40,-$B43,-S$4+$B43)-SUM($I43:S43))) -> 0 | U43: =IF(U$5<=$D43,0,IF(SUM($D43,OFFSET($I28,-$B43,0))>U$5,OFFSET(U40,-$B43,-T$4+$B43)/OFFSET($I28,-$B43,0),OFFSET(U40,-$B43,-T$4+$B43)-SUM($I43:T43))) -> 0 | V43: =IF(V$5<=$D43,0,IF(SUM($D43,OFFSET($I28,-$B43,0))>V$5,OFFSET(V40,-$B43,-U$4+$B43)/OFFSET($I28,-$B43,0),OFFSET(V40,-$B43,-U$4+$B43)-SUM($I43:U43))) -> 0 | W43: =IF(W$5<=$D43,0,IF(SUM($D43,OFFSET($I28,-$B43,0))>W$5,OFFSET(W40,-$B43,-V$4+$B43)/OFFSET($I28,-$B43,0),OFFSET(W40,-$B43,-V$4+$B43)-SUM($I43:V43))) -> 0 | X43: =IF(X$5<=$D43,0,IF(SUM($D43,OFFSET($I28,-$B43,0))>X$5,OFFSET(X40,-$B43,-W$4+$B43)/OFFSET($I28,-$B43,0),OFFSET(X40,-$B43,-W$4+$B43)-SUM($I43:W43))) -> 0 | Y43: =IF(Y$5<=$D43,0,IF(SUM($D43,OFFSET($I28,-$B43,0))>Y$5,OFFSET(Y40,-$B43,-X$4+$B43)/OFFSET($I28,-$B43,0),OFFSET(Y40,-$B43,-X$4+$B43)-SUM($I43:X43))) -> 0 | Z43: =IF(Z$5<=$D43,0,IF(SUM($D43,OFFSET($I28,-$B43,0))>Z$5,OFFSET(Z40,-$B43,-Y$4+$B43)/OFFSET($I28,-$B43,0),OFFSET(Z40,-$B43,-Y$4+$B43)-SUM($I43:Y43))) -> 0 | AA43: =IF(AA$5<=$D43,0,IF(SUM($D43,OFFSET($I28,-$B43,0))>AA$5,OFFSET(AA40,-$B43,-Z$4+$B43)/OFFSET($I28,-$B43,0),OFFSET(AA40,-$B43,-Z$4+$B43)-SUM($I43:Z43))) -> 0 | AB43: =IF(AB$5<=$D43,0,IF(SUM($D43,OFFSET($I28,-$B43,0))>AB$5,OFFSET(AB40,-$B43,-AA$4+$B43)/OFFSET($I28,-$B43,0),OFFSET(AB40,-$B43,-AA$4+$B43)-SUM($I43:AA43))) -> 0 | AC43: =IF(AC$5<=$D43,0,IF(SUM($D43,OFFSET($I28,-$B43,0))>AC$5,OFFSET(AC40,-$B43,-AB$4+$B43)/OFFSET($I28,-$B43,0),OFFSET(AC40,-$B43,-AB$4+$B43)-SUM($I43:AB43))) -> 0 | AD43: =IF(AD$5<=$D43,0,IF(SUM($D43,OFFSET($I28,-$B43,0))>AD$5,OFFSET(AD40,-$B43,-AC$4+$B43)/OFFSET($I28,-$B43,0),OFFSET(AD40,-$B43,-AC$4+$B43)-SUM($I43:AC43))) -> 0 | AE43: =IF(AE$5<=$D43,0,IF(SUM($D43,OFFSET($I28,-$B43,0))>AE$5,OFFSET(AE40,-$B43,-AD$4+$B43)/OFFSET($I28,-$B43,0),OFFSET(AE40,-$B43,-AD$4+$B43)-SUM($I43:AD43))) -> 0 | AF43: =IF(AF$5<=$D43,0,IF(SUM($D43,OFFSET($I28,-$B43,0))>AF$5,OFFSET(AF40,-$B43,-AE$4+$B43)/OFFSET($I28,-$B43,0),OFFSET(AF40,-$B43,-AE$4+$B43)-SUM($I43:AE43))) -> 0 | AG43: =IF(AG$5<=$D43,0,IF(SUM($D43,OFFSET($I28,-$B43,0))>AG$5,OFFSET(AG40,-$B43,-AF$4+$B43)/OFFSET($I28,-$B43,0),OFFSET(AG40,-$B43,-AF$4+$B43)-SUM($I43:AF43))) -> 0 | AH43: =IF(AH$5<=$D43,0,IF(SUM($D43,OFFSET($I28,-$B43,0))>AH$5,OFFSET(AH40,-$B43,-AG$4+$B43)/OFFSET($I28,-$B43,0),OFFSET(AH40,-$B43,-AG$4+$B43)-SUM($I43:AG43))) -> 0 | AI43: =IF(AI$5<=$D43,0,IF(SUM($D43,OFFSET($I28,-$B43,0))>AI$5,OFFSET(AI40,-$B43,-AH$4+$B43)/OFFSET($I28,-$B43,0),OFFSET(AI40,-$B43,-AH$4+$B43)-SUM($I43:AH43))) -> 0 | AJ43: =IF(AJ$5<=$D43,0,IF(SUM($D43,OFFSET($I28,-$B43,0))>AJ$5,OFFSET(AJ40,-$B43,-AI$4+$B43)/OFFSET($I28,-$B43,0),OFFSET(AJ40,-$B43,-AI$4+$B43)-SUM($I43:AI43))) -> 0 | AK43: =IF(AK$5<=$D43,0,IF(SUM($D43,OFFSET($I28,-$B43,0))>AK$5,OFFSET(AK40,-$B43,-AJ$4+$B43)/OFFSET($I28,-$B43,0),OFFSET(AK40,-$B43,-AJ$4+$B43)-SUM($I43:AJ43))) -> 0 | AL43: =IF(AL$5<=$D43,0,IF(SUM($D43,OFFSET($I28,-$B43,0))>AL$5,OFFSET(AL40,-$B43,-AK$4+$B43)/OFFSET($I28,-$B43,0),OFFSET(AL40,-$B43,-AK$4+$B43)-SUM($I43:AK43))) -> 0 | AM43: =IF(AM$5<=$D43,0,IF(SUM($D43,OFFSET($I28,-$B43,0))>AM$5,OFFSET(AM40,-$B43,-AL$4+$B43)/OFFSET($I28,-$B43,0),OFFSET(AM40,-$B43,-AL$4+$B43)-SUM($I43:AL43))) -> 0 | AN43: =IF(AN$5<=$D43,0,IF(SUM($D43,OFFSET($I28,-$B43,0))>AN$5,OFFSET(AN40,-$B43,-AM$4+$B43)/OFFSET($I28,-$B43,0),OFFSET(AN40,-$B43,-AM$4+$B43)-SUM($I43:AM43))) -> 0 | AO43: =IF(AO$5<=$D43,0,IF(SUM($D43,OFFSET($I28,-$B43,0))>AO$5,OFFSET(AO40,-$B43,-AN$4+$B43)/OFFSET($I28,-$B43,0),OFFSET(AO40,-$B43,-AN$4+$B43)-SUM($I43:AN43))) -> 0 | AP43: =IF(AP$5<=$D43,0,IF(SUM($D43,OFFSET($I28,-$B43,0))>AP$5,OFFSET(AP40,-$B43,-AO$4+$B43)/OFFSET($I28,-$B43,0),OFFSET(AP40,-$B43,-AO$4+$B43)-SUM($I43:AO43))) -> 0 | AQ43: =IF(AQ$5<=$D43,0,IF(SUM($D43,OFFSET($I28,-$B43,0))>AQ$5,OFFSET(AQ40,-$B43,-AP$4+$B43)/OFFSET($I28,-$B43,0),OFFSET(AQ40,-$B43,-AP$4+$B43)-SUM($I43:AP43))) -> 0 | AR43: =IF(AR$5<=$D43,0,IF(SUM($D43,OFFSET($I28,-$B43,0))>AR$5,OFFSET(AR40,-$B43,-AQ$4+$B43)/OFFSET($I28,-$B43,0),OFFSET(AR40,-$B43,-AQ$4+$B43)-SUM($I43:AQ43))) -> 0 | AS43: =IF(AS$5<=$D43,0,IF(SUM($D43,OFFSET($I28,-$B43,0))>AS$5,OFFSET(AS40,-$B43,-AR$4+$B43)/OFFSET($I28,-$B43,0),OFFSET(AS40,-$B43,-AR$4+$B43)-SUM($I43:AR43))) -> 0 | AT43: =IF(AT$5<=$D43,0,IF(SUM($D43,OFFSET($I28,-$B43,0))>AT$5,OFFSET(AT40,-$B43,-AS$4+$B43)/OFFSET($I28,-$B43,0),OFFSET(AT40,-$B43,-AS$4+$B43)-SUM($I43:AS43))) -> 0 | AU43: =IF(AU$5<=$D43,0,IF(SUM($D43,OFFSET($I28,-$B43,0))>AU$5,OFFSET(AU40,-$B43,-AT$4+$B43)/OFFSET($I28,-$B43,0),OFFSET(AU40,-$B43,-AT$4+$B43)-SUM($I43:AT43))) -> 0 | AV43: =IF(AV$5<=$D43,0,IF(SUM($D43,OFFSET($I28,-$B43,0))>AV$5,OFFSET(AV40,-$B43,-AU$4+$B43)/OFFSET($I28,-$B43,0),OFFSET(AV40,-$B43,-AU$4+$B43)-SUM($I43:AU43))) -> 0 | AW43: =IF(AW$5<=$D43,0,IF(SUM($D43,OFFSET($I28,-$B43,0))>AW$5,OFFSET(AW40,-$B43,-AV$4+$B43)/OFFSET($I28,-$B43,0),OFFSET(AW40,-$B43,-AV$4+$B43)-SUM($I43:AV43))) -> 0 | AX43: =IF(AX$5<=$D43,0,IF(SUM($D43,OFFSET($I28,-$B43,0))>AX$5,OFFSET(AX40,-$B43,-AW$4+$B43)/OFFSET($I28,-$B43,0),OFFSET(AX40,-$B43,-AW$4+$B43)-SUM($I43:AW43))) -> 0 | AY43: =IF(AY$5<=$D43,0,IF(SUM($D43,OFFSET($I28,-$B43,0))>AY$5,OFFSET(AY40,-$B43,-AX$4+$B43)/OFFSET($I28,-$B43,0),OFFSET(AY40,-$B43,-AX$4+$B43)-SUM($I43:AX43))) -> 0 | AZ43: =IF(AZ$5<=$D43,0,IF(SUM($D43,OFFSET($I28,-$B43,0))>AZ$5,OFFSET(AZ40,-$B43,-AY$4+$B43)/OFFSET($I28,-$B43,0),OFFSET(AZ40,-$B43,-AY$4+$B43)-SUM($I43:AY43))) -> 0 | BA43: =IF(BA$5<=$D43,0,IF(SUM($D43,OFFSET($I28,-$B43,0))>BA$5,OFFSET(BA40,-$B43,-AZ$4+$B43)/OFFSET($I28,-$B43,0),OFFSET(BA40,-$B43,-AZ$4+$B43)-SUM($I43:AZ43))) -> 0 | BB43: =IF(BB$5<=$D43,0,IF(SUM($D43,OFFSET($I28,-$B43,0))>BB$5,OFFSET(BB40,-$B43,-BA$4+$B43)/OFFSET($I28,-$B43,0),OFFSET(BB40,-$B43,-BA$4+$B43)-SUM($I43:BA43))) -> 0 | BC43: =IF(BC$5<=$D43,0,IF(SUM($D43,OFFSET($I28,-$B43,0))>BC$5,OFFSET(BC40,-$B43,-BB$4+$B43)/OFFSET($I28,-$B43,0),OFFSET(BC40,-$B43,-BB$4+$B43)-SUM($I43:BB43))) -> 0 | BD43: =IF(BD$5<=$D43,0,IF(SUM($D43,OFFSET($I28,-$B43,0))>BD$5,OFFSET(BD40,-$B43,-BC$4+$B43)/OFFSET($I28,-$B43,0),OFFSET(BD40,-$B43,-BC$4+$B43)-SUM($I43:BC43))) -> 0 | BE43: =IF(BE$5<=$D43,0,IF(SUM($D43,OFFSET($I28,-$B43,0))>BE$5,OFFSET(BE40,-$B43,-BD$4+$B43)/OFFSET($I28,-$B43,0),OFFSET(BE40,-$B43,-BD$4+$B43)-SUM($I43:BD43))) -> 0 | BF43: =IF(BF$5<=$D43,0,IF(SUM($D43,OFFSET($I28,-$B43,0))>BF$5,OFFSET(BF40,-$B43,-BE$4+$B43)/OFFSET($I28,-$B43,0),OFFSET(BF40,-$B43,-BE$4+$B43)-SUM($I43:BE43))) -> 0 | BG43: =IF(BG$5<=$D43,0,IF(SUM($D43,OFFSET($I28,-$B43,0))>BG$5,OFFSET(BG40,-$B43,-BF$4+$B43)/OFFSET($I28,-$B43,0),OFFSET(BG40,-$B43,-BF$4+$B43)-SUM($I43:BF43))) -> 0 | BH43: =IF(BH$5<=$D43,0,IF(SUM($D43,OFFSET($I28,-$B43,0))>BH$5,OFFSET(BH40,-$B43,-BG$4+$B43)/OFFSET($I28,-$B43,0),OFFSET(BH40,-$B43,-BG$4+$B43)-SUM($I43:BG43))) -> 0 | BI43: =IF(BI$5<=$D43,0,IF(SUM($D43,OFFSET($I28,-$B43,0))>BI$5,OFFSET(BI40,-$B43,-BH$4+$B43)/OFFSET($I28,-$B43,0),OFFSET(BI40,-$B43,-BH$4+$B43)-SUM($I43:BH43))) -> 0 | BJ43: =IF(BJ$5<=$D43,0,IF(SUM($D43,OFFSET($I28,-$B43,0))>BJ$5,OFFSET(BJ40,-$B43,-BI$4+$B43)/OFFSET($I28,-$B43,0),OFFSET(BJ40,-$B43,-BI$4+$B43)-SUM($I43:BI43))) -> 0 | BK43: =IF(BK$5<=$D43,0,IF(SUM($D43,OFFSET($I28,-$B43,0))>BK$5,OFFSET(BK40,-$B43,-BJ$4+$B43)/OFFSET($I28,-$B43,0),OFFSET(BK40,-$B43,-BJ$4+$B43)-SUM($I43:BJ43))) -> 0 | BL43: =IF(BL$5<=$D43,0,IF(SUM($D43,OFFSET($I28,-$B43,0))>BL$5,OFFSET(BL40,-$B43,-BK$4+$B43)/OFFSET($I28,-$B43,0),OFFSET(BL40,-$B43,-BK$4+$B43)-SUM($I43:BK43))) -> 0 | BM43: =IF(BM$5<=$D43,0,IF(SUM($D43,OFFSET($I28,-$B43,0))>BM$5,OFFSET(BM40,-$B43,-BL$4+$B43)/OFFSET($I28,-$B43,0),OFFSET(BM40,-$B43,-BL$4+$B43)-SUM($I43:BL43))) -> 0 | BN43: =IF(BN$5<=$D43,0,IF(SUM($D43,OFFSET($I28,-$B43,0))>BN$5,OFFSET(BN40,-$B43,-BM$4+$B43)/OFFSET($I28,-$B43,0),OFFSET(BN40,-$B43,-BM$4+$B43)-SUM($I43:BM43))) -> 0 | BO43: =IF(BO$5<=$D43,0,IF(SUM($D43,OFFSET($I28,-$B43,0))>BO$5,OFFSET(BO40,-$B43,-BN$4+$B43)/OFFSET($I28,-$B43,0),OFFSET(BO40,-$B43,-BN$4+$B43)-SUM($I43:BN43))) -> 0 | BP43: =IF(BP$5<=$D43,0,IF(SUM($D43,OFFSET($I28,-$B43,0))>BP$5,OFFSET(BP40,-$B43,-BO$4+$B43)/OFFSET($I28,-$B43,0),OFFSET(BP40,-$B43,-BO$4+$B43)-SUM($I43:BO43))) -> 0 | BQ43: =IF(BQ$5<=$D43,0,IF(SUM($D43,OFFSET($I28,-$B43,0))>BQ$5,OFFSET(BQ40,-$B43,-BP$4+$B43)/OFFSET($I28,-$B43,0),OFFSET(BQ40,-$B43,-BP$4+$B43)-SUM($I43:BP43))) -> 0 | BR43: =IF(BR$5<=$D43,0,IF(SUM($D43,OFFSET($I28,-$B43,0))>BR$5,OFFSET(BR40,-$B43,-BQ$4+$B43)/OFFSET($I28,-$B43,0),OFFSET(BR40,-$B43,-BQ$4+$B43)-SUM($I43:BQ43))) -> 0 | BS43: =IF(BS$5<=$D43,0,IF(SUM($D43,OFFSET($I28,-$B43,0))>BS$5,OFFSET(BS40,-$B43,-BR$4+$B43)/OFFSET($I28,-$B43,0),OFFSET(BS40,-$B43,-BR$4+$B43)-SUM($I43:BR43))) -> 0 | BT43: =IF(BT$5<=$D43,0,IF(SUM($D43,OFFSET($I28,-$B43,0))>BT$5,OFFSET(BT40,-$B43,-BS$4+$B43)/OFFSET($I28,-$B43,0),OFFSET(BT40,-$B43,-BS$4+$B43)-SUM($I43:BS43))) -> 0
B44: 10 | D44: 2025 | E44: $m Real (2014) | J44: =IF(J$5<=$D44,0,IF(SUM($D44,OFFSET($I29,-$B44,0))>J$5,OFFSET(J41,-$B44,-I$4+$B44)/OFFSET($I29,-$B44,0),OFFSET(J41,-$B44,-I$4+$B44)-SUM($I44:I44))) -> 0 | K44: =IF(K$5<=$D44,0,IF(SUM($D44,OFFSET($I29,-$B44,0))>K$5,OFFSET(K41,-$B44,-J$4+$B44)/OFFSET($I29,-$B44,0),OFFSET(K41,-$B44,-J$4+$B44)-SUM($I44:J44))) -> 0 | L44: =IF(L$5<=$D44,0,IF(SUM($D44,OFFSET($I29,-$B44,0))>L$5,OFFSET(L41,-$B44,-K$4+$B44)/OFFSET($I29,-$B44,0),OFFSET(L41,-$B44,-K$4+$B44)-SUM($I44:K44))) -> 0 | M44: =IF(M$5<=$D44,0,IF(SUM($D44,OFFSET($I29,-$B44,0))>M$5,OFFSET(M41,-$B44,-L$4+$B44)/OFFSET($I29,-$B44,0),OFFSET(M41,-$B44,-L$4+$B44)-SUM($I44:L44))) -> 0 | N44: =IF(N$5<=$D44,0,IF(SUM($D44,OFFSET($I29,-$B44,0))>N$5,OFFSET(N41,-$B44,-M$4+$B44)/OFFSET($I29,-$B44,0),OFFSET(N41,-$B44,-M$4+$B44)-SUM($I44:M44))) -> 0 | O44: =IF(O$5<=$D44,0,IF(SUM($D44,OFFSET($I29,-$B44,0))>O$5,OFFSET(O41,-$B44,-N$4+$B44)/OFFSET($I29,-$B44,0),OFFSET(O41,-$B44,-N$4+$B44)-SUM($I44:N44))) -> 0 | P44: =IF(P$5<=$D44,0,IF(SUM($D44,OFFSET($I29,-$B44,0))>P$5,OFFSET(P41,-$B44,-O$4+$B44)/OFFSET($I29,-$B44,0),OFFSET(P41,-$B44,-O$4+$B44)-SUM($I44:O44))) -> 0 | Q44: =IF(Q$5<=$D44,0,IF(SUM($D44,OFFSET($I29,-$B44,0))>Q$5,OFFSET(Q41,-$B44,-P$4+$B44)/OFFSET($I29,-$B44,0),OFFSET(Q41,-$B44,-P$4+$B44)-SUM($I44:P44))) -> 0 | R44: =IF(R$5<=$D44,0,IF(SUM($D44,OFFSET($I29,-$B44,0))>R$5,OFFSET(R41,-$B44,-Q$4+$B44)/OFFSET($I29,-$B44,0),OFFSET(R41,-$B44,-Q$4+$B44)-SUM($I44:Q44))) -> 0 | S44: =IF(S$5<=$D44,0,IF(SUM($D44,OFFSET($I29,-$B44,0))>S$5,OFFSET(S41,-$B44,-R$4+$B44)/OFFSET($I29,-$B44,0),OFFSET(S41,-$B44,-R$4+$B44)-SUM($I44:R44))) -> 0 | T44: =IF(T$5<=$D44,0,IF(SUM($D44,OFFSET($I29,-$B44,0))>T$5,OFFSET(T41,-$B44,-S$4+$B44)/OFFSET($I29,-$B44,0),OFFSET(T41,-$B44,-S$4+$B44)-SUM($I44:S44))) -> 0 | U44: =IF(U$5<=$D44,0,IF(SUM($D44,OFFSET($I29,-$B44,0))>U$5,OFFSET(U41,-$B44,-T$4+$B44)/OFFSET($I29,-$B44,0),OFFSET(U41,-$B44,-T$4+$B44)-SUM($I44:T44))) -> 0 | V44: =IF(V$5<=$D44,0,IF(SUM($D44,OFFSET($I29,-$B44,0))>V$5,OFFSET(V41,-$B44,-U$4+$B44)/OFFSET($I29,-$B44,0),OFFSET(V41,-$B44,-U$4+$B44)-SUM($I44:U44))) -> 0 | W44: =IF(W$5<=$D44,0,IF(SUM($D44,OFFSET($I29,-$B44,0))>W$5,OFFSET(W41,-$B44,-V$4+$B44)/OFFSET($I29,-$B44,0),OFFSET(W41,-$B44,-V$4+$B44)-SUM($I44:V44))) -> 0 | X44: =IF(X$5<=$D44,0,IF(SUM($D44,OFFSET($I29,-$B44,0))>X$5,OFFSET(X41,-$B44,-W$4+$B44)/OFFSET($I29,-$B44,0),OFFSET(X41,-$B44,-W$4+$B44)-SUM($I44:W44))) -> 0 | Y44: =IF(Y$5<=$D44,0,IF(SUM($D44,OFFSET($I29,-$B44,0))>Y$5,OFFSET(Y41,-$B44,-X$4+$B44)/OFFSET($I29,-$B44,0),OFFSET(Y41,-$B44,-X$4+$B44)-SUM($I44:X44))) -> 0 | Z44: =IF(Z$5<=$D44,0,IF(SUM($D44,OFFSET($I29,-$B44,0))>Z$5,OFFSET(Z41,-$B44,-Y$4+$B44)/OFFSET($I29,-$B44,0),OFFSET(Z41,-$B44,-Y$4+$B44)-SUM($I44:Y44))) -> 0 | AA44: =IF(AA$5<=$D44,0,IF(SUM($D44,OFFSET($I29,-$B44,0))>AA$5,OFFSET(AA41,-$B44,-Z$4+$B44)/OFFSET($I29,-$B44,0),OFFSET(AA41,-$B44,-Z$4+$B44)-SUM($I44:Z44))) -> 0 | AB44: =IF(AB$5<=$D44,0,IF(SUM($D44,OFFSET($I29,-$B44,0))>AB$5,OFFSET(AB41,-$B44,-AA$4+$B44)/OFFSET($I29,-$B44,0),OFFSET(AB41,-$B44,-AA$4+$B44)-SUM($I44:AA44))) -> 0 | AC44: =IF(AC$5<=$D44,0,IF(SUM($D44,OFFSET($I29,-$B44,0))>AC$5,OFFSET(AC41,-$B44,-AB$4+$B44)/OFFSET($I29,-$B44,0),OFFSET(AC41,-$B44,-AB$4+$B44)-SUM($I44:AB44))) -> 0 | AD44: =IF(AD$5<=$D44,0,IF(SUM($D44,OFFSET($I29,-$B44,0))>AD$5,OFFSET(AD41,-$B44,-AC$4+$B44)/OFFSET($I29,-$B44,0),OFFSET(AD41,-$B44,-AC$4+$B44)-SUM($I44:AC44))) -> 0 | AE44: =IF(AE$5<=$D44,0,IF(SUM($D44,OFFSET($I29,-$B44,0))>AE$5,OFFSET(AE41,-$B44,-AD$4+$B44)/OFFSET($I29,-$B44,0),OFFSET(AE41,-$B44,-AD$4+$B44)-SUM($I44:AD44))) -> 0 | AF44: =IF(AF$5<=$D44,0,IF(SUM($D44,OFFSET($I29,-$B44,0))>AF$5,OFFSET(AF41,-$B44,-AE$4+$B44)/OFFSET($I29,-$B44,0),OFFSET(AF41,-$B44,-AE$4+$B44)-SUM($I44:AE44))) -> 0 | AG44: =IF(AG$5<=$D44,0,IF(SUM($D44,OFFSET($I29,-$B44,0))>AG$5,OFFSET(AG41,-$B44,-AF$4+$B44)/OFFSET($I29,-$B44,0),OFFSET(AG41,-$B44,-AF$4+$B44)-SUM($I44:AF44))) -> 0 | AH44: =IF(AH$5<=$D44,0,IF(SUM($D44,OFFSET($I29,-$B44,0))>AH$5,OFFSET(AH41,-$B44,-AG$4+$B44)/OFFSET($I29,-$B44,0),OFFSET(AH41,-$B44,-AG$4+$B44)-SUM($I44:AG44))) -> 0 | AI44: =IF(AI$5<=$D44,0,IF(SUM($D44,OFFSET($I29,-$B44,0))>AI$5,OFFSET(AI41,-$B44,-AH$4+$B44)/OFFSET($I29,-$B44,0),OFFSET(AI41,-$B44,-AH$4+$B44)-SUM($I44:AH44))) -> 0 | AJ44: =IF(AJ$5<=$D44,0,IF(SUM($D44,OFFSET($I29,-$B44,0))>AJ$5,OFFSET(AJ41,-$B44,-AI$4+$B44)/OFFSET($I29,-$B44,0),OFFSET(AJ41,-$B44,-AI$4+$B44)-SUM($I44:AI44))) -> 0 | AK44: =IF(AK$5<=$D44,0,IF(SUM($D44,OFFSET($I29,-$B44,0))>AK$5,OFFSET(AK41,-$B44,-AJ$4+$B44)/OFFSET($I29,-$B44,0),OFFSET(AK41,-$B44,-AJ$4+$B44)-SUM($I44:AJ44))) -> 0 | AL44: =IF(AL$5<=$D44,0,IF(SUM($D44,OFFSET($I29,-$B44,0))>AL$5,OFFSET(AL41,-$B44,-AK$4+$B44)/OFFSET($I29,-$B44,0),OFFSET(AL41,-$B44,-AK$4+$B44)-SUM($I44:AK44))) -> 0 | AM44: =IF(AM$5<=$D44,0,IF(SUM($D44,OFFSET($I29,-$B44,0))>AM$5,OFFSET(AM41,-$B44,-AL$4+$B44)/OFFSET($I29,-$B44,0),OFFSET(AM41,-$B44,-AL$4+$B44)-SUM($I44:AL44))) -> 0 | AN44: =IF(AN$5<=$D44,0,IF(SUM($D44,OFFSET($I29,-$B44,0))>AN$5,OFFSET(AN41,-$B44,-AM$4+$B44)/OFFSET($I29,-$B44,0),OFFSET(AN41,-$B44,-AM$4+$B44)-SUM($I44:AM44))) -> 0 | AO44: =IF(AO$5<=$D44,0,IF(SUM($D44,OFFSET($I29,-$B44,0))>AO$5,OFFSET(AO41,-$B44,-AN$4+$B44)/OFFSET($I29,-$B44,0),OFFSET(AO41,-$B44,-AN$4+$B44)-SUM($I44:AN44))) -> 0 | AP44: =IF(AP$5<=$D44,0,IF(SUM($D44,OFFSET($I29,-$B44,0))>AP$5,OFFSET(AP41,-$B44,-AO$4+$B44)/OFFSET($I29,-$B44,0),OFFSET(AP41,-$B44,-AO$4+$B44)-SUM($I44:AO44))) -> 0 | AQ44: =IF(AQ$5<=$D44,0,IF(SUM($D44,OFFSET($I29,-$B44,0))>AQ$5,OFFSET(AQ41,-$B44,-AP$4+$B44)/OFFSET($I29,-$B44,0),OFFSET(AQ41,-$B44,-AP$4+$B44)-SUM($I44:AP44))) -> 0 | AR44: =IF(AR$5<=$D44,0,IF(SUM($D44,OFFSET($I29,-$B44,0))>AR$5,OFFSET(AR41,-$B44,-AQ$4+$B44)/OFFSET($I29,-$B44,0),OFFSET(AR41,-$B44,-AQ$4+$B44)-SUM($I44:AQ44))) -> 0 | AS44: =IF(AS$5<=$D44,0,IF(SUM($D44,OFFSET($I29,-$B44,0))>AS$5,OFFSET(AS41,-$B44,-AR$4+$B44)/OFFSET($I29,-$B44,0),OFFSET(AS41,-$B44,-AR$4+$B44)-SUM($I44:AR44))) -> 0 | AT44: =IF(AT$5<=$D44,0,IF(SUM($D44,OFFSET($I29,-$B44,0))>AT$5,OFFSET(AT41,-$B44,-AS$4+$B44)/OFFSET($I29,-$B44,0),OFFSET(AT41,-$B44,-AS$4+$B44)-SUM($I44:AS44))) -> 0 | AU44: =IF(AU$5<=$D44,0,IF(SUM($D44,OFFSET($I29,-$B44,0))>AU$5,OFFSET(AU41,-$B44,-AT$4+$B44)/OFFSET($I29,-$B44,0),OFFSET(AU41,-$B44,-AT$4+$B44)-SUM($I44:AT44))) -> 0 | AV44: =IF(AV$5<=$D44,0,IF(SUM($D44,OFFSET($I29,-$B44,0))>AV$5,OFFSET(AV41,-$B44,-AU$4+$B44)/OFFSET($I29,-$B44,0),OFFSET(AV41,-$B44,-AU$4+$B44)-SUM($I44:AU44))) -> 0 | AW44: =IF(AW$5<=$D44,0,IF(SUM($D44,OFFSET($I29,-$B44,0))>AW$5,OFFSET(AW41,-$B44,-AV$4+$B44)/OFFSET($I29,-$B44,0),OFFSET(AW41,-$B44,-AV$4+$B44)-SUM($I44:AV44))) -> 0 | AX44: =IF(AX$5<=$D44,0,IF(SUM($D44,OFFSET($I29,-$B44,0))>AX$5,OFFSET(AX41,-$B44,-AW$4+$B44)/OFFSET($I29,-$B44,0),OFFSET(AX41,-$B44,-AW$4+$B44)-SUM($I44:AW44))) -> 0 | AY44: =IF(AY$5<=$D44,0,IF(SUM($D44,OFFSET($I29,-$B44,0))>AY$5,OFFSET(AY41,-$B44,-AX$4+$B44)/OFFSET($I29,-$B44,0),OFFSET(AY41,-$B44,-AX$4+$B44)-SUM($I44:AX44))) -> 0 | AZ44: =IF(AZ$5<=$D44,0,IF(SUM($D44,OFFSET($I29,-$B44,0))>AZ$5,OFFSET(AZ41,-$B44,-AY$4+$B44)/OFFSET($I29,-$B44,0),OFFSET(AZ41,-$B44,-AY$4+$B44)-SUM($I44:AY44))) -> 0 | BA44: =IF(BA$5<=$D44,0,IF(SUM($D44,OFFSET($I29,-$B44,0))>BA$5,OFFSET(BA41,-$B44,-AZ$4+$B44)/OFFSET($I29,-$B44,0),OFFSET(BA41,-$B44,-AZ$4+$B44)-SUM($I44:AZ44))) -> 0 | BB44: =IF(BB$5<=$D44,0,IF(SUM($D44,OFFSET($I29,-$B44,0))>BB$5,OFFSET(BB41,-$B44,-BA$4+$B44)/OFFSET($I29,-$B44,0),OFFSET(BB41,-$B44,-BA$4+$B44)-SUM($I44:BA44))) -> 0 | BC44: =IF(BC$5<=$D44,0,IF(SUM($D44,OFFSET($I29,-$B44,0))>BC$5,OFFSET(BC41,-$B44,-BB$4+$B44)/OFFSET($I29,-$B44,0),OFFSET(BC41,-$B44,-BB$4+$B44)-SUM($I44:BB44))) -> 0 | BD44: =IF(BD$5<=$D44,0,IF(SUM($D44,OFFSET($I29,-$B44,0))>BD$5,OFFSET(BD41,-$B44,-BC$4+$B44)/OFFSET($I29,-$B44,0),OFFSET(BD41,-$B44,-BC$4+$B44)-SUM($I44:BC44))) -> 0 | BE44: =IF(BE$5<=$D44,0,IF(SUM($D44,OFFSET($I29,-$B44,0))>BE$5,OFFSET(BE41,-$B44,-BD$4+$B44)/OFFSET($I29,-$B44,0),OFFSET(BE41,-$B44,-BD$4+$B44)-SUM($I44:BD44))) -> 0 | BF44: =IF(BF$5<=$D44,0,IF(SUM($D44,OFFSET($I29,-$B44,0))>BF$5,OFFSET(BF41,-$B44,-BE$4+$B44)/OFFSET($I29,-$B44,0),OFFSET(BF41,-$B44,-BE$4+$B44)-SUM($I44:BE44))) -> 0 | BG44: =IF(BG$5<=$D44,0,IF(SUM($D44,OFFSET($I29,-$B44,0))>BG$5,OFFSET(BG41,-$B44,-BF$4+$B44)/OFFSET($I29,-$B44,0),OFFSET(BG41,-$B44,-BF$4+$B44)-SUM($I44:BF44))) -> 0 | BH44: =IF(BH$5<=$D44,0,IF(SUM($D44,OFFSET($I29,-$B44,0))>BH$5,OFFSET(BH41,-$B44,-BG$4+$B44)/OFFSET($I29,-$B44,0),OFFSET(BH41,-$B44,-BG$4+$B44)-SUM($I44:BG44))) -> 0 | BI44: =IF(BI$5<=$D44,0,IF(SUM($D44,OFFSET($I29,-$B44,0))>BI$5,OFFSET(BI41,-$B44,-BH$4+$B44)/OFFSET($I29,-$B44,0),OFFSET(BI41,-$B44,-BH$4+$B44)-SUM($I44:BH44))) -> 0 | BJ44: =IF(BJ$5<=$D44,0,IF(SUM($D44,OFFSET($I29,-$B44,0))>BJ$5,OFFSET(BJ41,-$B44,-BI$4+$B44)/OFFSET($I29,-$B44,0),OFFSET(BJ41,-$B44,-BI$4+$B44)-SUM($I44:BI44))) -> 0 | BK44: =IF(BK$5<=$D44,0,IF(SUM($D44,OFFSET($I29,-$B44,0))>BK$5,OFFSET(BK41,-$B44,-BJ$4+$B44)/OFFSET($I29,-$B44,0),OFFSET(BK41,-$B44,-BJ$4+$B44)-SUM($I44:BJ44))) -> 0 | BL44: =IF(BL$5<=$D44,0,IF(SUM($D44,OFFSET($I29,-$B44,0))>BL$5,OFFSET(BL41,-$B44,-BK$4+$B44)/OFFSET($I29,-$B44,0),OFFSET(BL41,-$B44,-BK$4+$B44)-SUM($I44:BK44))) -> 0 | BM44: =IF(BM$5<=$D44,0,IF(SUM($D44,OFFSET($I29,-$B44,0))>BM$5,OFFSET(BM41,-$B44,-BL$4+$B44)/OFFSET($I29,-$B44,0),OFFSET(BM41,-$B44,-BL$4+$B44)-SUM($I44:BL44))) -> 0 | BN44: =IF(BN$5<=$D44,0,IF(SUM($D44,OFFSET($I29,-$B44,0))>BN$5,OFFSET(BN41,-$B44,-BM$4+$B44)/OFFSET($I29,-$B44,0),OFFSET(BN41,-$B44,-BM$4+$B44)-SUM($I44:BM44))) -> 0 | BO44: =IF(BO$5<=$D44,0,IF(SUM($D44,OFFSET($I29,-$B44,0))>BO$5,OFFSET(BO41,-$B44,-BN$4+$B44)/OFFSET($I29,-$B44,0),OFFSET(BO41,-$B44,-BN$4+$B44)-SUM($I44:BN44))) -> 0 | BP44: =IF(BP$5<=$D44,0,IF(SUM($D44,OFFSET($I29,-$B44,0))>BP$5,OFFSET(BP41,-$B44,-BO$4+$B44)/OFFSET($I29,-$B44,0),OFFSET(BP41,-$B44,-BO$4+$B44)-SUM($I44:BO44))) -> 0 | BQ44: =IF(BQ$5<=$D44,0,IF(SUM($D44,OFFSET($I29,-$B44,0))>BQ$5,OFFSET(BQ41,-$B44,-BP$4+$B44)/OFFSET($I29,-$B44,0),OFFSET(BQ41,-$B44,-BP$4+$B44)-SUM($I44:BP44))) -> 0 | BR44: =IF(BR$5<=$D44,0,IF(SUM($D44,OFFSET($I29,-$B44,0))>BR$5,OFFSET(BR41,-$B44,-BQ$4+$B44)/OFFSET($I29,-$B44,0),OFFSET(BR41,-$B44,-BQ$4+$B44)-SUM($I44:BQ44))) -> 0 | BS44: =IF(BS$5<=$D44,0,IF(SUM($D44,OFFSET($I29,-$B44,0))>BS$5,OFFSET(BS41,-$B44,-BR$4+$B44)/OFFSET($I29,-$B44,0),OFFSET(BS41,-$B44,-BR$4+$B44)-SUM($I44:BR44))) -> 0 | BT44: =IF(BT$5<=$D44,0,IF(SUM($D44,OFFSET($I29,-$B44,0))>BT$5,OFFSET(BT41,-$B44,-BS$4+$B44)/OFFSET($I29,-$B44,0),OFFSET(BT41,-$B44,-BS$4+$B44)-SUM($I44:BS44))) -> 0
B45: 11 | D45: 2026 | E45: $m Real (2014) | J45: =IF(J$5<=$D45,0,IF(SUM($D45,OFFSET($I30,-$B45,0))>J$5,OFFSET(J42,-$B45,-I$4+$B45)/OFFSET($I30,-$B45,0),OFFSET(J42,-$B45,-I$4+$B45)-SUM($I45:I45))) -> 0 | K45: =IF(K$5<=$D45,0,IF(SUM($D45,OFFSET($I30,-$B45,0))>K$5,OFFSET(K42,-$B45,-J$4+$B45)/OFFSET($I30,-$B45,0),OFFSET(K42,-$B45,-J$4+$B45)-SUM($I45:J45))) -> 0 | L45: =IF(L$5<=$D45,0,IF(SUM($D45,OFFSET($I30,-$B45,0))>L$5,OFFSET(L42,-$B45,-K$4+$B45)/OFFSET($I30,-$B45,0),OFFSET(L42,-$B45,-K$4+$B45)-SUM($I45:K45))) -> 0 | M45: =IF(M$5<=$D45,0,IF(SUM($D45,OFFSET($I30,-$B45,0))>M$5,OFFSET(M42,-$B45,-L$4+$B45)/OFFSET($I30,-$B45,0),OFFSET(M42,-$B45,-L$4+$B45)-SUM($I45:L45))) -> 0 | N45: =IF(N$5<=$D45,0,IF(SUM($D45,OFFSET($I30,-$B45,0))>N$5,OFFSET(N42,-$B45,-M$4+$B45)/OFFSET($I30,-$B45,0),OFFSET(N42,-$B45,-M$4+$B45)-SUM($I45:M45))) -> 0 | O45: =IF(O$5<=$D45,0,IF(SUM($D45,OFFSET($I30,-$B45,0))>O$5,OFFSET(O42,-$B45,-N$4+$B45)/OFFSET($I30,-$B45,0),OFFSET(O42,-$B45,-N$4+$B45)-SUM($I45:N45))) -> 0 | P45: =IF(P$5<=$D45,0,IF(SUM($D45,OFFSET($I30,-$B45,0))>P$5,OFFSET(P42,-$B45,-O$4+$B45)/OFFSET($I30,-$B45,0),OFFSET(P42,-$B45,-O$4+$B45)-SUM($I45:O45))) -> 0 | Q45: =IF(Q$5<=$D45,0,IF(SUM($D45,OFFSET($I30,-$B45,0))>Q$5,OFFSET(Q42,-$B45,-P$4+$B45)/OFFSET($I30,-$B45,0),OFFSET(Q42,-$B45,-P$4+$B45)-SUM($I45:P45))) -> 0 | R45: =IF(R$5<=$D45,0,IF(SUM($D45,OFFSET($I30,-$B45,0))>R$5,OFFSET(R42,-$B45,-Q$4+$B45)/OFFSET($I30,-$B45,0),OFFSET(R42,-$B45,-Q$4+$B45)-SUM($I45:Q45))) -> 0 | S45: =IF(S$5<=$D45,0,IF(SUM($D45,OFFSET($I30,-$B45,0))>S$5,OFFSET(S42,-$B45,-R$4+$B45)/OFFSET($I30,-$B45,0),OFFSET(S42,-$B45,-R$4+$B45)-SUM($I45:R45))) -> 0 | T45: =IF(T$5<=$D45,0,IF(SUM($D45,OFFSET($I30,-$B45,0))>T$5,OFFSET(T42,-$B45,-S$4+$B45)/OFFSET($I30,-$B45,0),OFFSET(T42,-$B45,-S$4+$B45)-SUM($I45:S45))) -> 0 | U45: =IF(U$5<=$D45,0,IF(SUM($D45,OFFSET($I30,-$B45,0))>U$5,OFFSET(U42,-$B45,-T$4+$B45)/OFFSET($I30,-$B45,0),OFFSET(U42,-$B45,-T$4+$B45)-SUM($I45:T45))) -> 0 | V45: =IF(V$5<=$D45,0,IF(SUM($D45,OFFSET($I30,-$B45,0))>V$5,OFFSET(V42,-$B45,-U$4+$B45)/OFFSET($I30,-$B45,0),OFFSET(V42,-$B45,-U$4+$B45)-SUM($I45:U45))) -> 0 | W45: =IF(W$5<=$D45,0,IF(SUM($D45,OFFSET($I30,-$B45,0))>W$5,OFFSET(W42,-$B45,-V$4+$B45)/OFFSET($I30,-$B45,0),OFFSET(W42,-$B45,-V$4+$B45)-SUM($I45:V45))) -> 0 | X45: =IF(X$5<=$D45,0,IF(SUM($D45,OFFSET($I30,-$B45,0))>X$5,OFFSET(X42,-$B45,-W$4+$B45)/OFFSET($I30,-$B45,0),OFFSET(X42,-$B45,-W$4+$B45)-SUM($I45:W45))) -> 0 | Y45: =IF(Y$5<=$D45,0,IF(SUM($D45,OFFSET($I30,-$B45,0))>Y$5,OFFSET(Y42,-$B45,-X$4+$B45)/OFFSET($I30,-$B45,0),OFFSET(Y42,-$B45,-X$4+$B45)-SUM($I45:X45))) -> 0 | Z45: =IF(Z$5<=$D45,0,IF(SUM($D45,OFFSET($I30,-$B45,0))>Z$5,OFFSET(Z42,-$B45,-Y$4+$B45)/OFFSET($I30,-$B45,0),OFFSET(Z42,-$B45,-Y$4+$B45)-SUM($I45:Y45))) -> 0 | AA45: =IF(AA$5<=$D45,0,IF(SUM($D45,OFFSET($I30,-$B45,0))>AA$5,OFFSET(AA42,-$B45,-Z$4+$B45)/OFFSET($I30,-$B45,0),OFFSET(AA42,-$B45,-Z$4+$B45)-SUM($I45:Z45))) -> 0 | AB45: =IF(AB$5<=$D45,0,IF(SUM($D45,OFFSET($I30,-$B45,0))>AB$5,OFFSET(AB42,-$B45,-AA$4+$B45)/OFFSET($I30,-$B45,0),OFFSET(AB42,-$B45,-AA$4+$B45)-SUM($I45:AA45))) -> 0 | AC45: =IF(AC$5<=$D45,0,IF(SUM($D45,OFFSET($I30,-$B45,0))>AC$5,OFFSET(AC42,-$B45,-AB$4+$B45)/OFFSET($I30,-$B45,0),OFFSET(AC42,-$B45,-AB$4+$B45)-SUM($I45:AB45))) -> 0 | AD45: =IF(AD$5<=$D45,0,IF(SUM($D45,OFFSET($I30,-$B45,0))>AD$5,OFFSET(AD42,-$B45,-AC$4+$B45)/OFFSET($I30,-$B45,0),OFFSET(AD42,-$B45,-AC$4+$B45)-SUM($I45:AC45))) -> 0 | AE45: =IF(AE$5<=$D45,0,IF(SUM($D45,OFFSET($I30,-$B45,0))>AE$5,OFFSET(AE42,-$B45,-AD$4+$B45)/OFFSET($I30,-$B45,0),OFFSET(AE42,-$B45,-AD$4+$B45)-SUM($I45:AD45))) -> 0 | AF45: =IF(AF$5<=$D45,0,IF(SUM($D45,OFFSET($I30,-$B45,0))>AF$5,OFFSET(AF42,-$B45,-AE$4+$B45)/OFFSET($I30,-$B45,0),OFFSET(AF42,-$B45,-AE$4+$B45)-SUM($I45:AE45))) -> 0 | AG45: =IF(AG$5<=$D45,0,IF(SUM($D45,OFFSET($I30,-$B45,0))>AG$5,OFFSET(AG42,-$B45,-AF$4+$B45)/OFFSET($I30,-$B45,0),OFFSET(AG42,-$B45,-AF$4+$B45)-SUM($I45:AF45))) -> 0 | AH45: =IF(AH$5<=$D45,0,IF(SUM($D45,OFFSET($I30,-$B45,0))>AH$5,OFFSET(AH42,-$B45,-AG$4+$B45)/OFFSET($I30,-$B45,0),OFFSET(AH42,-$B45,-AG$4+$B45)-SUM($I45:AG45))) -> 0 | AI45: =IF(AI$5<=$D45,0,IF(SUM($D45,OFFSET($I30,-$B45,0))>AI$5,OFFSET(AI42,-$B45,-AH$4+$B45)/OFFSET($I30,-$B45,0),OFFSET(AI42,-$B45,-AH$4+$B45)-SUM($I45:AH45))) -> 0 | AJ45: =IF(AJ$5<=$D45,0,IF(SUM($D45,OFFSET($I30,-$B45,0))>AJ$5,OFFSET(AJ42,-$B45,-AI$4+$B45)/OFFSET($I30,-$B45,0),OFFSET(AJ42,-$B45,-AI$4+$B45)-SUM($I45:AI45))) -> 0 | AK45: =IF(AK$5<=$D45,0,IF(SUM($D45,OFFSET($I30,-$B45,0))>AK$5,OFFSET(AK42,-$B45,-AJ$4+$B45)/OFFSET($I30,-$B45,0),OFFSET(AK42,-$B45,-AJ$4+$B45)-SUM($I45:AJ45))) -> 0 | AL45: =IF(AL$5<=$D45,0,IF(SUM($D45,OFFSET($I30,-$B45,0))>AL$5,OFFSET(AL42,-$B45,-AK$4+$B45)/OFFSET($I30,-$B45,0),OFFSET(AL42,-$B45,-AK$4+$B45)-SUM($I45:AK45))) -> 0 | AM45: =IF(AM$5<=$D45,0,IF(SUM($D45,OFFSET($I30,-$B45,0))>AM$5,OFFSET(AM42,-$B45,-AL$4+$B45)/OFFSET($I30,-$B45,0),OFFSET(AM42,-$B45,-AL$4+$B45)-SUM($I45:AL45))) -> 0 | AN45: =IF(AN$5<=$D45,0,IF(SUM($D45,OFFSET($I30,-$B45,0))>AN$5,OFFSET(AN42,-$B45,-AM$4+$B45)/OFFSET($I30,-$B45,0),OFFSET(AN42,-$B45,-AM$4+$B45)-SUM($I45:AM45))) -> 0 | AO45: =IF(AO$5<=$D45,0,IF(SUM($D45,OFFSET($I30,-$B45,0))>AO$5,OFFSET(AO42,-$B45,-AN$4+$B45)/OFFSET($I30,-$B45,0),OFFSET(AO42,-$B45,-AN$4+$B45)-SUM($I45:AN45))) -> 0 | AP45: =IF(AP$5<=$D45,0,IF(SUM($D45,OFFSET($I30,-$B45,0))>AP$5,OFFSET(AP42,-$B45,-AO$4+$B45)/OFFSET($I30,-$B45,0),OFFSET(AP42,-$B45,-AO$4+$B45)-SUM($I45:AO45))) -> 0 | AQ45: =IF(AQ$5<=$D45,0,IF(SUM($D45,OFFSET($I30,-$B45,0))>AQ$5,OFFSET(AQ42,-$B45,-AP$4+$B45)/OFFSET($I30,-$B45,0),OFFSET(AQ42,-$B45,-AP$4+$B45)-SUM($I45:AP45))) -> 0 | AR45: =IF(AR$5<=$D45,0,IF(SUM($D45,OFFSET($I30,-$B45,0))>AR$5,OFFSET(AR42,-$B45,-AQ$4+$B45)/OFFSET($I30,-$B45,0),OFFSET(AR42,-$B45,-AQ$4+$B45)-SUM($I45:AQ45))) -> 0 | AS45: =IF(AS$5<=$D45,0,IF(SUM($D45,OFFSET($I30,-$B45,0))>AS$5,OFFSET(AS42,-$B45,-AR$4+$B45)/OFFSET($I30,-$B45,0),OFFSET(AS42,-$B45,-AR$4+$B45)-SUM($I45:AR45))) -> 0 | AT45: =IF(AT$5<=$D45,0,IF(SUM($D45,OFFSET($I30,-$B45,0))>AT$5,OFFSET(AT42,-$B45,-AS$4+$B45)/OFFSET($I30,-$B45,0),OFFSET(AT42,-$B45,-AS$4+$B45)-SUM($I45:AS45))) -> 0 | AU45: =IF(AU$5<=$D45,0,IF(SUM($D45,OFFSET($I30,-$B45,0))>AU$5,OFFSET(AU42,-$B45,-AT$4+$B45)/OFFSET($I30,-$B45,0),OFFSET(AU42,-$B45,-AT$4+$B45)-SUM($I45:AT45))) -> 0 | AV45: =IF(AV$5<=$D45,0,IF(SUM($D45,OFFSET($I30,-$B45,0))>AV$5,OFFSET(AV42,-$B45,-AU$4+$B45)/OFFSET($I30,-$B45,0),OFFSET(AV42,-$B45,-AU$4+$B45)-SUM($I45:AU45))) -> 0 | AW45: =IF(AW$5<=$D45,0,IF(SUM($D45,OFFSET($I30,-$B45,0))>AW$5,OFFSET(AW42,-$B45,-AV$4+$B45)/OFFSET($I30,-$B45,0),OFFSET(AW42,-$B45,-AV$4+$B45)-SUM($I45:AV45))) -> 0 | AX45: =IF(AX$5<=$D45,0,IF(SUM($D45,OFFSET($I30,-$B45,0))>AX$5,OFFSET(AX42,-$B45,-AW$4+$B45)/OFFSET($I30,-$B45,0),OFFSET(AX42,-$B45,-AW$4+$B45)-SUM($I45:AW45))) -> 0 | AY45: =IF(AY$5<=$D45,0,IF(SUM($D45,OFFSET($I30,-$B45,0))>AY$5,OFFSET(AY42,-$B45,-AX$4+$B45)/OFFSET($I30,-$B45,0),OFFSET(AY42,-$B45,-AX$4+$B45)-SUM($I45:AX45))) -> 0 | AZ45: =IF(AZ$5<=$D45,0,IF(SUM($D45,OFFSET($I30,-$B45,0))>AZ$5,OFFSET(AZ42,-$B45,-AY$4+$B45)/OFFSET($I30,-$B45,0),OFFSET(AZ42,-$B45,-AY$4+$B45)-SUM($I45:AY45))) -> 0 | BA45: =IF(BA$5<=$D45,0,IF(SUM($D45,OFFSET($I30,-$B45,0))>BA$5,OFFSET(BA42,-$B45,-AZ$4+$B45)/OFFSET($I30,-$B45,0),OFFSET(BA42,-$B45,-AZ$4+$B45)-SUM($I45:AZ45))) -> 0 | BB45: =IF(BB$5<=$D45,0,IF(SUM($D45,OFFSET($I30,-$B45,0))>BB$5,OFFSET(BB42,-$B45,-BA$4+$B45)/OFFSET($I30,-$B45,0),OFFSET(BB42,-$B45,-BA$4+$B45)-SUM($I45:BA45))) -> 0 | BC45: =IF(BC$5<=$D45,0,IF(SUM($D45,OFFSET($I30,-$B45,0))>BC$5,OFFSET(BC42,-$B45,-BB$4+$B45)/OFFSET($I30,-$B45,0),OFFSET(BC42,-$B45,-BB$4+$B45)-SUM($I45:BB45))) -> 0 | BD45: =IF(BD$5<=$D45,0,IF(SUM($D45,OFFSET($I30,-$B45,0))>BD$5,OFFSET(BD42,-$B45,-BC$4+$B45)/OFFSET($I30,-$B45,0),OFFSET(BD42,-$B45,-BC$4+$B45)-SUM($I45:BC45))) -> 0 | BE45: =IF(BE$5<=$D45,0,IF(SUM($D45,OFFSET($I30,-$B45,0))>BE$5,OFFSET(BE42,-$B45,-BD$4+$B45)/OFFSET($I30,-$B45,0),OFFSET(BE42,-$B45,-BD$4+$B45)-SUM($I45:BD45))) -> 0 | BF45: =IF(BF$5<=$D45,0,IF(SUM($D45,OFFSET($I30,-$B45,0))>BF$5,OFFSET(BF42,-$B45,-BE$4+$B45)/OFFSET($I30,-$B45,0),OFFSET(BF42,-$B45,-BE$4+$B45)-SUM($I45:BE45))) -> 0 | BG45: =IF(BG$5<=$D45,0,IF(SUM($D45,OFFSET($I30,-$B45,0))>BG$5,OFFSET(BG42,-$B45,-BF$4+$B45)/OFFSET($I30,-$B45,0),OFFSET(BG42,-$B45,-BF$4+$B45)-SUM($I45:BF45))) -> 0 | BH45: =IF(BH$5<=$D45,0,IF(SUM($D45,OFFSET($I30,-$B45,0))>BH$5,OFFSET(BH42,-$B45,-BG$4+$B45)/OFFSET($I30,-$B45,0),OFFSET(BH42,-$B45,-BG$4+$B45)-SUM($I45:BG45))) -> 0 | BI45: =IF(BI$5<=$D45,0,IF(SUM($D45,OFFSET($I30,-$B45,0))>BI$5,OFFSET(BI42,-$B45,-BH$4+$B45)/OFFSET($I30,-$B45,0),OFFSET(BI42,-$B45,-BH$4+$B45)-SUM($I45:BH45))) -> 0 | BJ45: =IF(BJ$5<=$D45,0,IF(SUM($D45,OFFSET($I30,-$B45,0))>BJ$5,OFFSET(BJ42,-$B45,-BI$4+$B45)/OFFSET($I30,-$B45,0),OFFSET(BJ42,-$B45,-BI$4+$B45)-SUM($I45:BI45))) -> 0 | BK45: =IF(BK$5<=$D45,0,IF(SUM($D45,OFFSET($I30,-$B45,0))>BK$5,OFFSET(BK42,-$B45,-BJ$4+$B45)/OFFSET($I30,-$B45,0),OFFSET(BK42,-$B45,-BJ$4+$B45)-SUM($I45:BJ45))) -> 0 | BL45: =IF(BL$5<=$D45,0,IF(SUM($D45,OFFSET($I30,-$B45,0))>BL$5,OFFSET(BL42,-$B45,-BK$4+$B45)/OFFSET($I30,-$B45,0),OFFSET(BL42,-$B45,-BK$4+$B45)-SUM($I45:BK45))) -> 0 | BM45: =IF(BM$5<=$D45,0,IF(SUM($D45,OFFSET($I30,-$B45,0))>BM$5,OFFSET(BM42,-$B45,-BL$4+$B45)/OFFSET($I30,-$B45,0),OFFSET(BM42,-$B45,-BL$4+$B45)-SUM($I45:BL45))) -> 0 | BN45: =IF(BN$5<=$D45,0,IF(SUM($D45,OFFSET($I30,-$B45,0))>BN$5,OFFSET(BN42,-$B45,-BM$4+$B45)/OFFSET($I30,-$B45,0),OFFSET(BN42,-$B45,-BM$4+$B45)-SUM($I45:BM45))) -> 0 | BO45: =IF(BO$5<=$D45,0,IF(SUM($D45,OFFSET($I30,-$B45,0))>BO$5,OFFSET(BO42,-$B45,-BN$4+$B45)/OFFSET($I30,-$B45,0),OFFSET(BO42,-$B45,-BN$4+$B45)-SUM($I45:BN45))) -> 0 | BP45: =IF(BP$5<=$D45,0,IF(SUM($D45,OFFSET($I30,-$B45,0))>BP$5,OFFSET(BP42,-$B45,-BO$4+$B45)/OFFSET($I30,-$B45,0),OFFSET(BP42,-$B45,-BO$4+$B45)-SUM($I45:BO45))) -> 0 | BQ45: =IF(BQ$5<=$D45,0,IF(SUM($D45,OFFSET($I30,-$B45,0))>BQ$5,OFFSET(BQ42,-$B45,-BP$4+$B45)/OFFSET($I30,-$B45,0),OFFSET(BQ42,-$B45,-BP$4+$B45)-SUM($I45:BP45))) -> 0 | BR45: =IF(BR$5<=$D45,0,IF(SUM($D45,OFFSET($I30,-$B45,0))>BR$5,OFFSET(BR42,-$B45,-BQ$4+$B45)/OFFSET($I30,-$B45,0),OFFSET(BR42,-$B45,-BQ$4+$B45)-SUM($I45:BQ45))) -> 0 | BS45: =IF(BS$5<=$D45,0,IF(SUM($D45,OFFSET($I30,-$B45,0))>BS$5,OFFSET(BS42,-$B45,-BR$4+$B45)/OFFSET($I30,-$B45,0),OFFSET(BS42,-$B45,-BR$4+$B45)-SUM($I45:BR45))) -> 0 | BT45: =IF(BT$5<=$D45,0,IF(SUM($D45,OFFSET($I30,-$B45,0))>BT$5,OFFSET(BT42,-$B45,-BS$4+$B45)/OFFSET($I30,-$B45,0),OFFSET(BT42,-$B45,-BS$4+$B45)-SUM($I45:BS45))) -> 0
B46: 12 | D46: 2027 | E46: $m Real (2014) | J46: =IF(J$5<=$D46,0,IF(SUM($D46,OFFSET($I31,-$B46,0))>J$5,OFFSET(J43,-$B46,-I$4+$B46)/OFFSET($I31,-$B46,0),OFFSET(J43,-$B46,-I$4+$B46)-SUM($I46:I46))) -> 0 | K46: =IF(K$5<=$D46,0,IF(SUM($D46,OFFSET($I31,-$B46,0))>K$5,OFFSET(K43,-$B46,-J$4+$B46)/OFFSET($I31,-$B46,0),OFFSET(K43,-$B46,-J$4+$B46)-SUM($I46:J46))) -> 0 | L46: =IF(L$5<=$D46,0,IF(SUM($D46,OFFSET($I31,-$B46,0))>L$5,OFFSET(L43,-$B46,-K$4+$B46)/OFFSET($I31,-$B46,0),OFFSET(L43,-$B46,-K$4+$B46)-SUM($I46:K46))) -> 0 | M46: =IF(M$5<=$D46,0,IF(SUM($D46,OFFSET($I31,-$B46,0))>M$5,OFFSET(M43,-$B46,-L$4+$B46)/OFFSET($I31,-$B46,0),OFFSET(M43,-$B46,-L$4+$B46)-SUM($I46:L46))) -> 0 | N46: =IF(N$5<=$D46,0,IF(SUM($D46,OFFSET($I31,-$B46,0))>N$5,OFFSET(N43,-$B46,-M$4+$B46)/OFFSET($I31,-$B46,0),OFFSET(N43,-$B46,-M$4+$B46)-SUM($I46:M46))) -> 0 | O46: =IF(O$5<=$D46,0,IF(SUM($D46,OFFSET($I31,-$B46,0))>O$5,OFFSET(O43,-$B46,-N$4+$B46)/OFFSET($I31,-$B46,0),OFFSET(O43,-$B46,-N$4+$B46)-SUM($I46:N46))) -> 0 | P46: =IF(P$5<=$D46,0,IF(SUM($D46,OFFSET($I31,-$B46,0))>P$5,OFFSET(P43,-$B46,-O$4+$B46)/OFFSET($I31,-$B46,0),OFFSET(P43,-$B46,-O$4+$B46)-SUM($I46:O46))) -> 0 | Q46: =IF(Q$5<=$D46,0,IF(SUM($D46,OFFSET($I31,-$B46,0))>Q$5,OFFSET(Q43,-$B46,-P$4+$B46)/OFFSET($I31,-$B46,0),OFFSET(Q43,-$B46,-P$4+$B46)-SUM($I46:P46))) -> 0 | R46: =IF(R$5<=$D46,0,IF(SUM($D46,OFFSET($I31,-$B46,0))>R$5,OFFSET(R43,-$B46,-Q$4+$B46)/OFFSET($I31,-$B46,0),OFFSET(R43,-$B46,-Q$4+$B46)-SUM($I46:Q46))) -> 0 | S46: =IF(S$5<=$D46,0,IF(SUM($D46,OFFSET($I31,-$B46,0))>S$5,OFFSET(S43,-$B46,-R$4+$B46)/OFFSET($I31,-$B46,0),OFFSET(S43,-$B46,-R$4+$B46)-SUM($I46:R46))) -> 0 | T46: =IF(T$5<=$D46,0,IF(SUM($D46,OFFSET($I31,-$B46,0))>T$5,OFFSET(T43,-$B46,-S$4+$B46)/OFFSET($I31,-$B46,0),OFFSET(T43,-$B46,-S$4+$B46)-SUM($I46:S46))) -> 0 | U46: =IF(U$5<=$D46,0,IF(SUM($D46,OFFSET($I31,-$B46,0))>U$5,OFFSET(U43,-$B46,-T$4+$B46)/OFFSET($I31,-$B46,0),OFFSET(U43,-$B46,-T$4+$B46)-SUM($I46:T46))) -> 0 | V46: =IF(V$5<=$D46,0,IF(SUM($D46,OFFSET($I31,-$B46,0))>V$5,OFFSET(V43,-$B46,-U$4+$B46)/OFFSET($I31,-$B46,0),OFFSET(V43,-$B46,-U$4+$B46)-SUM($I46:U46))) -> 0 | W46: =IF(W$5<=$D46,0,IF(SUM($D46,OFFSET($I31,-$B46,0))>W$5,OFFSET(W43,-$B46,-V$4+$B46)/OFFSET($I31,-$B46,0),OFFSET(W43,-$B46,-V$4+$B46)-SUM($I46:V46))) -> 0 | X46: =IF(X$5<=$D46,0,IF(SUM($D46,OFFSET($I31,-$B46,0))>X$5,OFFSET(X43,-$B46,-W$4+$B46)/OFFSET($I31,-$B46,0),OFFSET(X43,-$B46,-W$4+$B46)-SUM($I46:W46))) -> 0 | Y46: =IF(Y$5<=$D46,0,IF(SUM($D46,OFFSET($I31,-$B46,0))>Y$5,OFFSET(Y43,-$B46,-X$4+$B46)/OFFSET($I31,-$B46,0),OFFSET(Y43,-$B46,-X$4+$B46)-SUM($I46:X46))) -> 0 | Z46: =IF(Z$5<=$D46,0,IF(SUM($D46,OFFSET($I31,-$B46,0))>Z$5,OFFSET(Z43,-$B46,-Y$4+$B46)/OFFSET($I31,-$B46,0),OFFSET(Z43,-$B46,-Y$4+$B46)-SUM($I46:Y46))) -> 0 | AA46: =IF(AA$5<=$D46,0,IF(SUM($D46,OFFSET($I31,-$B46,0))>AA$5,OFFSET(AA43,-$B46,-Z$4+$B46)/OFFSET($I31,-$B46,0),OFFSET(AA43,-$B46,-Z$4+$B46)-SUM($I46:Z46))) -> 0 | AB46: =IF(AB$5<=$D46,0,IF(SUM($D46,OFFSET($I31,-$B46,0))>AB$5,OFFSET(AB43,-$B46,-AA$4+$B46)/OFFSET($I31,-$B46,0),OFFSET(AB43,-$B46,-AA$4+$B46)-SUM($I46:AA46))) -> 0 | AC46: =IF(AC$5<=$D46,0,IF(SUM($D46,OFFSET($I31,-$B46,0))>AC$5,OFFSET(AC43,-$B46,-AB$4+$B46)/OFFSET($I31,-$B46,0),OFFSET(AC43,-$B46,-AB$4+$B46)-SUM($I46:AB46))) -> 0 | AD46: =IF(AD$5<=$D46,0,IF(SUM($D46,OFFSET($I31,-$B46,0))>AD$5,OFFSET(AD43,-$B46,-AC$4+$B46)/OFFSET($I31,-$B46,0),OFFSET(AD43,-$B46,-AC$4+$B46)-SUM($I46:AC46))) -> 0 | AE46: =IF(AE$5<=$D46,0,IF(SUM($D46,OFFSET($I31,-$B46,0))>AE$5,OFFSET(AE43,-$B46,-AD$4+$B46)/OFFSET($I31,-$B46,0),OFFSET(AE43,-$B46,-AD$4+$B46)-SUM($I46:AD46))) -> 0 | AF46: =IF(AF$5<=$D46,0,IF(SUM($D46,OFFSET($I31,-$B46,0))>AF$5,OFFSET(AF43,-$B46,-AE$4+$B46)/OFFSET($I31,-$B46,0),OFFSET(AF43,-$B46,-AE$4+$B46)-SUM($I46:AE46))) -> 0 | AG46: =IF(AG$5<=$D46,0,IF(SUM($D46,OFFSET($I31,-$B46,0))>AG$5,OFFSET(AG43,-$B46,-AF$4+$B46)/OFFSET($I31,-$B46,0),OFFSET(AG43,-$B46,-AF$4+$B46)-SUM($I46:AF46))) -> 0 | AH46: =IF(AH$5<=$D46,0,IF(SUM($D46,OFFSET($I31,-$B46,0))>AH$5,OFFSET(AH43,-$B46,-AG$4+$B46)/OFFSET($I31,-$B46,0),OFFSET(AH43,-$B46,-AG$4+$B46)-SUM($I46:AG46))) -> 0 | AI46: =IF(AI$5<=$D46,0,IF(SUM($D46,OFFSET($I31,-$B46,0))>AI$5,OFFSET(AI43,-$B46,-AH$4+$B46)/OFFSET($I31,-$B46,0),OFFSET(AI43,-$B46,-AH$4+$B46)-SUM($I46:AH46))) -> 0 | AJ46: =IF(AJ$5<=$D46,0,IF(SUM($D46,OFFSET($I31,-$B46,0))>AJ$5,OFFSET(AJ43,-$B46,-AI$4+$B46)/OFFSET($I31,-$B46,0),OFFSET(AJ43,-$B46,-AI$4+$B46)-SUM($I46:AI46))) -> 0 | AK46: =IF(AK$5<=$D46,0,IF(SUM($D46,OFFSET($I31,-$B46,0))>AK$5,OFFSET(AK43,-$B46,-AJ$4+$B46)/OFFSET($I31,-$B46,0),OFFSET(AK43,-$B46,-AJ$4+$B46)-SUM($I46:AJ46))) -> 0 | AL46: =IF(AL$5<=$D46,0,IF(SUM($D46,OFFSET($I31,-$B46,0))>AL$5,OFFSET(AL43,-$B46,-AK$4+$B46)/OFFSET($I31,-$B46,0),OFFSET(AL43,-$B46,-AK$4+$B46)-SUM($I46:AK46))) -> 0 | AM46: =IF(AM$5<=$D46,0,IF(SUM($D46,OFFSET($I31,-$B46,0))>AM$5,OFFSET(AM43,-$B46,-AL$4+$B46)/OFFSET($I31,-$B46,0),OFFSET(AM43,-$B46,-AL$4+$B46)-SUM($I46:AL46))) -> 0 | AN46: =IF(AN$5<=$D46,0,IF(SUM($D46,OFFSET($I31,-$B46,0))>AN$5,OFFSET(AN43,-$B46,-AM$4+$B46)/OFFSET($I31,-$B46,0),OFFSET(AN43,-$B46,-AM$4+$B46)-SUM($I46:AM46))) -> 0 | AO46: =IF(AO$5<=$D46,0,IF(SUM($D46,OFFSET($I31,-$B46,0))>AO$5,OFFSET(AO43,-$B46,-AN$4+$B46)/OFFSET($I31,-$B46,0),OFFSET(AO43,-$B46,-AN$4+$B46)-SUM($I46:AN46))) -> 0 | AP46: =IF(AP$5<=$D46,0,IF(SUM($D46,OFFSET($I31,-$B46,0))>AP$5,OFFSET(AP43,-$B46,-AO$4+$B46)/OFFSET($I31,-$B46,0),OFFSET(AP43,-$B46,-AO$4+$B46)-SUM($I46:AO46))) -> 0 | AQ46: =IF(AQ$5<=$D46,0,IF(SUM($D46,OFFSET($I31,-$B46,0))>AQ$5,OFFSET(AQ43,-$B46,-AP$4+$B46)/OFFSET($I31,-$B46,0),OFFSET(AQ43,-$B46,-AP$4+$B46)-SUM($I46:AP46))) -> 0 | AR46: =IF(AR$5<=$D46,0,IF(SUM($D46,OFFSET($I31,-$B46,0))>AR$5,OFFSET(AR43,-$B46,-AQ$4+$B46)/OFFSET($I31,-$B46,0),OFFSET(AR43,-$B46,-AQ$4+$B46)-SUM($I46:AQ46))) -> 0 | AS46: =IF(AS$5<=$D46,0,IF(SUM($D46,OFFSET($I31,-$B46,0))>AS$5,OFFSET(AS43,-$B46,-AR$4+$B46)/OFFSET($I31,-$B46,0),OFFSET(AS43,-$B46,-AR$4+$B46)-SUM($I46:AR46))) -> 0 | AT46: =IF(AT$5<=$D46,0,IF(SUM($D46,OFFSET($I31,-$B46,0))>AT$5,OFFSET(AT43,-$B46,-AS$4+$B46)/OFFSET($I31,-$B46,0),OFFSET(AT43,-$B46,-AS$4+$B46)-SUM($I46:AS46))) -> 0 | AU46: =IF(AU$5<=$D46,0,IF(SUM($D46,OFFSET($I31,-$B46,0))>AU$5,OFFSET(AU43,-$B46,-AT$4+$B46)/OFFSET($I31,-$B46,0),OFFSET(AU43,-$B46,-AT$4+$B46)-SUM($I46:AT46))) -> 0 | AV46: =IF(AV$5<=$D46,0,IF(SUM($D46,OFFSET($I31,-$B46,0))>AV$5,OFFSET(AV43,-$B46,-AU$4+$B46)/OFFSET($I31,-$B46,0),OFFSET(AV43,-$B46,-AU$4+$B46)-SUM($I46:AU46))) -> 0 | AW46: =IF(AW$5<=$D46,0,IF(SUM($D46,OFFSET($I31,-$B46,0))>AW$5,OFFSET(AW43,-$B46,-AV$4+$B46)/OFFSET($I31,-$B46,0),OFFSET(AW43,-$B46,-AV$4+$B46)-SUM($I46:AV46))) -> 0 | AX46: =IF(AX$5<=$D46,0,IF(SUM($D46,OFFSET($I31,-$B46,0))>AX$5,OFFSET(AX43,-$B46,-AW$4+$B46)/OFFSET($I31,-$B46,0),OFFSET(AX43,-$B46,-AW$4+$B46)-SUM($I46:AW46))) -> 0 | AY46: =IF(AY$5<=$D46,0,IF(SUM($D46,OFFSET($I31,-$B46,0))>AY$5,OFFSET(AY43,-$B46,-AX$4+$B46)/OFFSET($I31,-$B46,0),OFFSET(AY43,-$B46,-AX$4+$B46)-SUM($I46:AX46))) -> 0 | AZ46: =IF(AZ$5<=$D46,0,IF(SUM($D46,OFFSET($I31,-$B46,0))>AZ$5,OFFSET(AZ43,-$B46,-AY$4+$B46)/OFFSET($I31,-$B46,0),OFFSET(AZ43,-$B46,-AY$4+$B46)-SUM($I46:AY46))) -> 0 | BA46: =IF(BA$5<=$D46,0,IF(SUM($D46,OFFSET($I31,-$B46,0))>BA$5,OFFSET(BA43,-$B46,-AZ$4+$B46)/OFFSET($I31,-$B46,0),OFFSET(BA43,-$B46,-AZ$4+$B46)-SUM($I46:AZ46))) -> 0 | BB46: =IF(BB$5<=$D46,0,IF(SUM($D46,OFFSET($I31,-$B46,0))>BB$5,OFFSET(BB43,-$B46,-BA$4+$B46)/OFFSET($I31,-$B46,0),OFFSET(BB43,-$B46,-BA$4+$B46)-SUM($I46:BA46))) -> 0 | BC46: =IF(BC$5<=$D46,0,IF(SUM($D46,OFFSET($I31,-$B46,0))>BC$5,OFFSET(BC43,-$B46,-BB$4+$B46)/OFFSET($I31,-$B46,0),OFFSET(BC43,-$B46,-BB$4+$B46)-SUM($I46:BB46))) -> 0 | BD46: =IF(BD$5<=$D46,0,IF(SUM($D46,OFFSET($I31,-$B46,0))>BD$5,OFFSET(BD43,-$B46,-BC$4+$B46)/OFFSET($I31,-$B46,0),OFFSET(BD43,-$B46,-BC$4+$B46)-SUM($I46:BC46))) -> 0 | BE46: =IF(BE$5<=$D46,0,IF(SUM($D46,OFFSET($I31,-$B46,0))>BE$5,OFFSET(BE43,-$B46,-BD$4+$B46)/OFFSET($I31,-$B46,0),OFFSET(BE43,-$B46,-BD$4+$B46)-SUM($I46:BD46))) -> 0 | BF46: =IF(BF$5<=$D46,0,IF(SUM($D46,OFFSET($I31,-$B46,0))>BF$5,OFFSET(BF43,-$B46,-BE$4+$B46)/OFFSET($I31,-$B46,0),OFFSET(BF43,-$B46,-BE$4+$B46)-SUM($I46:BE46))) -> 0 | BG46: =IF(BG$5<=$D46,0,IF(SUM($D46,OFFSET($I31,-$B46,0))>BG$5,OFFSET(BG43,-$B46,-BF$4+$B46)/OFFSET($I31,-$B46,0),OFFSET(BG43,-$B46,-BF$4+$B46)-SUM($I46:BF46))) -> 0 | BH46: =IF(BH$5<=$D46,0,IF(SUM($D46,OFFSET($I31,-$B46,0))>BH$5,OFFSET(BH43,-$B46,-BG$4+$B46)/OFFSET($I31,-$B46,0),OFFSET(BH43,-$B46,-BG$4+$B46)-SUM($I46:BG46))) -> 0 | BI46: =IF(BI$5<=$D46,0,IF(SUM($D46,OFFSET($I31,-$B46,0))>BI$5,OFFSET(BI43,-$B46,-BH$4+$B46)/OFFSET($I31,-$B46,0),OFFSET(BI43,-$B46,-BH$4+$B46)-SUM($I46:BH46))) -> 0 | BJ46: =IF(BJ$5<=$D46,0,IF(SUM($D46,OFFSET($I31,-$B46,0))>BJ$5,OFFSET(BJ43,-$B46,-BI$4+$B46)/OFFSET($I31,-$B46,0),OFFSET(BJ43,-$B46,-BI$4+$B46)-SUM($I46:BI46))) -> 0 | BK46: =IF(BK$5<=$D46,0,IF(SUM($D46,OFFSET($I31,-$B46,0))>BK$5,OFFSET(BK43,-$B46,-BJ$4+$B46)/OFFSET($I31,-$B46,0),OFFSET(BK43,-$B46,-BJ$4+$B46)-SUM($I46:BJ46))) -> 0 | BL46: =IF(BL$5<=$D46,0,IF(SUM($D46,OFFSET($I31,-$B46,0))>BL$5,OFFSET(BL43,-$B46,-BK$4+$B46)/OFFSET($I31,-$B46,0),OFFSET(BL43,-$B46,-BK$4+$B46)-SUM($I46:BK46))) -> 0 | BM46: =IF(BM$5<=$D46,0,IF(SUM($D46,OFFSET($I31,-$B46,0))>BM$5,OFFSET(BM43,-$B46,-BL$4+$B46)/OFFSET($I31,-$B46,0),OFFSET(BM43,-$B46,-BL$4+$B46)-SUM($I46:BL46))) -> 0 | BN46: =IF(BN$5<=$D46,0,IF(SUM($D46,OFFSET($I31,-$B46,0))>BN$5,OFFSET(BN43,-$B46,-BM$4+$B46)/OFFSET($I31,-$B46,0),OFFSET(BN43,-$B46,-BM$4+$B46)-SUM($I46:BM46))) -> 0 | BO46: =IF(BO$5<=$D46,0,IF(SUM($D46,OFFSET($I31,-$B46,0))>BO$5,OFFSET(BO43,-$B46,-BN$4+$B46)/OFFSET($I31,-$B46,0),OFFSET(BO43,-$B46,-BN$4+$B46)-SUM($I46:BN46))) -> 0 | BP46: =IF(BP$5<=$D46,0,IF(SUM($D46,OFFSET($I31,-$B46,0))>BP$5,OFFSET(BP43,-$B46,-BO$4+$B46)/OFFSET($I31,-$B46,0),OFFSET(BP43,-$B46,-BO$4+$B46)-SUM($I46:BO46))) -> 0 | BQ46: =IF(BQ$5<=$D46,0,IF(SUM($D46,OFFSET($I31,-$B46,0))>BQ$5,OFFSET(BQ43,-$B46,-BP$4+$B46)/OFFSET($I31,-$B46,0),OFFSET(BQ43,-$B46,-BP$4+$B46)-SUM($I46:BP46))) -> 0 | BR46: =IF(BR$5<=$D46,0,IF(SUM($D46,OFFSET($I31,-$B46,0))>BR$5,OFFSET(BR43,-$B46,-BQ$4+$B46)/OFFSET($I31,-$B46,0),OFFSET(BR43,-$B46,-BQ$4+$B46)-SUM($I46:BQ46))) -> 0 | BS46: =IF(BS$5<=$D46,0,IF(SUM($D46,OFFSET($I31,-$B46,0))>BS$5,OFFSET(BS43,-$B46,-BR$4+$B46)/OFFSET($I31,-$B46,0),OFFSET(BS43,-$B46,-BR$4+$B46)-SUM($I46:BR46))) -> 0 | BT46: =IF(BT$5<=$D46,0,IF(SUM($D46,OFFSET($I31,-$B46,0))>BT$5,OFFSET(BT43,-$B46,-BS$4+$B46)/OFFSET($I31,-$B46,0),OFFSET(BT43,-$B46,-BS$4+$B46)-SUM($I46:BS46))) -> 0
B47: 13 | D47: 2028 | E47: $m Real (2014) | J47: =IF(J$5<=$D47,0,IF(SUM($D47,OFFSET($I32,-$B47,0))>J$5,OFFSET(J44,-$B47,-I$4+$B47)/OFFSET($I32,-$B47,0),OFFSET(J44,-$B47,-I$4+$B47)-SUM($I47:I47))) -> 0 | K47: =IF(K$5<=$D47,0,IF(SUM($D47,OFFSET($I32,-$B47,0))>K$5,OFFSET(K44,-$B47,-J$4+$B47)/OFFSET($I32,-$B47,0),OFFSET(K44,-$B47,-J$4+$B47)-SUM($I47:J47))) -> 0 | L47: =IF(L$5<=$D47,0,IF(SUM($D47,OFFSET($I32,-$B47,0))>L$5,OFFSET(L44,-$B47,-K$4+$B47)/OFFSET($I32,-$B47,0),OFFSET(L44,-$B47,-K$4+$B47)-SUM($I47:K47))) -> 0 | M47: =IF(M$5<=$D47,0,IF(SUM($D47,OFFSET($I32,-$B47,0))>M$5,OFFSET(M44,-$B47,-L$4+$B47)/OFFSET($I32,-$B47,0),OFFSET(M44,-$B47,-L$4+$B47)-SUM($I47:L47))) -> 0 | N47: =IF(N$5<=$D47,0,IF(SUM($D47,OFFSET($I32,-$B47,0))>N$5,OFFSET(N44,-$B47,-M$4+$B47)/OFFSET($I32,-$B47,0),OFFSET(N44,-$B47,-M$4+$B47)-SUM($I47:M47))) -> 0 | O47: =IF(O$5<=$D47,0,IF(SUM($D47,OFFSET($I32,-$B47,0))>O$5,OFFSET(O44,-$B47,-N$4+$B47)/OFFSET($I32,-$B47,0),OFFSET(O44,-$B47,-N$4+$B47)-SUM($I47:N47))) -> 0 | P47: =IF(P$5<=$D47,0,IF(SUM($D47,OFFSET($I32,-$B47,0))>P$5,OFFSET(P44,-$B47,-O$4+$B47)/OFFSET($I32,-$B47,0),OFFSET(P44,-$B47,-O$4+$B47)-SUM($I47:O47))) -> 0 | Q47: =IF(Q$5<=$D47,0,IF(SUM($D47,OFFSET($I32,-$B47,0))>Q$5,OFFSET(Q44,-$B47,-P$4+$B47)/OFFSET($I32,-$B47,0),OFFSET(Q44,-$B47,-P$4+$B47)-SUM($I47:P47))) -> 0 | R47: =IF(R$5<=$D47,0,IF(SUM($D47,OFFSET($I32,-$B47,0))>R$5,OFFSET(R44,-$B47,-Q$4+$B47)/OFFSET($I32,-$B47,0),OFFSET(R44,-$B47,-Q$4+$B47)-SUM($I47:Q47))) -> 0 | S47: =IF(S$5<=$D47,0,IF(SUM($D47,OFFSET($I32,-$B47,0))>S$5,OFFSET(S44,-$B47,-R$4+$B47)/OFFSET($I32,-$B47,0),OFFSET(S44,-$B47,-R$4+$B47)-SUM($I47:R47))) -> 0 | T47: =IF(T$5<=$D47,0,IF(SUM($D47,OFFSET($I32,-$B47,0))>T$5,OFFSET(T44,-$B47,-S$4+$B47)/OFFSET($I32,-$B47,0),OFFSET(T44,-$B47,-S$4+$B47)-SUM($I47:S47))) -> 0 | U47: =IF(U$5<=$D47,0,IF(SUM($D47,OFFSET($I32,-$B47,0))>U$5,OFFSET(U44,-$B47,-T$4+$B47)/OFFSET($I32,-$B47,0),OFFSET(U44,-$B47,-T$4+$B47)-SUM($I47:T47))) -> 0 | V47: =IF(V$5<=$D47,0,IF(SUM($D47,OFFSET($I32,-$B47,0))>V$5,OFFSET(V44,-$B47,-U$4+$B47)/OFFSET($I32,-$B47,0),OFFSET(V44,-$B47,-U$4+$B47)-SUM($I47:U47))) -> 0 | W47: =IF(W$5<=$D47,0,IF(SUM($D47,OFFSET($I32,-$B47,0))>W$5,OFFSET(W44,-$B47,-V$4+$B47)/OFFSET($I32,-$B47,0),OFFSET(W44,-$B47,-V$4+$B47)-SUM($I47:V47))) -> 0 | X47: =IF(X$5<=$D47,0,IF(SUM($D47,OFFSET($I32,-$B47,0))>X$5,OFFSET(X44,-$B47,-W$4+$B47)/OFFSET($I32,-$B47,0),OFFSET(X44,-$B47,-W$4+$B47)-SUM($I47:W47))) -> 0 | Y47: =IF(Y$5<=$D47,0,IF(SUM($D47,OFFSET($I32,-$B47,0))>Y$5,OFFSET(Y44,-$B47,-X$4+$B47)/OFFSET($I32,-$B47,0),OFFSET(Y44,-$B47,-X$4+$B47)-SUM($I47:X47))) -> 0 | Z47: =IF(Z$5<=$D47,0,IF(SUM($D47,OFFSET($I32,-$B47,0))>Z$5,OFFSET(Z44,-$B47,-Y$4+$B47)/OFFSET($I32,-$B47,0),OFFSET(Z44,-$B47,-Y$4+$B47)-SUM($I47:Y47))) -> 0 | AA47: =IF(AA$5<=$D47,0,IF(SUM($D47,OFFSET($I32,-$B47,0))>AA$5,OFFSET(AA44,-$B47,-Z$4+$B47)/OFFSET($I32,-$B47,0),OFFSET(AA44,-$B47,-Z$4+$B47)-SUM($I47:Z47))) -> 0 | AB47: =IF(AB$5<=$D47,0,IF(SUM($D47,OFFSET($I32,-$B47,0))>AB$5,OFFSET(AB44,-$B47,-AA$4+$B47)/OFFSET($I32,-$B47,0),OFFSET(AB44,-$B47,-AA$4+$B47)-SUM($I47:AA47))) -> 0 | AC47: =IF(AC$5<=$D47,0,IF(SUM($D47,OFFSET($I32,-$B47,0))>AC$5,OFFSET(AC44,-$B47,-AB$4+$B47)/OFFSET($I32,-$B47,0),OFFSET(AC44,-$B47,-AB$4+$B47)-SUM($I47:AB47))) -> 0 | AD47: =IF(AD$5<=$D47,0,IF(SUM($D47,OFFSET($I32,-$B47,0))>AD$5,OFFSET(AD44,-$B47,-AC$4+$B47)/OFFSET($I32,-$B47,0),OFFSET(AD44,-$B47,-AC$4+$B47)-SUM($I47:AC47))) -> 0 | AE47: =IF(AE$5<=$D47,0,IF(SUM($D47,OFFSET($I32,-$B47,0))>AE$5,OFFSET(AE44,-$B47,-AD$4+$B47)/OFFSET($I32,-$B47,0),OFFSET(AE44,-$B47,-AD$4+$B47)-SUM($I47:AD47))) -> 0 | AF47: =IF(AF$5<=$D47,0,IF(SUM($D47,OFFSET($I32,-$B47,0))>AF$5,OFFSET(AF44,-$B47,-AE$4+$B47)/OFFSET($I32,-$B47,0),OFFSET(AF44,-$B47,-AE$4+$B47)-SUM($I47:AE47))) -> 0 | AG47: =IF(AG$5<=$D47,0,IF(SUM($D47,OFFSET($I32,-$B47,0))>AG$5,OFFSET(AG44,-$B47,-AF$4+$B47)/OFFSET($I32,-$B47,0),OFFSET(AG44,-$B47,-AF$4+$B47)-SUM($I47:AF47))) -> 0 | AH47: =IF(AH$5<=$D47,0,IF(SUM($D47,OFFSET($I32,-$B47,0))>AH$5,OFFSET(AH44,-$B47,-AG$4+$B47)/OFFSET($I32,-$B47,0),OFFSET(AH44,-$B47,-AG$4+$B47)-SUM($I47:AG47))) -> 0 | AI47: =IF(AI$5<=$D47,0,IF(SUM($D47,OFFSET($I32,-$B47,0))>AI$5,OFFSET(AI44,-$B47,-AH$4+$B47)/OFFSET($I32,-$B47,0),OFFSET(AI44,-$B47,-AH$4+$B47)-SUM($I47:AH47))) -> 0 | AJ47: =IF(AJ$5<=$D47,0,IF(SUM($D47,OFFSET($I32,-$B47,0))>AJ$5,OFFSET(AJ44,-$B47,-AI$4+$B47)/OFFSET($I32,-$B47,0),OFFSET(AJ44,-$B47,-AI$4+$B47)-SUM($I47:AI47))) -> 0 | AK47: =IF(AK$5<=$D47,0,IF(SUM($D47,OFFSET($I32,-$B47,0))>AK$5,OFFSET(AK44,-$B47,-AJ$4+$B47)/OFFSET($I32,-$B47,0),OFFSET(AK44,-$B47,-AJ$4+$B47)-SUM($I47:AJ47))) -> 0 | AL47: =IF(AL$5<=$D47,0,IF(SUM($D47,OFFSET($I32,-$B47,0))>AL$5,OFFSET(AL44,-$B47,-AK$4+$B47)/OFFSET($I32,-$B47,0),OFFSET(AL44,-$B47,-AK$4+$B47)-SUM($I47:AK47))) -> 0 | AM47: =IF(AM$5<=$D47,0,IF(SUM($D47,OFFSET($I32,-$B47,0))>AM$5,OFFSET(AM44,-$B47,-AL$4+$B47)/OFFSET($I32,-$B47,0),OFFSET(AM44,-$B47,-AL$4+$B47)-SUM($I47:AL47))) -> 0 | AN47: =IF(AN$5<=$D47,0,IF(SUM($D47,OFFSET($I32,-$B47,0))>AN$5,OFFSET(AN44,-$B47,-AM$4+$B47)/OFFSET($I32,-$B47,0),OFFSET(AN44,-$B47,-AM$4+$B47)-SUM($I47:AM47))) -> 0 | AO47: =IF(AO$5<=$D47,0,IF(SUM($D47,OFFSET($I32,-$B47,0))>AO$5,OFFSET(AO44,-$B47,-AN$4+$B47)/OFFSET($I32,-$B47,0),OFFSET(AO44,-$B47,-AN$4+$B47)-SUM($I47:AN47))) -> 0 | AP47: =IF(AP$5<=$D47,0,IF(SUM($D47,OFFSET($I32,-$B47,0))>AP$5,OFFSET(AP44,-$B47,-AO$4+$B47)/OFFSET($I32,-$B47,0),OFFSET(AP44,-$B47,-AO$4+$B47)-SUM($I47:AO47))) -> 0 | AQ47: =IF(AQ$5<=$D47,0,IF(SUM($D47,OFFSET($I32,-$B47,0))>AQ$5,OFFSET(AQ44,-$B47,-AP$4+$B47)/OFFSET($I32,-$B47,0),OFFSET(AQ44,-$B47,-AP$4+$B47)-SUM($I47:AP47))) -> 0 | AR47: =IF(AR$5<=$D47,0,IF(SUM($D47,OFFSET($I32,-$B47,0))>AR$5,OFFSET(AR44,-$B47,-AQ$4+$B47)/OFFSET($I32,-$B47,0),OFFSET(AR44,-$B47,-AQ$4+$B47)-SUM($I47:AQ47))) -> 0 | AS47: =IF(AS$5<=$D47,0,IF(SUM($D47,OFFSET($I32,-$B47,0))>AS$5,OFFSET(AS44,-$B47,-AR$4+$B47)/OFFSET($I32,-$B47,0),OFFSET(AS44,-$B47,-AR$4+$B47)-SUM($I47:AR47))) -> 0 | AT47: =IF(AT$5<=$D47,0,IF(SUM($D47,OFFSET($I32,-$B47,0))>AT$5,OFFSET(AT44,-$B47,-AS$4+$B47)/OFFSET($I32,-$B47,0),OFFSET(AT44,-$B47,-AS$4+$B47)-SUM($I47:AS47))) -> 0 | AU47: =IF(AU$5<=$D47,0,IF(SUM($D47,OFFSET($I32,-$B47,0))>AU$5,OFFSET(AU44,-$B47,-AT$4+$B47)/OFFSET($I32,-$B47,0),OFFSET(AU44,-$B47,-AT$4+$B47)-SUM($I47:AT47))) -> 0 | AV47: =IF(AV$5<=$D47,0,IF(SUM($D47,OFFSET($I32,-$B47,0))>AV$5,OFFSET(AV44,-$B47,-AU$4+$B47)/OFFSET($I32,-$B47,0),OFFSET(AV44,-$B47,-AU$4+$B47)-SUM($I47:AU47))) -> 0 | AW47: =IF(AW$5<=$D47,0,IF(SUM($D47,OFFSET($I32,-$B47,0))>AW$5,OFFSET(AW44,-$B47,-AV$4+$B47)/OFFSET($I32,-$B47,0),OFFSET(AW44,-$B47,-AV$4+$B47)-SUM($I47:AV47))) -> 0 | AX47: =IF(AX$5<=$D47,0,IF(SUM($D47,OFFSET($I32,-$B47,0))>AX$5,OFFSET(AX44,-$B47,-AW$4+$B47)/OFFSET($I32,-$B47,0),OFFSET(AX44,-$B47,-AW$4+$B47)-SUM($I47:AW47))) -> 0 | AY47: =IF(AY$5<=$D47,0,IF(SUM($D47,OFFSET($I32,-$B47,0))>AY$5,OFFSET(AY44,-$B47,-AX$4+$B47)/OFFSET($I32,-$B47,0),OFFSET(AY44,-$B47,-AX$4+$B47)-SUM($I47:AX47))) -> 0 | AZ47: =IF(AZ$5<=$D47,0,IF(SUM($D47,OFFSET($I32,-$B47,0))>AZ$5,OFFSET(AZ44,-$B47,-AY$4+$B47)/OFFSET($I32,-$B47,0),OFFSET(AZ44,-$B47,-AY$4+$B47)-SUM($I47:AY47))) -> 0 | BA47: =IF(BA$5<=$D47,0,IF(SUM($D47,OFFSET($I32,-$B47,0))>BA$5,OFFSET(BA44,-$B47,-AZ$4+$B47)/OFFSET($I32,-$B47,0),OFFSET(BA44,-$B47,-AZ$4+$B47)-SUM($I47:AZ47))) -> 0 | BB47: =IF(BB$5<=$D47,0,IF(SUM($D47,OFFSET($I32,-$B47,0))>BB$5,OFFSET(BB44,-$B47,-BA$4+$B47)/OFFSET($I32,-$B47,0),OFFSET(BB44,-$B47,-BA$4+$B47)-SUM($I47:BA47))) -> 0 | BC47: =IF(BC$5<=$D47,0,IF(SUM($D47,OFFSET($I32,-$B47,0))>BC$5,OFFSET(BC44,-$B47,-BB$4+$B47)/OFFSET($I32,-$B47,0),OFFSET(BC44,-$B47,-BB$4+$B47)-SUM($I47:BB47))) -> 0 | BD47: =IF(BD$5<=$D47,0,IF(SUM($D47,OFFSET($I32,-$B47,0))>BD$5,OFFSET(BD44,-$B47,-BC$4+$B47)/OFFSET($I32,-$B47,0),OFFSET(BD44,-$B47,-BC$4+$B47)-SUM($I47:BC47))) -> 0 | BE47: =IF(BE$5<=$D47,0,IF(SUM($D47,OFFSET($I32,-$B47,0))>BE$5,OFFSET(BE44,-$B47,-BD$4+$B47)/OFFSET($I32,-$B47,0),OFFSET(BE44,-$B47,-BD$4+$B47)-SUM($I47:BD47))) -> 0 | BF47: =IF(BF$5<=$D47,0,IF(SUM($D47,OFFSET($I32,-$B47,0))>BF$5,OFFSET(BF44,-$B47,-BE$4+$B47)/OFFSET($I32,-$B47,0),OFFSET(BF44,-$B47,-BE$4+$B47)-SUM($I47:BE47))) -> 0 | BG47: =IF(BG$5<=$D47,0,IF(SUM($D47,OFFSET($I32,-$B47,0))>BG$5,OFFSET(BG44,-$B47,-BF$4+$B47)/OFFSET($I32,-$B47,0),OFFSET(BG44,-$B47,-BF$4+$B47)-SUM($I47:BF47))) -> 0 | BH47: =IF(BH$5<=$D47,0,IF(SUM($D47,OFFSET($I32,-$B47,0))>BH$5,OFFSET(BH44,-$B47,-BG$4+$B47)/OFFSET($I32,-$B47,0),OFFSET(BH44,-$B47,-BG$4+$B47)-SUM($I47:BG47))) -> 0 | BI47: =IF(BI$5<=$D47,0,IF(SUM($D47,OFFSET($I32,-$B47,0))>BI$5,OFFSET(BI44,-$B47,-BH$4+$B47)/OFFSET($I32,-$B47,0),OFFSET(BI44,-$B47,-BH$4+$B47)-SUM($I47:BH47))) -> 0 | BJ47: =IF(BJ$5<=$D47,0,IF(SUM($D47,OFFSET($I32,-$B47,0))>BJ$5,OFFSET(BJ44,-$B47,-BI$4+$B47)/OFFSET($I32,-$B47,0),OFFSET(BJ44,-$B47,-BI$4+$B47)-SUM($I47:BI47))) -> 0 | BK47: =IF(BK$5<=$D47,0,IF(SUM($D47,OFFSET($I32,-$B47,0))>BK$5,OFFSET(BK44,-$B47,-BJ$4+$B47)/OFFSET($I32,-$B47,0),OFFSET(BK44,-$B47,-BJ$4+$B47)-SUM($I47:BJ47))) -> 0 | BL47: =IF(BL$5<=$D47,0,IF(SUM($D47,OFFSET($I32,-$B47,0))>BL$5,OFFSET(BL44,-$B47,-BK$4+$B47)/OFFSET($I32,-$B47,0),OFFSET(BL44,-$B47,-BK$4+$B47)-SUM($I47:BK47))) -> 0 | BM47: =IF(BM$5<=$D47,0,IF(SUM($D47,OFFSET($I32,-$B47,0))>BM$5,OFFSET(BM44,-$B47,-BL$4+$B47)/OFFSET($I32,-$B47,0),OFFSET(BM44,-$B47,-BL$4+$B47)-SUM($I47:BL47))) -> 0 | BN47: =IF(BN$5<=$D47,0,IF(SUM($D47,OFFSET($I32,-$B47,0))>BN$5,OFFSET(BN44,-$B47,-BM$4+$B47)/OFFSET($I32,-$B47,0),OFFSET(BN44,-$B47,-BM$4+$B47)-SUM($I47:BM47))) -> 0 | BO47: =IF(BO$5<=$D47,0,IF(SUM($D47,OFFSET($I32,-$B47,0))>BO$5,OFFSET(BO44,-$B47,-BN$4+$B47)/OFFSET($I32,-$B47,0),OFFSET(BO44,-$B47,-BN$4+$B47)-SUM($I47:BN47))) -> 0 | BP47: =IF(BP$5<=$D47,0,IF(SUM($D47,OFFSET($I32,-$B47,0))>BP$5,OFFSET(BP44,-$B47,-BO$4+$B47)/OFFSET($I32,-$B47,0),OFFSET(BP44,-$B47,-BO$4+$B47)-SUM($I47:BO47))) -> 0 | BQ47: =IF(BQ$5<=$D47,0,IF(SUM($D47,OFFSET($I32,-$B47,0))>BQ$5,OFFSET(BQ44,-$B47,-BP$4+$B47)/OFFSET($I32,-$B47,0),OFFSET(BQ44,-$B47,-BP$4+$B47)-SUM($I47:BP47))) -> 0 | BR47: =IF(BR$5<=$D47,0,IF(SUM($D47,OFFSET($I32,-$B47,0))>BR$5,OFFSET(BR44,-$B47,-BQ$4+$B47)/OFFSET($I32,-$B47,0),OFFSET(BR44,-$B47,-BQ$4+$B47)-SUM($I47:BQ47))) -> 0 | BS47: =IF(BS$5<=$D47,0,IF(SUM($D47,OFFSET($I32,-$B47,0))>BS$5,OFFSET(BS44,-$B47,-BR$4+$B47)/OFFSET($I32,-$B47,0),OFFSET(BS44,-$B47,-BR$4+$B47)-SUM($I47:BR47))) -> 0 | BT47: =IF(BT$5<=$D47,0,IF(SUM($D47,OFFSET($I32,-$B47,0))>BT$5,OFFSET(BT44,-$B47,-BS$4+$B47)/OFFSET($I32,-$B47,0),OFFSET(BT44,-$B47,-BS$4+$B47)-SUM($I47:BS47))) -> 0
B48: 14 | D48: 2029 | E48: $m Real (2014) | J48: =IF(J$5<=$D48,0,IF(SUM($D48,OFFSET($I33,-$B48,0))>J$5,OFFSET(J45,-$B48,-I$4+$B48)/OFFSET($I33,-$B48,0),OFFSET(J45,-$B48,-I$4+$B48)-SUM($I48:I48))) -> 0 | K48: =IF(K$5<=$D48,0,IF(SUM($D48,OFFSET($I33,-$B48,0))>K$5,OFFSET(K45,-$B48,-J$4+$B48)/OFFSET($I33,-$B48,0),OFFSET(K45,-$B48,-J$4+$B48)-SUM($I48:J48))) -> 0 | L48: =IF(L$5<=$D48,0,IF(SUM($D48,OFFSET($I33,-$B48,0))>L$5,OFFSET(L45,-$B48,-K$4+$B48)/OFFSET($I33,-$B48,0),OFFSET(L45,-$B48,-K$4+$B48)-SUM($I48:K48))) -> 0 | M48: =IF(M$5<=$D48,0,IF(SUM($D48,OFFSET($I33,-$B48,0))>M$5,OFFSET(M45,-$B48,-L$4+$B48)/OFFSET($I33,-$B48,0),OFFSET(M45,-$B48,-L$4+$B48)-SUM($I48:L48))) -> 0 | N48: =IF(N$5<=$D48,0,IF(SUM($D48,OFFSET($I33,-$B48,0))>N$5,OFFSET(N45,-$B48,-M$4+$B48)/OFFSET($I33,-$B48,0),OFFSET(N45,-$B48,-M$4+$B48)-SUM($I48:M48))) -> 0 | O48: =IF(O$5<=$D48,0,IF(SUM($D48,OFFSET($I33,-$B48,0))>O$5,OFFSET(O45,-$B48,-N$4+$B48)/OFFSET($I33,-$B48,0),OFFSET(O45,-$B48,-N$4+$B48)-SUM($I48:N48))) -> 0 | P48: =IF(P$5<=$D48,0,IF(SUM($D48,OFFSET($I33,-$B48,0))>P$5,OFFSET(P45,-$B48,-O$4+$B48)/OFFSET($I33,-$B48,0),OFFSET(P45,-$B48,-O$4+$B48)-SUM($I48:O48))) -> 0 | Q48: =IF(Q$5<=$D48,0,IF(SUM($D48,OFFSET($I33,-$B48,0))>Q$5,OFFSET(Q45,-$B48,-P$4+$B48)/OFFSET($I33,-$B48,0),OFFSET(Q45,-$B48,-P$4+$B48)-SUM($I48:P48))) -> 0 | R48: =IF(R$5<=$D48,0,IF(SUM($D48,OFFSET($I33,-$B48,0))>R$5,OFFSET(R45,-$B48,-Q$4+$B48)/OFFSET($I33,-$B48,0),OFFSET(R45,-$B48,-Q$4+$B48)-SUM($I48:Q48))) -> 0 | S48: =IF(S$5<=$D48,0,IF(SUM($D48,OFFSET($I33,-$B48,0))>S$5,OFFSET(S45,-$B48,-R$4+$B48)/OFFSET($I33,-$B48,0),OFFSET(S45,-$B48,-R$4+$B48)-SUM($I48:R48))) -> 0 | T48: =IF(T$5<=$D48,0,IF(SUM($D48,OFFSET($I33,-$B48,0))>T$5,OFFSET(T45,-$B48,-S$4+$B48)/OFFSET($I33,-$B48,0),OFFSET(T45,-$B48,-S$4+$B48)-SUM($I48:S48))) -> 0 | U48: =IF(U$5<=$D48,0,IF(SUM($D48,OFFSET($I33,-$B48,0))>U$5,OFFSET(U45,-$B48,-T$4+$B48)/OFFSET($I33,-$B48,0),OFFSET(U45,-$B48,-T$4+$B48)-SUM($I48:T48))) -> 0 | V48: =IF(V$5<=$D48,0,IF(SUM($D48,OFFSET($I33,-$B48,0))>V$5,OFFSET(V45,-$B48,-U$4+$B48)/OFFSET($I33,-$B48,0),OFFSET(V45,-$B48,-U$4+$B48)-SUM($I48:U48))) -> 0 | W48: =IF(W$5<=$D48,0,IF(SUM($D48,OFFSET($I33,-$B48,0))>W$5,OFFSET(W45,-$B48,-V$4+$B48)/OFFSET($I33,-$B48,0),OFFSET(W45,-$B48,-V$4+$B48)-SUM($I48:V48))) -> 0 | X48: =IF(X$5<=$D48,0,IF(SUM($D48,OFFSET($I33,-$B48,0))>X$5,OFFSET(X45,-$B48,-W$4+$B48)/OFFSET($I33,-$B48,0),OFFSET(X45,-$B48,-W$4+$B48)-SUM($I48:W48))) -> 0 | Y48: =IF(Y$5<=$D48,0,IF(SUM($D48,OFFSET($I33,-$B48,0))>Y$5,OFFSET(Y45,-$B48,-X$4+$B48)/OFFSET($I33,-$B48,0),OFFSET(Y45,-$B48,-X$4+$B48)-SUM($I48:X48))) -> 0 | Z48: =IF(Z$5<=$D48,0,IF(SUM($D48,OFFSET($I33,-$B48,0))>Z$5,OFFSET(Z45,-$B48,-Y$4+$B48)/OFFSET($I33,-$B48,0),OFFSET(Z45,-$B48,-Y$4+$B48)-SUM($I48:Y48))) -> 0 | AA48: =IF(AA$5<=$D48,0,IF(SUM($D48,OFFSET($I33,-$B48,0))>AA$5,OFFSET(AA45,-$B48,-Z$4+$B48)/OFFSET($I33,-$B48,0),OFFSET(AA45,-$B48,-Z$4+$B48)-SUM($I48:Z48))) -> 0 | AB48: =IF(AB$5<=$D48,0,IF(SUM($D48,OFFSET($I33,-$B48,0))>AB$5,OFFSET(AB45,-$B48,-AA$4+$B48)/OFFSET($I33,-$B48,0),OFFSET(AB45,-$B48,-AA$4+$B48)-SUM($I48:AA48))) -> 0 | AC48: =IF(AC$5<=$D48,0,IF(SUM($D48,OFFSET($I33,-$B48,0))>AC$5,OFFSET(AC45,-$B48,-AB$4+$B48)/OFFSET($I33,-$B48,0),OFFSET(AC45,-$B48,-AB$4+$B48)-SUM($I48:AB48))) -> 0 | AD48: =IF(AD$5<=$D48,0,IF(SUM($D48,OFFSET($I33,-$B48,0))>AD$5,OFFSET(AD45,-$B48,-AC$4+$B48)/OFFSET($I33,-$B48,0),OFFSET(AD45,-$B48,-AC$4+$B48)-SUM($I48:AC48))) -> 0 | AE48: =IF(AE$5<=$D48,0,IF(SUM($D48,OFFSET($I33,-$B48,0))>AE$5,OFFSET(AE45,-$B48,-AD$4+$B48)/OFFSET($I33,-$B48,0),OFFSET(AE45,-$B48,-AD$4+$B48)-SUM($I48:AD48))) -> 0 | AF48: =IF(AF$5<=$D48,0,IF(SUM($D48,OFFSET($I33,-$B48,0))>AF$5,OFFSET(AF45,-$B48,-AE$4+$B48)/OFFSET($I33,-$B48,0),OFFSET(AF45,-$B48,-AE$4+$B48)-SUM($I48:AE48))) -> 0 | AG48: =IF(AG$5<=$D48,0,IF(SUM($D48,OFFSET($I33,-$B48,0))>AG$5,OFFSET(AG45,-$B48,-AF$4+$B48)/OFFSET($I33,-$B48,0),OFFSET(AG45,-$B48,-AF$4+$B48)-SUM($I48:AF48))) -> 0 | AH48: =IF(AH$5<=$D48,0,IF(SUM($D48,OFFSET($I33,-$B48,0))>AH$5,OFFSET(AH45,-$B48,-AG$4+$B48)/OFFSET($I33,-$B48,0),OFFSET(AH45,-$B48,-AG$4+$B48)-SUM($I48:AG48))) -> 0 | AI48: =IF(AI$5<=$D48,0,IF(SUM($D48,OFFSET($I33,-$B48,0))>AI$5,OFFSET(AI45,-$B48,-AH$4+$B48)/OFFSET($I33,-$B48,0),OFFSET(AI45,-$B48,-AH$4+$B48)-SUM($I48:AH48))) -> 0 | AJ48: =IF(AJ$5<=$D48,0,IF(SUM($D48,OFFSET($I33,-$B48,0))>AJ$5,OFFSET(AJ45,-$B48,-AI$4+$B48)/OFFSET($I33,-$B48,0),OFFSET(AJ45,-$B48,-AI$4+$B48)-SUM($I48:AI48))) -> 0 | AK48: =IF(AK$5<=$D48,0,IF(SUM($D48,OFFSET($I33,-$B48,0))>AK$5,OFFSET(AK45,-$B48,-AJ$4+$B48)/OFFSET($I33,-$B48,0),OFFSET(AK45,-$B48,-AJ$4+$B48)-SUM($I48:AJ48))) -> 0 | AL48: =IF(AL$5<=$D48,0,IF(SUM($D48,OFFSET($I33,-$B48,0))>AL$5,OFFSET(AL45,-$B48,-AK$4+$B48)/OFFSET($I33,-$B48,0),OFFSET(AL45,-$B48,-AK$4+$B48)-SUM($I48:AK48))) -> 0 | AM48: =IF(AM$5<=$D48,0,IF(SUM($D48,OFFSET($I33,-$B48,0))>AM$5,OFFSET(AM45,-$B48,-AL$4+$B48)/OFFSET($I33,-$B48,0),OFFSET(AM45,-$B48,-AL$4+$B48)-SUM($I48:AL48))) -> 0 | AN48: =IF(AN$5<=$D48,0,IF(SUM($D48,OFFSET($I33,-$B48,0))>AN$5,OFFSET(AN45,-$B48,-AM$4+$B48)/OFFSET($I33,-$B48,0),OFFSET(AN45,-$B48,-AM$4+$B48)-SUM($I48:AM48))) -> 0 | AO48: =IF(AO$5<=$D48,0,IF(SUM($D48,OFFSET($I33,-$B48,0))>AO$5,OFFSET(AO45,-$B48,-AN$4+$B48)/OFFSET($I33,-$B48,0),OFFSET(AO45,-$B48,-AN$4+$B48)-SUM($I48:AN48))) -> 0 | AP48: =IF(AP$5<=$D48,0,IF(SUM($D48,OFFSET($I33,-$B48,0))>AP$5,OFFSET(AP45,-$B48,-AO$4+$B48)/OFFSET($I33,-$B48,0),OFFSET(AP45,-$B48,-AO$4+$B48)-SUM($I48:AO48))) -> 0 | AQ48: =IF(AQ$5<=$D48,0,IF(SUM($D48,OFFSET($I33,-$B48,0))>AQ$5,OFFSET(AQ45,-$B48,-AP$4+$B48)/OFFSET($I33,-$B48,0),OFFSET(AQ45,-$B48,-AP$4+$B48)-SUM($I48:AP48))) -> 0 | AR48: =IF(AR$5<=$D48,0,IF(SUM($D48,OFFSET($I33,-$B48,0))>AR$5,OFFSET(AR45,-$B48,-AQ$4+$B48)/OFFSET($I33,-$B48,0),OFFSET(AR45,-$B48,-AQ$4+$B48)-SUM($I48:AQ48))) -> 0 | AS48: =IF(AS$5<=$D48,0,IF(SUM($D48,OFFSET($I33,-$B48,0))>AS$5,OFFSET(AS45,-$B48,-AR$4+$B48)/OFFSET($I33,-$B48,0),OFFSET(AS45,-$B48,-AR$4+$B48)-SUM($I48:AR48))) -> 0 | AT48: =IF(AT$5<=$D48,0,IF(SUM($D48,OFFSET($I33,-$B48,0))>AT$5,OFFSET(AT45,-$B48,-AS$4+$B48)/OFFSET($I33,-$B48,0),OFFSET(AT45,-$B48,-AS$4+$B48)-SUM($I48:AS48))) -> 0 | AU48: =IF(AU$5<=$D48,0,IF(SUM($D48,OFFSET($I33,-$B48,0))>AU$5,OFFSET(AU45,-$B48,-AT$4+$B48)/OFFSET($I33,-$B48,0),OFFSET(AU45,-$B48,-AT$4+$B48)-SUM($I48:AT48))) -> 0 | AV48: =IF(AV$5<=$D48,0,IF(SUM($D48,OFFSET($I33,-$B48,0))>AV$5,OFFSET(AV45,-$B48,-AU$4+$B48)/OFFSET($I33,-$B48,0),OFFSET(AV45,-$B48,-AU$4+$B48)-SUM($I48:AU48))) -> 0 | AW48: =IF(AW$5<=$D48,0,IF(SUM($D48,OFFSET($I33,-$B48,0))>AW$5,OFFSET(AW45,-$B48,-AV$4+$B48)/OFFSET($I33,-$B48,0),OFFSET(AW45,-$B48,-AV$4+$B48)-SUM($I48:AV48))) -> 0 | AX48: =IF(AX$5<=$D48,0,IF(SUM($D48,OFFSET($I33,-$B48,0))>AX$5,OFFSET(AX45,-$B48,-AW$4+$B48)/OFFSET($I33,-$B48,0),OFFSET(AX45,-$B48,-AW$4+$B48)-SUM($I48:AW48))) -> 0 | AY48: =IF(AY$5<=$D48,0,IF(SUM($D48,OFFSET($I33,-$B48,0))>AY$5,OFFSET(AY45,-$B48,-AX$4+$B48)/OFFSET($I33,-$B48,0),OFFSET(AY45,-$B48,-AX$4+$B48)-SUM($I48:AX48))) -> 0 | AZ48: =IF(AZ$5<=$D48,0,IF(SUM($D48,OFFSET($I33,-$B48,0))>AZ$5,OFFSET(AZ45,-$B48,-AY$4+$B48)/OFFSET($I33,-$B48,0),OFFSET(AZ45,-$B48,-AY$4+$B48)-SUM($I48:AY48))) -> 0 | BA48: =IF(BA$5<=$D48,0,IF(SUM($D48,OFFSET($I33,-$B48,0))>BA$5,OFFSET(BA45,-$B48,-AZ$4+$B48)/OFFSET($I33,-$B48,0),OFFSET(BA45,-$B48,-AZ$4+$B48)-SUM($I48:AZ48))) -> 0 | BB48: =IF(BB$5<=$D48,0,IF(SUM($D48,OFFSET($I33,-$B48,0))>BB$5,OFFSET(BB45,-$B48,-BA$4+$B48)/OFFSET($I33,-$B48,0),OFFSET(BB45,-$B48,-BA$4+$B48)-SUM($I48:BA48))) -> 0 | BC48: =IF(BC$5<=$D48,0,IF(SUM($D48,OFFSET($I33,-$B48,0))>BC$5,OFFSET(BC45,-$B48,-BB$4+$B48)/OFFSET($I33,-$B48,0),OFFSET(BC45,-$B48,-BB$4+$B48)-SUM($I48:BB48))) -> 0 | BD48: =IF(BD$5<=$D48,0,IF(SUM($D48,OFFSET($I33,-$B48,0))>BD$5,OFFSET(BD45,-$B48,-BC$4+$B48)/OFFSET($I33,-$B48,0),OFFSET(BD45,-$B48,-BC$4+$B48)-SUM($I48:BC48))) -> 0 | BE48: =IF(BE$5<=$D48,0,IF(SUM($D48,OFFSET($I33,-$B48,0))>BE$5,OFFSET(BE45,-$B48,-BD$4+$B48)/OFFSET($I33,-$B48,0),OFFSET(BE45,-$B48,-BD$4+$B48)-SUM($I48:BD48))) -> 0 | BF48: =IF(BF$5<=$D48,0,IF(SUM($D48,OFFSET($I33,-$B48,0))>BF$5,OFFSET(BF45,-$B48,-BE$4+$B48)/OFFSET($I33,-$B48,0),OFFSET(BF45,-$B48,-BE$4+$B48)-SUM($I48:BE48))) -> 0 | BG48: =IF(BG$5<=$D48,0,IF(SUM($D48,OFFSET($I33,-$B48,0))>BG$5,OFFSET(BG45,-$B48,-BF$4+$B48)/OFFSET($I33,-$B48,0),OFFSET(BG45,-$B48,-BF$4+$B48)-SUM($I48:BF48))) -> 0 | BH48: =IF(BH$5<=$D48,0,IF(SUM($D48,OFFSET($I33,-$B48,0))>BH$5,OFFSET(BH45,-$B48,-BG$4+$B48)/OFFSET($I33,-$B48,0),OFFSET(BH45,-$B48,-BG$4+$B48)-SUM($I48:BG48))) -> 0 | BI48: =IF(BI$5<=$D48,0,IF(SUM($D48,OFFSET($I33,-$B48,0))>BI$5,OFFSET(BI45,-$B48,-BH$4+$B48)/OFFSET($I33,-$B48,0),OFFSET(BI45,-$B48,-BH$4+$B48)-SUM($I48:BH48))) -> 0 | BJ48: =IF(BJ$5<=$D48,0,IF(SUM($D48,OFFSET($I33,-$B48,0))>BJ$5,OFFSET(BJ45,-$B48,-BI$4+$B48)/OFFSET($I33,-$B48,0),OFFSET(BJ45,-$B48,-BI$4+$B48)-SUM($I48:BI48))) -> 0 | BK48: =IF(BK$5<=$D48,0,IF(SUM($D48,OFFSET($I33,-$B48,0))>BK$5,OFFSET(BK45,-$B48,-BJ$4+$B48)/OFFSET($I33,-$B48,0),OFFSET(BK45,-$B48,-BJ$4+$B48)-SUM($I48:BJ48))) -> 0 | BL48: =IF(BL$5<=$D48,0,IF(SUM($D48,OFFSET($I33,-$B48,0))>BL$5,OFFSET(BL45,-$B48,-BK$4+$B48)/OFFSET($I33,-$B48,0),OFFSET(BL45,-$B48,-BK$4+$B48)-SUM($I48:BK48))) -> 0 | BM48: =IF(BM$5<=$D48,0,IF(SUM($D48,OFFSET($I33,-$B48,0))>BM$5,OFFSET(BM45,-$B48,-BL$4+$B48)/OFFSET($I33,-$B48,0),OFFSET(BM45,-$B48,-BL$4+$B48)-SUM($I48:BL48))) -> 0 | BN48: =IF(BN$5<=$D48,0,IF(SUM($D48,OFFSET($I33,-$B48,0))>BN$5,OFFSET(BN45,-$B48,-BM$4+$B48)/OFFSET($I33,-$B48,0),OFFSET(BN45,-$B48,-BM$4+$B48)-SUM($I48:BM48))) -> 0 | BO48: =IF(BO$5<=$D48,0,IF(SUM($D48,OFFSET($I33,-$B48,0))>BO$5,OFFSET(BO45,-$B48,-BN$4+$B48)/OFFSET($I33,-$B48,0),OFFSET(BO45,-$B48,-BN$4+$B48)-SUM($I48:BN48))) -> 0 | BP48: =IF(BP$5<=$D48,0,IF(SUM($D48,OFFSET($I33,-$B48,0))>BP$5,OFFSET(BP45,-$B48,-BO$4+$B48)/OFFSET($I33,-$B48,0),OFFSET(BP45,-$B48,-BO$4+$B48)-SUM($I48:BO48))) -> 0 | BQ48: =IF(BQ$5<=$D48,0,IF(SUM($D48,OFFSET($I33,-$B48,0))>BQ$5,OFFSET(BQ45,-$B48,-BP$4+$B48)/OFFSET($I33,-$B48,0),OFFSET(BQ45,-$B48,-BP$4+$B48)-SUM($I48:BP48))) -> 0 | BR48: =IF(BR$5<=$D48,0,IF(SUM($D48,OFFSET($I33,-$B48,0))>BR$5,OFFSET(BR45,-$B48,-BQ$4+$B48)/OFFSET($I33,-$B48,0),OFFSET(BR45,-$B48,-BQ$4+$B48)-SUM($I48:BQ48))) -> 0 | BS48: =IF(BS$5<=$D48,0,IF(SUM($D48,OFFSET($I33,-$B48,0))>BS$5,OFFSET(BS45,-$B48,-BR$4+$B48)/OFFSET($I33,-$B48,0),OFFSET(BS45,-$B48,-BR$4+$B48)-SUM($I48:BR48))) -> 0 | BT48: =IF(BT$5<=$D48,0,IF(SUM($D48,OFFSET($I33,-$B48,0))>BT$5,OFFSET(BT45,-$B48,-BS$4+$B48)/OFFSET($I33,-$B48,0),OFFSET(BT45,-$B48,-BS$4+$B48)-SUM($I48:BS48))) -> 0
B49: 15 | D49: 2030 | E49: $m Real (2014) | J49: =IF(J$5<=$D49,0,IF(SUM($D49,OFFSET($I34,-$B49,0))>J$5,OFFSET(J46,-$B49,-I$4+$B49)/OFFSET($I34,-$B49,0),OFFSET(J46,-$B49,-I$4+$B49)-SUM($I49:I49))) -> 0 | K49: =IF(K$5<=$D49,0,IF(SUM($D49,OFFSET($I34,-$B49,0))>K$5,OFFSET(K46,-$B49,-J$4+$B49)/OFFSET($I34,-$B49,0),OFFSET(K46,-$B49,-J$4+$B49)-SUM($I49:J49))) -> 0 | L49: =IF(L$5<=$D49,0,IF(SUM($D49,OFFSET($I34,-$B49,0))>L$5,OFFSET(L46,-$B49,-K$4+$B49)/OFFSET($I34,-$B49,0),OFFSET(L46,-$B49,-K$4+$B49)-SUM($I49:K49))) -> 0 | M49: =IF(M$5<=$D49,0,IF(SUM($D49,OFFSET($I34,-$B49,0))>M$5,OFFSET(M46,-$B49,-L$4+$B49)/OFFSET($I34,-$B49,0),OFFSET(M46,-$B49,-L$4+$B49)-SUM($I49:L49))) -> 0 | N49: =IF(N$5<=$D49,0,IF(SUM($D49,OFFSET($I34,-$B49,0))>N$5,OFFSET(N46,-$B49,-M$4+$B49)/OFFSET($I34,-$B49,0),OFFSET(N46,-$B49,-M$4+$B49)-SUM($I49:M49))) -> 0 | O49: =IF(O$5<=$D49,0,IF(SUM($D49,OFFSET($I34,-$B49,0))>O$5,OFFSET(O46,-$B49,-N$4+$B49)/OFFSET($I34,-$B49,0),OFFSET(O46,-$B49,-N$4+$B49)-SUM($I49:N49))) -> 0 | P49: =IF(P$5<=$D49,0,IF(SUM($D49,OFFSET($I34,-$B49,0))>P$5,OFFSET(P46,-$B49,-O$4+$B49)/OFFSET($I34,-$B49,0),OFFSET(P46,-$B49,-O$4+$B49)-SUM($I49:O49))) -> 0 | Q49: =IF(Q$5<=$D49,0,IF(SUM($D49,OFFSET($I34,-$B49,0))>Q$5,OFFSET(Q46,-$B49,-P$4+$B49)/OFFSET($I34,-$B49,0),OFFSET(Q46,-$B49,-P$4+$B49)-SUM($I49:P49))) -> 0 | R49: =IF(R$5<=$D49,0,IF(SUM($D49,OFFSET($I34,-$B49,0))>R$5,OFFSET(R46,-$B49,-Q$4+$B49)/OFFSET($I34,-$B49,0),OFFSET(R46,-$B49,-Q$4+$B49)-SUM($I49:Q49))) -> 0 | S49: =IF(S$5<=$D49,0,IF(SUM($D49,OFFSET($I34,-$B49,0))>S$5,OFFSET(S46,-$B49,-R$4+$B49)/OFFSET($I34,-$B49,0),OFFSET(S46,-$B49,-R$4+$B49)-SUM($I49:R49))) -> 0 | T49: =IF(T$5<=$D49,0,IF(SUM($D49,OFFSET($I34,-$B49,0))>T$5,OFFSET(T46,-$B49,-S$4+$B49)/OFFSET($I34,-$B49,0),OFFSET(T46,-$B49,-S$4+$B49)-SUM($I49:S49))) -> 0 | U49: =IF(U$5<=$D49,0,IF(SUM($D49,OFFSET($I34,-$B49,0))>U$5,OFFSET(U46,-$B49,-T$4+$B49)/OFFSET($I34,-$B49,0),OFFSET(U46,-$B49,-T$4+$B49)-SUM($I49:T49))) -> 0 | V49: =IF(V$5<=$D49,0,IF(SUM($D49,OFFSET($I34,-$B49,0))>V$5,OFFSET(V46,-$B49,-U$4+$B49)/OFFSET($I34,-$B49,0),OFFSET(V46,-$B49,-U$4+$B49)-SUM($I49:U49))) -> 0 | W49: =IF(W$5<=$D49,0,IF(SUM($D49,OFFSET($I34,-$B49,0))>W$5,OFFSET(W46,-$B49,-V$4+$B49)/OFFSET($I34,-$B49,0),OFFSET(W46,-$B49,-V$4+$B49)-SUM($I49:V49))) -> 0 | X49: =IF(X$5<=$D49,0,IF(SUM($D49,OFFSET($I34,-$B49,0))>X$5,OFFSET(X46,-$B49,-W$4+$B49)/OFFSET($I34,-$B49,0),OFFSET(X46,-$B49,-W$4+$B49)-SUM($I49:W49))) -> 0 | Y49: =IF(Y$5<=$D49,0,IF(SUM($D49,OFFSET($I34,-$B49,0))>Y$5,OFFSET(Y46,-$B49,-X$4+$B49)/OFFSET($I34,-$B49,0),OFFSET(Y46,-$B49,-X$4+$B49)-SUM($I49:X49))) -> 0 | Z49: =IF(Z$5<=$D49,0,IF(SUM($D49,OFFSET($I34,-$B49,0))>Z$5,OFFSET(Z46,-$B49,-Y$4+$B49)/OFFSET($I34,-$B49,0),OFFSET(Z46,-$B49,-Y$4+$B49)-SUM($I49:Y49))) -> 0 | AA49: =IF(AA$5<=$D49,0,IF(SUM($D49,OFFSET($I34,-$B49,0))>AA$5,OFFSET(AA46,-$B49,-Z$4+$B49)/OFFSET($I34,-$B49,0),OFFSET(AA46,-$B49,-Z$4+$B49)-SUM($I49:Z49))) -> 0 | AB49: =IF(AB$5<=$D49,0,IF(SUM($D49,OFFSET($I34,-$B49,0))>AB$5,OFFSET(AB46,-$B49,-AA$4+$B49)/OFFSET($I34,-$B49,0),OFFSET(AB46,-$B49,-AA$4+$B49)-SUM($I49:AA49))) -> 0 | AC49: =IF(AC$5<=$D49,0,IF(SUM($D49,OFFSET($I34,-$B49,0))>AC$5,OFFSET(AC46,-$B49,-AB$4+$B49)/OFFSET($I34,-$B49,0),OFFSET(AC46,-$B49,-AB$4+$B49)-SUM($I49:AB49))) -> 0 | AD49: =IF(AD$5<=$D49,0,IF(SUM($D49,OFFSET($I34,-$B49,0))>AD$5,OFFSET(AD46,-$B49,-AC$4+$B49)/OFFSET($I34,-$B49,0),OFFSET(AD46,-$B49,-AC$4+$B49)-SUM($I49:AC49))) -> 0 | AE49: =IF(AE$5<=$D49,0,IF(SUM($D49,OFFSET($I34,-$B49,0))>AE$5,OFFSET(AE46,-$B49,-AD$4+$B49)/OFFSET($I34,-$B49,0),OFFSET(AE46,-$B49,-AD$4+$B49)-SUM($I49:AD49))) -> 0 | AF49: =IF(AF$5<=$D49,0,IF(SUM($D49,OFFSET($I34,-$B49,0))>AF$5,OFFSET(AF46,-$B49,-AE$4+$B49)/OFFSET($I34,-$B49,0),OFFSET(AF46,-$B49,-AE$4+$B49)-SUM($I49:AE49))) -> 0 | AG49: =IF(AG$5<=$D49,0,IF(SUM($D49,OFFSET($I34,-$B49,0))>AG$5,OFFSET(AG46,-$B49,-AF$4+$B49)/OFFSET($I34,-$B49,0),OFFSET(AG46,-$B49,-AF$4+$B49)-SUM($I49:AF49))) -> 0 | AH49: =IF(AH$5<=$D49,0,IF(SUM($D49,OFFSET($I34,-$B49,0))>AH$5,OFFSET(AH46,-$B49,-AG$4+$B49)/OFFSET($I34,-$B49,0),OFFSET(AH46,-$B49,-AG$4+$B49)-SUM($I49:AG49))) -> 0 | AI49: =IF(AI$5<=$D49,0,IF(SUM($D49,OFFSET($I34,-$B49,0))>AI$5,OFFSET(AI46,-$B49,-AH$4+$B49)/OFFSET($I34,-$B49,0),OFFSET(AI46,-$B49,-AH$4+$B49)-SUM($I49:AH49))) -> 0 | AJ49: =IF(AJ$5<=$D49,0,IF(SUM($D49,OFFSET($I34,-$B49,0))>AJ$5,OFFSET(AJ46,-$B49,-AI$4+$B49)/OFFSET($I34,-$B49,0),OFFSET(AJ46,-$B49,-AI$4+$B49)-SUM($I49:AI49))) -> 0 | AK49: =IF(AK$5<=$D49,0,IF(SUM($D49,OFFSET($I34,-$B49,0))>AK$5,OFFSET(AK46,-$B49,-AJ$4+$B49)/OFFSET($I34,-$B49,0),OFFSET(AK46,-$B49,-AJ$4+$B49)-SUM($I49:AJ49))) -> 0 | AL49: =IF(AL$5<=$D49,0,IF(SUM($D49,OFFSET($I34,-$B49,0))>AL$5,OFFSET(AL46,-$B49,-AK$4+$B49)/OFFSET($I34,-$B49,0),OFFSET(AL46,-$B49,-AK$4+$B49)-SUM($I49:AK49))) -> 0 | AM49: =IF(AM$5<=$D49,0,IF(SUM($D49,OFFSET($I34,-$B49,0))>AM$5,OFFSET(AM46,-$B49,-AL$4+$B49)/OFFSET($I34,-$B49,0),OFFSET(AM46,-$B49,-AL$4+$B49)-SUM($I49:AL49))) -> 0 | AN49: =IF(AN$5<=$D49,0,IF(SUM($D49,OFFSET($I34,-$B49,0))>AN$5,OFFSET(AN46,-$B49,-AM$4+$B49)/OFFSET($I34,-$B49,0),OFFSET(AN46,-$B49,-AM$4+$B49)-SUM($I49:AM49))) -> 0 | AO49: =IF(AO$5<=$D49,0,IF(SUM($D49,OFFSET($I34,-$B49,0))>AO$5,OFFSET(AO46,-$B49,-AN$4+$B49)/OFFSET($I34,-$B49,0),OFFSET(AO46,-$B49,-AN$4+$B49)-SUM($I49:AN49))) -> 0 | AP49: =IF(AP$5<=$D49,0,IF(SUM($D49,OFFSET($I34,-$B49,0))>AP$5,OFFSET(AP46,-$B49,-AO$4+$B49)/OFFSET($I34,-$B49,0),OFFSET(AP46,-$B49,-AO$4+$B49)-SUM($I49:AO49))) -> 0 | AQ49: =IF(AQ$5<=$D49,0,IF(SUM($D49,OFFSET($I34,-$B49,0))>AQ$5,OFFSET(AQ46,-$B49,-AP$4+$B49)/OFFSET($I34,-$B49,0),OFFSET(AQ46,-$B49,-AP$4+$B49)-SUM($I49:AP49))) -> 0 | AR49: =IF(AR$5<=$D49,0,IF(SUM($D49,OFFSET($I34,-$B49,0))>AR$5,OFFSET(AR46,-$B49,-AQ$4+$B49)/OFFSET($I34,-$B49,0),OFFSET(AR46,-$B49,-AQ$4+$B49)-SUM($I49:AQ49))) -> 0 | AS49: =IF(AS$5<=$D49,0,IF(SUM($D49,OFFSET($I34,-$B49,0))>AS$5,OFFSET(AS46,-$B49,-AR$4+$B49)/OFFSET($I34,-$B49,0),OFFSET(AS46,-$B49,-AR$4+$B49)-SUM($I49:AR49))) -> 0 | AT49: =IF(AT$5<=$D49,0,IF(SUM($D49,OFFSET($I34,-$B49,0))>AT$5,OFFSET(AT46,-$B49,-AS$4+$B49)/OFFSET($I34,-$B49,0),OFFSET(AT46,-$B49,-AS$4+$B49)-SUM($I49:AS49))) -> 0 | AU49: =IF(AU$5<=$D49,0,IF(SUM($D49,OFFSET($I34,-$B49,0))>AU$5,OFFSET(AU46,-$B49,-AT$4+$B49)/OFFSET($I34,-$B49,0),OFFSET(AU46,-$B49,-AT$4+$B49)-SUM($I49:AT49))) -> 0 | AV49: =IF(AV$5<=$D49,0,IF(SUM($D49,OFFSET($I34,-$B49,0))>AV$5,OFFSET(AV46,-$B49,-AU$4+$B49)/OFFSET($I34,-$B49,0),OFFSET(AV46,-$B49,-AU$4+$B49)-SUM($I49:AU49))) -> 0 | AW49: =IF(AW$5<=$D49,0,IF(SUM($D49,OFFSET($I34,-$B49,0))>AW$5,OFFSET(AW46,-$B49,-AV$4+$B49)/OFFSET($I34,-$B49,0),OFFSET(AW46,-$B49,-AV$4+$B49)-SUM($I49:AV49))) -> 0 | AX49: =IF(AX$5<=$D49,0,IF(SUM($D49,OFFSET($I34,-$B49,0))>AX$5,OFFSET(AX46,-$B49,-AW$4+$B49)/OFFSET($I34,-$B49,0),OFFSET(AX46,-$B49,-AW$4+$B49)-SUM($I49:AW49))) -> 0 | AY49: =IF(AY$5<=$D49,0,IF(SUM($D49,OFFSET($I34,-$B49,0))>AY$5,OFFSET(AY46,-$B49,-AX$4+$B49)/OFFSET($I34,-$B49,0),OFFSET(AY46,-$B49,-AX$4+$B49)-SUM($I49:AX49))) -> 0 | AZ49: =IF(AZ$5<=$D49,0,IF(SUM($D49,OFFSET($I34,-$B49,0))>AZ$5,OFFSET(AZ46,-$B49,-AY$4+$B49)/OFFSET($I34,-$B49,0),OFFSET(AZ46,-$B49,-AY$4+$B49)-SUM($I49:AY49))) -> 0 | BA49: =IF(BA$5<=$D49,0,IF(SUM($D49,OFFSET($I34,-$B49,0))>BA$5,OFFSET(BA46,-$B49,-AZ$4+$B49)/OFFSET($I34,-$B49,0),OFFSET(BA46,-$B49,-AZ$4+$B49)-SUM($I49:AZ49))) -> 0 | BB49: =IF(BB$5<=$D49,0,IF(SUM($D49,OFFSET($I34,-$B49,0))>BB$5,OFFSET(BB46,-$B49,-BA$4+$B49)/OFFSET($I34,-$B49,0),OFFSET(BB46,-$B49,-BA$4+$B49)-SUM($I49:BA49))) -> 0 | BC49: =IF(BC$5<=$D49,0,IF(SUM($D49,OFFSET($I34,-$B49,0))>BC$5,OFFSET(BC46,-$B49,-BB$4+$B49)/OFFSET($I34,-$B49,0),OFFSET(BC46,-$B49,-BB$4+$B49)-SUM($I49:BB49))) -> 0 | BD49: =IF(BD$5<=$D49,0,IF(SUM($D49,OFFSET($I34,-$B49,0))>BD$5,OFFSET(BD46,-$B49,-BC$4+$B49)/OFFSET($I34,-$B49,0),OFFSET(BD46,-$B49,-BC$4+$B49)-SUM($I49:BC49))) -> 0 | BE49: =IF(BE$5<=$D49,0,IF(SUM($D49,OFFSET($I34,-$B49,0))>BE$5,OFFSET(BE46,-$B49,-BD$4+$B49)/OFFSET($I34,-$B49,0),OFFSET(BE46,-$B49,-BD$4+$B49)-SUM($I49:BD49))) -> 0 | BF49: =IF(BF$5<=$D49,0,IF(SUM($D49,OFFSET($I34,-$B49,0))>BF$5,OFFSET(BF46,-$B49,-BE$4+$B49)/OFFSET($I34,-$B49,0),OFFSET(BF46,-$B49,-BE$4+$B49)-SUM($I49:BE49))) -> 0 | BG49: =IF(BG$5<=$D49,0,IF(SUM($D49,OFFSET($I34,-$B49,0))>BG$5,OFFSET(BG46,-$B49,-BF$4+$B49)/OFFSET($I34,-$B49,0),OFFSET(BG46,-$B49,-BF$4+$B49)-SUM($I49:BF49))) -> 0 | BH49: =IF(BH$5<=$D49,0,IF(SUM($D49,OFFSET($I34,-$B49,0))>BH$5,OFFSET(BH46,-$B49,-BG$4+$B49)/OFFSET($I34,-$B49,0),OFFSET(BH46,-$B49,-BG$4+$B49)-SUM($I49:BG49))) -> 0 | BI49: =IF(BI$5<=$D49,0,IF(SUM($D49,OFFSET($I34,-$B49,0))>BI$5,OFFSET(BI46,-$B49,-BH$4+$B49)/OFFSET($I34,-$B49,0),OFFSET(BI46,-$B49,-BH$4+$B49)-SUM($I49:BH49))) -> 0 | BJ49: =IF(BJ$5<=$D49,0,IF(SUM($D49,OFFSET($I34,-$B49,0))>BJ$5,OFFSET(BJ46,-$B49,-BI$4+$B49)/OFFSET($I34,-$B49,0),OFFSET(BJ46,-$B49,-BI$4+$B49)-SUM($I49:BI49))) -> 0 | BK49: =IF(BK$5<=$D49,0,IF(SUM($D49,OFFSET($I34,-$B49,0))>BK$5,OFFSET(BK46,-$B49,-BJ$4+$B49)/OFFSET($I34,-$B49,0),OFFSET(BK46,-$B49,-BJ$4+$B49)-SUM($I49:BJ49))) -> 0 | BL49: =IF(BL$5<=$D49,0,IF(SUM($D49,OFFSET($I34,-$B49,0))>BL$5,OFFSET(BL46,-$B49,-BK$4+$B49)/OFFSET($I34,-$B49,0),OFFSET(BL46,-$B49,-BK$4+$B49)-SUM($I49:BK49))) -> 0 | BM49: =IF(BM$5<=$D49,0,IF(SUM($D49,OFFSET($I34,-$B49,0))>BM$5,OFFSET(BM46,-$B49,-BL$4+$B49)/OFFSET($I34,-$B49,0),OFFSET(BM46,-$B49,-BL$4+$B49)-SUM($I49:BL49))) -> 0 | BN49: =IF(BN$5<=$D49,0,IF(SUM($D49,OFFSET($I34,-$B49,0))>BN$5,OFFSET(BN46,-$B49,-BM$4+$B49)/OFFSET($I34,-$B49,0),OFFSET(BN46,-$B49,-BM$4+$B49)-SUM($I49:BM49))) -> 0 | BO49: =IF(BO$5<=$D49,0,IF(SUM($D49,OFFSET($I34,-$B49,0))>BO$5,OFFSET(BO46,-$B49,-BN$4+$B49)/OFFSET($I34,-$B49,0),OFFSET(BO46,-$B49,-BN$4+$B49)-SUM($I49:BN49))) -> 0 | BP49: =IF(BP$5<=$D49,0,IF(SUM($D49,OFFSET($I34,-$B49,0))>BP$5,OFFSET(BP46,-$B49,-BO$4+$B49)/OFFSET($I34,-$B49,0),OFFSET(BP46,-$B49,-BO$4+$B49)-SUM($I49:BO49))) -> 0 | BQ49: =IF(BQ$5<=$D49,0,IF(SUM($D49,OFFSET($I34,-$B49,0))>BQ$5,OFFSET(BQ46,-$B49,-BP$4+$B49)/OFFSET($I34,-$B49,0),OFFSET(BQ46,-$B49,-BP$4+$B49)-SUM($I49:BP49))) -> 0 | BR49: =IF(BR$5<=$D49,0,IF(SUM($D49,OFFSET($I34,-$B49,0))>BR$5,OFFSET(BR46,-$B49,-BQ$4+$B49)/OFFSET($I34,-$B49,0),OFFSET(BR46,-$B49,-BQ$4+$B49)-SUM($I49:BQ49))) -> 0 | BS49: =IF(BS$5<=$D49,0,IF(SUM($D49,OFFSET($I34,-$B49,0))>BS$5,OFFSET(BS46,-$B49,-BR$4+$B49)/OFFSET($I34,-$B49,0),OFFSET(BS46,-$B49,-BR$4+$B49)-SUM($I49:BR49))) -> 0 | BT49: =IF(BT$5<=$D49,0,IF(SUM($D49,OFFSET($I34,-$B49,0))>BT$5,OFFSET(BT46,-$B49,-BS$4+$B49)/OFFSET($I34,-$B49,0),OFFSET(BT46,-$B49,-BS$4+$B49)-SUM($I49:BS49))) -> 0
